Workbook

Sheet CycleTime
L1: ↓ W～AQ 「表示しない」列 ↓ ↓ W～AQ 「表示しない」列 ↓ ↓ W～AQ 「表示しない」列 ↓ ↓ W～AQ 「表示しない」列 ↓ ↓ W～AQ 「表示しない」列 ↓ ↓ W～AQ 「表示しない」列 ↓ ↓ W～AQ 「表示しない」列 ↓ ↓ W～AQ 「表示しない」列 ↓ ↓ W～AQ 「表示しない」列 ↓ ↓ | AT1: 残す列 | AV1: 残す列
A2: =Message!C5 -> 通过速度・加减速度・移动距离自动计算单轴机械手的定位时间（Cycle Time）。 请在以下<a>～<e>项目中选择使用的产品。 在<1>～<5>中输入需要的运行条件。 点击「最快运行设定」按钮后，将根据移动距离与负载质量，计算速度与加减速度。 | L2: 参考表示
L3: Vmax[㎜/s] | N3: =SQRT(D14*(2*N4*N5)/(N4+N5)) -> 383.5358523 | AB3: feedforward | AE3: 物理計算用変換係数
A4: <a> | B4: =Message!C6 -> 系列 | C4: EC | L4: =IF(AE33=0,"加速度[㎜/s^2]","加速度[deg/s^2]") -> 加速度[㎜/s^2] | N4: =D20*AH5*1000 -> 2941.995 | AB4: =AF45/100 -> 0 | AE4: ﾓｰﾀ軸角速度及び角加速度 | AH4: Ｇ
L5: =IF(AE33=0,"減速度[㎜/s^2]","減速度[deg/s^2]") -> 減速度[㎜/s^2] | N5: =D22*AH5*1000 -> 2941.995 | AB5: Kf | AC5: =IF( AB4=1,1,1-EXP(-((N11/(1-AB4))-N11)*N8) ) -> 0 | AE5: =IF(AE33=0,1000,360/(2*PI())) -> 1000 | AH5: =LeadData!$A$1 -> 9.80665
A6: <b> | B6: =Message!C7 -> 型号 | C6: EC-S6L | L6: 最高速度[㎜/s] | N6: =IF(D18<N3,D18,N3) -> 80 | AO6: (Tkp+2Kf) | AP6: =($N$8*$N$11+2*$AB$4) -> 0.01127872775
L7: 分割数 | N7: =ROUND(3200/(AP18+AP20*10)*AP18,0) -> 2313 | AO7: (Tkp-2Kf) | AP7: =($N$8*$N$11-2*$AB$4) -> 0.01127872775
A8: <c> | B8: =IF(AE33=0,Message!C8,Message!C9) -> 导程 | C8: 3 | D8: =IF(AE33=0,"㎜","：1") -> ㎜ | L8: ⊿ｔ[s] | N8: =AT32-AT31 -> 0.0002819681938 | AO8: (2+TKp) | AP8: =(2+$N$8*$N$11) -> 2.011278728
L9: 最終時刻[s] | N9: =AT3231 -> 0.9022982203 | AO9: (2-TKp) | AP9: =(2-$N$8*$N$11) -> 1.988721272
A10: <d> | B10: =Message!C10 -> 行程 | C10: 50 | D10: =IF(AE33=0,"㎜","deg") -> ㎜ | L10: 最終位置[㎜] | N10: =AV3231 -> 49.99994489 | AO10: 減速時間 | AP10: =N6/N5 -> 0.02719243235 | AQ10: s
L11: 位置ｹﾞｲﾝ | N11: =AE45 -> 40 | AO11: 減速距離 | AP11: =N5*AP10*AP10/2 -> 1.087697294 | AQ11: ㎜
A12: <e> | B12: =Message!C11 -> 安装姿态 | C12: 水平 | L12: 速度制御帯域 | N12: =AG45 -> 240 | AO12: 加速時間 | AP12: =N6/N4 -> 0.02719243235 | AQ12: s
AO13: 加速距離 | AP13: =N4*AP12*AP12/2 -> 1.087697294 | AQ13: ㎜
A14: <1> | B14: =IF(AE33=0,Message!C12,Message!C13) -> 移动距离[mm] | D14: 50 | L14: 移動可能距離[㎜] | N14: =X45+Y45 -> 50 | AO14: 等速時間 | AP14: =IF(D18<N3,(D14-AP13-AP11)/D18,0) -> 0.5978075677 | AQ14: s
AO15: 等速距離 | AP15: =AP14*N6 -> 47.82460541 | AQ15: ㎜
A16: <2> | B16: =IF(AE33=0,Message!C14,Message!C15) -> 负载质量[kg] | D16: 25 | L16: =CONCATENATE(C6,"-",C8) -> EC-S6L-3 | AO16: 減速時刻 | AP16: =AP12+AP14 -> 0.625 | AQ16: s
L17: =CONCATENATE(C6,"-",C8,"-",C10,"-",C12) -> EC-S6L-3-50-水平 | AO17: 減速位置 | AP17: =AP13+AP15 -> 48.91230271 | AQ17: ㎜
A18: <3> | B18: =IF(AE33=0,Message!C16,Message!C17) -> 速度[㎜/s] | D18: 80 | G18: =Message!C25 -> ●计算结果 | L18: 最高速度 | M18: 位置ｹﾞｲﾝ | N18: 速度ﾙｰﾌﾟ比例ｹﾞｲﾝ | O18: 速度ﾙｰﾌﾟ積分ｹﾞｲﾝ | P18: 電流制御帯域番号 | Q18: ﾄﾙｸﾌｨﾙﾀ時定数 | R18: ストローク | AO18: TotalTime | AP18: =AP14+AP12+AP10 -> 0.6521924323 | AQ18: s
L19: =AD45 -> 170 | M19: =AE45 -> 40 | N19: =AN27 -> 0 | O19: =AO27 -> 0 | P19: =AK45 -> 0 | Q19: =AI45 -> 0 | R19: =C10 -> 50 | AE19: 運転姿勢 | AF19: ←初期値 | AO19: Spdτ | AP19: =1/N12 -> 0.004166666667 | AQ19: s
A20: <4> | B20: =Message!C18 -> 加速度[G] | D20: 0.3 | E20: ="(1G=9806" & IF(AE33=0,"mm","deg") & "/s^2)" -> (1G=9806mm/s^2) | G20: =Message!C26 -> 定位时间 [s] | I20: =LOOKUP((D14-D24),AV31:AV3231,AT31:AT3231) -> 0.7145074032 | AB20: ="(1G=9806" & IF(AE33=0,"mm","deg") & "／s^2)" -> (1G=9806mm／s^2) | AE20: =Message!C81 -> 水平 | AF20: 水平 | AO20: Posτ | AP20: =1/N11 -> 0.025 | AQ20: s
AE21: =Message!C82 -> 垂直 | AO21: 収束時間 | AP21: =I20-AP18 -> 0.06231497084 | AQ21: s
A22: <5> | B22: =Message!C19 -> 减速度[G] | D22: 0.3
A24: <6> | B24: =IF(AE33=0,Message!C20,Message!C21) -> 定位宽度 [㎜] | D24: 0.1 | G24: =IF(N9<=I20,Message!C22,Message!C23) -> ※代表进入定位宽度范围内需要的时间
C25: =IF(N10<=I21,"",Message!C24) -> ※计算结果供参考。 根据负载情况变化，实际的定位时间也会发生变化。 ※伺服增益调整后，可能比计算结果更快定位完成。 详情请参考控制器的使用说明书。
A28: 1 | B28: =A28+1 -> 2 | C28: 3 | D28: 4 | E28: 5 | F28: 6 | G28: 7 | H28: 8 | I28: 9 | J28: 10 | K28: 11 | L28: 12 | M28: 13 | N28: 14 | O28: 15 | P28: =O28+1 -> 16 | Q28: =P28+1 -> 17 | R28: =Q28+1 -> 18 | S28: =R28+1 -> 19 | T28: =S28+1 -> 20 | U28: 21 | V28: 22 | W28: 23 | X28: 24 | Y28: 25 | Z28: 26 | AA28: 27 | AB28: 28 | AC28: 29 | AD28: 30 | AE28: 31 | AF28: 32 | AG28: 33 | AH28: 34 | AI28: 35 | AJ28: 36 | AK28: 37 | AL28: 38 | AM28: 39 | AN28: 40 | AO28: 41 | AP28: 42 | AQ28: 43 | AR28: 44 | AS28: 45 | AT28: 46 | AU28: 47 | AV28: 48
O29: ↓↓↓↓↓↓↓↓ フォント色を白にする列 O29～U193 ↓↓↓↓↓↓↓↓ | AS29: ↓↓↓↓↓↓↓↓↓↓↓↓↓↓↓ フォント色を白に、数式は非表示に、する列 A29～J3231 ↓↓↓↓↓↓↓↓↓↓↓↓↓↓↓
B30: 可搬質量 | C30: 加減速度 | D30: 最高速度 | E30: 実加速度 | F30: 到達速度 | G30: 運転時間 | H30: 三角速度 | O30: № | P30: メカ型式リスト | Q30: 絞込み | R30: ﾀｲﾌﾟﾘｽﾄ | S30: ﾘｰﾄﾞﾘｽﾄ | T30: ｽﾄﾛｰｸﾘｽﾄ | U30: 型式総数 | W30: =DataSerch!B1 -> メカ機種データレコード | AS30: № | AT30: 時刻 | AU30: 位置計画 | AV30: 位置
A31: =A30+1 -> 1 | B31: 9 | C31: 0.7 | D31: 170 | E31: 6864.655 | F31: 170 | G31: 0.3188821837 | H31: 585.8606916 | O31: 1 | P31: EC-S6L | Q31: EC-S6L | R31: EC | S31: 3 | T31: 50 | U31: 558 | W31: ﾚｺｰﾄﾞ№ | X31: =DataSerch!$C$2 -> ｱｸﾁｭｴｰﾀ型式 | Z31: =DataSerch!$E$2 -> 0 | AA31: =DataSerch!$F$2 -> 0 | AB31: =DataSerch!$G$2 -> 0 | AC31: =DataSerch!$H$2 -> 最小ｽﾄﾛｰｸ | AD31: =DataSerch!$I$2 -> 最大ｽﾄﾛｰｸ | AE31: =DataSerch!$J$2 -> 動作種別 | AF31: =DataSerch!$K$2 -> 0 | AS31: 0 | AT31: =$AP$18/$N$7*AS31 -> 0 | AU31: 0 | AV31: 0
A32: 2 | B32: 10 | C32: 0.7 | D32: 155 | E32: 6864.655 | F32: 155 | G32: 0.3451600756 | H32: 585.8606916 | O32: =O31+1 -> 2 | P32: EC-S6M | Q32: EC-S6M | R32: EC-S | S32: - - - | T32: 100 | U32: 絞込み数 | W32: =DataSerch!$B$3 -> 1 | X32: =DataSerch!$C$3 -> EC-S6L | Z32: =DataSerch!$E$4 -> [kg] | AA32: =DataSerch!$F$4 -> [mm] | AB32: =DataSerch!$G$4 -> [mm] | AC32: =DataSerch!$H$4 -> [mm] | AD32: =DataSerch!$I$4 -> [mm] | AE32: =DataSerch!$J$4 -> 0/1 | AF32: =DataSerch!$K$4 -> [K] | AS32: =AS31+1 -> 1 | AT32: 0.0002819681938 | AU32: =IF(($N$4*AT32^2/2)<=$AP$13,($N$4*AT32^2/2), IF(($AP$13+$N$6*(AT32-$AP$12))<=$AP$17, ($AP$13+$N$6*(AT32-$AP$12)), IF(AU31<$D$14, ($AP$17+($N$6-$N$5*(AT32-$AP$16)/2)*(AT32-$AP$16)), $D$14))) -> 0.0001169532189 | AV32: =( $AP$6*AU32 + $AP$7*AU31 + $AP$9*AV31 )/$AP$8 -> 6.558432195e-07
A33: 3 | B33: 11 | C33: 0.3 | D33: 170 | E33: 2941.995 | F33: 170 | G33: 0.3519015658 | H33: 383.5358523 | O33: =O32+1 -> 3 | P33: EC-S6H | Q33: EC-S6H | R33: EC-R | S33: - - - | T33: 150 | U33: 558 | Z33: =DataSerch!$E$5 -> 0 | AA33: =DataSerch!$F$5 -> 0 | AB33: =DataSerch!$G$5 -> 0 | AC33: =DataSerch!$H$5 -> 50 | AD33: =DataSerch!$I$5 -> 400 | AE33: =DataSerch!$J$5 -> 0 | AS33: =AS32+1 -> 2 | AT33: 0.0005639363877 | AU33: 0.0004678128757 | AV33: =( $AP$6*AU33 + $AP$7*AU32 + $AP$9*AV32 )/$AP$8 -> 3.927703721e-06
A34: 4 | B34: 11 | C34: 0.7 | D34: 140 | E34: 6864.655 | F34: 140 | G34: 0.3775371814 | H34: 585.8606916 | O34: 4 | P34: EC-S6S | Q34: EC-S6S | R34: EC-RR | S34: - - - | T34: 200 | AS34: 3 | AT34: 0.0008459045815 | AU34: 0.00105257897 | AV34: 1.240961449e-05
A35: 5 | B35: 12 | C35: 0.3 | D35: 162 | E35: 2941.995 | F35: 162 | G35: 0.3637066508 | H35: 383.5358523 | O35: 5 | P35: EC-S7L | Q35: EC-S7L | R35: EC-RP | S35: - - - | T35: 250 | U35: ﾘｰﾄﾞ総数 | W35: リードデータレコード | AS35: 4 | AT35: 0.001127872775 | AU35: 0.001871251503 | AV35: 2.86665152e-05
A36: 6 | B36: 12 | C36: 0.7 | D36: 130 | E36: 6864.655 | F36: 130 | G36: 0.4035529714 | H36: 585.8606916 | O36: 6 | P36: EC-S7M | Q36: EC-S7M | R36: EC-GS | S36: - - - | T36: 300 | U36: 1 | W36: リスト№ | X36: =DataSerch!$F$24 -> ﾘｰﾄﾞ長 | Y36: =DataSerch!$G$24 -> 0 | Z36: =DataSerch!$H$24 -> 水平定格加速度 | AA36: =DataSerch!$I$24 -> 垂直定格加速度 | AB36: =DataSerch!$J$24 -> 水平最大加速度 | AC36: =DataSerch!$K$24 -> 垂直最大加速度 | AD36: =DataSerch!$L$24 -> 0 | AE36: =DataSerch!$M$24 -> 0 | AF36: =DataSerch!$N$24 -> 0 | AG36: =DataSerch!$O$24 -> ｷﾞｱ比分子 | AH36: =DataSerch!$P$24 -> ｷﾞｱ比分母 | AI36: =DataSerch!$Q$24 -> 0 | AJ36: =DataSerch!$R$24 -> ｽﾄﾛｰｸ刻み | AK36: 位置決め幅初期値 | AS36: 5 | AT36: 0.001409840969 | AU36: 0.002923830473 | AV36: 5.523457849e-05
A37: 7 | B37: 13 | C37: 0.3 | D37: 155 | E37: 2941.995 | F37: 155 | G37: 0.3752659828 | H37: 383.5358523 | O37: 7 | P37: EC-S7H | Q37: EC-S7H | R37: EC-GD | S37: - - - | T37: 350 | AS37: 6 | AT37: 0.001691809163 | AU37: 0.004210315882 | AV37: 9.46215326e-05
A38: 8 | B38: 13 | C38: 0.7 | D38: 120 | E38: 6864.655 | F38: 120 | G38: 0.434147516 | H38: 585.8606916 | O38: 8 | P38: EC-S7S | Q38: EC-S7S | R38: EC-TC | S38: - - - | T38: 400 | U38: ｽﾄﾛｰｸ総数 | W38: =DataSerch!$D$35 -> 1 | X38: =DataSerch!$F$25 -> [mm] | Y38: =DataSerch!$G$25 -> [kgm^2] | Z38: =DataSerch!$H$25 -> [m/s^2] | AA38: =DataSerch!$I$25 -> [m/s^2] | AB38: =DataSerch!$J$25 -> [m/s^2] | AC38: =DataSerch!$K$25 -> [m/s^2] | AD38: =DataSerch!$L$25 -> [Nm] | AE38: =DataSerch!$M$25 -> [Nms] | AF38: =DataSerch!$N$25 -> [Nm] | AG38: =DataSerch!$O$25 -> 0 | AH38: =DataSerch!$P$25 -> 0 | AI38: =DataSerch!$Q$25 -> 0 | AJ38: =DataSerch!$R$25 -> [mm] | AK38: =DataSerch!$S$25 -> [mm] | AS38: 7 | AT38: 0.001973777357 | AU38: 0.005730707728 | AV38: 0.0001493069804
A39: 9 | B39: 14 | C39: 0.3 | D39: 147 | E39: 2941.995 | F39: 147 | G39: 0.3901021489 | H39: 383.5358523 | O39: 9 | P39: EC-R6L | Q39: EC-R6L | R39: EC-TW | T39: - - - | U39: 8 | X39: =LOOKUP(W38,DataSerch!$B$26:$B$33,DataSerch!$F$26:$F$33) -> 3 | Y39: =LOOKUP(W38,DataSerch!$B$26:$B$33,DataSerch!$G$26:$G$33) -> 0 | Z39: =LOOKUP(W38,DataSerch!$B$26:$B$33,DataSerch!$H$26:$H$33) -> 2.941995 | AA39: =LOOKUP(W38,DataSerch!$B$26:$B$33,DataSerch!$I$26:$I$33) -> 2.941995 | AB39: =LOOKUP(W38,DataSerch!$B$26:$B$33,DataSerch!$J$26:$J$33) -> 6.864655 | AC39: =LOOKUP(W38,DataSerch!$B$26:$B$33,DataSerch!$K$26:$K$33) -> 2.941995 | AG39: =LOOKUP(W38,DataSerch!$B$26:$B$33,DataSerch!$O$26:$O$33) -> 1 | AH39: =LOOKUP(W38,DataSerch!$B$26:$B$33,DataSerch!$P$26:$P$33) -> 1 | AJ39: =LOOKUP(W38,DataSerch!$B$26:$B$33,DataSerch!$R$26:$R$33) -> 50 | AK39: =LOOKUP(W38,DataSerch!$B$26:$B$33,DataSerch!$S$26:$S$33) -> 0.1 | AS39: 8 | AT39: 0.002255745551 | AU39: 0.007485006012 | AV39: 0.0002217427148
A40: 10 | B40: 14 | C40: 0.7 | D40: 110 | E40: 6864.655 | F40: 110 | G40: 0.4705695665 | H40: 585.8606916 | O40: 10 | P40: EC-R6M | Q40: EC-R6M | T40: - - - | AS40: 9 | AT40: 0.002537713745 | AU40: 0.009473210733 | AV40: 0.0003143530308
A41: 11 | B41: 15 | C41: 0.3 | D41: 140 | E41: 2941.995 | F41: 140 | G41: 0.4047296137 | H41: 383.5358523 | O41: 11 | P41: EC-R6H | Q41: EC-R6H | T41: - - - | W41: ストロークデータレコード | AS41: 10 | AT41: 0.002819681938 | AU41: 0.01169532189 | AV41: 0.0004295350335
A42: 12 | B42: 15 | C42: 0.7 | D42: 106 | E42: 6864.655 | F42: 106 | G42: 0.4871395301 | H42: 585.8606916 | O42: 12 | P42: EC-R6S | Q42: EC-R6S | T42: - - - | W42: リスト№ | X42: =DataSerch!$E$58 -> ｽﾄﾛｰｸ長 | Y42: =DataSerch!$G$58 -> 有効ｽﾄﾛｰｸ補正 | Z42: =DataSerch!$H$58 -> 0 | AA42: =DataSerch!$I$58 -> 基準ｹﾞｲﾝ用搬送質量 | AB42: =DataSerch!$J$58 -> 水平可搬質量 | AC42: =DataSerch!$K$58 -> 垂直可搬質量 | AD42: =DataSerch!$L$58 -> 最大速度 | AE42: =DataSerch!$M$58 -> 位置ｹﾞｲﾝ | AF42: =DataSerch!$N$58 -> FFｹﾞｲﾝ | AG42: =DataSerch!$O$58 -> 速度制御帯域 | AH42: =DataSerch!$P$58 -> 0 | AI42: =DataSerch!$Q$58 -> 0 | AJ42: =DataSerch!$R$58 -> 0 | AK42: =DataSerch!$S$58 -> 0 | AL42: =DataSerch!$T$58 -> 0 | AS42: 11 | AT42: 0.003101650132 | AU42: 0.01415133949 | AV42: 0.0005696589436
A43: 13 | B43: 16 | C43: 0.3 | D43: 134 | E43: 2941.995 | F43: 134 | G43: 0.4186816525 | H43: 383.5358523 | O43: 13 | P43: EC-R7L | Q43: EC-R7L | T43: - - - | AS43: 12 | AT43: 0.003383618326 | AU43: 0.01684126353 | AV43: 0.0007370683985
A44: 14 | B44: 16 | C44: 0.7 | D44: 102 | E44: 6864.655 | F44: 102 | G44: 0.5050548004 | H44: 585.8606916 | O44: 14 | P44: EC-R7M | Q44: EC-R7M | T44: - - - | W44: =MATCH(C10,DataSerch!$E$60:$E$109,0) -> 1 | X44: =DataSerch!$E$59 -> [mm] | Y44: =DataSerch!$G$59 -> [mm] | Z44: =DataSerch!$H$59 -> [kg/mm] | AA44: =DataSerch!$I$59 -> [kg] | AB44: =DataSerch!$J$59 -> [kg] | AC44: =DataSerch!$K$59 -> [kg] | AD44: =DataSerch!$L$59 -> [mm/s] | AE44: =DataSerch!$M$59 -> [1/s] | AF44: =DataSerch!$N$59 -> [%] | AG44: =DataSerch!$O$59 -> [rad/s] | AH44: =DataSerch!$P$59 -> 0 | AI44: =DataSerch!$Q$59 -> [s] | AJ44: =DataSerch!$R$59 -> 0 | AK44: =DataSerch!$S$59 -> 0 | AL44: =DataSerch!$T$59 -> [Nm/rad] | AS44: 13 | AT44: 0.00366558652 | AU44: 0.019765094 | AV44: 0.0009340807507
A45: 15 | B45: 17 | C45: 0.3 | D45: 128 | E45: 2941.995 | F45: 128 | G45: 0.4341328918 | H45: 383.5358523 | O45: 15 | P45: EC-R7H | Q45: EC-R7H | T45: - - - | X45: =LOOKUP(W44,DataSerch!$D$60:$D$109,DataSerch!$E$60:$E$109) -> 50 | Y45: =LOOKUP(W44,DataSerch!$D$60:$D$109,DataSerch!$G$60:$G$109) -> 0 | Z45: =LOOKUP(W44,DataSerch!$D$60:$D$109,DataSerch!$H$60:$H$109) -> 0 | AA45: =LOOKUP(W44,DataSerch!$D$60:$D$109,DataSerch!$I$60:$I$109) -> 40 | AB45: =LOOKUP(W44,DataSerch!$D$60:$D$109,DataSerch!$J$60:$J$109) -> 25 | AC45: =LOOKUP(W44,DataSerch!$D$60:$D$109,DataSerch!$K$60:$K$109) -> 10 | AD45: =LOOKUP(W44,DataSerch!$D$60:$D$109,DataSerch!$L$60:$L$109) -> 170 | AE45: =LOOKUP(W44,DataSerch!$D$60:$D$109,DataSerch!$M$60:$M$109) -> 40 | AF45: =LOOKUP(W44,DataSerch!$D$60:$D$109,DataSerch!$N$60:$N$109) -> 0 | AG45: =LOOKUP(W44,DataSerch!$D$60:$D$109,DataSerch!$O$60:$O$109) -> 240 | AH45: =LOOKUP(W44,DataSerch!$D$60:$D$109,DataSerch!$P$60:$P$109) -> 0 | AI45: =LOOKUP(W44,DataSerch!$D$60:$D$109,DataSerch!$Q$60:$Q$109) -> 0 | AJ45: =LOOKUP(W44,DataSerch!$D$60:$D$109,DataSerch!$R$60:$R$109) -> 0 | AK45: =LOOKUP(W44,DataSerch!$D$60:$D$109,DataSerch!$S$60:$S$109) -> 0 | AL45: =LOOKUP(W44,DataSerch!$D$60:$D$109,DataSerch!$T$60:$T$109) -> 0 | AS45: 14 | AT45: 0.003947554714 | AU45: 0.02292283091 | AV45: 0.001162987362
A46: 16 | B46: 17 | C46: 0.7 | D46: 98 | E46: 6864.655 | F46: 98 | G46: 0.5244801086 | H46: 585.8606916 | O46: 16 | P46: EC-R7S | Q46: EC-R7S | T46: - - - | AS46: 15 | AT46: 0.004229522908 | AU46: 0.02631447426 | AV46: 0.001426053897
A47: 17 | B47: 18 | C47: 0.3 | D47: 122 | E47: 2941.995 | F47: 122 | G47: 0.4513045249 | H47: 383.5358523 | O47: 17 | P47: EC-RP4L(旧) | Q47: EC-RP4L(旧) | T47: - - - | AS47: 16 | AT47: 0.004511491101 | AU47: 0.02994002405 | AV47: 0.001725520607
A48: 18 | B48: 18 | C48: 0.7 | D48: 95 | E48: 6864.655 | F48: 95 | G48: 0.5401547952 | H48: 585.8606916 | O48: 18 | P48: EC-RP4M(旧) | Q48: EC-RP4M(旧) | T48: - - - | AS48: 17 | AT48: 0.004793459295 | AU48: 0.03379948027 | AV48: 0.00206360262
A49: 19 | B49: 19 | C49: 0.3 | D49: 116 | E49: 2941.995 | F49: 116 | G49: 0.4704635097 | H49: 383.5358523 | O49: 19 | P49: EC-RP4H(旧) | Q49: EC-RP4H(旧) | T49: - - - | AS49: 18 | AT49: 0.005075427489 | AU49: 0.03789284293 | AV49: 0.002442490221
A50: 20 | B50: 19 | C50: 0.7 | D50: 91 | E50: 6864.655 | F50: 91 | G50: 0.5627068602 | H50: 585.8606916 | O50: 20 | P50: EC-GS4L(旧) | Q50: EC-GS4L(旧) | T50: - - - | U50: リンクリスト総数 | AS50: 19 | AT50: 0.005357395683 | AU50: 0.04222011203 | AV50: 0.002864349127
A51: 21 | B51: 20 | C51: 0.3 | D51: 110 | E51: 2941.995 | F51: 110 | G51: 0.491935049 | H51: 383.5358523 | O51: 21 | P51: EC-GS4M(旧) | Q51: EC-GS4M(旧) | T51: - - - | U51: 29 | AS51: 20 | AT51: 0.005639363877 | AU51: 0.04678128757 | AV51: 0.003331320768
A52: 22 | B52: 20 | C52: 0.7 | D52: 87 | E52: 6864.655 | F52: 87 | G52: 0.5873862595 | H52: 585.8606916 | O52: 22 | P52: EC-GS4H(旧) | Q52: EC-GS4H(旧) | T52: - - - | AS52: 21 | AT52: 0.005921332071 | AU52: 0.05157636955 | AV52: 0.003845522556
A53: 23 | B53: 21 | C53: 0.3 | D53: 104 | E53: 2941.995 | F53: 104 | G53: 0.5161193928 | H53: 383.5358523 | O53: 23 | P53: EC-GD4L(旧) | Q53: EC-GD4L(旧) | T53: - - - | AS53: 22 | AT53: 0.006203300264 | AU53: 0.05660535796 | AV53: 0.004409048154
A54: 24 | B54: 21 | C54: 0.7 | D54: 83 | E54: 6864.655 | F54: 83 | G54: 0.6145005594 | H54: 585.8606916 | O54: 24 | P54: EC-GD4M(旧) | Q54: EC-GD4M(旧) | T54: - - - | AS54: 23 | AT54: 0.006485268458 | AU54: 0.06186825281 | AV54: 0.005023967746
A55: 25 | B55: 22 | C55: 0.3 | D55: 98 | E55: 2941.995 | F55: 98 | G55: 0.5435148113 | H55: 383.5358523 | O55: 25 | P55: EC-GD4H(旧) | Q55: EC-GD4H(旧) | T55: - - - | AS55: 24 | AT55: 0.006767236652 | AU55: 0.0673650541 | AV55: 0.005692328296
A56: 26 | B56: 22 | C56: 0.7 | D56: 80 | E56: 6864.655 | F56: 80 | G56: 0.6366538996 | H56: 585.8606916 | O56: 26 | P56: EC-TC4L(旧) | Q56: EC-TC4L(旧) | T56: - - - | AS56: 25 | AT56: 0.007049204846 | AU56: 0.07309576183 | AV56: 0.006416153811
A57: 27 | B57: 23 | C57: 0.3 | D57: 92 | E57: 2941.995 | F57: 92 | G57: 0.5747495581 | H57: 383.5358523 | O57: 27 | P57: EC-TC4M(旧) | Q57: EC-TC4M(旧) | T57: - - - | AS57: 26 | AT57: 0.00733117304 | AU57: 0.079060376 | AV57: 0.007197445597
A58: 28 | B58: 24 | C58: 0.3 | D58: 86 | E58: 2941.995 | F58: 86 | G58: 0.6106272136 | H58: 383.5358523 | O58: 28 | P58: EC-TC4H(旧) | Q58: EC-TC4H(旧) | T58: - - - | AS58: 27 | AT58: 0.007613141234 | AU58: 0.0852588966 | AV58: 0.008038182517
A59: 29 | B59: 25 | C59: 0.3 | D59: 80 | E59: 2941.995 | F59: 80 | G59: 0.6521924323 | H59: 383.5358523 | O59: 29 | P59: EC-TW4L(旧) | Q59: EC-TW4L(旧) | T59: - - - | AS59: 28 | AT59: 0.007895109427 | AU59: 0.09169132364 | AV59: 0.008940321236
A60: 30 | B60: -1 | C60: -1 | D60: -1 | E60: -1 | F60: -1 | G60: -1 | H60: -1 | O60: 30 | P60: EC-TW4M(旧) | Q60: EC-TW4M(旧) | T60: - - - | AS60: 29 | AT60: 0.008177077621 | AU60: 0.09835765712 | AV60: 0.009905796477
A61: 31 | B61: -1 | C61: -1 | D61: -1 | E61: -1 | F61: -1 | G61: -1 | H61: -1 | O61: 31 | P61: EC-TW4H(旧) | Q61: EC-TW4H(旧) | T61: - - - | AS61: 30 | AT61: 0.008459045815 | AU61: 0.105257897 | AV61: 0.01093652126
A62: 32 | B62: -1 | C62: -1 | D62: -1 | E62: -1 | F62: -1 | G62: -1 | H62: -1 | O62: 32 | P62: EC-RR6L | Q62: EC-RR6L | T62: - - - | AS62: 31 | AT62: 0.008741014009 | AU62: 0.1123920434 | AV62: 0.01203438717
A63: 33 | B63: -1 | C63: -1 | D63: -1 | E63: -1 | F63: -1 | G63: -1 | H63: -1 | O63: 33 | P63: EC-RR6M | Q63: EC-RR6M | T63: - - - | AS63: 32 | AT63: 0.009022982203 | AU63: 0.1197600962 | AV63: 0.01320126453
A64: 34 | B64: -1 | C64: -1 | D64: -1 | E64: -1 | F64: -1 | G64: -1 | H64: -1 | O64: 34 | P64: EC-RR6H | Q64: EC-RR6H | T64: - - - | AS64: 33 | AT64: 0.009304950397 | AU64: 0.1273620554 | AV64: 0.01443900274
A65: 35 | B65: -1 | C65: -1 | D65: -1 | E65: -1 | F65: -1 | G65: -1 | H65: -1 | O65: 35 | P65: EC-RR6S | Q65: EC-RR6S | T65: - - - | AS65: 34 | AT65: 0.00958691859 | AU65: 0.1351979211 | AV65: 0.01574943043
A66: 36 | B66: -1 | C66: -1 | D66: -1 | E66: -1 | F66: -1 | G66: -1 | H66: -1 | O66: 36 | P66: EC-RR7L | Q66: EC-RR7L | T66: - - - | AS66: 35 | AT66: 0.009868886784 | AU66: 0.1432676932 | AV66: 0.01713435572
A67: 37 | B67: -1 | C67: -1 | D67: -1 | E67: -1 | F67: -1 | G67: -1 | H67: -1 | O67: 37 | P67: EC-RR7M | Q67: EC-RR7M | T67: - - - | AS67: 36 | AT67: 0.01015085498 | AU67: 0.1515713717 | AV67: 0.01859556646
A68: 38 | B68: -1 | C68: -1 | D68: -1 | E68: -1 | F68: -1 | G68: -1 | H68: -1 | O68: 38 | P68: EC-RR7H | Q68: EC-RR7H | T68: - - - | AS68: 37 | AT68: 0.01043282317 | AU68: 0.1601089567 | AV68: 0.02013483044
A69: 39 | B69: -1 | C69: -1 | D69: -1 | E69: -1 | F69: -1 | G69: -1 | H69: -1 | O69: 39 | P69: EC-RR7S | Q69: EC-RR7S | T69: - - - | AS69: 38 | AT69: 0.01071479137 | AU69: 0.1688804481 | AV69: 0.02175389564
A70: 40 | B70: -1 | C70: -1 | D70: -1 | E70: -1 | F70: -1 | G70: -1 | H70: -1 | O70: 40 | P70: EC-R6LW | Q70: EC-R6LW | T70: - - - | AS70: 39 | AT70: 0.01099675956 | AU70: 0.177885846 | AV70: 0.02345449041
A71: 41 | B71: -1 | C71: -1 | D71: -1 | E71: -1 | F71: -1 | G71: -1 | H71: -1 | O71: 41 | P71: EC-R6MW | Q71: EC-R6MW | T71: - - - | AS71: 40 | AT71: 0.01127872775 | AU71: 0.1871251503 | AV71: 0.02523832374
A72: 42 | B72: -1 | C72: -1 | D72: -1 | E72: -1 | F72: -1 | G72: -1 | H72: -1 | O72: 42 | P72: EC-R6HW | Q72: EC-R6HW | T72: - - - | AS72: 41 | AT72: 0.01156069595 | AU72: 0.196598361 | AV72: 0.02710708544
A73: 43 | B73: -1 | C73: -1 | D73: -1 | E73: -1 | F73: -1 | G73: -1 | H73: -1 | O73: 43 | P73: EC-R6SW | Q73: EC-R6SW | T73: - - - | AS73: 42 | AT73: 0.01184266414 | AU73: 0.2063054782 | AV73: 0.02906244637
A74: 44 | B74: -1 | C74: -1 | D74: -1 | E74: -1 | F74: -1 | G74: -1 | H74: -1 | O74: 44 | P74: EC-R7LW | Q74: EC-R7LW | T74: - - - | AS74: 43 | AT74: 0.01212463234 | AU74: 0.2162465018 | AV74: 0.03110605865
A75: 45 | B75: -1 | C75: -1 | D75: -1 | E75: -1 | F75: -1 | G75: -1 | H75: -1 | O75: 45 | P75: EC-R7MW | Q75: EC-R7MW | T75: - - - | AS75: 44 | AT75: 0.01240660053 | AU75: 0.2264214319 | AV75: 0.03323955587
A76: 46 | B76: -1 | C76: -1 | D76: -1 | E76: -1 | F76: -1 | G76: -1 | H76: -1 | O76: 46 | P76: EC-R7HW | Q76: EC-R7HW | T76: - - - | AS76: 45 | AT76: 0.01268856872 | AU76: 0.2368302683 | AV76: 0.0354645533
A77: 47 | B77: -1 | C77: -1 | D77: -1 | E77: -1 | F77: -1 | G77: -1 | H77: -1 | O77: 47 | P77: EC-R7SW | Q77: EC-R7SW | T77: - - - | AS77: 46 | AT77: 0.01297053692 | AU77: 0.2474730113 | AV77: 0.0377826481
A78: 48 | B78: -1 | C78: -1 | D78: -1 | E78: -1 | F78: -1 | G78: -1 | H78: -1 | O78: 48 | P78: EC-S6LH | Q78: EC-S6LH | T78: - - - | AS78: 47 | AT78: 0.01325250511 | AU78: 0.2583496606 | AV78: 0.04019541951
A79: 49 | B79: -1 | C79: -1 | D79: -1 | E79: -1 | F79: -1 | G79: -1 | H79: -1 | O79: 49 | P79: EC-S6MH | Q79: EC-S6MH | T79: - - - | AS79: 48 | AT79: 0.0135344733 | AU79: 0.2694602164 | AV79: 0.04270442905
A80: 50 | B80: -1 | C80: -1 | D80: -1 | E80: -1 | F80: -1 | G80: -1 | H80: -1 | O80: 50 | P80: EC-S6HH | Q80: EC-S6HH | T80: - - - | AS80: 49 | AT80: 0.0138164415 | AU80: 0.2808046787 | AV80: 0.04531122075
A81: 51 | B81: -1 | C81: -1 | D81: -1 | E81: -1 | F81: -1 | G81: -1 | H81: -1 | O81: 51 | P81: EC-S6SH | Q81: EC-S6SH | AS81: 50 | AT81: 0.01409840969 | AU81: 0.2923830473 | AV81: 0.04801732129
A82: 52 | B82: -1 | C82: -1 | D82: -1 | E82: -1 | F82: -1 | G82: -1 | H82: -1 | O82: 52 | P82: EC-S7LH | Q82: EC-S7LH | AS82: 51 | AT82: 0.01438037789 | AU82: 0.3041953224 | AV82: 0.05082424027
A83: 53 | B83: -1 | C83: -1 | D83: -1 | E83: -1 | F83: -1 | G83: -1 | H83: -1 | O83: 53 | P83: EC-S7MH | Q83: EC-S7MH | AS83: 52 | AT83: 0.01466234608 | AU83: 0.316241504 | AV83: 0.05373347032
A84: 54 | B84: -1 | C84: -1 | D84: -1 | E84: -1 | F84: -1 | G84: -1 | H84: -1 | O84: 54 | P84: EC-S7HH | Q84: EC-S7HH | AS84: 53 | AT84: 0.01494431427 | AU84: 0.328521592 | AV84: 0.05674648735
A85: 55 | B85: -1 | C85: -1 | D85: -1 | E85: -1 | F85: -1 | G85: -1 | H85: -1 | O85: 55 | P85: EC-S7SH | Q85: EC-S7SH | AS85: 54 | AT85: 0.01522628247 | AU85: 0.3410355864 | AV85: 0.05986475071
A86: 56 | B86: -1 | C86: -1 | D86: -1 | E86: -1 | F86: -1 | G86: -1 | H86: -1 | O86: 56 | P86: EC-RR6LH | Q86: EC-RR6LH | AS86: 55 | AT86: 0.01550825066 | AU86: 0.3537834873 | AV86: 0.06308970339
A87: 57 | B87: -1 | C87: -1 | D87: -1 | E87: -1 | F87: -1 | G87: -1 | H87: -1 | O87: 57 | P87: EC-RR6MH | Q87: EC-RR6MH | AS87: 56 | AT87: 0.01579021885 | AU87: 0.3667652946 | AV87: 0.06642277219
A88: 58 | B88: -1 | C88: -1 | D88: -1 | E88: -1 | F88: -1 | G88: -1 | H88: -1 | O88: 58 | P88: EC-RR6HH | Q88: EC-RR6HH | AS88: 57 | AT88: 0.01607218705 | AU88: 0.3799810083 | AV88: 0.0698653679
A89: 59 | B89: -1 | C89: -1 | D89: -1 | E89: -1 | F89: -1 | G89: -1 | H89: -1 | O89: 59 | P89: EC-RR6SH | Q89: EC-RR6SH | AS89: 58 | AT89: 0.01635415524 | AU89: 0.3934306285 | AV89: 0.0734188855
A90: 60 | B90: -1 | C90: -1 | D90: -1 | E90: -1 | F90: -1 | G90: -1 | H90: -1 | O90: 60 | P90: EC-RR7LH | Q90: EC-RR7LH | AS90: 59 | AT90: 0.01663612344 | AU90: 0.4071141551 | AV90: 0.07708470433
A91: 61 | B91: -1 | C91: -1 | D91: -1 | E91: -1 | F91: -1 | G91: -1 | H91: -1 | O91: 61 | P91: EC-RR7MH | Q91: EC-RR7MH | AS91: 60 | AT91: 0.01691809163 | AU91: 0.4210315882 | AV91: 0.08086418824
A92: 62 | B92: -1 | C92: -1 | D92: -1 | E92: -1 | F92: -1 | G92: -1 | H92: -1 | O92: 62 | P92: EC-RR7HH | Q92: EC-RR7HH | AS92: 61 | AT92: 0.01720005982 | AU92: 0.4351829276 | AV92: 0.0847586858
A93: 63 | B93: -1 | C93: -1 | D93: -1 | E93: -1 | F93: -1 | G93: -1 | H93: -1 | O93: 63 | P93: EC-RR7SH | Q93: EC-RR7SH | AS93: 62 | AT93: 0.01748202802 | AU93: 0.4495681736 | AV93: 0.08876953044
A94: 64 | B94: -1 | C94: -1 | D94: -1 | E94: -1 | F94: -1 | G94: -1 | H94: -1 | O94: 64 | P94: EC-S6LAH | Q94: EC-S6LAH | AS94: 63 | AT94: 0.01776399621 | AU94: 0.4641873259 | AV94: 0.09289804066
A95: =A94+1 -> 65 | B95: -1 | C95: -1 | D95: -1 | E95: -1 | F95: -1 | G95: -1 | H95: -1 | O95: 65 | P95: EC-S6MAH | Q95: EC-S6MAH | AS95: 64 | AT95: =$AP$18/$N$7*AS95 -> 0.01804596441 | AU95: 0.4790403847 | AV95: 0.09714552015
A96: 66 | B96: -1 | C96: -1 | D96: -1 | E96: -1 | F96: -1 | G96: -1 | H96: -1 | O96: 66 | P96: EC-S6HAH | Q96: EC-S6HAH | AS96: 65 | AT96: 0.0183279326 | AU96: =IF(($N$4*AT96^2/2)<=$AP$13,($N$4*AT96^2/2), IF(($AP$13+$N$6*(AT96-$AP$12))<=$AP$17, ($AP$13+$N$6*(AT96-$AP$12)), IF(AU95<$D$14, ($AP$17+($N$6-$N$5*(AT96-$AP$16)/2)*(AT96-$AP$16)), $D$14))) -> 0.49412735 | AV96: 0.101513258
A97: 67 | B97: -1 | C97: -1 | D97: -1 | E97: -1 | F97: -1 | G97: -1 | H97: -1 | O97: =O96+1 -> 67 | P97: EC-S6SAH | Q97: EC-S6SAH | AS97: =AS96+1 -> 66 | AT97: 0.01860990079 | AU97: 0.5094482217 | AV97: =( $AP$6*AU97 + $AP$7*AU96 + $AP$9*AV96 )/$AP$8 -> 0.1060025288
A98: 68 | B98: -1 | C98: -1 | D98: -1 | E98: -1 | F98: -1 | G98: -1 | H98: -1 | O98: 68 | P98: EC-S7LAH | Q98: EC-S7LAH | AS98: 67 | AT98: 0.01889186899 | AU98: 0.5250029998 | AV98: 0.1106145929
A99: 69 | B99: -1 | C99: -1 | D99: -1 | E99: -1 | F99: -1 | G99: -1 | H99: -1 | O99: 69 | P99: EC-S7MAH | Q99: EC-S7MAH | AS99: 68 | AT99: 0.01917383718 | AU99: 0.5407916843 | AV99: 0.1153506964
A100: 70 | B100: -1 | C100: -1 | D100: -1 | E100: -1 | F100: -1 | G100: -1 | H100: -1 | O100: 70 | P100: EC-S7HAH | Q100: EC-S7HAH | AS100: 69 | AT100: 0.01945580537 | AU100: 0.5568142753 | AV100: 0.1202120716
A101: 71 | B101: -1 | C101: -1 | D101: -1 | E101: -1 | F101: -1 | G101: -1 | H101: -1 | O101: 71 | P101: EC-S7SAH | Q101: EC-S7SAH | AS101: 70 | AT101: 0.01973777357 | AU101: 0.5730707728 | AV101: 0.1251999369
A102: 72 | B102: -1 | C102: -1 | D102: -1 | E102: -1 | F102: -1 | G102: -1 | H102: -1 | O102: 72 | P102: EC-RR6LAH | Q102: EC-RR6LAH | AS102: 71 | AT102: 0.02001974176 | AU102: 0.5895611766 | AV102: 0.1303154971
A103: 73 | B103: -1 | C103: -1 | D103: -1 | E103: -1 | F103: -1 | G103: -1 | H103: -1 | O103: 73 | P103: EC-RR6MAH | Q103: EC-RR6MAH | AS103: 72 | AT103: 0.02030170996 | AU103: 0.6062854869 | AV103: 0.1355599432
A104: 74 | B104: -1 | C104: -1 | D104: -1 | E104: -1 | F104: -1 | G104: -1 | H104: -1 | O104: 74 | P104: EC-RR6HAH | Q104: EC-RR6HAH | AS104: 73 | AT104: 0.02058367815 | AU104: 0.6232437037 | AV104: 0.1409344532
A105: 75 | B105: -1 | C105: -1 | D105: -1 | E105: -1 | F105: -1 | G105: -1 | H105: -1 | O105: 75 | P105: EC-RR6SAH | Q105: EC-RR6SAH | AS105: 74 | AT105: 0.02086564634 | AU105: 0.6404358269 | AV105: 0.1464401917
A106: 76 | B106: -1 | C106: -1 | D106: -1 | E106: -1 | F106: -1 | G106: -1 | H106: -1 | O106: 76 | P106: EC-RR7LAH | Q106: EC-RR7LAH | AS106: 75 | AT106: 0.02114761454 | AU106: 0.6578618565 | AV106: 0.1520783103
A107: 77 | B107: -1 | C107: -1 | D107: -1 | E107: -1 | F107: -1 | G107: -1 | H107: -1 | O107: 77 | P107: EC-RR7MAH | Q107: EC-RR7MAH | AS107: 76 | AT107: 0.02142958273 | AU107: 0.6755217925 | AV107: 0.1578499476
A108: 78 | B108: -1 | C108: -1 | D108: -1 | E108: -1 | F108: -1 | G108: -1 | H108: -1 | O108: 78 | P108: EC-RR7HAH | Q108: EC-RR7HAH | AS108: 77 | AT108: 0.02171155093 | AU108: 0.693415635 | AV108: 0.1637562297
A109: 79 | B109: -1 | C109: -1 | D109: -1 | E109: -1 | F109: -1 | G109: -1 | H109: -1 | O109: 79 | P109: EC-RR7SAH | Q109: EC-RR7SAH | AS109: 78 | AT109: 0.02199351912 | AU109: 0.711543384 | AV109: 0.1697982696
A110: 80 | B110: -1 | C110: -1 | D110: -1 | E110: -1 | F110: -1 | G110: -1 | H110: -1 | O110: 80 | P110: EC-S6LR | Q110: EC-S6LR | AS110: 79 | AT110: 0.02227548731 | AU110: 0.7299050393 | AV110: 0.1759771683
A111: 81 | B111: -1 | C111: -1 | D111: -1 | E111: -1 | F111: -1 | G111: -1 | H111: -1 | O111: 81 | P111: EC-S6MR | Q111: EC-S6MR | AS111: 80 | AT111: 0.02255745551 | AU111: 0.7485006012 | AV111: 0.1822940141
A112: 82 | B112: -1 | C112: -1 | D112: -1 | E112: -1 | F112: -1 | G112: -1 | H112: -1 | O112: 82 | P112: EC-S6HR | Q112: EC-S6HR | AS112: 81 | AT112: 0.0228394237 | AU112: 0.7673300694 | AV112: 0.1887498832
A113: 83 | B113: -1 | C113: -1 | D113: -1 | E113: -1 | F113: -1 | G113: -1 | H113: -1 | O113: 83 | P113: EC-S6SR | Q113: EC-S6SR | AS113: 82 | AT113: 0.02312139189 | AU113: 0.7863934441 | AV113: 0.1953458399
A114: 84 | B114: -1 | C114: -1 | D114: -1 | E114: -1 | F114: -1 | G114: -1 | H114: -1 | O114: 84 | P114: EC-S7LR | Q114: EC-S7LR | AS114: 83 | AT114: 0.02340336009 | AU114: 0.8056907252 | AV114: 0.2020829364
A115: 85 | B115: -1 | C115: -1 | D115: -1 | E115: -1 | F115: -1 | G115: -1 | H115: -1 | O115: 85 | P115: EC-S7MR | Q115: EC-S7MR | AS115: 84 | AT115: 0.02368532828 | AU115: 0.8252219128 | AV115: 0.2089622131
A116: 86 | B116: -1 | C116: -1 | D116: -1 | E116: -1 | F116: -1 | G116: -1 | H116: -1 | O116: 86 | P116: EC-S7HR | Q116: EC-S7HR | AS116: 85 | AT116: 0.02396729648 | AU116: 0.8449870068 | AV116: 0.2159846986
A117: 87 | B117: -1 | C117: -1 | D117: -1 | E117: -1 | F117: -1 | G117: -1 | H117: -1 | O117: 87 | P117: EC-S7SR | Q117: EC-S7SR | AS117: 86 | AT117: 0.02424926467 | AU117: 0.8649860072 | AV117: 0.2231514104
A118: 88 | B118: -1 | C118: -1 | D118: -1 | E118: -1 | F118: -1 | G118: -1 | H118: -1 | O118: 88 | P118: EC-S6LAHR | Q118: EC-S6LAHR | AS118: 87 | AT118: 0.02453123286 | AU118: 0.8852189141 | AV118: 0.2304633541
A119: 89 | B119: -1 | C119: -1 | D119: -1 | E119: -1 | F119: -1 | G119: -1 | H119: -1 | O119: 89 | P119: EC-S6MAHR | Q119: EC-S6MAHR | AS119: 88 | AT119: 0.02481320106 | AU119: 0.9056857274 | AV119: 0.2379215243
A120: 90 | B120: -1 | C120: -1 | D120: -1 | E120: -1 | F120: -1 | G120: -1 | H120: -1 | O120: 90 | P120: EC-S6HAHR | Q120: EC-S6HAHR | AS120: 89 | AT120: 0.02509516925 | AU120: 0.9263864472 | AV120: 0.2455269043
A121: 91 | B121: -1 | C121: -1 | D121: -1 | E121: -1 | F121: -1 | G121: -1 | H121: -1 | O121: 91 | P121: EC-S6SAHR | Q121: EC-S6SAHR | AS121: 90 | AT121: 0.02537713745 | AU121: 0.9473210733 | AV121: 0.2532804665
A122: 92 | B122: -1 | C122: -1 | D122: -1 | E122: -1 | F122: -1 | G122: -1 | H122: -1 | O122: 92 | P122: EC-S7LAHR | Q122: EC-S7LAHR | AS122: 91 | AT122: 0.02565910564 | AU122: 0.968489606 | AV122: 0.2611831724
A123: 93 | B123: -1 | C123: -1 | D123: -1 | E123: -1 | F123: -1 | G123: -1 | H123: -1 | O123: 93 | P123: EC-S7MAHR | Q123: EC-S7MAHR | AS123: 92 | AT123: 0.02594107383 | AU123: 0.989892045 | AV123: 0.2692359726
A124: 94 | B124: -1 | C124: -1 | D124: -1 | E124: -1 | F124: -1 | G124: -1 | H124: -1 | O124: 94 | P124: EC-S7HAHR | Q124: EC-S7HAHR | AS124: 93 | AT124: 0.02622304203 | AU124: 1.011528391 | AV124: 0.277439807
A125: 95 | B125: -1 | C125: -1 | D125: -1 | E125: -1 | F125: -1 | G125: -1 | H125: -1 | O125: 95 | P125: EC-S7SAHR | Q125: EC-S7SAHR | AS125: 94 | AT125: 0.02650501022 | AU125: 1.033398642 | AV125: 0.2857956052
A126: 96 | B126: -1 | C126: -1 | D126: -1 | E126: -1 | F126: -1 | G126: -1 | H126: -1 | O126: 96 | P126: EC-RR6LR | Q126: EC-RR6LR | AS126: 95 | AT126: 0.02678697841 | AU126: 1.055502801 | AV126: 0.2943042862
A127: 97 | B127: -1 | C127: -1 | D127: -1 | E127: -1 | F127: -1 | G127: -1 | H127: -1 | O127: 97 | P127: EC-RR6MR | Q127: EC-RR6MR | AS127: 96 | AT127: 0.02706894661 | AU127: 1.077840866 | AV127: 0.3029667587
A128: 98 | B128: -1 | C128: -1 | D128: -1 | E128: -1 | F128: -1 | G128: -1 | H128: -1 | O128: 98 | P128: EC-RR6HR | Q128: EC-RR6HR | AS128: 97 | AT128: 0.0273509148 | AU128: 1.10037589 | AV128: 0.311783714
A129: 99 | B129: -1 | C129: -1 | D129: -1 | E129: -1 | F129: -1 | G129: -1 | H129: -1 | O129: 99 | P129: EC-RR6SR | Q129: EC-RR6SR | AS129: 98 | AT129: 0.027632883 | AU129: 1.122933346 | AV129: 0.3207546497
A130: 100 | B130: -1 | C130: -1 | D130: -1 | E130: -1 | F130: -1 | G130: -1 | H130: -1 | O130: 100 | P130: EC-RR7LR | Q130: EC-RR7LR | AS130: 99 | AT130: 0.02791485119 | AU130: 1.145490801 | AV130: 0.3298779649
A131: 101 | B131: -1 | C131: -1 | D131: -1 | E131: -1 | F131: -1 | G131: -1 | H131: -1 | O131: 101 | P131: EC-RR7MR | Q131: EC-RR7MR | AS131: 100 | AT131: 0.02819681938 | AU131: 1.168048257 | AV131: 0.3391519503
A132: 102 | B132: -1 | C132: -1 | D132: -1 | E132: -1 | F132: -1 | G132: -1 | H132: -1 | O132: 102 | P132: EC-RR7HR | Q132: EC-RR7HR | AS132: =AS131+1 -> 101 | AT132: 0.02847878758 | AU132: 1.190605712 | AV132: 0.3485749163
A133: 103 | B133: -1 | C133: -1 | D133: -1 | E133: -1 | F133: -1 | G133: -1 | H133: -1 | O133: 103 | P133: EC-RR7SR | Q133: EC-RR7SR | AS133: 102 | AT133: 0.02876075577 | AU133: 1.213163168 | AV133: 0.3581451918
A134: 104 | B134: -1 | C134: -1 | D134: -1 | E134: -1 | F134: -1 | G134: -1 | H134: -1 | O134: 104 | P134: EC-RR6LAHR | Q134: EC-RR6LAHR | AS134: 103 | AT134: 0.02904272397 | AU134: 1.235720623 | AV134: 0.3678611248
A135: 105 | B135: -1 | C135: -1 | D135: -1 | E135: -1 | F135: -1 | G135: -1 | H135: -1 | O135: 105 | P135: EC-RR6MAHR | Q135: EC-RR6MAHR | AS135: 104 | AT135: 0.02932469216 | AU135: 1.258278079 | AV135: 0.3777210816
A136: 106 | B136: -1 | C136: -1 | D136: -1 | E136: -1 | F136: -1 | G136: -1 | H136: -1 | O136: 106 | P136: EC-RR6HAHR | Q136: EC-RR6HAHR | AS136: 105 | AT136: 0.02960666035 | AU136: 1.280835534 | AV136: 0.387723447
A137: 107 | B137: -1 | C137: -1 | D137: -1 | E137: -1 | F137: -1 | G137: -1 | H137: -1 | O137: 107 | P137: EC-RR6SAHR | Q137: EC-RR6SAHR | AS137: 106 | AT137: 0.02988862855 | AU137: 1.30339299 | AV137: 0.3978666237
A138: 108 | B138: -1 | C138: -1 | D138: -1 | E138: -1 | F138: -1 | G138: -1 | H138: -1 | O138: 108 | P138: EC-RR7LAHR | Q138: EC-RR7LAHR | AS138: 107 | AT138: 0.03017059674 | AU138: 1.325950445 | AV138: 0.4081490325
A139: 109 | B139: -1 | C139: -1 | D139: -1 | E139: -1 | F139: -1 | G139: -1 | H139: -1 | O139: 109 | P139: EC-RR7MAHR | Q139: EC-RR7MAHR | AS139: 108 | AT139: 0.03045256493 | AU139: 1.348507901 | AV139: 0.4185691119
A140: 110 | B140: -1 | C140: -1 | D140: -1 | E140: -1 | F140: -1 | G140: -1 | H140: -1 | O140: 110 | P140: EC-RR7HAHR | Q140: EC-RR7HAHR | AS140: 109 | AT140: 0.03073453313 | AU140: 1.371065356 | AV140: 0.4291253177
A141: 111 | B141: -1 | C141: -1 | D141: -1 | E141: -1 | F141: -1 | G141: -1 | H141: -1 | O141: 111 | P141: EC-RR7SAHR | Q141: EC-RR7SAHR | AS141: 110 | AT141: 0.03101650132 | AU141: 1.393622812 | AV141: 0.4398161233
A142: 112 | B142: -1 | C142: -1 | D142: -1 | E142: -1 | F142: -1 | G142: -1 | H142: -1 | O142: 112 | P142: EC-S3L | Q142: EC-S3L | AS142: 111 | AT142: 0.03129846952 | AU142: 1.416180267 | AV142: 0.4506400191
A143: 113 | B143: -1 | C143: -1 | D143: -1 | E143: -1 | F143: -1 | G143: -1 | H143: -1 | O143: 113 | P143: EC-S3M | Q143: EC-S3M | AS143: 112 | AT143: 0.03158043771 | AU143: 1.438737723 | AV143: 0.4615955124
A144: 114 | B144: -1 | C144: -1 | D144: -1 | E144: -1 | F144: -1 | G144: -1 | H144: -1 | O144: 114 | P144: EC-S3H | Q144: EC-S3H | AS144: 113 | AT144: 0.0318624059 | AU144: 1.461295178 | AV144: 0.4726811273
A145: 115 | B145: -1 | C145: -1 | D145: -1 | E145: -1 | F145: -1 | G145: -1 | H145: -1 | O145: 115 | P145: EC-S4L | Q145: EC-S4L | AS145: 114 | AT145: 0.0321443741 | AU145: 1.483852634 | AV145: 0.4838954043
A146: 116 | B146: -1 | C146: -1 | D146: -1 | E146: -1 | F146: -1 | G146: -1 | H146: -1 | O146: 116 | P146: EC-S4M | Q146: EC-S4M | AS146: 115 | AT146: 0.03242634229 | AU146: 1.506410089 | AV146: 0.4952369005
A147: 117 | B147: -1 | C147: -1 | D147: -1 | E147: -1 | F147: -1 | G147: -1 | H147: -1 | O147: 117 | P147: EC-S4H | Q147: EC-S4H | AS147: 116 | AT147: 0.03270831049 | AU147: 1.528967545 | AV147: 0.5067041891
A148: 118 | B148: -1 | C148: -1 | D148: -1 | E148: -1 | F148: -1 | G148: -1 | H148: -1 | O148: 118 | P148: EC-S4S | Q148: EC-S4S | AS148: 117 | AT148: 0.03299027868 | AU148: 1.551525 | AV148: 0.5182958593
A149: 119 | B149: -1 | C149: -1 | D149: -1 | E149: -1 | F149: -1 | G149: -1 | H149: -1 | O149: 119 | P149: EC-RR3L | Q149: EC-RR3L | AS149: 118 | AT149: 0.03327224687 | AU149: 1.574082456 | AV149: 0.530010516
A150: 120 | B150: -1 | C150: -1 | D150: -1 | E150: -1 | F150: -1 | G150: -1 | H150: -1 | O150: 120 | P150: EC-RR3M | Q150: EC-RR3M | AS150: 119 | AT150: 0.03355421507 | AU150: 1.596639911 | AV150: 0.5418467798
A151: 121 | B151: -1 | C151: -1 | D151: -1 | E151: -1 | F151: -1 | G151: -1 | H151: -1 | O151: 121 | P151: EC-RR3H | Q151: EC-RR3H | AS151: 120 | AT151: 0.03383618326 | AU151: 1.619197367 | AV151: 0.553803287
A152: 122 | B152: -1 | C152: -1 | D152: -1 | E152: -1 | F152: -1 | G152: -1 | H152: -1 | O152: 122 | P152: EC-RR4L | Q152: EC-RR4L | AS152: 121 | AT152: 0.03411815145 | AU152: 1.641754823 | AV152: 0.5658786889
A153: 123 | B153: -1 | C153: -1 | D153: -1 | E153: -1 | F153: -1 | G153: -1 | H153: -1 | O153: 123 | P153: EC-RR4M | Q153: EC-RR4M | AS153: 122 | AT153: 0.03440011965 | AU153: 1.664312278 | AV153: 0.578071652
A154: 124 | B154: -1 | C154: -1 | D154: -1 | E154: -1 | F154: -1 | G154: -1 | H154: -1 | O154: 124 | P154: EC-RR4H | Q154: EC-RR4H | AS154: 123 | AT154: 0.03468208784 | AU154: 1.686869734 | AV154: 0.5903808579
A155: 125 | B155: -1 | C155: -1 | D155: -1 | E155: -1 | F155: -1 | G155: -1 | H155: -1 | O155: 125 | P155: EC-RR4S | Q155: EC-RR4S | AS155: 124 | AT155: 0.03496405604 | AU155: 1.709427189 | AV155: 0.6028050029
A156: 126 | B156: -1 | C156: -1 | D156: -1 | E156: -1 | F156: -1 | G156: -1 | H156: -1 | O156: 126 | P156: EC-RR6LW | Q156: EC-RR6LW | AS156: 125 | AT156: 0.03524602423 | AU156: 1.731984645 | AV156: 0.6153427978
A157: 127 | B157: -1 | C157: -1 | D157: -1 | E157: -1 | F157: -1 | G157: -1 | H157: -1 | O157: 127 | P157: EC-RR6MW | Q157: EC-RR6MW | AS157: 126 | AT157: 0.03552799242 | AU157: 1.7545421 | AV157: 0.6279929679
A158: 128 | B158: -1 | C158: -1 | D158: -1 | E158: -1 | F158: -1 | G158: -1 | H158: -1 | O158: 128 | P158: EC-RR6HW | Q158: EC-RR6HW | AS158: 127 | AT158: 0.03580996062 | AU158: 1.777099556 | AV158: 0.6407542531
A159: =A158+1 -> 129 | B159: -1 | C159: -1 | D159: -1 | E159: -1 | F159: -1 | G159: -1 | H159: -1 | O159: 129 | P159: EC-RR6SW | Q159: EC-RR6SW | AS159: 128 | AT159: =$AP$18/$N$7*AS159 -> 0.03609192881 | AU159: 1.799657011 | AV159: 0.6536254069
A160: 130 | B160: -1 | C160: -1 | D160: -1 | E160: -1 | F160: -1 | G160: -1 | H160: -1 | O160: 130 | P160: EC-RR7LW | Q160: EC-RR7LW | AS160: 129 | AT160: 0.03637389701 | AU160: =IF(($N$4*AT160^2/2)<=$AP$13,($N$4*AT160^2/2), IF(($AP$13+$N$6*(AT160-$AP$12))<=$AP$17, ($AP$13+$N$6*(AT160-$AP$12)), IF(AU159<$D$14, ($AP$17+($N$6-$N$5*(AT160-$AP$16)/2)*(AT160-$AP$16)), $D$14))) -> 1.822214467 | AV160: 0.6666051973
A161: 131 | B161: -1 | C161: -1 | D161: -1 | E161: -1 | F161: -1 | G161: -1 | H161: -1 | O161: =O160+1 -> 131 | P161: EC-RR7MW | Q161: EC-RR7MW | AS161: 130 | AT161: 0.0366558652 | AU161: 1.844771922 | AV161: =( $AP$6*AU161 + $AP$7*AU160 + $AP$9*AV160 )/$AP$8 -> 0.6796924058
A162: 132 | B162: -1 | C162: -1 | D162: -1 | E162: -1 | F162: -1 | G162: -1 | H162: -1 | O162: =O161+1 -> 132 | P162: EC-RR7HW | Q162: EC-RR7HW | AS162: 131 | AT162: 0.03693783339 | AU162: 1.867329378 | AV162: 0.6928858277
A163: 133 | B163: -1 | C163: -1 | D163: -1 | E163: -1 | F163: -1 | G163: -1 | H163: -1 | O163: =O162+1 -> 133 | P163: EC-RR7SW | Q163: EC-RR7SW | AS163: 132 | AT163: 0.03721980159 | AU163: 1.889886833 | AV163: 0.7061842717
A164: 134 | B164: -1 | C164: -1 | D164: -1 | E164: -1 | F164: -1 | G164: -1 | H164: -1 | O164: =O163+1 -> 134 | P164: EC-B6S | Q164: EC-B6S | AS164: 133 | AT164: 0.03750176978 | AU164: 1.912444289 | AV164: 0.71958656
A165: 135 | B165: -1 | C165: -1 | D165: -1 | E165: -1 | F165: -1 | G165: -1 | H165: -1 | O165: 135 | P165: EC-B6SU | Q165: EC-B6SU | AS165: 134 | AT165: 0.03778373797 | AU165: 1.935001744 | AV165: 0.7330915278
A166: 136 | B166: -1 | C166: -1 | D166: -1 | E166: -1 | F166: -1 | G166: -1 | H166: -1 | O166: 136 | P166: EC-B7S | Q166: EC-B7S | AS166: 135 | AT166: 0.03806570617 | AU166: 1.9575592 | AV166: 0.7466980236
A167: 137 | B167: -1 | C167: -1 | D167: -1 | E167: -1 | F167: -1 | G167: -1 | H167: -1 | O167: 137 | P167: EC-B7SU | Q167: EC-B7SU | AS167: 136 | AT167: 0.03834767436 | AU167: 1.980116655 | AV167: 0.7604049088
A168: 138 | B168: -1 | C168: -1 | D168: -1 | E168: -1 | F168: -1 | G168: -1 | H168: -1 | O168: 138 | P168: EC-S3LR | Q168: EC-S3LR | AS168: 137 | AT168: 0.03862964256 | AU168: 2.002674111 | AV168: 0.7742110573
A169: 139 | B169: -1 | C169: -1 | D169: -1 | E169: -1 | F169: -1 | G169: -1 | H169: -1 | O169: 139 | P169: EC-S3MR | Q169: EC-S3MR | AS169: 138 | AT169: 0.03891161075 | AU169: 2.025231566 | AV169: 0.7881153559
A170: 140 | B170: -1 | C170: -1 | D170: -1 | E170: -1 | F170: -1 | G170: -1 | H170: -1 | O170: 140 | P170: EC-S3HR | Q170: EC-S3HR | AS170: 139 | AT170: 0.03919357894 | AU170: 2.047789022 | AV170: 0.8021167039
A171: 141 | B171: -1 | C171: -1 | D171: -1 | E171: -1 | F171: -1 | G171: -1 | H171: -1 | O171: 141 | P171: EC-S4LR | Q171: EC-S4LR | AS171: 140 | AT171: 0.03947554714 | AU171: 2.070346477 | AV171: 0.8162140127
A172: 142 | B172: -1 | C172: -1 | D172: -1 | E172: -1 | F172: -1 | G172: -1 | H172: -1 | O172: 142 | P172: EC-S4MR | Q172: EC-S4MR | AS172: 141 | AT172: 0.03975751533 | AU172: 2.092903933 | AV172: 0.8304062061
A173: 143 | B173: -1 | C173: -1 | D173: -1 | E173: -1 | F173: -1 | G173: -1 | H173: -1 | O173: 143 | P173: EC-S4HR | Q173: EC-S4HR | AS173: 142 | AT173: 0.04003948352 | AU173: 2.115461388 | AV173: 0.8446922199
A174: 144 | B174: -1 | C174: -1 | D174: -1 | E174: -1 | F174: -1 | G174: -1 | H174: -1 | O174: 144 | P174: EC-S4SR | Q174: EC-S4SR | AS174: 143 | AT174: 0.04032145172 | AU174: 2.138018844 | AV174: 0.8590710019
A175: 145 | B175: -1 | C175: -1 | D175: -1 | E175: -1 | F175: -1 | G175: -1 | H175: -1 | O175: 145 | P175: EC-RR3LR | Q175: EC-RR3LR | AS175: 144 | AT175: 0.04060341991 | AU175: 2.160576299 | AV175: 0.8735415116
A176: 146 | B176: -1 | C176: -1 | D176: -1 | E176: -1 | F176: -1 | G176: -1 | H176: -1 | O176: 146 | P176: EC-RR3MR | Q176: EC-RR3MR | AS176: 145 | AT176: 0.04088538811 | AU176: 2.183133755 | AV176: 0.8881027203
A177: 147 | B177: -1 | C177: -1 | D177: -1 | E177: -1 | F177: -1 | G177: -1 | H177: -1 | O177: 147 | P177: EC-RR3HR | Q177: EC-RR3HR | AS177: 146 | AT177: 0.0411673563 | AU177: 2.20569121 | AV177: 0.9027536108
A178: 148 | B178: -1 | C178: -1 | D178: -1 | E178: -1 | F178: -1 | G178: -1 | H178: -1 | O178: 148 | P178: EC-RR4LR | Q178: EC-RR4LR | AS178: 147 | AT178: 0.04144932449 | AU178: 2.228248666 | AV178: 0.9174931772
A179: 149 | B179: -1 | C179: -1 | D179: -1 | E179: -1 | F179: -1 | G179: -1 | H179: -1 | O179: 149 | P179: EC-RR4MR | Q179: EC-RR4MR | AS179: 148 | AT179: 0.04173129269 | AU179: 2.250806121 | AV179: 0.932320425
A180: 150 | B180: -1 | C180: -1 | D180: -1 | E180: -1 | F180: -1 | G180: -1 | H180: -1 | O180: 150 | P180: EC-RR4HR | Q180: EC-RR4HR | AS180: 149 | AT180: 0.04201326088 | AU180: 2.273363577 | AV180: 0.9472343707
A181: 151 | B181: -1 | C181: -1 | D181: -1 | E181: -1 | F181: -1 | G181: -1 | H181: -1 | O181: 151 | P181: EC-RR4SR | Q181: EC-RR4SR | AS181: 150 | AT181: 0.04229522908 | AU181: 2.295921032 | AV181: 0.9622340421
A182: 152 | B182: -1 | C182: -1 | D182: -1 | E182: -1 | F182: -1 | G182: -1 | H182: -1 | O182: 152 | P182: EC-ST15L | Q182: EC-ST15L | AS182: 151 | AT182: 0.04257719727 | AU182: 2.318478488 | AV182: 0.9773184776
A183: 153 | B183: -1 | C183: -1 | D183: -1 | E183: -1 | F183: -1 | G183: -1 | H183: -1 | O183: 153 | P183: EC-RTC9 | Q183: EC-RTC9 | AS183: =AS182+1 -> 152 | AT183: 0.04285916546 | AU183: 2.341035943 | AV183: 0.9924867267
A184: 154 | B184: -1 | C184: -1 | D184: -1 | E184: -1 | F184: -1 | G184: -1 | H184: -1 | O184: 154 | P184: EC-RTC12 | Q184: EC-RTC12 | AS184: 153 | AT184: 0.04314113366 | AU184: 2.363593399 | AV184: 1.007737849
A185: 155 | B185: -1 | C185: -1 | D185: -1 | E185: -1 | F185: -1 | G185: -1 | H185: -1 | O185: 155 | P185: EC-RP4L | Q185: EC-RP4L | AS185: 154 | AT185: 0.04342310185 | AU185: 2.386150854 | AV185: 1.023070916
A186: 156 | B186: -1 | C186: -1 | D186: -1 | E186: -1 | F186: -1 | G186: -1 | H186: -1 | O186: 156 | P186: EC-RP4M | Q186: EC-RP4M | AS186: 155 | AT186: 0.04370507004 | AU186: 2.40870831 | AV186: 1.038485007
A187: 157 | B187: -1 | C187: -1 | D187: -1 | E187: -1 | F187: -1 | G187: -1 | H187: -1 | O187: 157 | P187: EC-RP4H | Q187: EC-RP4H | AS187: 156 | AT187: 0.04398703824 | AU187: 2.431265765 | AV187: 1.053979215
A188: 158 | B188: -1 | C188: -1 | D188: -1 | E188: -1 | F188: -1 | G188: -1 | H188: -1 | O188: 158 | P188: EC-GS4L | Q188: EC-GS4L | AS188: 157 | AT188: 0.04426900643 | AU188: 2.453823221 | AV188: 1.069552641
A189: 159 | B189: -1 | C189: -1 | D189: -1 | E189: -1 | F189: -1 | G189: -1 | H189: -1 | O189: 159 | P189: EC-GS4M | Q189: EC-GS4M | AS189: 158 | AT189: 0.04455097463 | AU189: 2.476380676 | AV189: 1.085204395
A190: 160 | B190: -1 | C190: -1 | D190: -1 | E190: -1 | F190: -1 | G190: -1 | H190: -1 | O190: 160 | P190: EC-GS4H | Q190: EC-GS4H | AS190: 159 | AT190: 0.04483294282 | AU190: 2.498938132 | AV190: 1.100933601
A191: 161 | B191: -1 | C191: -1 | D191: -1 | E191: -1 | F191: -1 | G191: -1 | H191: -1 | O191: 161 | P191: EC-GD4L | Q191: EC-GD4L | AS191: 160 | AT191: 0.04511491101 | AU191: 2.521495587 | AV191: 1.116739389
A192: 162 | B192: -1 | C192: -1 | D192: -1 | E192: -1 | F192: -1 | G192: -1 | H192: -1 | O192: 162 | P192: EC-GD4M | Q192: EC-GD4M | AS192: 161 | AT192: 0.04539687921 | AU192: 2.544053043 | AV192: 1.132620899
A193: 163 | B193: -1 | C193: -1 | D193: -1 | E193: -1 | F193: -1 | G193: -1 | H193: -1 | O193: 163 | P193: EC-GD4H | Q193: EC-GD4H | AS193: 162 | AT193: 0.0456788474 | AU193: 2.566610498 | AV193: 1.148577284
A194: 164 | B194: -1 | C194: -1 | D194: -1 | E194: -1 | F194: -1 | G194: -1 | H194: -1 | O194: 164 | P194: EC-TC4L | Q194: EC-TC4L | AS194: 163 | AT194: 0.0459608156 | AU194: 2.589167954 | AV194: 1.164607703
A195: 165 | B195: -1 | C195: -1 | D195: -1 | E195: -1 | F195: -1 | G195: -1 | H195: -1 | O195: 165 | P195: EC-TC4M | Q195: EC-TC4M | AS195: 164 | AT195: 0.04624278379 | AU195: 2.611725409 | AV195: 1.180711326
A196: 166 | B196: -1 | C196: -1 | D196: -1 | E196: -1 | F196: -1 | G196: -1 | H196: -1 | O196: 166 | P196: EC-TC4H | Q196: EC-TC4H | AS196: 165 | AT196: 0.04652475198 | AU196: 2.634282865 | AV196: 1.196887331
A197: 167 | B197: -1 | C197: -1 | D197: -1 | E197: -1 | F197: -1 | G197: -1 | H197: -1 | O197: 167 | P197: EC-TW4L | Q197: EC-TW4L | AS197: 166 | AT197: 0.04680672018 | AU197: 2.65684032 | AV197: 1.213134908
A198: 168 | B198: -1 | C198: -1 | D198: -1 | E198: -1 | F198: -1 | G198: -1 | H198: -1 | O198: 168 | P198: EC-TW4M | Q198: EC-TW4M | AS198: 167 | AT198: 0.04708868837 | AU198: 2.679397776 | AV198: 1.229453253
A199: 169 | B199: -1 | C199: -1 | D199: -1 | E199: -1 | F199: -1 | G199: -1 | H199: -1 | O199: 169 | P199: EC-TW4H | Q199: EC-TW4H | AS199: 168 | AT199: 0.04737065656 | AU199: 2.701955231 | AV199: 1.245841572
A200: 170 | B200: -1 | C200: -1 | D200: -1 | E200: -1 | F200: -1 | G200: -1 | H200: -1 | O200: 170 | P200: EC-WS10L | Q200: EC-WS10L | AS200: 169 | AT200: 0.04765262476 | AU200: 2.724512687 | AV200: 1.262299082
A201: 171 | B201: -1 | C201: -1 | D201: -1 | E201: -1 | F201: -1 | G201: -1 | H201: -1 | O201: 171 | P201: EC-WS10M | Q201: EC-WS10M | AS201: 170 | AT201: 0.04793459295 | AU201: 2.747070142 | AV201: 1.278825005
A202: 172 | B202: -1 | C202: -1 | D202: -1 | E202: -1 | F202: -1 | G202: -1 | H202: -1 | O202: 172 | P202: EC-WS10H | Q202: EC-WS10H | AS202: 171 | AT202: 0.04821656115 | AU202: 2.769627598 | AV202: 1.295418575
A203: 173 | B203: -1 | C203: -1 | D203: -1 | E203: -1 | F203: -1 | G203: -1 | H203: -1 | O203: 173 | P203: EC-WS10S | Q203: EC-WS10S | AS203: 172 | AT203: 0.04849852934 | AU203: 2.792185053 | AV203: 1.312079032
... 922 more rows

Sheet DataSerch (hidden)
A1: 選択型式 | B1: メカ機種データレコード | M1: $561 | N1: ：「メカ機種データ」範囲検索 | R1: $561 | T1: $561
A2: =CycleTime!C6 -> EC-S6L | B2: № | C2: =ModelData!$B$2 -> ｱｸﾁｭｴｰﾀ型式 | H2: =ModelData!$C$2 -> 最小ｽﾄﾛｰｸ | I2: =ModelData!$D$2 -> 最大ｽﾄﾛｰｸ | J2: =ModelData!$E$2 -> 動作種別 | N2: ：「モータ機種データ」範囲検索
B3: =MATCH(A2,ModelData!$B$4:$B$561,0) -> 1 | C3: =LOOKUP(B3,ModelData!$A$4:$A$561,ModelData!$B$4:$B$561) -> EC-S6L | H3: =LOOKUP(B3,ModelData!$A$4:$A$561,ModelData!$C$4:$C$561) -> 50 | I3: =LOOKUP(B3,ModelData!$A$4:$A$561,ModelData!$D$4:$D$561) -> 400 | J3: =LOOKUP(B3,ModelData!$A$4:$A$561,ModelData!$E$4:$E$561) -> 0 | M3: $561 | N3: ：「リードデータ」範囲検索 | R3: $561 | T3: $561
A4: リード | E4: [kg] | F4: [mm] | G4: [mm] | H4: [mm] | I4: [mm] | J4: 0/1 | K4: [K] | M4: $2256 | N4: ：「ストロークデータ」範囲検索 | R4: $2256 | T4: $2256
A5: =CycleTime!C8 -> 3 | E5: =E3/10 -> 0 | F5: =F3/10 -> 0 | G5: =G3 -> 0 | H5: =H3 -> 50 | I5: =I3 -> 400 | J5: =J3 -> 0 | M5: $16325 | N5: ：「搬送負荷データ」範囲検索 | R5: $16325 | T5: $16325
M6: $22848 | N6: ：「加減速・速度データ」範囲検索 | R6: $22848 | T6: $22848
A7: ストローク | B7: モータ機種レコード
A8: =CycleTime!C10 -> 50
A10: 設置姿勢 | D10: [Nm/A] | E10: [A] | F10: [kgm^2] | G10: [Nm] | H10: [Nm] | I10: [rad/s] | J10: [rad/s] | K10: [rad/s] | L10: [Nm/(rad/s)] | M10: [K] | N10: [K] | O10: [s]
A11: =IF(CycleTime!C12=CycleTime!AE20,0,1) -> 0 | D11: =D9/10000 -> 0 | E11: =E9/1000 -> 0 | F11: =F9*0.000000001 -> 0 | G11: =G9/1000 -> 0 | H11: =H9/1000 -> 0 | I11: =I9/1000 -> 0 | J11: =J9/1000 -> 0 | K11: =K9/1000 -> 0 | L11: =L9*0.000001 -> 0 | M11: =M9/10 -> 0 | N11: =N9/10 -> 0 | O11: =O9/100 -> 0
A13: 搬送負荷質量 | B13: リレーション | F13: リードデータレコード | I13: =LOOKUP(C15,LeadData!$A$4:$A$561,LeadData!$K$4:$K$561) -> EC-S6L (リード=3mm)
A14: =CycleTime!B31 -> 9 | C14: ﾘｰﾄﾞ№ | D14: ｽﾄﾛｰｸ№ | E14: 負荷№ | F14: =LeadData!$B$2 -> ﾘｰﾄﾞ長 | H14: =LeadData!$C$2 -> 水平定格加速度 | I14: =LeadData!$D$2 -> 垂直定格加速度 | J14: =LeadData!$E$2 -> 水平最大加速度 | K14: =LeadData!$F$2 -> 垂直最大加速度 | O14: =LeadData!$G$2 -> ｷﾞｱ比分子 | P14: =LeadData!$H$2 -> ｷﾞｱ比分母 | R14: =LeadData!$I$2 -> ｽﾄﾛｰｸ刻み | S14: 位置決め幅初期値
B15: =ModelData!$F$2 -> リンク[0] | C15: =LOOKUP(B3,ModelData!$A$4:$A$561,ModelData!$F$4:$F$561) -> 1 | D15: =LOOKUP(B3,ModelData!$A$4:$A$561,ModelData!$G$4:$G$561) -> 1 | E15: =LOOKUP(B3,ModelData!$A$4:$A$561,ModelData!$H$4:$H$561) -> 1 | F15: =LOOKUP(C15,LeadData!$A$4:$A$561,LeadData!$B$4:$B$561) -> 3000 | H15: =LOOKUP(C15,LeadData!$A$4:$A$561,LeadData!$C$4:$C$561) -> 2941995 | I15: =LOOKUP(C15,LeadData!$A$4:$A$561,LeadData!$D$4:$D$561) -> 2941995 | J15: =LOOKUP(C15,LeadData!$A$4:$A$561,LeadData!$E$4:$E$561) -> 6864655 | K15: =LOOKUP(C15,LeadData!$A$4:$A$561,LeadData!$F$4:$F$561) -> 2941995 | O15: =LOOKUP(C15,LeadData!$A$4:$A$561,LeadData!$G$4:$G$561) -> 1 | P15: =LOOKUP(C15,LeadData!$A$4:$A$561,LeadData!$H$4:$H$561) -> 1 | R15: =LOOKUP(C15,LeadData!$A$4:$A$561,LeadData!$I$4:$I$561) -> 50 | S15: =LOOKUP(C15,LeadData!$A$4:$A$561,LeadData!$J$4:$J$561) -> 0.1
B16: =ModelData!$I$2 -> リンク[1] | C16: =LOOKUP(B3,ModelData!$A$4:$A$561,ModelData!$I$4:$I$561) -> -1 | D16: =LOOKUP(B3,ModelData!$A$4:$A$561,ModelData!$J$4:$J$561) -> -1 | E16: =LOOKUP(B3,ModelData!$A$4:$A$561,ModelData!$K$4:$K$561) -> -1 | F16: =LOOKUP(C16,LeadData!$A$4:$A$561,LeadData!$B$4:$B$561) ->  | H16: =LOOKUP(C16,LeadData!$A$4:$A$561,LeadData!$C$4:$C$561) ->  | I16: =LOOKUP(C16,LeadData!$A$4:$A$561,LeadData!$D$4:$D$561) ->  | J16: =LOOKUP(C16,LeadData!$A$4:$A$561,LeadData!$E$4:$E$561) ->  | K16: =LOOKUP(C16,LeadData!$A$4:$A$561,LeadData!$F$4:$F$561) ->  | O16: =LOOKUP(C16,LeadData!$A$4:$A$561,LeadData!$G$4:$G$561) ->  | P16: =LOOKUP(C16,LeadData!$A$4:$A$561,LeadData!$H$4:$H$561) ->  | R16: =LOOKUP(C16,LeadData!$A$4:$A$561,LeadData!$I$4:$I$561) ->  | S16: =LOOKUP(C16,LeadData!$A$4:$A$561,LeadData!$J$4:$J$561) -> 
B17: =ModelData!$L$2 -> リンク[2] | C17: =LOOKUP(B3,ModelData!$A$4:$A$561,ModelData!$L$4:$L$561) -> -1 | D17: =LOOKUP(B3,ModelData!$A$4:$A$561,ModelData!$M$4:$M$561) -> -1 | E17: =LOOKUP(B3,ModelData!$A$4:$A$561,ModelData!$N$4:$N$561) -> -1 | F17: =LOOKUP(C17,LeadData!$A$4:$A$561,LeadData!$B$4:$B$561) ->  | H17: =LOOKUP(C17,LeadData!$A$4:$A$561,LeadData!$C$4:$C$561) ->  | I17: =LOOKUP(C17,LeadData!$A$4:$A$561,LeadData!$D$4:$D$561) ->  | J17: =LOOKUP(C17,LeadData!$A$4:$A$561,LeadData!$E$4:$E$561) ->  | K17: =LOOKUP(C17,LeadData!$A$4:$A$561,LeadData!$F$4:$F$561) ->  | O17: =LOOKUP(C17,LeadData!$A$4:$A$561,LeadData!$G$4:$G$561) ->  | P17: =LOOKUP(C17,LeadData!$A$4:$A$561,LeadData!$H$4:$H$561) ->  | R17: =LOOKUP(C17,LeadData!$A$4:$A$561,LeadData!$I$4:$I$561) ->  | S17: =LOOKUP(C17,LeadData!$A$4:$A$561,LeadData!$J$4:$J$561) -> 
B18: =ModelData!$O$2 -> リンク[3] | C18: =LOOKUP(B3,ModelData!$A$4:$A$561,ModelData!$O$4:$O$561) -> -1 | D18: =LOOKUP(B3,ModelData!$A$4:$A$561,ModelData!$P$4:$P$561) -> -1 | E18: =LOOKUP(B3,ModelData!$A$4:$A$561,ModelData!$Q$4:$Q$561) -> -1 | F18: =LOOKUP(C18,LeadData!$A$4:$A$561,LeadData!$B$4:$B$561) ->  | H18: =LOOKUP(C18,LeadData!$A$4:$A$561,LeadData!$C$4:$C$561) ->  | I18: =LOOKUP(C18,LeadData!$A$4:$A$561,LeadData!$D$4:$D$561) ->  | J18: =LOOKUP(C18,LeadData!$A$4:$A$561,LeadData!$E$4:$E$561) ->  | K18: =LOOKUP(C18,LeadData!$A$4:$A$561,LeadData!$F$4:$F$561) ->  | O18: =LOOKUP(C18,LeadData!$A$4:$A$561,LeadData!$G$4:$G$561) ->  | P18: =LOOKUP(C18,LeadData!$A$4:$A$561,LeadData!$H$4:$H$561) ->  | R18: =LOOKUP(C18,LeadData!$A$4:$A$561,LeadData!$I$4:$I$561) ->  | S18: =LOOKUP(C18,LeadData!$A$4:$A$561,LeadData!$J$4:$J$561) -> 
B19: =ModelData!$R$2 -> リンク[4] | C19: =LOOKUP(B3,ModelData!$A$4:$A$561,ModelData!$R$4:$R$561) -> -1 | D19: =LOOKUP(B3,ModelData!$A$4:$A$561,ModelData!$S$4:$S$561) -> -1 | E19: =LOOKUP(B3,ModelData!$A$4:$A$561,ModelData!$T$4:$T$561) -> -1 | F19: =LOOKUP(C19,LeadData!$A$4:$A$561,LeadData!$B$4:$B$561) ->  | H19: =LOOKUP(C19,LeadData!$A$4:$A$561,LeadData!$C$4:$C$561) ->  | I19: =LOOKUP(C19,LeadData!$A$4:$A$561,LeadData!$D$4:$D$561) ->  | J19: =LOOKUP(C19,LeadData!$A$4:$A$561,LeadData!$E$4:$E$561) ->  | K19: =LOOKUP(C19,LeadData!$A$4:$A$561,LeadData!$F$4:$F$561) ->  | O19: =LOOKUP(C19,LeadData!$A$4:$A$561,LeadData!$G$4:$G$561) ->  | P19: =LOOKUP(C19,LeadData!$A$4:$A$561,LeadData!$H$4:$H$561) ->  | R19: =LOOKUP(C19,LeadData!$A$4:$A$561,LeadData!$I$4:$I$561) ->  | S19: =LOOKUP(C19,LeadData!$A$4:$A$561,LeadData!$J$4:$J$561) -> 
B20: =ModelData!$U$2 -> リンク[5] | C20: =LOOKUP(B3,ModelData!$A$4:$A$561,ModelData!$U$4:$U$561) -> -1 | D20: =LOOKUP(B3,ModelData!$A$4:$A$561,ModelData!$V$4:$V$561) -> -1 | E20: =LOOKUP(B3,ModelData!$A$4:$A$561,ModelData!$W$4:$W$561) -> -1 | F20: =LOOKUP(C20,LeadData!$A$4:$A$561,LeadData!$B$4:$B$561) ->  | H20: =LOOKUP(C20,LeadData!$A$4:$A$561,LeadData!$C$4:$C$561) ->  | I20: =LOOKUP(C20,LeadData!$A$4:$A$561,LeadData!$D$4:$D$561) ->  | J20: =LOOKUP(C20,LeadData!$A$4:$A$561,LeadData!$E$4:$E$561) ->  | K20: =LOOKUP(C20,LeadData!$A$4:$A$561,LeadData!$F$4:$F$561) ->  | O20: =LOOKUP(C20,LeadData!$A$4:$A$561,LeadData!$G$4:$G$561) ->  | P20: =LOOKUP(C20,LeadData!$A$4:$A$561,LeadData!$H$4:$H$561) ->  | R20: =LOOKUP(C20,LeadData!$A$4:$A$561,LeadData!$I$4:$I$561) ->  | S20: =LOOKUP(C20,LeadData!$A$4:$A$561,LeadData!$J$4:$J$561) -> 
B21: =ModelData!$X$2 -> リンク[6] | C21: =LOOKUP(B3,ModelData!$A$4:$A$561,ModelData!$X$4:$X$561) -> -1 | D21: =LOOKUP(B3,ModelData!$A$4:$A$561,ModelData!$Y$4:$Y$561) -> -1 | E21: =LOOKUP(B3,ModelData!$A$4:$A$561,ModelData!$Z$4:$Z$561) -> -1 | F21: =LOOKUP(C21,LeadData!$A$4:$A$561,LeadData!$B$4:$B$561) ->  | H21: =LOOKUP(C21,LeadData!$A$4:$A$561,LeadData!$C$4:$C$561) ->  | I21: =LOOKUP(C21,LeadData!$A$4:$A$561,LeadData!$D$4:$D$561) ->  | J21: =LOOKUP(C21,LeadData!$A$4:$A$561,LeadData!$E$4:$E$561) ->  | K21: =LOOKUP(C21,LeadData!$A$4:$A$561,LeadData!$F$4:$F$561) ->  | O21: =LOOKUP(C21,LeadData!$A$4:$A$561,LeadData!$G$4:$G$561) ->  | P21: =LOOKUP(C21,LeadData!$A$4:$A$561,LeadData!$H$4:$H$561) ->  | R21: =LOOKUP(C21,LeadData!$A$4:$A$561,LeadData!$I$4:$I$561) ->  | S21: =LOOKUP(C21,LeadData!$A$4:$A$561,LeadData!$J$4:$J$561) -> 
B22: =ModelData!$AA$2 -> リンク[7] | C22: =LOOKUP(B3,ModelData!$A$4:$A$561,ModelData!$AA$4:$AA$561) -> -1 | D22: =LOOKUP(B3,ModelData!$A$4:$A$561,ModelData!$AB$4:$AB$561) -> -1 | E22: =LOOKUP(B3,ModelData!$A$4:$A$561,ModelData!$AC$4:$AC$561) -> -1 | F22: =LOOKUP(C22,LeadData!$A$4:$A$561,LeadData!$B$4:$B$561) ->  | H22: =LOOKUP(C22,LeadData!$A$4:$A$561,LeadData!$C$4:$C$561) ->  | I22: =LOOKUP(C22,LeadData!$A$4:$A$561,LeadData!$D$4:$D$561) ->  | J22: =LOOKUP(C22,LeadData!$A$4:$A$561,LeadData!$E$4:$E$561) ->  | K22: =LOOKUP(C22,LeadData!$A$4:$A$561,LeadData!$F$4:$F$561) ->  | O22: =LOOKUP(C22,LeadData!$A$4:$A$561,LeadData!$G$4:$G$561) ->  | P22: =LOOKUP(C22,LeadData!$A$4:$A$561,LeadData!$H$4:$H$561) ->  | R22: =LOOKUP(C22,LeadData!$A$4:$A$561,LeadData!$I$4:$I$561) ->  | S22: =LOOKUP(C22,LeadData!$A$4:$A$561,LeadData!$J$4:$J$561) -> 
B23: リードリストとリレーション | F23: リードデータレコードの物理量変換
B24: ﾘｰﾄﾞﾘｽﾄ | D24: リンク | F24: =LeadData!$B$2 -> ﾘｰﾄﾞ長 | H24: =LeadData!$C$2 -> 水平定格加速度 | I24: =LeadData!$D$2 -> 垂直定格加速度 | J24: =LeadData!$E$2 -> 水平最大加速度 | K24: =LeadData!$F$2 -> 垂直最大加速度 | O24: =LeadData!$G$2 -> ｷﾞｱ比分子 | P24: =LeadData!$H$2 -> ｷﾞｱ比分母 | R24: =LeadData!$I$2 -> ｽﾄﾛｰｸ刻み | S24: 位置決め幅初期値
B25: № | C25: ﾃﾞｰﾀ | D25: =D14 -> ｽﾄﾛｰｸ№ | E25: =E14 -> 負荷№ | F25: [mm] | G25: [kgm^2] | H25: [m/s^2] | I25: [m/s^2] | J25: [m/s^2] | K25: [m/s^2] | L25: [Nm] | M25: [Nms] | N25: [Nm] | R25: [mm] | S25: [mm]
B26: 1 | C26: =IF(C15=-1,"- - -",IF(F26<=0,P26/O26,F26)) -> 3 | D26: =D15 -> 1 | E26: 1 | F26: =F15/1000 -> 3 | G26: =G15*0.000000001 -> 0 | H26: =H15*0.000001 -> 2.941995 | I26: 2.941995 | J26: 6.864655 | K26: 2.941995 | O26: =O15 -> 1 | P26: =P15 -> 1 | R26: =R15 -> 50 | S26: =S15 -> 0.1
B27: =B26+1 -> 2 | C27: - - - | D27: -1 | E27: -1 | G27: 0 | O27: =O16 ->  | R27: =R16 ->  | S27: =S16 -> 
B28: =B27+1 -> 3 | C28: - - - | D28: -1 | E28: -1 | G28: 0
B29: 4 | C29: - - - | D29: -1 | E29: -1 | G29: 0
B30: 5 | C30: - - - | D30: -1 | E30: -1 | G30: 0
B31: 6 | C31: - - - | D31: -1 | E31: -1 | G31: 0
B32: 7 | C32: - - - | D32: -1 | E32: -1 | G32: 0
B33: 8 | C33: - - - | D33: -1 | E33: -1 | G33: 0
B35: リードリスト選択№ | D35: =MATCH(A5,C26:C33,0) -> 1 | E35: ストロークデータレコード | H35: =LOOKUP(C37,StrokeData!$A$4:$A$2256,StrokeData!$M$4:$M$2256) -> EC-S6L
B36: № | C36: stﾚｺｰﾄﾞ№ | D36: =StrokeData!$B$2 -> ｽﾄﾛｰｸ長 | E36: =StrokeData!$C$2 -> 有効ｽﾄﾛｰｸ補正 | G36: =StrokeData!$D$2 -> 基準ｹﾞｲﾝ用搬送質量 | H36: =StrokeData!$E$2 -> 水平可搬質量 | I36: =StrokeData!$F$2 -> 垂直可搬質量 | J36: =StrokeData!$G$2 -> 最大速度 | K36: =StrokeData!$H$2 -> 位置ｹﾞｲﾝ | L36: =StrokeData!$I$2 -> FFｹﾞｲﾝ | M36: =StrokeData!$J$2 -> 速度制御帯域 | S36: =StrokeData!$K$2 -> 前ﾃﾞｰﾀ№ | T36: =StrokeData!$L$2 -> 次ﾃﾞｰﾀ№
B37: 1 | C37: =LOOKUP(D35,B26:B33,D26:D33) -> 1 | D37: =LOOKUP(C37,StrokeData!$A$4:$A$2256,StrokeData!$B$4:$B$2256) -> 250 | E37: =LOOKUP(C37,StrokeData!$A$4:$A$2256,StrokeData!$C$4:$C$2256) -> 0 | G37: =LOOKUP(C37,StrokeData!$A$4:$A$2256,StrokeData!$D$4:$D$2256) -> 40000 | H37: =LOOKUP(C37,StrokeData!$A$4:$A$2256,StrokeData!$E$4:$E$2256) -> 25000 | I37: =LOOKUP(C37,StrokeData!$A$4:$A$2256,StrokeData!$F$4:$F$2256) -> 10000 | J37: =LOOKUP(C37,StrokeData!$A$4:$A$2256,StrokeData!$G$4:$G$2256) -> 170 | K37: =LOOKUP(C37,StrokeData!$A$4:$A$2256,StrokeData!$H$4:$H$2256) -> 40 | L37: =LOOKUP(C37,StrokeData!$A$4:$A$2256,StrokeData!$I$4:$I$2256) -> 0 | M37: =LOOKUP(C37,StrokeData!$A$4:$A$2256,StrokeData!$J$4:$J$2256) -> 240 | S37: =LOOKUP(C37,StrokeData!$A$4:$A$2256,StrokeData!$K$4:$K$2256) -> -1 | T37: =LOOKUP(C37,StrokeData!$A$4:$A$2256,StrokeData!$L$4:$L$2256) -> 2
B38: =B37+1 -> 2 | C38: =IF(C37=-1,-1,LOOKUP(C37,StrokeData!$A$4:$A$2256,StrokeData!$L$4:$L$2256)) -> 2 | D38: =LOOKUP(C38,StrokeData!$A$4:$A$2256,StrokeData!$B$4:$B$2256) -> 300 | E38: =LOOKUP(C38,StrokeData!$A$4:$A$2256,StrokeData!$C$4:$C$2256) -> 0 | G38: =LOOKUP(C38,StrokeData!$A$4:$A$2256,StrokeData!$D$4:$D$2256) -> 40000 | H38: =LOOKUP(C38,StrokeData!$A$4:$A$2256,StrokeData!$E$4:$E$2256) -> 25000 | I38: =LOOKUP(C38,StrokeData!$A$4:$A$2256,StrokeData!$F$4:$F$2256) -> 10000 | J38: =LOOKUP(C38,StrokeData!$A$4:$A$2256,StrokeData!$G$4:$G$2256) -> 134 | K38: =LOOKUP(C38,StrokeData!$A$4:$A$2256,StrokeData!$H$4:$H$2256) -> 40 | L38: =LOOKUP(C38,StrokeData!$A$4:$A$2256,StrokeData!$I$4:$I$2256) -> 0 | M38: =LOOKUP(C38,StrokeData!$A$4:$A$2256,StrokeData!$J$4:$J$2256) -> 240 | S38: =LOOKUP(C38,StrokeData!$A$4:$A$2256,StrokeData!$K$4:$K$2256) -> 1 | T38: =LOOKUP(C38,StrokeData!$A$4:$A$2256,StrokeData!$L$4:$L$2256) -> 3
B39: =B38+1 -> 3 | C39: =IF(C38=-1,-1,LOOKUP(C38,StrokeData!$A$4:$A$2256,StrokeData!$L$4:$L$2256)) -> 3 | D39: =LOOKUP(C39,StrokeData!$A$4:$A$2256,StrokeData!$B$4:$B$2256) -> 350 | E39: =LOOKUP(C39,StrokeData!$A$4:$A$2256,StrokeData!$C$4:$C$2256) -> 0 | G39: =LOOKUP(C39,StrokeData!$A$4:$A$2256,StrokeData!$D$4:$D$2256) -> 40000 | H39: =LOOKUP(C39,StrokeData!$A$4:$A$2256,StrokeData!$E$4:$E$2256) -> 25000 | I39: =LOOKUP(C39,StrokeData!$A$4:$A$2256,StrokeData!$F$4:$F$2256) -> 10000 | J39: =LOOKUP(C39,StrokeData!$A$4:$A$2256,StrokeData!$G$4:$G$2256) -> 100 | K39: =LOOKUP(C39,StrokeData!$A$4:$A$2256,StrokeData!$H$4:$H$2256) -> 40 | L39: =LOOKUP(C39,StrokeData!$A$4:$A$2256,StrokeData!$I$4:$I$2256) -> 0 | M39: =LOOKUP(C39,StrokeData!$A$4:$A$2256,StrokeData!$J$4:$J$2256) -> 240 | S39: =LOOKUP(C39,StrokeData!$A$4:$A$2256,StrokeData!$K$4:$K$2256) -> 2 | T39: =LOOKUP(C39,StrokeData!$A$4:$A$2256,StrokeData!$L$4:$L$2256) -> 4
B40: 4 | C40: =IF(C39=-1,-1,LOOKUP(C39,StrokeData!$A$4:$A$2256,StrokeData!$L$4:$L$2256)) -> 4 | D40: =LOOKUP(C40,StrokeData!$A$4:$A$2256,StrokeData!$B$4:$B$2256) -> 400 | E40: =LOOKUP(C40,StrokeData!$A$4:$A$2256,StrokeData!$C$4:$C$2256) -> 0 | G40: =LOOKUP(C40,StrokeData!$A$4:$A$2256,StrokeData!$D$4:$D$2256) -> 40000 | H40: =LOOKUP(C40,StrokeData!$A$4:$A$2256,StrokeData!$E$4:$E$2256) -> 25000 | I40: =LOOKUP(C40,StrokeData!$A$4:$A$2256,StrokeData!$F$4:$F$2256) -> 10000 | J40: =LOOKUP(C40,StrokeData!$A$4:$A$2256,StrokeData!$G$4:$G$2256) -> 78 | K40: =LOOKUP(C40,StrokeData!$A$4:$A$2256,StrokeData!$H$4:$H$2256) -> 40 | L40: =LOOKUP(C40,StrokeData!$A$4:$A$2256,StrokeData!$I$4:$I$2256) -> 0 | M40: =LOOKUP(C40,StrokeData!$A$4:$A$2256,StrokeData!$J$4:$J$2256) -> 240 | S40: =LOOKUP(C40,StrokeData!$A$4:$A$2256,StrokeData!$K$4:$K$2256) -> 3 | T40: =LOOKUP(C40,StrokeData!$A$4:$A$2256,StrokeData!$L$4:$L$2256) -> -1
B41: 5 | C41: =IF(C40=-1,-1,LOOKUP(C40,StrokeData!$A$4:$A$2256,StrokeData!$L$4:$L$2256)) -> -1 | D41: =LOOKUP(C41,StrokeData!$A$4:$A$2256,StrokeData!$B$4:$B$2256) ->  | E41: =LOOKUP(C41,StrokeData!$A$4:$A$2256,StrokeData!$C$4:$C$2256) ->  | G41: =LOOKUP(C41,StrokeData!$A$4:$A$2256,StrokeData!$D$4:$D$2256) ->  | H41: =LOOKUP(C41,StrokeData!$A$4:$A$2256,StrokeData!$E$4:$E$2256) ->  | I41: =LOOKUP(C41,StrokeData!$A$4:$A$2256,StrokeData!$F$4:$F$2256) ->  | J41: =LOOKUP(C41,StrokeData!$A$4:$A$2256,StrokeData!$G$4:$G$2256) ->  | K41: =LOOKUP(C41,StrokeData!$A$4:$A$2256,StrokeData!$H$4:$H$2256) ->  | L41: =LOOKUP(C41,StrokeData!$A$4:$A$2256,StrokeData!$I$4:$I$2256) ->  | M41: =LOOKUP(C41,StrokeData!$A$4:$A$2256,StrokeData!$J$4:$J$2256) ->  | S41: =LOOKUP(C41,StrokeData!$A$4:$A$2256,StrokeData!$K$4:$K$2256) ->  | T41: =LOOKUP(C41,StrokeData!$A$4:$A$2256,StrokeData!$L$4:$L$2256) -> 
B42: 6 | C42: =IF(C41=-1,-1,LOOKUP(C41,StrokeData!$A$4:$A$2256,StrokeData!$L$4:$L$2256)) -> -1 | D42: =LOOKUP(C42,StrokeData!$A$4:$A$2256,StrokeData!$B$4:$B$2256) ->  | E42: =LOOKUP(C42,StrokeData!$A$4:$A$2256,StrokeData!$C$4:$C$2256) ->  | G42: =LOOKUP(C42,StrokeData!$A$4:$A$2256,StrokeData!$D$4:$D$2256) ->  | H42: =LOOKUP(C42,StrokeData!$A$4:$A$2256,StrokeData!$E$4:$E$2256) ->  | I42: =LOOKUP(C42,StrokeData!$A$4:$A$2256,StrokeData!$F$4:$F$2256) ->  | J42: =LOOKUP(C42,StrokeData!$A$4:$A$2256,StrokeData!$G$4:$G$2256) ->  | K42: =LOOKUP(C42,StrokeData!$A$4:$A$2256,StrokeData!$H$4:$H$2256) ->  | L42: =LOOKUP(C42,StrokeData!$A$4:$A$2256,StrokeData!$I$4:$I$2256) ->  | M42: =LOOKUP(C42,StrokeData!$A$4:$A$2256,StrokeData!$J$4:$J$2256) ->  | S42: =LOOKUP(C42,StrokeData!$A$4:$A$2256,StrokeData!$K$4:$K$2256) ->  | T42: =LOOKUP(C42,StrokeData!$A$4:$A$2256,StrokeData!$L$4:$L$2256) -> 
B43: 7 | C43: =IF(C42=-1,-1,LOOKUP(C42,StrokeData!$A$4:$A$2256,StrokeData!$L$4:$L$2256)) -> -1 | D43: =LOOKUP(C43,StrokeData!$A$4:$A$2256,StrokeData!$B$4:$B$2256) ->  | E43: =LOOKUP(C43,StrokeData!$A$4:$A$2256,StrokeData!$C$4:$C$2256) ->  | G43: =LOOKUP(C43,StrokeData!$A$4:$A$2256,StrokeData!$D$4:$D$2256) ->  | H43: =LOOKUP(C43,StrokeData!$A$4:$A$2256,StrokeData!$E$4:$E$2256) ->  | I43: =LOOKUP(C43,StrokeData!$A$4:$A$2256,StrokeData!$F$4:$F$2256) ->  | J43: =LOOKUP(C43,StrokeData!$A$4:$A$2256,StrokeData!$G$4:$G$2256) ->  | K43: =LOOKUP(C43,StrokeData!$A$4:$A$2256,StrokeData!$H$4:$H$2256) ->  | L43: =LOOKUP(C43,StrokeData!$A$4:$A$2256,StrokeData!$I$4:$I$2256) ->  | M43: =LOOKUP(C43,StrokeData!$A$4:$A$2256,StrokeData!$J$4:$J$2256) ->  | S43: =LOOKUP(C43,StrokeData!$A$4:$A$2256,StrokeData!$K$4:$K$2256) ->  | T43: =LOOKUP(C43,StrokeData!$A$4:$A$2256,StrokeData!$L$4:$L$2256) -> 
B44: 8 | C44: =IF(C43=-1,-1,LOOKUP(C43,StrokeData!$A$4:$A$2256,StrokeData!$L$4:$L$2256)) -> -1 | D44: =LOOKUP(C44,StrokeData!$A$4:$A$2256,StrokeData!$B$4:$B$2256) ->  | E44: =LOOKUP(C44,StrokeData!$A$4:$A$2256,StrokeData!$C$4:$C$2256) ->  | G44: =LOOKUP(C44,StrokeData!$A$4:$A$2256,StrokeData!$D$4:$D$2256) ->  | H44: =LOOKUP(C44,StrokeData!$A$4:$A$2256,StrokeData!$E$4:$E$2256) ->  | I44: =LOOKUP(C44,StrokeData!$A$4:$A$2256,StrokeData!$F$4:$F$2256) ->  | J44: =LOOKUP(C44,StrokeData!$A$4:$A$2256,StrokeData!$G$4:$G$2256) ->  | K44: =LOOKUP(C44,StrokeData!$A$4:$A$2256,StrokeData!$H$4:$H$2256) ->  | L44: =LOOKUP(C44,StrokeData!$A$4:$A$2256,StrokeData!$I$4:$I$2256) ->  | M44: =LOOKUP(C44,StrokeData!$A$4:$A$2256,StrokeData!$J$4:$J$2256) ->  | S44: =LOOKUP(C44,StrokeData!$A$4:$A$2256,StrokeData!$K$4:$K$2256) ->  | T44: =LOOKUP(C44,StrokeData!$A$4:$A$2256,StrokeData!$L$4:$L$2256) -> 
B45: 9 | C45: =IF(C44=-1,-1,LOOKUP(C44,StrokeData!$A$4:$A$2256,StrokeData!$L$4:$L$2256)) -> -1 | D45: =LOOKUP(C45,StrokeData!$A$4:$A$2256,StrokeData!$B$4:$B$2256) ->  | E45: =LOOKUP(C45,StrokeData!$A$4:$A$2256,StrokeData!$C$4:$C$2256) ->  | G45: =LOOKUP(C45,StrokeData!$A$4:$A$2256,StrokeData!$D$4:$D$2256) ->  | H45: =LOOKUP(C45,StrokeData!$A$4:$A$2256,StrokeData!$E$4:$E$2256) ->  | I45: =LOOKUP(C45,StrokeData!$A$4:$A$2256,StrokeData!$F$4:$F$2256) ->  | J45: =LOOKUP(C45,StrokeData!$A$4:$A$2256,StrokeData!$G$4:$G$2256) ->  | K45: =LOOKUP(C45,StrokeData!$A$4:$A$2256,StrokeData!$H$4:$H$2256) ->  | L45: =LOOKUP(C45,StrokeData!$A$4:$A$2256,StrokeData!$I$4:$I$2256) ->  | M45: =LOOKUP(C45,StrokeData!$A$4:$A$2256,StrokeData!$J$4:$J$2256) ->  | S45: =LOOKUP(C45,StrokeData!$A$4:$A$2256,StrokeData!$K$4:$K$2256) ->  | T45: =LOOKUP(C45,StrokeData!$A$4:$A$2256,StrokeData!$L$4:$L$2256) -> 
B46: 10 | C46: =IF(C45=-1,-1,LOOKUP(C45,StrokeData!$A$4:$A$2256,StrokeData!$L$4:$L$2256)) -> -1 | D46: =LOOKUP(C46,StrokeData!$A$4:$A$2256,StrokeData!$B$4:$B$2256) ->  | E46: =LOOKUP(C46,StrokeData!$A$4:$A$2256,StrokeData!$C$4:$C$2256) ->  | G46: =LOOKUP(C46,StrokeData!$A$4:$A$2256,StrokeData!$D$4:$D$2256) ->  | H46: =LOOKUP(C46,StrokeData!$A$4:$A$2256,StrokeData!$E$4:$E$2256) ->  | I46: =LOOKUP(C46,StrokeData!$A$4:$A$2256,StrokeData!$F$4:$F$2256) ->  | J46: =LOOKUP(C46,StrokeData!$A$4:$A$2256,StrokeData!$G$4:$G$2256) ->  | K46: =LOOKUP(C46,StrokeData!$A$4:$A$2256,StrokeData!$H$4:$H$2256) ->  | L46: =LOOKUP(C46,StrokeData!$A$4:$A$2256,StrokeData!$I$4:$I$2256) ->  | M46: =LOOKUP(C46,StrokeData!$A$4:$A$2256,StrokeData!$J$4:$J$2256) ->  | S46: =LOOKUP(C46,StrokeData!$A$4:$A$2256,StrokeData!$K$4:$K$2256) ->  | T46: =LOOKUP(C46,StrokeData!$A$4:$A$2256,StrokeData!$L$4:$L$2256) -> 
B47: 11 | C47: =IF(C46=-1,-1,LOOKUP(C46,StrokeData!$A$4:$A$2256,StrokeData!$L$4:$L$2256)) -> -1 | D47: =LOOKUP(C47,StrokeData!$A$4:$A$2256,StrokeData!$B$4:$B$2256) ->  | E47: =LOOKUP(C47,StrokeData!$A$4:$A$2256,StrokeData!$C$4:$C$2256) ->  | G47: =LOOKUP(C47,StrokeData!$A$4:$A$2256,StrokeData!$D$4:$D$2256) ->  | H47: =LOOKUP(C47,StrokeData!$A$4:$A$2256,StrokeData!$E$4:$E$2256) ->  | I47: =LOOKUP(C47,StrokeData!$A$4:$A$2256,StrokeData!$F$4:$F$2256) ->  | J47: =LOOKUP(C47,StrokeData!$A$4:$A$2256,StrokeData!$G$4:$G$2256) ->  | K47: =LOOKUP(C47,StrokeData!$A$4:$A$2256,StrokeData!$H$4:$H$2256) ->  | L47: =LOOKUP(C47,StrokeData!$A$4:$A$2256,StrokeData!$I$4:$I$2256) ->  | M47: =LOOKUP(C47,StrokeData!$A$4:$A$2256,StrokeData!$J$4:$J$2256) ->  | S47: =LOOKUP(C47,StrokeData!$A$4:$A$2256,StrokeData!$K$4:$K$2256) ->  | T47: =LOOKUP(C47,StrokeData!$A$4:$A$2256,StrokeData!$L$4:$L$2256) -> 
B48: 12 | C48: =IF(C47=-1,-1,LOOKUP(C47,StrokeData!$A$4:$A$2256,StrokeData!$L$4:$L$2256)) -> -1 | D48: =LOOKUP(C48,StrokeData!$A$4:$A$2256,StrokeData!$B$4:$B$2256) ->  | E48: =LOOKUP(C48,StrokeData!$A$4:$A$2256,StrokeData!$C$4:$C$2256) ->  | G48: =LOOKUP(C48,StrokeData!$A$4:$A$2256,StrokeData!$D$4:$D$2256) ->  | H48: =LOOKUP(C48,StrokeData!$A$4:$A$2256,StrokeData!$E$4:$E$2256) ->  | I48: =LOOKUP(C48,StrokeData!$A$4:$A$2256,StrokeData!$F$4:$F$2256) ->  | J48: =LOOKUP(C48,StrokeData!$A$4:$A$2256,StrokeData!$G$4:$G$2256) ->  | K48: =LOOKUP(C48,StrokeData!$A$4:$A$2256,StrokeData!$H$4:$H$2256) ->  | L48: =LOOKUP(C48,StrokeData!$A$4:$A$2256,StrokeData!$I$4:$I$2256) ->  | M48: =LOOKUP(C48,StrokeData!$A$4:$A$2256,StrokeData!$J$4:$J$2256) ->  | S48: =LOOKUP(C48,StrokeData!$A$4:$A$2256,StrokeData!$K$4:$K$2256) ->  | T48: =LOOKUP(C48,StrokeData!$A$4:$A$2256,StrokeData!$L$4:$L$2256) -> 
B49: 13 | C49: =IF(C48=-1,-1,LOOKUP(C48,StrokeData!$A$4:$A$2256,StrokeData!$L$4:$L$2256)) -> -1 | D49: =LOOKUP(C49,StrokeData!$A$4:$A$2256,StrokeData!$B$4:$B$2256) ->  | E49: =LOOKUP(C49,StrokeData!$A$4:$A$2256,StrokeData!$C$4:$C$2256) ->  | G49: =LOOKUP(C49,StrokeData!$A$4:$A$2256,StrokeData!$D$4:$D$2256) ->  | H49: =LOOKUP(C49,StrokeData!$A$4:$A$2256,StrokeData!$E$4:$E$2256) ->  | I49: =LOOKUP(C49,StrokeData!$A$4:$A$2256,StrokeData!$F$4:$F$2256) ->  | J49: =LOOKUP(C49,StrokeData!$A$4:$A$2256,StrokeData!$G$4:$G$2256) ->  | K49: =LOOKUP(C49,StrokeData!$A$4:$A$2256,StrokeData!$H$4:$H$2256) ->  | L49: =LOOKUP(C49,StrokeData!$A$4:$A$2256,StrokeData!$I$4:$I$2256) ->  | M49: =LOOKUP(C49,StrokeData!$A$4:$A$2256,StrokeData!$J$4:$J$2256) ->  | S49: =LOOKUP(C49,StrokeData!$A$4:$A$2256,StrokeData!$K$4:$K$2256) ->  | T49: =LOOKUP(C49,StrokeData!$A$4:$A$2256,StrokeData!$L$4:$L$2256) -> 
B50: 14 | C50: =IF(C49=-1,-1,LOOKUP(C49,StrokeData!$A$4:$A$2256,StrokeData!$L$4:$L$2256)) -> -1 | D50: =LOOKUP(C50,StrokeData!$A$4:$A$2256,StrokeData!$B$4:$B$2256) ->  | E50: =LOOKUP(C50,StrokeData!$A$4:$A$2256,StrokeData!$C$4:$C$2256) ->  | G50: =LOOKUP(C50,StrokeData!$A$4:$A$2256,StrokeData!$D$4:$D$2256) ->  | H50: =LOOKUP(C50,StrokeData!$A$4:$A$2256,StrokeData!$E$4:$E$2256) ->  | I50: =LOOKUP(C50,StrokeData!$A$4:$A$2256,StrokeData!$F$4:$F$2256) ->  | J50: =LOOKUP(C50,StrokeData!$A$4:$A$2256,StrokeData!$G$4:$G$2256) ->  | K50: =LOOKUP(C50,StrokeData!$A$4:$A$2256,StrokeData!$H$4:$H$2256) ->  | L50: =LOOKUP(C50,StrokeData!$A$4:$A$2256,StrokeData!$I$4:$I$2256) ->  | M50: =LOOKUP(C50,StrokeData!$A$4:$A$2256,StrokeData!$J$4:$J$2256) ->  | S50: =LOOKUP(C50,StrokeData!$A$4:$A$2256,StrokeData!$K$4:$K$2256) ->  | T50: =LOOKUP(C50,StrokeData!$A$4:$A$2256,StrokeData!$L$4:$L$2256) -> 
B51: 15 | C51: =IF(C50=-1,-1,LOOKUP(C50,StrokeData!$A$4:$A$2256,StrokeData!$L$4:$L$2256)) -> -1 | D51: =LOOKUP(C51,StrokeData!$A$4:$A$2256,StrokeData!$B$4:$B$2256) ->  | E51: =LOOKUP(C51,StrokeData!$A$4:$A$2256,StrokeData!$C$4:$C$2256) ->  | G51: =LOOKUP(C51,StrokeData!$A$4:$A$2256,StrokeData!$D$4:$D$2256) ->  | H51: =LOOKUP(C51,StrokeData!$A$4:$A$2256,StrokeData!$E$4:$E$2256) ->  | I51: =LOOKUP(C51,StrokeData!$A$4:$A$2256,StrokeData!$F$4:$F$2256) ->  | J51: =LOOKUP(C51,StrokeData!$A$4:$A$2256,StrokeData!$G$4:$G$2256) ->  | K51: =LOOKUP(C51,StrokeData!$A$4:$A$2256,StrokeData!$H$4:$H$2256) ->  | L51: =LOOKUP(C51,StrokeData!$A$4:$A$2256,StrokeData!$I$4:$I$2256) ->  | M51: =LOOKUP(C51,StrokeData!$A$4:$A$2256,StrokeData!$J$4:$J$2256) ->  | S51: =LOOKUP(C51,StrokeData!$A$4:$A$2256,StrokeData!$K$4:$K$2256) ->  | T51: =LOOKUP(C51,StrokeData!$A$4:$A$2256,StrokeData!$L$4:$L$2256) -> 
B52: 16 | C52: =IF(C51=-1,-1,LOOKUP(C51,StrokeData!$A$4:$A$2256,StrokeData!$L$4:$L$2256)) -> -1 | D52: =LOOKUP(C52,StrokeData!$A$4:$A$2256,StrokeData!$B$4:$B$2256) ->  | E52: =LOOKUP(C52,StrokeData!$A$4:$A$2256,StrokeData!$C$4:$C$2256) ->  | G52: =LOOKUP(C52,StrokeData!$A$4:$A$2256,StrokeData!$D$4:$D$2256) ->  | H52: =LOOKUP(C52,StrokeData!$A$4:$A$2256,StrokeData!$E$4:$E$2256) ->  | I52: =LOOKUP(C52,StrokeData!$A$4:$A$2256,StrokeData!$F$4:$F$2256) ->  | J52: =LOOKUP(C52,StrokeData!$A$4:$A$2256,StrokeData!$G$4:$G$2256) ->  | K52: =LOOKUP(C52,StrokeData!$A$4:$A$2256,StrokeData!$H$4:$H$2256) ->  | L52: =LOOKUP(C52,StrokeData!$A$4:$A$2256,StrokeData!$I$4:$I$2256) ->  | M52: =LOOKUP(C52,StrokeData!$A$4:$A$2256,StrokeData!$J$4:$J$2256) ->  | S52: =LOOKUP(C52,StrokeData!$A$4:$A$2256,StrokeData!$K$4:$K$2256) ->  | T52: =LOOKUP(C52,StrokeData!$A$4:$A$2256,StrokeData!$L$4:$L$2256) -> 
B53: 17 | C53: =IF(C52=-1,-1,LOOKUP(C52,StrokeData!$A$4:$A$2256,StrokeData!$L$4:$L$2256)) -> -1 | D53: =LOOKUP(C53,StrokeData!$A$4:$A$2256,StrokeData!$B$4:$B$2256) ->  | E53: =LOOKUP(C53,StrokeData!$A$4:$A$2256,StrokeData!$C$4:$C$2256) ->  | G53: =LOOKUP(C53,StrokeData!$A$4:$A$2256,StrokeData!$D$4:$D$2256) ->  | H53: =LOOKUP(C53,StrokeData!$A$4:$A$2256,StrokeData!$E$4:$E$2256) ->  | I53: =LOOKUP(C53,StrokeData!$A$4:$A$2256,StrokeData!$F$4:$F$2256) ->  | J53: =LOOKUP(C53,StrokeData!$A$4:$A$2256,StrokeData!$G$4:$G$2256) ->  | K53: =LOOKUP(C53,StrokeData!$A$4:$A$2256,StrokeData!$H$4:$H$2256) ->  | L53: =LOOKUP(C53,StrokeData!$A$4:$A$2256,StrokeData!$I$4:$I$2256) ->  | M53: =LOOKUP(C53,StrokeData!$A$4:$A$2256,StrokeData!$J$4:$J$2256) ->  | S53: =LOOKUP(C53,StrokeData!$A$4:$A$2256,StrokeData!$K$4:$K$2256) ->  | T53: =LOOKUP(C53,StrokeData!$A$4:$A$2256,StrokeData!$L$4:$L$2256) -> 
B54: 18 | C54: =IF(C53=-1,-1,LOOKUP(C53,StrokeData!$A$4:$A$2256,StrokeData!$L$4:$L$2256)) -> -1 | D54: =LOOKUP(C54,StrokeData!$A$4:$A$2256,StrokeData!$B$4:$B$2256) ->  | E54: =LOOKUP(C54,StrokeData!$A$4:$A$2256,StrokeData!$C$4:$C$2256) ->  | G54: =LOOKUP(C54,StrokeData!$A$4:$A$2256,StrokeData!$D$4:$D$2256) ->  | H54: =LOOKUP(C54,StrokeData!$A$4:$A$2256,StrokeData!$E$4:$E$2256) ->  | I54: =LOOKUP(C54,StrokeData!$A$4:$A$2256,StrokeData!$F$4:$F$2256) ->  | J54: =LOOKUP(C54,StrokeData!$A$4:$A$2256,StrokeData!$G$4:$G$2256) ->  | K54: =LOOKUP(C54,StrokeData!$A$4:$A$2256,StrokeData!$H$4:$H$2256) ->  | L54: =LOOKUP(C54,StrokeData!$A$4:$A$2256,StrokeData!$I$4:$I$2256) ->  | M54: =LOOKUP(C54,StrokeData!$A$4:$A$2256,StrokeData!$J$4:$J$2256) ->  | S54: =LOOKUP(C54,StrokeData!$A$4:$A$2256,StrokeData!$K$4:$K$2256) ->  | T54: =LOOKUP(C54,StrokeData!$A$4:$A$2256,StrokeData!$L$4:$L$2256) -> 
B55: 19 | C55: =IF(C54=-1,-1,LOOKUP(C54,StrokeData!$A$4:$A$2256,StrokeData!$L$4:$L$2256)) -> -1 | D55: =LOOKUP(C55,StrokeData!$A$4:$A$2256,StrokeData!$B$4:$B$2256) ->  | E55: =LOOKUP(C55,StrokeData!$A$4:$A$2256,StrokeData!$C$4:$C$2256) ->  | G55: =LOOKUP(C55,StrokeData!$A$4:$A$2256,StrokeData!$D$4:$D$2256) ->  | H55: =LOOKUP(C55,StrokeData!$A$4:$A$2256,StrokeData!$E$4:$E$2256) ->  | I55: =LOOKUP(C55,StrokeData!$A$4:$A$2256,StrokeData!$F$4:$F$2256) ->  | J55: =LOOKUP(C55,StrokeData!$A$4:$A$2256,StrokeData!$G$4:$G$2256) ->  | K55: =LOOKUP(C55,StrokeData!$A$4:$A$2256,StrokeData!$H$4:$H$2256) ->  | L55: =LOOKUP(C55,StrokeData!$A$4:$A$2256,StrokeData!$I$4:$I$2256) ->  | M55: =LOOKUP(C55,StrokeData!$A$4:$A$2256,StrokeData!$J$4:$J$2256) ->  | S55: =LOOKUP(C55,StrokeData!$A$4:$A$2256,StrokeData!$K$4:$K$2256) ->  | T55: =LOOKUP(C55,StrokeData!$A$4:$A$2256,StrokeData!$L$4:$L$2256) -> 
B56: 20 | C56: =IF(C55=-1,-1,LOOKUP(C55,StrokeData!$A$4:$A$2256,StrokeData!$L$4:$L$2256)) -> -1 | D56: =LOOKUP(C56,StrokeData!$A$4:$A$2256,StrokeData!$B$4:$B$2256) ->  | E56: =LOOKUP(C56,StrokeData!$A$4:$A$2256,StrokeData!$C$4:$C$2256) ->  | G56: =LOOKUP(C56,StrokeData!$A$4:$A$2256,StrokeData!$D$4:$D$2256) ->  | H56: =LOOKUP(C56,StrokeData!$A$4:$A$2256,StrokeData!$E$4:$E$2256) ->  | I56: =LOOKUP(C56,StrokeData!$A$4:$A$2256,StrokeData!$F$4:$F$2256) ->  | J56: =LOOKUP(C56,StrokeData!$A$4:$A$2256,StrokeData!$G$4:$G$2256) ->  | K56: =LOOKUP(C56,StrokeData!$A$4:$A$2256,StrokeData!$H$4:$H$2256) ->  | L56: =LOOKUP(C56,StrokeData!$A$4:$A$2256,StrokeData!$I$4:$I$2256) ->  | M56: =LOOKUP(C56,StrokeData!$A$4:$A$2256,StrokeData!$J$4:$J$2256) ->  | S56: =LOOKUP(C56,StrokeData!$A$4:$A$2256,StrokeData!$K$4:$K$2256) ->  | T56: =LOOKUP(C56,StrokeData!$A$4:$A$2256,StrokeData!$L$4:$L$2256) -> 
D57: ストローク | E57: =H5 -> 50 | F57: mm | G57: ～ | H57: =I5 -> 400 | I57: mm | K57: 刻み | L57: =LOOKUP(D35,B26:B33,R26:R33) -> 50 | M57: mm | O57: 慣性係数 | P57: =IF($J$5=1,0.000001,0.001) -> 0.001 | Q57: 有効桁数 | R57: =IF($J$5=1,6,3) -> 3
B58: stﾘｽﾄ検索用(降順) | D58: № | E58: =StrokeData!$B$2 -> ｽﾄﾛｰｸ長 | F58: stﾘｽﾄ№ | G58: =StrokeData!$C$2 -> 有効ｽﾄﾛｰｸ補正 | I58: =StrokeData!$D$2 -> 基準ｹﾞｲﾝ用搬送質量 | J58: =StrokeData!$E$2 -> 水平可搬質量 | K58: =StrokeData!$F$2 -> 垂直可搬質量 | L58: =StrokeData!$G$2 -> 最大速度 | M58: =StrokeData!$H$2 -> 位置ｹﾞｲﾝ | N58: =StrokeData!$I$2 -> FFｹﾞｲﾝ | O58: =StrokeData!$J$2 -> 速度制御帯域
B59: =B36 -> № | C59: =D36 -> ｽﾄﾛｰｸ長 | D59: 0 | E59: =H4 -> [mm] | G59: [mm] | H59: [kg/mm] | I59: =IF(J5=1,"[kgm^2]","[kg]") -> [kg] | J59: =IF(J5=1,"[kgm^2]","[kg]") -> [kg] | K59: =IF(J5=1,"[kgm^2]","[kg]") -> [kg] | L59: [mm/s] | M59: [1/s] | N59: [%] | O59: [rad/s] | Q59: [s] | T59: [Nm/rad]
B60: =B56 -> 20 | C60: =D56 ->  | D60: 1 | E60: =IF( (E57+L57*D59)<=H57,(E57+L57*D59),"- - -") -> 50 | F60: =(B60+1)-MATCH(E60,C60:C79,-1) -> 1 | G60: =LOOKUP(F60,B37:B56,E37:E56) -> 0 | H60: =LOOKUP(F60,$B$37:$B$56,$F$37:$F$56)*0.001 -> 0 | I60: =LOOKUP(F60,B37:B56,G37:G56)*$P$57 -> 40 | J60: =LOOKUP(F60,B37:B56,H37:H56)*$P$57 -> 25 | K60: =LOOKUP(F60,B37:B56,I37:I56)*$P$57 -> 10 | L60: =LOOKUP(F60,B37:B56,J37:J56) -> 170 | M60: =LOOKUP(F60,B37:B56,K37:K56) -> 40 | N60: =LOOKUP(F60,B37:B56,L37:L56) -> 0 | O60: =LOOKUP(F60,B37:B56,M37:M56) -> 240 | P60: =LOOKUP(F60,$B$37:$B$56,$N$37:$N$56) -> 0 | Q60: =LOOKUP(F60,$B$37:$B$56,$O$37:$O$56) -> 0 | R60: =LOOKUP(F60,$B$37:$B$56,$P$37:$P$56) -> 0 | S60: =LOOKUP(F60,$B$37:$B$56,$Q$37:$Q$56) -> 0 | T60: =LOOKUP(F60,$B$37:$B$56,$R$37:$R$56) -> 0
B61: =B55 -> 19 | C61: =D55 ->  | D61: =D60+1 -> 2 | E61: =IF( (E57+L57*D60)<=H57,(E57+L57*D60),"- - -") -> 100 | F61: =(B60+1)-MATCH(E61,C60:C79,-1) -> 1 | G61: =LOOKUP(F61,B37:B56,E37:E56) -> 0 | H61: 0 | I61: =LOOKUP(F61,B37:B56,G37:G56)*$P$57 -> 40 | J61: =LOOKUP(F61,B37:B56,H37:H56)*$P$57 -> 25 | K61: =LOOKUP(F61,B37:B56,I37:I56)*$P$57 -> 10 | L61: =LOOKUP(F61,B37:B56,J37:J56) -> 170 | M61: =LOOKUP(F61,B37:B56,K37:K56) -> 40 | N61: =LOOKUP(F61,B37:B56,L37:L56) -> 0 | O61: =LOOKUP(F61,B37:B56,M37:M56) -> 240 | P61: 0 | Q61: 0 | R61: 0 | S61: 0 | T61: 0
B62: =B54 -> 18 | C62: =D54 ->  | D62: =D61+1 -> 3 | E62: =IF( (E57+L57*D61)<=H57,(E57+L57*D61),"- - -") -> 150 | F62: =(B60+1)-MATCH(E62,C60:C79,-1) -> 1 | G62: =LOOKUP(F62,B37:B56,E37:E56) -> 0 | H62: 0 | I62: =LOOKUP(F62,B37:B56,G37:G56)*$P$57 -> 40 | J62: =LOOKUP(F62,B37:B56,H37:H56)*$P$57 -> 25 | K62: =LOOKUP(F62,B37:B56,I37:I56)*$P$57 -> 10 | L62: =LOOKUP(F62,B37:B56,J37:J56) -> 170 | M62: =LOOKUP(F62,B37:B56,K37:K56) -> 40 | N62: =LOOKUP(F62,B37:B56,L37:L56) -> 0 | O62: =LOOKUP(F62,B37:B56,M37:M56) -> 240 | P62: 0 | Q62: 0 | R62: 0 | S62: 0 | T62: 0
B63: =B53 -> 17 | C63: =D53 ->  | D63: 4 | E63: =IF( (E57+L57*D62)<=H57,(E57+L57*D62),"- - -") -> 200 | F63: =(B60+1)-MATCH(E63,C60:C79,-1) -> 1 | G63: =LOOKUP(F63,B37:B56,E37:E56) -> 0 | H63: 0 | I63: =LOOKUP(F63,B37:B56,G37:G56)*$P$57 -> 40 | J63: =LOOKUP(F63,B37:B56,H37:H56)*$P$57 -> 25 | K63: =LOOKUP(F63,B37:B56,I37:I56)*$P$57 -> 10 | L63: =LOOKUP(F63,B37:B56,J37:J56) -> 170 | M63: =LOOKUP(F63,B37:B56,K37:K56) -> 40 | N63: =LOOKUP(F63,B37:B56,L37:L56) -> 0 | O63: =LOOKUP(F63,B37:B56,M37:M56) -> 240 | P63: 0 | Q63: 0 | R63: 0 | S63: 0 | T63: 0
B64: =B52 -> 16 | C64: =D52 ->  | D64: 5 | E64: =IF( (E57+L57*D63)<=H57,(E57+L57*D63),"- - -") -> 250 | F64: =(B60+1)-MATCH(E64,C60:C79,-1) -> 1 | G64: =LOOKUP(F64,B37:B56,E37:E56) -> 0 | H64: 0 | I64: =LOOKUP(F64,B37:B56,G37:G56)*$P$57 -> 40 | J64: =LOOKUP(F64,B37:B56,H37:H56)*$P$57 -> 25 | K64: =LOOKUP(F64,B37:B56,I37:I56)*$P$57 -> 10 | L64: =LOOKUP(F64,B37:B56,J37:J56) -> 170 | M64: =LOOKUP(F64,B37:B56,K37:K56) -> 40 | N64: =LOOKUP(F64,B37:B56,L37:L56) -> 0 | O64: =LOOKUP(F64,B37:B56,M37:M56) -> 240 | P64: 0 | Q64: 0 | R64: 0 | S64: 0 | T64: 0
B65: =B51 -> 15 | C65: =D51 ->  | D65: 6 | E65: =IF( (E57+L57*D64)<=H57,(E57+L57*D64),"- - -") -> 300 | F65: =(B60+1)-MATCH(E65,C60:C79,-1) -> 2 | G65: =LOOKUP(F65,B37:B56,E37:E56) -> 0 | H65: 0 | I65: =LOOKUP(F65,B37:B56,G37:G56)*$P$57 -> 40 | J65: =LOOKUP(F65,B37:B56,H37:H56)*$P$57 -> 25 | K65: =LOOKUP(F65,B37:B56,I37:I56)*$P$57 -> 10 | L65: =LOOKUP(F65,B37:B56,J37:J56) -> 134 | M65: =LOOKUP(F65,B37:B56,K37:K56) -> 40 | N65: =LOOKUP(F65,B37:B56,L37:L56) -> 0 | O65: =LOOKUP(F65,B37:B56,M37:M56) -> 240 | P65: 0 | Q65: 0 | R65: 0 | S65: 0 | T65: 0
B66: =B50 -> 14 | C66: =D50 ->  | D66: 7 | E66: =IF( (E57+L57*D65)<=H57,(E57+L57*D65),"- - -") -> 350 | F66: =(B60+1)-MATCH(E66,C60:C79,-1) -> 3 | G66: =LOOKUP(F66,B37:B56,E37:E56) -> 0 | H66: 0 | I66: =LOOKUP(F66,B37:B56,G37:G56)*$P$57 -> 40 | J66: =LOOKUP(F66,B37:B56,H37:H56)*$P$57 -> 25 | K66: =LOOKUP(F66,B37:B56,I37:I56)*$P$57 -> 10 | L66: =LOOKUP(F66,B37:B56,J37:J56) -> 100 | M66: =LOOKUP(F66,B37:B56,K37:K56) -> 40 | N66: =LOOKUP(F66,B37:B56,L37:L56) -> 0 | O66: =LOOKUP(F66,B37:B56,M37:M56) -> 240 | P66: 0 | Q66: 0 | R66: 0 | S66: 0 | T66: 0
B67: =B49 -> 13 | C67: =D49 ->  | D67: 8 | E67: =IF( (E57+L57*D66)<=H57,(E57+L57*D66),"- - -") -> 400 | F67: =(B60+1)-MATCH(E67,C60:C79,-1) -> 4 | G67: =LOOKUP(F67,B37:B56,E37:E56) -> 0 | H67: 0 | I67: =LOOKUP(F67,B37:B56,G37:G56)*$P$57 -> 40 | J67: =LOOKUP(F67,B37:B56,H37:H56)*$P$57 -> 25 | K67: =LOOKUP(F67,B37:B56,I37:I56)*$P$57 -> 10 | L67: =LOOKUP(F67,B37:B56,J37:J56) -> 78 | M67: =LOOKUP(F67,B37:B56,K37:K56) -> 40 | N67: =LOOKUP(F67,B37:B56,L37:L56) -> 0 | O67: =LOOKUP(F67,B37:B56,M37:M56) -> 240 | P67: 0 | Q67: 0 | R67: 0 | S67: 0 | T67: 0
B68: =B48 -> 12 | C68: =D48 ->  | D68: 9 | E68: =IF( (E57+L57*D67)<=H57,(E57+L57*D67),"- - -") -> - - - | F68: =(B60+1)-MATCH(E68,C60:C79,-1) ->  | G68: =LOOKUP(F68,B37:B56,E37:E56) ->  | I68: =LOOKUP(F68,B37:B56,G37:G56)*$P$57 ->  | J68: =LOOKUP(F68,B37:B56,H37:H56)*$P$57 ->  | K68: =LOOKUP(F68,B37:B56,I37:I56)*$P$57 ->  | L68: =LOOKUP(F68,B37:B56,J37:J56) ->  | M68: =LOOKUP(F68,B37:B56,K37:K56) ->  | N68: =LOOKUP(F68,B37:B56,L37:L56) ->  | O68: =LOOKUP(F68,B37:B56,M37:M56) -> 
B69: =B47 -> 11 | C69: =D47 ->  | D69: 10 | E69: =IF( (E57+L57*D68)<=H57,(E57+L57*D68),"- - -") -> - - - | F69: =(B60+1)-MATCH(E69,C60:C79,-1) ->  | G69: =LOOKUP(F69,B37:B56,E37:E56) ->  | I69: =LOOKUP(F69,B37:B56,G37:G56)*$P$57 ->  | J69: =LOOKUP(F69,B37:B56,H37:H56)*$P$57 ->  | K69: =LOOKUP(F69,B37:B56,I37:I56)*$P$57 ->  | L69: =LOOKUP(F69,B37:B56,J37:J56) ->  | M69: =LOOKUP(F69,B37:B56,K37:K56) ->  | N69: =LOOKUP(F69,B37:B56,L37:L56) ->  | O69: =LOOKUP(F69,B37:B56,M37:M56) -> 
B70: =B46 -> 10 | C70: =D46 ->  | D70: 11 | E70: =IF( (E57+L57*D69)<=H57,(E57+L57*D69),"- - -") -> - - - | F70: =(B60+1)-MATCH(E70,C60:C79,-1) ->  | G70: =LOOKUP(F70,B37:B56,E37:E56) ->  | I70: =LOOKUP(F70,B37:B56,G37:G56)*$P$57 ->  | J70: =LOOKUP(F70,B37:B56,H37:H56)*$P$57 ->  | K70: =LOOKUP(F70,B37:B56,I37:I56)*$P$57 ->  | L70: =LOOKUP(F70,B37:B56,J37:J56) ->  | M70: =LOOKUP(F70,B37:B56,K37:K56) ->  | N70: =LOOKUP(F70,B37:B56,L37:L56) ->  | O70: =LOOKUP(F70,B37:B56,M37:M56) -> 
B71: =B45 -> 9 | C71: =D45 ->  | D71: 12 | E71: =IF( (E57+L57*D70)<=H57,(E57+L57*D70),"- - -") -> - - - | F71: =(B60+1)-MATCH(E71,C60:C79,-1) ->  | G71: =LOOKUP(F71,B37:B56,E37:E56) ->  | I71: =LOOKUP(F71,B37:B56,G37:G56)*$P$57 ->  | J71: =LOOKUP(F71,B37:B56,H37:H56)*$P$57 ->  | K71: =LOOKUP(F71,B37:B56,I37:I56)*$P$57 ->  | L71: =LOOKUP(F71,B37:B56,J37:J56) ->  | M71: =LOOKUP(F71,B37:B56,K37:K56) ->  | N71: =LOOKUP(F71,B37:B56,L37:L56) ->  | O71: =LOOKUP(F71,B37:B56,M37:M56) -> 
B72: =B44 -> 8 | C72: =D44 ->  | D72: 13 | E72: =IF( (E57+L57*D71)<=H57,(E57+L57*D71),"- - -") -> - - - | F72: =(B60+1)-MATCH(E72,C60:C79,-1) ->  | G72: =LOOKUP(F72,B37:B56,E37:E56) ->  | I72: =LOOKUP(F72,B37:B56,G37:G56)*$P$57 ->  | J72: =LOOKUP(F72,B37:B56,H37:H56)*$P$57 ->  | K72: =LOOKUP(F72,B37:B56,I37:I56)*$P$57 ->  | L72: =LOOKUP(F72,B37:B56,J37:J56) ->  | M72: =LOOKUP(F72,B37:B56,K37:K56) ->  | N72: =LOOKUP(F72,B37:B56,L37:L56) ->  | O72: =LOOKUP(F72,B37:B56,M37:M56) -> 
B73: =B43 -> 7 | C73: =D43 ->  | D73: 14 | E73: =IF( (E57+L57*D72)<=H57,(E57+L57*D72),"- - -") -> - - - | F73: =(B60+1)-MATCH(E73,C60:C79,-1) ->  | G73: =LOOKUP(F73,B37:B56,E37:E56) ->  | I73: =LOOKUP(F73,B37:B56,G37:G56)*$P$57 ->  | J73: =LOOKUP(F73,B37:B56,H37:H56)*$P$57 ->  | K73: =LOOKUP(F73,B37:B56,I37:I56)*$P$57 ->  | L73: =LOOKUP(F73,B37:B56,J37:J56) ->  | M73: =LOOKUP(F73,B37:B56,K37:K56) ->  | N73: =LOOKUP(F73,B37:B56,L37:L56) ->  | O73: =LOOKUP(F73,B37:B56,M37:M56) -> 
B74: =B42 -> 6 | C74: =D42 ->  | D74: 15 | E74: =IF( (E57+L57*D73)<=H57,(E57+L57*D73),"- - -") -> - - - | F74: =(B60+1)-MATCH(E74,C60:C79,-1) ->  | G74: =LOOKUP(F74,B37:B56,E37:E56) ->  | I74: =LOOKUP(F74,B37:B56,G37:G56)*$P$57 ->  | J74: =LOOKUP(F74,B37:B56,H37:H56)*$P$57 ->  | K74: =LOOKUP(F74,B37:B56,I37:I56)*$P$57 ->  | L74: =LOOKUP(F74,B37:B56,J37:J56) ->  | M74: =LOOKUP(F74,B37:B56,K37:K56) ->  | N74: =LOOKUP(F74,B37:B56,L37:L56) ->  | O74: =LOOKUP(F74,B37:B56,M37:M56) -> 
B75: =B41 -> 5 | C75: =D41 ->  | D75: 16 | E75: =IF( (E57+L57*D74)<=H57,(E57+L57*D74),"- - -") -> - - - | F75: =(B60+1)-MATCH(E75,C60:C79,-1) ->  | G75: =LOOKUP(F75,B37:B56,E37:E56) ->  | I75: =LOOKUP(F75,B37:B56,G37:G56)*$P$57 ->  | J75: =LOOKUP(F75,B37:B56,H37:H56)*$P$57 ->  | K75: =LOOKUP(F75,B37:B56,I37:I56)*$P$57 ->  | L75: =LOOKUP(F75,B37:B56,J37:J56) ->  | M75: =LOOKUP(F75,B37:B56,K37:K56) ->  | N75: =LOOKUP(F75,B37:B56,L37:L56) ->  | O75: =LOOKUP(F75,B37:B56,M37:M56) -> 
B76: =B40 -> 4 | C76: =D40 -> 400 | D76: 17 | E76: =IF( (E57+L57*D75)<=H57,(E57+L57*D75),"- - -") -> - - - | F76: =(B60+1)-MATCH(E76,C60:C79,-1) ->  | G76: =LOOKUP(F76,B37:B56,E37:E56) ->  | I76: =LOOKUP(F76,B37:B56,G37:G56)*$P$57 ->  | J76: =LOOKUP(F76,B37:B56,H37:H56)*$P$57 ->  | K76: =LOOKUP(F76,B37:B56,I37:I56)*$P$57 ->  | L76: =LOOKUP(F76,B37:B56,J37:J56) ->  | M76: =LOOKUP(F76,B37:B56,K37:K56) ->  | N76: =LOOKUP(F76,B37:B56,L37:L56) ->  | O76: =LOOKUP(F76,B37:B56,M37:M56) -> 
B77: =B39 -> 3 | C77: =D39 -> 350 | D77: 18 | E77: =IF( (E57+L57*D76)<=H57,(E57+L57*D76),"- - -") -> - - - | F77: =(B60+1)-MATCH(E77,C60:C79,-1) ->  | G77: =LOOKUP(F77,B37:B56,E37:E56) ->  | I77: =LOOKUP(F77,B37:B56,G37:G56)*$P$57 ->  | J77: =LOOKUP(F77,B37:B56,H37:H56)*$P$57 ->  | K77: =LOOKUP(F77,B37:B56,I37:I56)*$P$57 ->  | L77: =LOOKUP(F77,B37:B56,J37:J56) ->  | M77: =LOOKUP(F77,B37:B56,K37:K56) ->  | N77: =LOOKUP(F77,B37:B56,L37:L56) ->  | O77: =LOOKUP(F77,B37:B56,M37:M56) -> 
B78: =B38 -> 2 | C78: =D38 -> 300 | D78: 19 | E78: =IF( (E57+L57*D77)<=H57,(E57+L57*D77),"- - -") -> - - - | F78: =(B60+1)-MATCH(E78,C60:C79,-1) ->  | G78: =LOOKUP(F78,B37:B56,E37:E56) ->  | I78: =LOOKUP(F78,B37:B56,G37:G56)*$P$57 ->  | J78: =LOOKUP(F78,B37:B56,H37:H56)*$P$57 ->  | K78: =LOOKUP(F78,B37:B56,I37:I56)*$P$57 ->  | L78: =LOOKUP(F78,B37:B56,J37:J56) ->  | M78: =LOOKUP(F78,B37:B56,K37:K56) ->  | N78: =LOOKUP(F78,B37:B56,L37:L56) ->  | O78: =LOOKUP(F78,B37:B56,M37:M56) -> 
B79: =B37 -> 1 | C79: =D37 -> 250 | D79: 20 | E79: =IF( (E57+L57*D78)<=H57,(E57+L57*D78),"- - -") -> - - - | F79: =(B60+1)-MATCH(E79,C60:C79,-1) ->  | G79: =LOOKUP(F79,B37:B56,E37:E56) ->  | I79: =LOOKUP(F79,B37:B56,G37:G56)*$P$57 ->  | J79: =LOOKUP(F79,B37:B56,H37:H56)*$P$57 ->  | K79: =LOOKUP(F79,B37:B56,I37:I56)*$P$57 ->  | L79: =LOOKUP(F79,B37:B56,J37:J56) ->  | M79: =LOOKUP(F79,B37:B56,K37:K56) ->  | N79: =LOOKUP(F79,B37:B56,L37:L56) ->  | O79: =LOOKUP(F79,B37:B56,M37:M56) -> 
D80: 21 | E80: =IF( (E57+L57*D79)<=H57,(E57+L57*D79),"- - -") -> - - - | F80: =(B60+1)-MATCH(E80,C60:C79,-1) ->  | G80: =LOOKUP(F80,B37:B56,E37:E56) ->  | I80: =LOOKUP(F80,B37:B56,G37:G56)*$P$57 ->  | J80: =LOOKUP(F80,B37:B56,H37:H56)*$P$57 ->  | K80: =LOOKUP(F80,B37:B56,I37:I56)*$P$57 ->  | L80: =LOOKUP(F80,B37:B56,J37:J56) ->  | M80: =LOOKUP(F80,B37:B56,K37:K56) ->  | N80: =LOOKUP(F80,B37:B56,L37:L56) ->  | O80: =LOOKUP(F80,B37:B56,M37:M56) -> 
D81: 22 | E81: =IF( (E57+L57*D80)<=H57,(E57+L57*D80),"- - -") -> - - - | F81: =(B60+1)-MATCH(E81,C60:C79,-1) ->  | G81: =LOOKUP(F81,B37:B56,E37:E56) ->  | I81: =LOOKUP(F81,B37:B56,G37:G56)*$P$57 ->  | J81: =LOOKUP(F81,B37:B56,H37:H56)*$P$57 ->  | K81: =LOOKUP(F81,B37:B56,I37:I56)*$P$57 ->  | L81: =LOOKUP(F81,B37:B56,J37:J56) ->  | M81: =LOOKUP(F81,B37:B56,K37:K56) ->  | N81: =LOOKUP(F81,B37:B56,L37:L56) ->  | O81: =LOOKUP(F81,B37:B56,M37:M56) -> 
D82: 23 | E82: =IF( (E57+L57*D81)<=H57,(E57+L57*D81),"- - -") -> - - - | F82: =(B60+1)-MATCH(E82,C60:C79,-1) ->  | G82: =LOOKUP(F82,B37:B56,E37:E56) ->  | I82: =LOOKUP(F82,B37:B56,G37:G56)*$P$57 ->  | J82: =LOOKUP(F82,B37:B56,H37:H56)*$P$57 ->  | K82: =LOOKUP(F82,B37:B56,I37:I56)*$P$57 ->  | L82: =LOOKUP(F82,B37:B56,J37:J56) ->  | M82: =LOOKUP(F82,B37:B56,K37:K56) ->  | N82: =LOOKUP(F82,B37:B56,L37:L56) ->  | O82: =LOOKUP(F82,B37:B56,M37:M56) -> 
D83: 24 | E83: =IF( (E57+L57*D82)<=H57,(E57+L57*D82),"- - -") -> - - - | F83: =(B60+1)-MATCH(E83,C60:C79,-1) ->  | G83: =LOOKUP(F83,B37:B56,E37:E56) ->  | I83: =LOOKUP(F83,B37:B56,G37:G56)*$P$57 ->  | J83: =LOOKUP(F83,B37:B56,H37:H56)*$P$57 ->  | K83: =LOOKUP(F83,B37:B56,I37:I56)*$P$57 ->  | L83: =LOOKUP(F83,B37:B56,J37:J56) ->  | M83: =LOOKUP(F83,B37:B56,K37:K56) ->  | N83: =LOOKUP(F83,B37:B56,L37:L56) ->  | O83: =LOOKUP(F83,B37:B56,M37:M56) -> 
D84: 25 | E84: =IF( (E57+L57*D83)<=H57,(E57+L57*D83),"- - -") -> - - - | F84: =(B60+1)-MATCH(E84,C60:C79,-1) ->  | G84: =LOOKUP(F84,B37:B56,E37:E56) ->  | I84: =LOOKUP(F84,B37:B56,G37:G56)*$P$57 ->  | J84: =LOOKUP(F84,B37:B56,H37:H56)*$P$57 ->  | K84: =LOOKUP(F84,B37:B56,I37:I56)*$P$57 ->  | L84: =LOOKUP(F84,B37:B56,J37:J56) ->  | M84: =LOOKUP(F84,B37:B56,K37:K56) ->  | N84: =LOOKUP(F84,B37:B56,L37:L56) ->  | O84: =LOOKUP(F84,B37:B56,M37:M56) -> 
D85: 26 | E85: =IF( (E57+L57*D84)<=H57,(E57+L57*D84),"- - -") -> - - - | F85: =(B60+1)-MATCH(E85,C60:C79,-1) ->  | G85: =LOOKUP(F85,B37:B56,E37:E56) ->  | I85: =LOOKUP(F85,B37:B56,G37:G56)*$P$57 ->  | J85: =LOOKUP(F85,B37:B56,H37:H56)*$P$57 ->  | K85: =LOOKUP(F85,B37:B56,I37:I56)*$P$57 ->  | L85: =LOOKUP(F85,B37:B56,J37:J56) ->  | M85: =LOOKUP(F85,B37:B56,K37:K56) ->  | N85: =LOOKUP(F85,B37:B56,L37:L56) ->  | O85: =LOOKUP(F85,B37:B56,M37:M56) -> 
D86: 27 | E86: =IF( (E57+L57*D85)<=H57,(E57+L57*D85),"- - -") -> - - - | F86: =(B60+1)-MATCH(E86,C60:C79,-1) ->  | G86: =LOOKUP(F86,B37:B56,E37:E56) ->  | I86: =LOOKUP(F86,B37:B56,G37:G56)*$P$57 ->  | J86: =LOOKUP(F86,B37:B56,H37:H56)*$P$57 ->  | K86: =LOOKUP(F86,B37:B56,I37:I56)*$P$57 ->  | L86: =LOOKUP(F86,B37:B56,J37:J56) ->  | M86: =LOOKUP(F86,B37:B56,K37:K56) ->  | N86: =LOOKUP(F86,B37:B56,L37:L56) ->  | O86: =LOOKUP(F86,B37:B56,M37:M56) -> 
D87: 28 | E87: =IF( (E57+L57*D86)<=H57,(E57+L57*D86),"- - -") -> - - - | F87: =(B60+1)-MATCH(E87,C60:C79,-1) ->  | G87: =LOOKUP(F87,B37:B56,E37:E56) ->  | I87: =LOOKUP(F87,B37:B56,G37:G56)*$P$57 ->  | J87: =LOOKUP(F87,B37:B56,H37:H56)*$P$57 ->  | K87: =LOOKUP(F87,B37:B56,I37:I56)*$P$57 ->  | L87: =LOOKUP(F87,B37:B56,J37:J56) ->  | M87: =LOOKUP(F87,B37:B56,K37:K56) ->  | N87: =LOOKUP(F87,B37:B56,L37:L56) ->  | O87: =LOOKUP(F87,B37:B56,M37:M56) -> 
D88: 29 | E88: =IF( (E57+L57*D87)<=H57,(E57+L57*D87),"- - -") -> - - - | F88: =(B60+1)-MATCH(E88,C60:C79,-1) ->  | G88: =LOOKUP(F88,B37:B56,E37:E56) ->  | I88: =LOOKUP(F88,B37:B56,G37:G56)*$P$57 ->  | J88: =LOOKUP(F88,B37:B56,H37:H56)*$P$57 ->  | K88: =LOOKUP(F88,B37:B56,I37:I56)*$P$57 ->  | L88: =LOOKUP(F88,B37:B56,J37:J56) ->  | M88: =LOOKUP(F88,B37:B56,K37:K56) ->  | N88: =LOOKUP(F88,B37:B56,L37:L56) ->  | O88: =LOOKUP(F88,B37:B56,M37:M56) -> 
D89: 30 | E89: =IF( (E57+L57*D88)<=H57,(E57+L57*D88),"- - -") -> - - - | F89: =(B60+1)-MATCH(E89,C60:C79,-1) ->  | G89: =LOOKUP(F89,B37:B56,E37:E56) ->  | I89: =LOOKUP(F89,B37:B56,G37:G56)*$P$57 ->  | J89: =LOOKUP(F89,B37:B56,H37:H56)*$P$57 ->  | K89: =LOOKUP(F89,B37:B56,I37:I56)*$P$57 ->  | L89: =LOOKUP(F89,B37:B56,J37:J56) ->  | M89: =LOOKUP(F89,B37:B56,K37:K56) ->  | N89: =LOOKUP(F89,B37:B56,L37:L56) ->  | O89: =LOOKUP(F89,B37:B56,M37:M56) -> 
D90: =D89+1 -> 31 | E90: =IF( (E57+L57*D89)<=H57,(E57+L57*D89),"- - -") -> - - - | F90: =(B60+1)-MATCH(E90,C60:C79,-1) ->  | G90: =LOOKUP(F90,B37:B56,E37:E56) ->  | I90: =LOOKUP(F90,B37:B56,G37:G56)*$P$57 ->  | J90: =LOOKUP(F90,B37:B56,H37:H56)*$P$57 ->  | K90: =LOOKUP(F90,B37:B56,I37:I56)*$P$57 ->  | L90: =LOOKUP(F90,B37:B56,J37:J56) ->  | M90: =LOOKUP(F90,B37:B56,K37:K56) ->  | N90: =LOOKUP(F90,B37:B56,L37:L56) ->  | O90: =LOOKUP(F90,B37:B56,M37:M56) -> 
D91: 32 | E91: =IF( (E57+L57*D90)<=H57,(E57+L57*D90),"- - -") -> - - - | F91: =(B60+1)-MATCH(E91,C60:C79,-1) ->  | G91: =LOOKUP(F91,B37:B56,E37:E56) ->  | I91: =LOOKUP(F91,B37:B56,G37:G56)*$P$57 ->  | J91: =LOOKUP(F91,B37:B56,H37:H56)*$P$57 ->  | K91: =LOOKUP(F91,B37:B56,I37:I56)*$P$57 ->  | L91: =LOOKUP(F91,B37:B56,J37:J56) ->  | M91: =LOOKUP(F91,B37:B56,K37:K56) ->  | N91: =LOOKUP(F91,B37:B56,L37:L56) ->  | O91: =LOOKUP(F91,B37:B56,M37:M56) -> 
D92: 33 | E92: =IF( (E57+L57*D91)<=H57,(E57+L57*D91),"- - -") -> - - - | F92: =(B60+1)-MATCH(E92,C60:C79,-1) ->  | G92: =LOOKUP(F92,B37:B56,E37:E56) ->  | H92: =LOOKUP(F92,$B$37:$B$56,$F$37:$F$56)*0.001 ->  | I92: =LOOKUP(F92,B37:B56,G37:G56)*$P$57 ->  | J92: =LOOKUP(F92,B37:B56,H37:H56)*$P$57 ->  | K92: =LOOKUP(F92,B37:B56,I37:I56)*$P$57 ->  | L92: =LOOKUP(F92,B37:B56,J37:J56) ->  | M92: =LOOKUP(F92,B37:B56,K37:K56) ->  | N92: =LOOKUP(F92,B37:B56,L37:L56) ->  | O92: =LOOKUP(F92,B37:B56,M37:M56) ->  | P92: =LOOKUP(F92,$B$37:$B$56,$N$37:$N$56) ->  | Q92: =LOOKUP(F92,$B$37:$B$56,$O$37:$O$56) ->  | R92: =LOOKUP(F92,$B$37:$B$56,$P$37:$P$56) ->  | S92: =LOOKUP(F92,$B$37:$B$56,$Q$37:$Q$56) ->  | T92: =LOOKUP(F92,$B$37:$B$56,$R$37:$R$56) -> 
D93: 34 | E93: =IF( (E57+L57*D92)<=H57,(E57+L57*D92),"- - -") -> - - - | F93: =(B60+1)-MATCH(E93,C60:C79,-1) ->  | G93: =LOOKUP(F93,B37:B56,E37:E56) ->  | I93: =LOOKUP(F93,B37:B56,G37:G56)*$P$57 ->  | J93: =LOOKUP(F93,B37:B56,H37:H56)*$P$57 ->  | K93: =LOOKUP(F93,B37:B56,I37:I56)*$P$57 ->  | L93: =LOOKUP(F93,B37:B56,J37:J56) ->  | M93: =LOOKUP(F93,B37:B56,K37:K56) ->  | N93: =LOOKUP(F93,B37:B56,L37:L56) ->  | O93: =LOOKUP(F93,B37:B56,M37:M56) -> 
D94: 35 | E94: =IF( (E57+L57*D93)<=H57,(E57+L57*D93),"- - -") -> - - - | F94: =(B60+1)-MATCH(E94,C60:C79,-1) ->  | G94: =LOOKUP(F94,B37:B56,E37:E56) ->  | I94: =LOOKUP(F94,B37:B56,G37:G56)*$P$57 ->  | J94: =LOOKUP(F94,B37:B56,H37:H56)*$P$57 ->  | K94: =LOOKUP(F94,B37:B56,I37:I56)*$P$57 ->  | L94: =LOOKUP(F94,B37:B56,J37:J56) ->  | M94: =LOOKUP(F94,B37:B56,K37:K56) ->  | N94: =LOOKUP(F94,B37:B56,L37:L56) ->  | O94: =LOOKUP(F94,B37:B56,M37:M56) -> 
D95: 36 | E95: =IF( (E57+L57*D94)<=H57,(E57+L57*D94),"- - -") -> - - - | F95: =(B60+1)-MATCH(E95,C60:C79,-1) ->  | G95: =LOOKUP(F95,B37:B56,E37:E56) ->  | I95: =LOOKUP(F95,B37:B56,G37:G56)*$P$57 ->  | J95: =LOOKUP(F95,B37:B56,H37:H56)*$P$57 ->  | K95: =LOOKUP(F95,B37:B56,I37:I56)*$P$57 ->  | L95: =LOOKUP(F95,B37:B56,J37:J56) ->  | M95: =LOOKUP(F95,B37:B56,K37:K56) ->  | N95: =LOOKUP(F95,B37:B56,L37:L56) ->  | O95: =LOOKUP(F95,B37:B56,M37:M56) -> 
D96: 37 | E96: =IF( (E57+L57*D95)<=H57,(E57+L57*D95),"- - -") -> - - - | F96: =(B60+1)-MATCH(E96,C60:C79,-1) ->  | G96: =LOOKUP(F96,B37:B56,E37:E56) ->  | I96: =LOOKUP(F96,B37:B56,G37:G56)*$P$57 ->  | J96: =LOOKUP(F96,B37:B56,H37:H56)*$P$57 ->  | K96: =LOOKUP(F96,B37:B56,I37:I56)*$P$57 ->  | L96: =LOOKUP(F96,B37:B56,J37:J56) ->  | M96: =LOOKUP(F96,B37:B56,K37:K56) ->  | N96: =LOOKUP(F96,B37:B56,L37:L56) ->  | O96: =LOOKUP(F96,B37:B56,M37:M56) -> 
D97: 38 | E97: =IF( (E57+L57*D96)<=H57,(E57+L57*D96),"- - -") -> - - - | F97: =(B60+1)-MATCH(E97,C60:C79,-1) ->  | G97: =LOOKUP(F97,B37:B56,E37:E56) ->  | I97: =LOOKUP(F97,B37:B56,G37:G56)*$P$57 ->  | J97: =LOOKUP(F97,B37:B56,H37:H56)*$P$57 ->  | K97: =LOOKUP(F97,B37:B56,I37:I56)*$P$57 ->  | L97: =LOOKUP(F97,B37:B56,J37:J56) ->  | M97: =LOOKUP(F97,B37:B56,K37:K56) ->  | N97: =LOOKUP(F97,B37:B56,L37:L56) ->  | O97: =LOOKUP(F97,B37:B56,M37:M56) -> 
D98: 39 | E98: =IF( (E57+L57*D97)<=H57,(E57+L57*D97),"- - -") -> - - - | F98: =(B60+1)-MATCH(E98,C60:C79,-1) ->  | G98: =LOOKUP(F98,B37:B56,E37:E56) ->  | I98: =LOOKUP(F98,B37:B56,G37:G56)*$P$57 ->  | J98: =LOOKUP(F98,B37:B56,H37:H56)*$P$57 ->  | K98: =LOOKUP(F98,B37:B56,I37:I56)*$P$57 ->  | L98: =LOOKUP(F98,B37:B56,J37:J56) ->  | M98: =LOOKUP(F98,B37:B56,K37:K56) ->  | N98: =LOOKUP(F98,B37:B56,L37:L56) ->  | O98: =LOOKUP(F98,B37:B56,M37:M56) -> 
D99: 40 | E99: =IF( (E57+L57*D98)<=H57,(E57+L57*D98),"- - -") -> - - - | F99: =(B60+1)-MATCH(E99,C60:C79,-1) ->  | G99: =LOOKUP(F99,B37:B56,E37:E56) ->  | I99: =LOOKUP(F99,B37:B56,G37:G56)*$P$57 ->  | J99: =LOOKUP(F99,B37:B56,H37:H56)*$P$57 ->  | K99: =LOOKUP(F99,B37:B56,I37:I56)*$P$57 ->  | L99: =LOOKUP(F99,B37:B56,J37:J56) ->  | M99: =LOOKUP(F99,B37:B56,K37:K56) ->  | N99: =LOOKUP(F99,B37:B56,L37:L56) ->  | O99: =LOOKUP(F99,B37:B56,M37:M56) -> 
D100: 41 | E100: =IF( (E57+L57*D99)<=H57,(E57+L57*D99),"- - -") -> - - - | F100: =(B60+1)-MATCH(E100,C60:C79,-1) ->  | G100: =LOOKUP(F100,B37:B56,E37:E56) ->  | I100: =LOOKUP(F100,B37:B56,G37:G56)*$P$57 ->  | J100: =LOOKUP(F100,B37:B56,H37:H56)*$P$57 ->  | K100: =LOOKUP(F100,B37:B56,I37:I56)*$P$57 ->  | L100: =LOOKUP(F100,B37:B56,J37:J56) ->  | M100: =LOOKUP(F100,B37:B56,K37:K56) ->  | N100: =LOOKUP(F100,B37:B56,L37:L56) ->  | O100: =LOOKUP(F100,B37:B56,M37:M56) -> 
D101: 42 | E101: =IF( (E57+L57*D100)<=H57,(E57+L57*D100),"- - -") -> - - - | F101: =(B60+1)-MATCH(E101,C60:C79,-1) ->  | G101: =LOOKUP(F101,B37:B56,E37:E56) ->  | I101: =LOOKUP(F101,B37:B56,G37:G56)*$P$57 ->  | J101: =LOOKUP(F101,B37:B56,H37:H56)*$P$57 ->  | K101: =LOOKUP(F101,B37:B56,I37:I56)*$P$57 ->  | L101: =LOOKUP(F101,B37:B56,J37:J56) ->  | M101: =LOOKUP(F101,B37:B56,K37:K56) ->  | N101: =LOOKUP(F101,B37:B56,L37:L56) ->  | O101: =LOOKUP(F101,B37:B56,M37:M56) -> 
D102: 43 | E102: =IF( (E57+L57*D101)<=H57,(E57+L57*D101),"- - -") -> - - - | F102: =(B60+1)-MATCH(E102,C60:C79,-1) ->  | G102: =LOOKUP(F102,B37:B56,E37:E56) ->  | I102: =LOOKUP(F102,B37:B56,G37:G56)*$P$57 ->  | J102: =LOOKUP(F102,B37:B56,H37:H56)*$P$57 ->  | K102: =LOOKUP(F102,B37:B56,I37:I56)*$P$57 ->  | L102: =LOOKUP(F102,B37:B56,J37:J56) ->  | M102: =LOOKUP(F102,B37:B56,K37:K56) ->  | N102: =LOOKUP(F102,B37:B56,L37:L56) ->  | O102: =LOOKUP(F102,B37:B56,M37:M56) -> 
D103: 44 | E103: =IF( (E57+L57*D102)<=H57,(E57+L57*D102),"- - -") -> - - - | F103: =(B60+1)-MATCH(E103,C60:C79,-1) ->  | G103: =LOOKUP(F103,B37:B56,E37:E56) ->  | I103: =LOOKUP(F103,B37:B56,G37:G56)*$P$57 ->  | J103: =LOOKUP(F103,B37:B56,H37:H56)*$P$57 ->  | K103: =LOOKUP(F103,B37:B56,I37:I56)*$P$57 ->  | L103: =LOOKUP(F103,B37:B56,J37:J56) ->  | M103: =LOOKUP(F103,B37:B56,K37:K56) ->  | N103: =LOOKUP(F103,B37:B56,L37:L56) ->  | O103: =LOOKUP(F103,B37:B56,M37:M56) -> 
D104: 45 | E104: =IF( (E57+L57*D103)<=H57,(E57+L57*D103),"- - -") -> - - - | F104: =(B60+1)-MATCH(E104,C60:C79,-1) ->  | G104: =LOOKUP(F104,B37:B56,E37:E56) ->  | I104: =LOOKUP(F104,B37:B56,G37:G56)*$P$57 ->  | J104: =LOOKUP(F104,B37:B56,H37:H56)*$P$57 ->  | K104: =LOOKUP(F104,B37:B56,I37:I56)*$P$57 ->  | L104: =LOOKUP(F104,B37:B56,J37:J56) ->  | M104: =LOOKUP(F104,B37:B56,K37:K56) ->  | N104: =LOOKUP(F104,B37:B56,L37:L56) ->  | O104: =LOOKUP(F104,B37:B56,M37:M56) -> 
D105: 46 | E105: =IF( (E57+L57*D104)<=H57,(E57+L57*D104),"- - -") -> - - - | F105: =(B60+1)-MATCH(E105,C60:C79,-1) ->  | G105: =LOOKUP(F105,B37:B56,E37:E56) ->  | I105: =LOOKUP(F105,B37:B56,G37:G56)*$P$57 ->  | J105: =LOOKUP(F105,B37:B56,H37:H56)*$P$57 ->  | K105: =LOOKUP(F105,B37:B56,I37:I56)*$P$57 ->  | L105: =LOOKUP(F105,B37:B56,J37:J56) ->  | M105: =LOOKUP(F105,B37:B56,K37:K56) ->  | N105: =LOOKUP(F105,B37:B56,L37:L56) ->  | O105: =LOOKUP(F105,B37:B56,M37:M56) -> 
D106: 47 | E106: =IF( (E57+L57*D105)<=H57,(E57+L57*D105),"- - -") -> - - - | F106: =(B60+1)-MATCH(E106,C60:C79,-1) ->  | G106: =LOOKUP(F106,B37:B56,E37:E56) ->  | I106: =LOOKUP(F106,B37:B56,G37:G56)*$P$57 ->  | J106: =LOOKUP(F106,B37:B56,H37:H56)*$P$57 ->  | K106: =LOOKUP(F106,B37:B56,I37:I56)*$P$57 ->  | L106: =LOOKUP(F106,B37:B56,J37:J56) ->  | M106: =LOOKUP(F106,B37:B56,K37:K56) ->  | N106: =LOOKUP(F106,B37:B56,L37:L56) ->  | O106: =LOOKUP(F106,B37:B56,M37:M56) -> 
D107: 48 | E107: =IF( (E57+L57*D106)<=H57,(E57+L57*D106),"- - -") -> - - - | F107: =(B60+1)-MATCH(E107,C60:C79,-1) ->  | G107: =LOOKUP(F107,B37:B56,E37:E56) ->  | I107: =LOOKUP(F107,B37:B56,G37:G56)*$P$57 ->  | J107: =LOOKUP(F107,B37:B56,H37:H56)*$P$57 ->  | K107: =LOOKUP(F107,B37:B56,I37:I56)*$P$57 ->  | L107: =LOOKUP(F107,B37:B56,J37:J56) ->  | M107: =LOOKUP(F107,B37:B56,K37:K56) ->  | N107: =LOOKUP(F107,B37:B56,L37:L56) ->  | O107: =LOOKUP(F107,B37:B56,M37:M56) -> 
D108: 49 | E108: =IF( (E57+L57*D107)<=H57,(E57+L57*D107),"- - -") -> - - - | F108: =(B60+1)-MATCH(E108,C60:C79,-1) ->  | G108: =LOOKUP(F108,B37:B56,E37:E56) ->  | I108: =LOOKUP(F108,B37:B56,G37:G56)*$P$57 ->  | J108: =LOOKUP(F108,B37:B56,H37:H56)*$P$57 ->  | K108: =LOOKUP(F108,B37:B56,I37:I56)*$P$57 ->  | L108: =LOOKUP(F108,B37:B56,J37:J56) ->  | M108: =LOOKUP(F108,B37:B56,K37:K56) ->  | N108: =LOOKUP(F108,B37:B56,L37:L56) ->  | O108: =LOOKUP(F108,B37:B56,M37:M56) -> 
D109: 50 | E109: =IF( (E57+L57*D108)<=H57,(E57+L57*D108),"- - -") -> - - - | F109: =(B60+1)-MATCH(E109,C60:C79,-1) ->  | G109: =LOOKUP(F109,B37:B56,E37:E56) ->  | I109: =LOOKUP(F109,B37:B56,G37:G56)*$P$57 ->  | J109: =LOOKUP(F109,B37:B56,H37:H56)*$P$57 ->  | K109: =LOOKUP(F109,B37:B56,I37:I56)*$P$57 ->  | L109: =LOOKUP(F109,B37:B56,J37:J56) ->  | M109: =LOOKUP(F109,B37:B56,K37:K56) ->  | N109: =LOOKUP(F109,B37:B56,L37:L56) ->  | O109: =LOOKUP(F109,B37:B56,M37:M56) -> 
B112: 搬送負荷データレコード | E112: =LOOKUP(C114,MassDataLink!$A$4:$A$16325,MassDataLink!$G$4:$G$16325) -> EC-S6L-水平 | J112: 設置姿勢で絞込み | L112: - - - | N112: 加減速・速度データレコード
B113: № | C113: Ldﾚｺｰﾄﾞ№ | D113: =MassDataLink!B2 -> ｱｸﾁｭｴｰﾀ姿勢 | E113: =MassDataLink!C2 -> 搬送負荷質量 | F113: =MassDataLink!D2 -> 加減速・速度ﾃﾞｰﾀ | G113: =MassDataLink!E2 -> 前ﾃﾞｰﾀ№ | H113: =MassDataLink!F2 -> 次ﾃﾞｰﾀ№ | J113: № | K113: 搬送負荷質量 | L113: avﾚｺｰﾄﾞ№ | N113: 備考 | O113: =LOOKUP(O115,AccVelDataLink!$A$4:$A$22848,AccVelDataLink!$F$4:$F$22848) -> EC-S6L-水平
B114: 1 | C114: =LOOKUP(D35,B26:B33,E26:E33) -> 1 | D114: =LOOKUP(C114,MassDataLink!$A$4:$A$16325,MassDataLink!$B$4:$B$16325) -> 0 | E114: =LOOKUP(C114,MassDataLink!$A$4:$A$16325,MassDataLink!$C$4:$C$16325) -> 9000 | F114: =LOOKUP(C114,MassDataLink!$A$4:$A$16325,MassDataLink!$D$4:$D$16325) -> 1 | G114: =LOOKUP(C114,MassDataLink!$A$4:$A$16325,MassDataLink!$E$4:$E$16325) -> -1 | H114: =LOOKUP(C114,MassDataLink!$A$4:$A$16325,MassDataLink!$F$4:$F$16325) -> 2 | J114: 1 | K114: =IF(C114=-1,$L$112,IF($A$11=D114,ROUND((E114*$P$57),$R$57),$L$112)) -> 9 | L114: =IF(K114=$L$112,$L$112,F114) -> 1 | N114: № | O114: avﾚｺｰﾄﾞ№ | P114: 加速度 | Q114: 速度 | R114: 前ﾃﾞｰﾀ | S114: 次ﾃﾞｰﾀ
B115: =B114+1 -> 2 | C115: =IF(C114=-1,-1,H114) -> 2 | D115: =LOOKUP(C115,MassDataLink!$A$4:$A$16325,MassDataLink!$B$4:$B$16325) -> 0 | E115: =LOOKUP(C115,MassDataLink!$A$4:$A$16325,MassDataLink!$C$4:$C$16325) -> 10000 | F115: =LOOKUP(C115,MassDataLink!$A$4:$A$16325,MassDataLink!$D$4:$D$16325) -> 2 | G115: =LOOKUP(C115,MassDataLink!$A$4:$A$16325,MassDataLink!$E$4:$E$16325) -> 1 | H115: =LOOKUP(C115,MassDataLink!$A$4:$A$16325,MassDataLink!$F$4:$F$16325) -> 3 | J115: =J114+1 -> 2 | K115: =IF(C115=-1,$L$112,IF($A$11=D115,ROUND((E115*$P$57),$R$57),$L$112)) -> 10 | L115: =IF(K115=$L$112,$L$112,F115) -> 2 | N115: 1 | O115: =LOOKUP(A14,K114:K163,L114:L163) -> 1 | P115: =LOOKUP(O115,AccVelDataLink!$A$4:$A$22848,AccVelDataLink!$B$4:$B$22848) -> 6864655 | Q115: =LOOKUP(O115,AccVelDataLink!$A$4:$A$22848,AccVelDataLink!$C$4:$C$22848) -> 170 | R115: =LOOKUP(O115,AccVelDataLink!$A$4:$A$22848,AccVelDataLink!$D$4:$D$22848) -> -1 | S115: =LOOKUP(O115,AccVelDataLink!$A$4:$A$22848,AccVelDataLink!$E$4:$E$22848) -> -1
B116: =B115+1 -> 3 | C116: =IF(C115=-1,-1,H115) -> 3 | D116: =LOOKUP(C116,MassDataLink!$A$4:$A$16325,MassDataLink!$B$4:$B$16325) -> 0 | E116: =LOOKUP(C116,MassDataLink!$A$4:$A$16325,MassDataLink!$C$4:$C$16325) -> 11000 | F116: =LOOKUP(C116,MassDataLink!$A$4:$A$16325,MassDataLink!$D$4:$D$16325) -> 3 | G116: =LOOKUP(C116,MassDataLink!$A$4:$A$16325,MassDataLink!$E$4:$E$16325) -> 2 | H116: =LOOKUP(C116,MassDataLink!$A$4:$A$16325,MassDataLink!$F$4:$F$16325) -> 4 | J116: =J115+1 -> 3 | K116: 11 | L116: 3 | N116: =N115+1 -> 2 | O116: =IF(O115=-1,-1,S115) -> -1 | P116: =LOOKUP(O116,AccVelDataLink!$A$4:$A$22848,AccVelDataLink!$B$4:$B$22848) ->  | Q116: =LOOKUP(O116,AccVelDataLink!$A$4:$A$22848,AccVelDataLink!$C$4:$C$22848) ->  | R116: =LOOKUP(O116,AccVelDataLink!$A$4:$A$22848,AccVelDataLink!$D$4:$D$22848) ->  | S116: =LOOKUP(O116,AccVelDataLink!$A$4:$A$22848,AccVelDataLink!$E$4:$E$22848) -> 
B117: =B116+1 -> 4 | C117: =IF(C116=-1,-1,H116) -> 4 | D117: =LOOKUP(C117,MassDataLink!$A$4:$A$16325,MassDataLink!$B$4:$B$16325) -> 0 | E117: =LOOKUP(C117,MassDataLink!$A$4:$A$16325,MassDataLink!$C$4:$C$16325) -> 12000 | F117: =LOOKUP(C117,MassDataLink!$A$4:$A$16325,MassDataLink!$D$4:$D$16325) -> 5 | G117: =LOOKUP(C117,MassDataLink!$A$4:$A$16325,MassDataLink!$E$4:$E$16325) -> 3 | H117: =LOOKUP(C117,MassDataLink!$A$4:$A$16325,MassDataLink!$F$4:$F$16325) -> 5 | J117: =J116+1 -> 4 | K117: 12 | L117: 5 | N117: 3 | O117: =IF(O116=-1,-1,S116) -> -1 | P117: =LOOKUP(O117,AccVelDataLink!$A$4:$A$22848,AccVelDataLink!$B$4:$B$22848) ->  | Q117: =LOOKUP(O117,AccVelDataLink!$A$4:$A$22848,AccVelDataLink!$C$4:$C$22848) ->  | R117: =LOOKUP(O117,AccVelDataLink!$A$4:$A$22848,AccVelDataLink!$D$4:$D$22848) ->  | S117: =LOOKUP(O117,AccVelDataLink!$A$4:$A$22848,AccVelDataLink!$E$4:$E$22848) -> 
B118: =B117+1 -> 5 | C118: =IF(C117=-1,-1,H117) -> 5 | D118: =LOOKUP(C118,MassDataLink!$A$4:$A$16325,MassDataLink!$B$4:$B$16325) -> 0 | E118: =LOOKUP(C118,MassDataLink!$A$4:$A$16325,MassDataLink!$C$4:$C$16325) -> 13000 | F118: =LOOKUP(C118,MassDataLink!$A$4:$A$16325,MassDataLink!$D$4:$D$16325) -> 7 | G118: =LOOKUP(C118,MassDataLink!$A$4:$A$16325,MassDataLink!$E$4:$E$16325) -> 4 | H118: =LOOKUP(C118,MassDataLink!$A$4:$A$16325,MassDataLink!$F$4:$F$16325) -> 6 | J118: =J117+1 -> 5 | K118: 13 | L118: 7 | N118: 4 | O118: -1 | P118: =LOOKUP(O118,AccVelDataLink!$A$4:$A$22848,AccVelDataLink!$B$4:$B$22848) ->  | Q118: =LOOKUP(O118,AccVelDataLink!$A$4:$A$22848,AccVelDataLink!$C$4:$C$22848) ->  | R118: =LOOKUP(O118,AccVelDataLink!$A$4:$A$22848,AccVelDataLink!$D$4:$D$22848) ->  | S118: =LOOKUP(O118,AccVelDataLink!$A$4:$A$22848,AccVelDataLink!$E$4:$E$22848) -> 
B119: =B118+1 -> 6 | C119: =IF(C118=-1,-1,H118) -> 6 | D119: =LOOKUP(C119,MassDataLink!$A$4:$A$16325,MassDataLink!$B$4:$B$16325) -> 0 | E119: =LOOKUP(C119,MassDataLink!$A$4:$A$16325,MassDataLink!$C$4:$C$16325) -> 14000 | F119: =LOOKUP(C119,MassDataLink!$A$4:$A$16325,MassDataLink!$D$4:$D$16325) -> 9 | G119: =LOOKUP(C119,MassDataLink!$A$4:$A$16325,MassDataLink!$E$4:$E$16325) -> 5 | H119: =LOOKUP(C119,MassDataLink!$A$4:$A$16325,MassDataLink!$F$4:$F$16325) -> 7 | J119: =J118+1 -> 6 | K119: 14 | L119: 9 | N119: 5 | O119: -1 | P119: =LOOKUP(O119,AccVelDataLink!$A$4:$A$22848,AccVelDataLink!$B$4:$B$22848) ->  | Q119: =LOOKUP(O119,AccVelDataLink!$A$4:$A$22848,AccVelDataLink!$C$4:$C$22848) ->  | R119: =LOOKUP(O119,AccVelDataLink!$A$4:$A$22848,AccVelDataLink!$D$4:$D$22848) ->  | S119: =LOOKUP(O119,AccVelDataLink!$A$4:$A$22848,AccVelDataLink!$E$4:$E$22848) -> 
B120: 7 | C120: 7 | D120: =LOOKUP(C120,MassDataLink!$A$4:$A$16325,MassDataLink!$B$4:$B$16325) -> 0 | E120: =LOOKUP(C120,MassDataLink!$A$4:$A$16325,MassDataLink!$C$4:$C$16325) -> 15000 | F120: =LOOKUP(C120,MassDataLink!$A$4:$A$16325,MassDataLink!$D$4:$D$16325) -> 11 | G120: =LOOKUP(C120,MassDataLink!$A$4:$A$16325,MassDataLink!$E$4:$E$16325) -> 6 | H120: =LOOKUP(C120,MassDataLink!$A$4:$A$16325,MassDataLink!$F$4:$F$16325) -> 8 | J120: 7 | K120: 15 | L120: 11 | N120: 6 | O120: -1 | P120: =LOOKUP(O120,AccVelDataLink!$A$4:$A$22848,AccVelDataLink!$B$4:$B$22848) ->  | Q120: =LOOKUP(O120,AccVelDataLink!$A$4:$A$22848,AccVelDataLink!$C$4:$C$22848) ->  | R120: =LOOKUP(O120,AccVelDataLink!$A$4:$A$22848,AccVelDataLink!$D$4:$D$22848) ->  | S120: =LOOKUP(O120,AccVelDataLink!$A$4:$A$22848,AccVelDataLink!$E$4:$E$22848) -> 
B121: 8 | C121: 8 | D121: =LOOKUP(C121,MassDataLink!$A$4:$A$16325,MassDataLink!$B$4:$B$16325) -> 0 | E121: =LOOKUP(C121,MassDataLink!$A$4:$A$16325,MassDataLink!$C$4:$C$16325) -> 16000 | F121: =LOOKUP(C121,MassDataLink!$A$4:$A$16325,MassDataLink!$D$4:$D$16325) -> 13 | G121: =LOOKUP(C121,MassDataLink!$A$4:$A$16325,MassDataLink!$E$4:$E$16325) -> 7 | H121: =LOOKUP(C121,MassDataLink!$A$4:$A$16325,MassDataLink!$F$4:$F$16325) -> 9 | J121: 8 | K121: 16 | L121: 13 | N121: 7 | O121: -1 | P121: =LOOKUP(O121,AccVelDataLink!$A$4:$A$22848,AccVelDataLink!$B$4:$B$22848) ->  | Q121: =LOOKUP(O121,AccVelDataLink!$A$4:$A$22848,AccVelDataLink!$C$4:$C$22848) ->  | R121: =LOOKUP(O121,AccVelDataLink!$A$4:$A$22848,AccVelDataLink!$D$4:$D$22848) ->  | S121: =LOOKUP(O121,AccVelDataLink!$A$4:$A$22848,AccVelDataLink!$E$4:$E$22848) -> 
B122: 9 | C122: 9 | D122: =LOOKUP(C122,MassDataLink!$A$4:$A$16325,MassDataLink!$B$4:$B$16325) -> 0 | E122: =LOOKUP(C122,MassDataLink!$A$4:$A$16325,MassDataLink!$C$4:$C$16325) -> 17000 | F122: =LOOKUP(C122,MassDataLink!$A$4:$A$16325,MassDataLink!$D$4:$D$16325) -> 15 | G122: =LOOKUP(C122,MassDataLink!$A$4:$A$16325,MassDataLink!$E$4:$E$16325) -> 8 | H122: =LOOKUP(C122,MassDataLink!$A$4:$A$16325,MassDataLink!$F$4:$F$16325) -> 10 | J122: 9 | K122: 17 | L122: 15 | N122: 8 | O122: -1 | P122: =LOOKUP(O122,AccVelDataLink!$A$4:$A$22848,AccVelDataLink!$B$4:$B$22848) ->  | Q122: =LOOKUP(O122,AccVelDataLink!$A$4:$A$22848,AccVelDataLink!$C$4:$C$22848) ->  | R122: =LOOKUP(O122,AccVelDataLink!$A$4:$A$22848,AccVelDataLink!$D$4:$D$22848) ->  | S122: =LOOKUP(O122,AccVelDataLink!$A$4:$A$22848,AccVelDataLink!$E$4:$E$22848) -> 
B123: 10 | C123: 10 | D123: =LOOKUP(C123,MassDataLink!$A$4:$A$16325,MassDataLink!$B$4:$B$16325) -> 0 | E123: =LOOKUP(C123,MassDataLink!$A$4:$A$16325,MassDataLink!$C$4:$C$16325) -> 18000 | F123: =LOOKUP(C123,MassDataLink!$A$4:$A$16325,MassDataLink!$D$4:$D$16325) -> 17 | G123: =LOOKUP(C123,MassDataLink!$A$4:$A$16325,MassDataLink!$E$4:$E$16325) -> 9 | H123: =LOOKUP(C123,MassDataLink!$A$4:$A$16325,MassDataLink!$F$4:$F$16325) -> 11 | J123: 10 | K123: 18 | L123: 17 | N123: 9 | O123: -1 | P123: =LOOKUP(O123,AccVelDataLink!$A$4:$A$22848,AccVelDataLink!$B$4:$B$22848) ->  | Q123: =LOOKUP(O123,AccVelDataLink!$A$4:$A$22848,AccVelDataLink!$C$4:$C$22848) ->  | R123: =LOOKUP(O123,AccVelDataLink!$A$4:$A$22848,AccVelDataLink!$D$4:$D$22848) ->  | S123: =LOOKUP(O123,AccVelDataLink!$A$4:$A$22848,AccVelDataLink!$E$4:$E$22848) -> 
B124: 11 | C124: 11 | D124: =LOOKUP(C124,MassDataLink!$A$4:$A$16325,MassDataLink!$B$4:$B$16325) -> 0 | E124: =LOOKUP(C124,MassDataLink!$A$4:$A$16325,MassDataLink!$C$4:$C$16325) -> 19000 | F124: =LOOKUP(C124,MassDataLink!$A$4:$A$16325,MassDataLink!$D$4:$D$16325) -> 19 | G124: =LOOKUP(C124,MassDataLink!$A$4:$A$16325,MassDataLink!$E$4:$E$16325) -> 10 | H124: =LOOKUP(C124,MassDataLink!$A$4:$A$16325,MassDataLink!$F$4:$F$16325) -> 12 | J124: 11 | K124: 19 | L124: 19 | N124: 10 | O124: -1 | P124: =LOOKUP(O124,AccVelDataLink!$A$4:$A$22848,AccVelDataLink!$B$4:$B$22848) ->  | Q124: =LOOKUP(O124,AccVelDataLink!$A$4:$A$22848,AccVelDataLink!$C$4:$C$22848) ->  | R124: =LOOKUP(O124,AccVelDataLink!$A$4:$A$22848,AccVelDataLink!$D$4:$D$22848) ->  | S124: =LOOKUP(O124,AccVelDataLink!$A$4:$A$22848,AccVelDataLink!$E$4:$E$22848) -> 
B125: 12 | C125: 12 | D125: =LOOKUP(C125,MassDataLink!$A$4:$A$16325,MassDataLink!$B$4:$B$16325) -> 0 | E125: =LOOKUP(C125,MassDataLink!$A$4:$A$16325,MassDataLink!$C$4:$C$16325) -> 20000 | F125: =LOOKUP(C125,MassDataLink!$A$4:$A$16325,MassDataLink!$D$4:$D$16325) -> 21 | G125: =LOOKUP(C125,MassDataLink!$A$4:$A$16325,MassDataLink!$E$4:$E$16325) -> 11 | H125: =LOOKUP(C125,MassDataLink!$A$4:$A$16325,MassDataLink!$F$4:$F$16325) -> 13 | J125: 12 | K125: 20 | L125: 21 | O125: 加速度系数 | P125: 1e-06
B126: 13 | C126: 13 | D126: =LOOKUP(C126,MassDataLink!$A$4:$A$16325,MassDataLink!$B$4:$B$16325) -> 0 | E126: =LOOKUP(C126,MassDataLink!$A$4:$A$16325,MassDataLink!$C$4:$C$16325) -> 21000 | F126: =LOOKUP(C126,MassDataLink!$A$4:$A$16325,MassDataLink!$D$4:$D$16325) -> 23 | G126: =LOOKUP(C126,MassDataLink!$A$4:$A$16325,MassDataLink!$E$4:$E$16325) -> 12 | H126: =LOOKUP(C126,MassDataLink!$A$4:$A$16325,MassDataLink!$F$4:$F$16325) -> 14 | J126: 13 | K126: 21 | L126: 23 | N126: G | O126: № | P126: 加速度 | Q126: 速度
B127: 14 | C127: 14 | D127: =LOOKUP(C127,MassDataLink!$A$4:$A$16325,MassDataLink!$B$4:$B$16325) -> 0 | E127: =LOOKUP(C127,MassDataLink!$A$4:$A$16325,MassDataLink!$C$4:$C$16325) -> 22000 | F127: =LOOKUP(C127,MassDataLink!$A$4:$A$16325,MassDataLink!$D$4:$D$16325) -> 25 | G127: =LOOKUP(C127,MassDataLink!$A$4:$A$16325,MassDataLink!$E$4:$E$16325) -> 13 | H127: =LOOKUP(C127,MassDataLink!$A$4:$A$16325,MassDataLink!$F$4:$F$16325) -> 15 | J127: 14 | K127: 22 | L127: 25 | N127: =LeadData!A1 -> 9.80665 | O127: 1 | P127: =IF(O115=-1,$L$112,(P115/$N$127)*$P$125) -> 0.7 | Q127: =IF(O115=-1,$L$112,Q115) -> 170
B128: 15 | C128: 15 | D128: =LOOKUP(C128,MassDataLink!$A$4:$A$16325,MassDataLink!$B$4:$B$16325) -> 0 | E128: =LOOKUP(C128,MassDataLink!$A$4:$A$16325,MassDataLink!$C$4:$C$16325) -> 23000 | F128: =LOOKUP(C128,MassDataLink!$A$4:$A$16325,MassDataLink!$D$4:$D$16325) -> 27 | G128: =LOOKUP(C128,MassDataLink!$A$4:$A$16325,MassDataLink!$E$4:$E$16325) -> 14 | H128: =LOOKUP(C128,MassDataLink!$A$4:$A$16325,MassDataLink!$F$4:$F$16325) -> 16 | J128: 15 | K128: 23 | L128: 27 | O128: =O127+1 -> 2 | P128: =IF(O116=-1,$L$112,(P116/$N$127)*$P$125) -> - - - | Q128: =IF(O116=-1,$L$112,Q116) -> - - -
B129: 16 | C129: 16 | D129: =LOOKUP(C129,MassDataLink!$A$4:$A$16325,MassDataLink!$B$4:$B$16325) -> 0 | E129: =LOOKUP(C129,MassDataLink!$A$4:$A$16325,MassDataLink!$C$4:$C$16325) -> 24000 | F129: =LOOKUP(C129,MassDataLink!$A$4:$A$16325,MassDataLink!$D$4:$D$16325) -> 28 | G129: =LOOKUP(C129,MassDataLink!$A$4:$A$16325,MassDataLink!$E$4:$E$16325) -> 15 | H129: =LOOKUP(C129,MassDataLink!$A$4:$A$16325,MassDataLink!$F$4:$F$16325) -> 17 | J129: 16 | K129: 24 | L129: 28 | O129: 3 | P129: - - - | Q129: - - -
B130: 17 | C130: 17 | D130: =LOOKUP(C130,MassDataLink!$A$4:$A$16325,MassDataLink!$B$4:$B$16325) -> 0 | E130: =LOOKUP(C130,MassDataLink!$A$4:$A$16325,MassDataLink!$C$4:$C$16325) -> 25000 | F130: =LOOKUP(C130,MassDataLink!$A$4:$A$16325,MassDataLink!$D$4:$D$16325) -> 29 | G130: =LOOKUP(C130,MassDataLink!$A$4:$A$16325,MassDataLink!$E$4:$E$16325) -> 16 | H130: =LOOKUP(C130,MassDataLink!$A$4:$A$16325,MassDataLink!$F$4:$F$16325) -> 18 | J130: 17 | K130: 25 | L130: 29 | O130: 4 | P130: - - - | Q130: - - -
B131: 18 | C131: 18 | D131: =LOOKUP(C131,MassDataLink!$A$4:$A$16325,MassDataLink!$B$4:$B$16325) -> 1 | E131: =LOOKUP(C131,MassDataLink!$A$4:$A$16325,MassDataLink!$C$4:$C$16325) -> 2000 | F131: =LOOKUP(C131,MassDataLink!$A$4:$A$16325,MassDataLink!$D$4:$D$16325) -> 30 | G131: =LOOKUP(C131,MassDataLink!$A$4:$A$16325,MassDataLink!$E$4:$E$16325) -> 17 | H131: =LOOKUP(C131,MassDataLink!$A$4:$A$16325,MassDataLink!$F$4:$F$16325) -> 19 | J131: 18 | K131: - - - | L131: - - - | O131: 5 | P131: - - - | Q131: - - -
B132: 19 | C132: 19 | D132: =LOOKUP(C132,MassDataLink!$A$4:$A$16325,MassDataLink!$B$4:$B$16325) -> 1 | E132: =LOOKUP(C132,MassDataLink!$A$4:$A$16325,MassDataLink!$C$4:$C$16325) -> 3000 | F132: =LOOKUP(C132,MassDataLink!$A$4:$A$16325,MassDataLink!$D$4:$D$16325) -> 31 | G132: =LOOKUP(C132,MassDataLink!$A$4:$A$16325,MassDataLink!$E$4:$E$16325) -> 18 | H132: =LOOKUP(C132,MassDataLink!$A$4:$A$16325,MassDataLink!$F$4:$F$16325) -> 20 | J132: 19 | K132: - - - | L132: - - - | O132: 6 | P132: - - - | Q132: - - -
B133: 20 | C133: 20 | D133: =LOOKUP(C133,MassDataLink!$A$4:$A$16325,MassDataLink!$B$4:$B$16325) -> 1 | E133: =LOOKUP(C133,MassDataLink!$A$4:$A$16325,MassDataLink!$C$4:$C$16325) -> 4000 | F133: =LOOKUP(C133,MassDataLink!$A$4:$A$16325,MassDataLink!$D$4:$D$16325) -> 32 | G133: =LOOKUP(C133,MassDataLink!$A$4:$A$16325,MassDataLink!$E$4:$E$16325) -> 19 | H133: =LOOKUP(C133,MassDataLink!$A$4:$A$16325,MassDataLink!$F$4:$F$16325) -> 21 | J133: 20 | K133: - - - | L133: - - - | O133: 7 | P133: - - - | Q133: - - -
B134: 21 | C134: 21 | D134: =LOOKUP(C134,MassDataLink!$A$4:$A$16325,MassDataLink!$B$4:$B$16325) -> 1 | E134: =LOOKUP(C134,MassDataLink!$A$4:$A$16325,MassDataLink!$C$4:$C$16325) -> 5000 | F134: =LOOKUP(C134,MassDataLink!$A$4:$A$16325,MassDataLink!$D$4:$D$16325) -> 33 | G134: =LOOKUP(C134,MassDataLink!$A$4:$A$16325,MassDataLink!$E$4:$E$16325) -> 20 | H134: =LOOKUP(C134,MassDataLink!$A$4:$A$16325,MassDataLink!$F$4:$F$16325) -> 22 | J134: 21 | K134: - - - | L134: - - - | O134: 8 | P134: - - - | Q134: - - -
B135: 22 | C135: 22 | D135: =LOOKUP(C135,MassDataLink!$A$4:$A$16325,MassDataLink!$B$4:$B$16325) -> 1 | E135: =LOOKUP(C135,MassDataLink!$A$4:$A$16325,MassDataLink!$C$4:$C$16325) -> 6000 | F135: =LOOKUP(C135,MassDataLink!$A$4:$A$16325,MassDataLink!$D$4:$D$16325) -> 34 | G135: =LOOKUP(C135,MassDataLink!$A$4:$A$16325,MassDataLink!$E$4:$E$16325) -> 21 | H135: =LOOKUP(C135,MassDataLink!$A$4:$A$16325,MassDataLink!$F$4:$F$16325) -> 23 | J135: 22 | K135: - - - | L135: - - - | O135: 9 | P135: - - - | Q135: - - -
B136: 23 | C136: 23 | D136: =LOOKUP(C136,MassDataLink!$A$4:$A$16325,MassDataLink!$B$4:$B$16325) -> 1 | E136: =LOOKUP(C136,MassDataLink!$A$4:$A$16325,MassDataLink!$C$4:$C$16325) -> 7000 | F136: =LOOKUP(C136,MassDataLink!$A$4:$A$16325,MassDataLink!$D$4:$D$16325) -> 35 | G136: =LOOKUP(C136,MassDataLink!$A$4:$A$16325,MassDataLink!$E$4:$E$16325) -> 22 | H136: =LOOKUP(C136,MassDataLink!$A$4:$A$16325,MassDataLink!$F$4:$F$16325) -> 24 | J136: 23 | K136: - - - | L136: - - - | O136: 10 | P136: - - - | Q136: - - -
B137: =B136+1 -> 24 | C137: =IF(C136=-1,-1,H136) -> 24 | D137: =LOOKUP(C137,MassDataLink!$A$4:$A$16325,MassDataLink!$B$4:$B$16325) -> 1 | E137: =LOOKUP(C137,MassDataLink!$A$4:$A$16325,MassDataLink!$C$4:$C$16325) -> 8000 | F137: =LOOKUP(C137,MassDataLink!$A$4:$A$16325,MassDataLink!$D$4:$D$16325) -> 36 | G137: =LOOKUP(C137,MassDataLink!$A$4:$A$16325,MassDataLink!$E$4:$E$16325) -> 23 | H137: =LOOKUP(C137,MassDataLink!$A$4:$A$16325,MassDataLink!$F$4:$F$16325) -> 25 | J137: 24 | K137: - - - | L137: - - -
B138: 25 | C138: 25 | D138: =LOOKUP(C138,MassDataLink!$A$4:$A$16325,MassDataLink!$B$4:$B$16325) -> 1 | E138: =LOOKUP(C138,MassDataLink!$A$4:$A$16325,MassDataLink!$C$4:$C$16325) -> 9000 | F138: =LOOKUP(C138,MassDataLink!$A$4:$A$16325,MassDataLink!$D$4:$D$16325) -> 37 | G138: =LOOKUP(C138,MassDataLink!$A$4:$A$16325,MassDataLink!$E$4:$E$16325) -> 24 | H138: =LOOKUP(C138,MassDataLink!$A$4:$A$16325,MassDataLink!$F$4:$F$16325) -> 26 | J138: 25 | K138: - - - | L138: - - -
B139: 26 | C139: 26 | D139: =LOOKUP(C139,MassDataLink!$A$4:$A$16325,MassDataLink!$B$4:$B$16325) -> 1 | E139: =LOOKUP(C139,MassDataLink!$A$4:$A$16325,MassDataLink!$C$4:$C$16325) -> 10000 | F139: =LOOKUP(C139,MassDataLink!$A$4:$A$16325,MassDataLink!$D$4:$D$16325) -> 38 | G139: =LOOKUP(C139,MassDataLink!$A$4:$A$16325,MassDataLink!$E$4:$E$16325) -> 25 | H139: =LOOKUP(C139,MassDataLink!$A$4:$A$16325,MassDataLink!$F$4:$F$16325) -> -1 | J139: 26 | K139: - - - | L139: - - -
B140: 27 | C140: -1 | D140: =LOOKUP(C140,MassDataLink!$A$4:$A$16325,MassDataLink!$B$4:$B$16325) ->  | E140: =LOOKUP(C140,MassDataLink!$A$4:$A$16325,MassDataLink!$C$4:$C$16325) ->  | F140: =LOOKUP(C140,MassDataLink!$A$4:$A$16325,MassDataLink!$D$4:$D$16325) ->  | G140: =LOOKUP(C140,MassDataLink!$A$4:$A$16325,MassDataLink!$E$4:$E$16325) ->  | H140: =LOOKUP(C140,MassDataLink!$A$4:$A$16325,MassDataLink!$F$4:$F$16325) ->  | J140: 27 | K140: - - - | L140: - - -
B141: 28 | C141: -1 | D141: =LOOKUP(C141,MassDataLink!$A$4:$A$16325,MassDataLink!$B$4:$B$16325) ->  | E141: =LOOKUP(C141,MassDataLink!$A$4:$A$16325,MassDataLink!$C$4:$C$16325) ->  | F141: =LOOKUP(C141,MassDataLink!$A$4:$A$16325,MassDataLink!$D$4:$D$16325) ->  | G141: =LOOKUP(C141,MassDataLink!$A$4:$A$16325,MassDataLink!$E$4:$E$16325) ->  | H141: =LOOKUP(C141,MassDataLink!$A$4:$A$16325,MassDataLink!$F$4:$F$16325) ->  | J141: 28 | K141: - - - | L141: - - -
B142: 29 | C142: -1 | D142: =LOOKUP(C142,MassDataLink!$A$4:$A$16325,MassDataLink!$B$4:$B$16325) ->  | E142: =LOOKUP(C142,MassDataLink!$A$4:$A$16325,MassDataLink!$C$4:$C$16325) ->  | F142: =LOOKUP(C142,MassDataLink!$A$4:$A$16325,MassDataLink!$D$4:$D$16325) ->  | G142: =LOOKUP(C142,MassDataLink!$A$4:$A$16325,MassDataLink!$E$4:$E$16325) ->  | H142: =LOOKUP(C142,MassDataLink!$A$4:$A$16325,MassDataLink!$F$4:$F$16325) ->  | J142: 29 | K142: - - - | L142: - - -
B143: 30 | C143: -1 | D143: =LOOKUP(C143,MassDataLink!$A$4:$A$16325,MassDataLink!$B$4:$B$16325) ->  | E143: =LOOKUP(C143,MassDataLink!$A$4:$A$16325,MassDataLink!$C$4:$C$16325) ->  | F143: =LOOKUP(C143,MassDataLink!$A$4:$A$16325,MassDataLink!$D$4:$D$16325) ->  | G143: =LOOKUP(C143,MassDataLink!$A$4:$A$16325,MassDataLink!$E$4:$E$16325) ->  | H143: =LOOKUP(C143,MassDataLink!$A$4:$A$16325,MassDataLink!$F$4:$F$16325) ->  | J143: 30 | K143: - - - | L143: - - -
B144: =B143+1 -> 31 | C144: =IF(C143=-1,-1,H143) -> -1 | D144: =LOOKUP(C144,MassDataLink!$A$4:$A$16325,MassDataLink!$B$4:$B$16325) ->  | E144: =LOOKUP(C144,MassDataLink!$A$4:$A$16325,MassDataLink!$C$4:$C$16325) ->  | F144: =LOOKUP(C144,MassDataLink!$A$4:$A$16325,MassDataLink!$D$4:$D$16325) ->  | G144: =LOOKUP(C144,MassDataLink!$A$4:$A$16325,MassDataLink!$E$4:$E$16325) ->  | H144: =LOOKUP(C144,MassDataLink!$A$4:$A$16325,MassDataLink!$F$4:$F$16325) ->  | J144: 31 | K144: - - - | L144: - - -
B145: 32 | C145: -1 | D145: =LOOKUP(C145,MassDataLink!$A$4:$A$16325,MassDataLink!$B$4:$B$16325) ->  | E145: =LOOKUP(C145,MassDataLink!$A$4:$A$16325,MassDataLink!$C$4:$C$16325) ->  | F145: =LOOKUP(C145,MassDataLink!$A$4:$A$16325,MassDataLink!$D$4:$D$16325) ->  | G145: =LOOKUP(C145,MassDataLink!$A$4:$A$16325,MassDataLink!$E$4:$E$16325) ->  | H145: =LOOKUP(C145,MassDataLink!$A$4:$A$16325,MassDataLink!$F$4:$F$16325) ->  | J145: 32 | K145: - - - | L145: - - -
B146: 33 | C146: -1 | D146: =LOOKUP(C146,MassDataLink!$A$4:$A$16325,MassDataLink!$B$4:$B$16325) ->  | E146: =LOOKUP(C146,MassDataLink!$A$4:$A$16325,MassDataLink!$C$4:$C$16325) ->  | F146: =LOOKUP(C146,MassDataLink!$A$4:$A$16325,MassDataLink!$D$4:$D$16325) ->  | G146: =LOOKUP(C146,MassDataLink!$A$4:$A$16325,MassDataLink!$E$4:$E$16325) ->  | H146: =LOOKUP(C146,MassDataLink!$A$4:$A$16325,MassDataLink!$F$4:$F$16325) ->  | J146: 33 | K146: - - - | L146: - - -
B147: 34 | C147: -1 | D147: =LOOKUP(C147,MassDataLink!$A$4:$A$16325,MassDataLink!$B$4:$B$16325) ->  | E147: =LOOKUP(C147,MassDataLink!$A$4:$A$16325,MassDataLink!$C$4:$C$16325) ->  | F147: =LOOKUP(C147,MassDataLink!$A$4:$A$16325,MassDataLink!$D$4:$D$16325) ->  | G147: =LOOKUP(C147,MassDataLink!$A$4:$A$16325,MassDataLink!$E$4:$E$16325) ->  | H147: =LOOKUP(C147,MassDataLink!$A$4:$A$16325,MassDataLink!$F$4:$F$16325) ->  | J147: 34 | K147: - - - | L147: - - -
B148: 35 | C148: -1 | D148: =LOOKUP(C148,MassDataLink!$A$4:$A$16325,MassDataLink!$B$4:$B$16325) ->  | E148: =LOOKUP(C148,MassDataLink!$A$4:$A$16325,MassDataLink!$C$4:$C$16325) ->  | F148: =LOOKUP(C148,MassDataLink!$A$4:$A$16325,MassDataLink!$D$4:$D$16325) ->  | G148: =LOOKUP(C148,MassDataLink!$A$4:$A$16325,MassDataLink!$E$4:$E$16325) ->  | H148: =LOOKUP(C148,MassDataLink!$A$4:$A$16325,MassDataLink!$F$4:$F$16325) ->  | J148: 35 | K148: - - - | L148: - - -
B149: 36 | C149: -1 | D149: =LOOKUP(C149,MassDataLink!$A$4:$A$16325,MassDataLink!$B$4:$B$16325) ->  | E149: =LOOKUP(C149,MassDataLink!$A$4:$A$16325,MassDataLink!$C$4:$C$16325) ->  | F149: =LOOKUP(C149,MassDataLink!$A$4:$A$16325,MassDataLink!$D$4:$D$16325) ->  | G149: =LOOKUP(C149,MassDataLink!$A$4:$A$16325,MassDataLink!$E$4:$E$16325) ->  | H149: =LOOKUP(C149,MassDataLink!$A$4:$A$16325,MassDataLink!$F$4:$F$16325) ->  | J149: 36 | K149: - - - | L149: - - -
B150: 37 | C150: -1 | D150: =LOOKUP(C150,MassDataLink!$A$4:$A$16325,MassDataLink!$B$4:$B$16325) ->  | E150: =LOOKUP(C150,MassDataLink!$A$4:$A$16325,MassDataLink!$C$4:$C$16325) ->  | F150: =LOOKUP(C150,MassDataLink!$A$4:$A$16325,MassDataLink!$D$4:$D$16325) ->  | G150: =LOOKUP(C150,MassDataLink!$A$4:$A$16325,MassDataLink!$E$4:$E$16325) ->  | H150: =LOOKUP(C150,MassDataLink!$A$4:$A$16325,MassDataLink!$F$4:$F$16325) ->  | J150: 37 | K150: - - - | L150: - - -
B151: 38 | C151: -1 | D151: =LOOKUP(C151,MassDataLink!$A$4:$A$16325,MassDataLink!$B$4:$B$16325) ->  | E151: =LOOKUP(C151,MassDataLink!$A$4:$A$16325,MassDataLink!$C$4:$C$16325) ->  | F151: =LOOKUP(C151,MassDataLink!$A$4:$A$16325,MassDataLink!$D$4:$D$16325) ->  | G151: =LOOKUP(C151,MassDataLink!$A$4:$A$16325,MassDataLink!$E$4:$E$16325) ->  | H151: =LOOKUP(C151,MassDataLink!$A$4:$A$16325,MassDataLink!$F$4:$F$16325) ->  | J151: 38 | K151: - - - | L151: - - -
B152: 39 | C152: -1 | D152: =LOOKUP(C152,MassDataLink!$A$4:$A$16325,MassDataLink!$B$4:$B$16325) ->  | E152: =LOOKUP(C152,MassDataLink!$A$4:$A$16325,MassDataLink!$C$4:$C$16325) ->  | F152: =LOOKUP(C152,MassDataLink!$A$4:$A$16325,MassDataLink!$D$4:$D$16325) ->  | G152: =LOOKUP(C152,MassDataLink!$A$4:$A$16325,MassDataLink!$E$4:$E$16325) ->  | H152: =LOOKUP(C152,MassDataLink!$A$4:$A$16325,MassDataLink!$F$4:$F$16325) ->  | J152: 39 | K152: - - - | L152: - - -
B153: 40 | C153: -1 | D153: =LOOKUP(C153,MassDataLink!$A$4:$A$16325,MassDataLink!$B$4:$B$16325) ->  | E153: =LOOKUP(C153,MassDataLink!$A$4:$A$16325,MassDataLink!$C$4:$C$16325) ->  | F153: =LOOKUP(C153,MassDataLink!$A$4:$A$16325,MassDataLink!$D$4:$D$16325) ->  | G153: =LOOKUP(C153,MassDataLink!$A$4:$A$16325,MassDataLink!$E$4:$E$16325) ->  | H153: =LOOKUP(C153,MassDataLink!$A$4:$A$16325,MassDataLink!$F$4:$F$16325) ->  | J153: 40 | K153: - - - | L153: - - -
B154: 41 | C154: -1 | D154: =LOOKUP(C154,MassDataLink!$A$4:$A$16325,MassDataLink!$B$4:$B$16325) ->  | E154: =LOOKUP(C154,MassDataLink!$A$4:$A$16325,MassDataLink!$C$4:$C$16325) ->  | F154: =LOOKUP(C154,MassDataLink!$A$4:$A$16325,MassDataLink!$D$4:$D$16325) ->  | G154: =LOOKUP(C154,MassDataLink!$A$4:$A$16325,MassDataLink!$E$4:$E$16325) ->  | H154: =LOOKUP(C154,MassDataLink!$A$4:$A$16325,MassDataLink!$F$4:$F$16325) ->  | J154: 41 | K154: - - - | L154: - - -
B155: 42 | C155: -1 | D155: =LOOKUP(C155,MassDataLink!$A$4:$A$16325,MassDataLink!$B$4:$B$16325) ->  | E155: =LOOKUP(C155,MassDataLink!$A$4:$A$16325,MassDataLink!$C$4:$C$16325) ->  | F155: =LOOKUP(C155,MassDataLink!$A$4:$A$16325,MassDataLink!$D$4:$D$16325) ->  | G155: =LOOKUP(C155,MassDataLink!$A$4:$A$16325,MassDataLink!$E$4:$E$16325) ->  | H155: =LOOKUP(C155,MassDataLink!$A$4:$A$16325,MassDataLink!$F$4:$F$16325) ->  | J155: 42 | K155: - - - | L155: - - -
B156: 43 | C156: -1 | D156: =LOOKUP(C156,MassDataLink!$A$4:$A$16325,MassDataLink!$B$4:$B$16325) ->  | E156: =LOOKUP(C156,MassDataLink!$A$4:$A$16325,MassDataLink!$C$4:$C$16325) ->  | F156: =LOOKUP(C156,MassDataLink!$A$4:$A$16325,MassDataLink!$D$4:$D$16325) ->  | G156: =LOOKUP(C156,MassDataLink!$A$4:$A$16325,MassDataLink!$E$4:$E$16325) ->  | H156: =LOOKUP(C156,MassDataLink!$A$4:$A$16325,MassDataLink!$F$4:$F$16325) ->  | J156: 43 | K156: - - - | L156: - - -
B157: 44 | C157: -1 | D157: =LOOKUP(C157,MassDataLink!$A$4:$A$16325,MassDataLink!$B$4:$B$16325) ->  | E157: =LOOKUP(C157,MassDataLink!$A$4:$A$16325,MassDataLink!$C$4:$C$16325) ->  | F157: =LOOKUP(C157,MassDataLink!$A$4:$A$16325,MassDataLink!$D$4:$D$16325) ->  | G157: =LOOKUP(C157,MassDataLink!$A$4:$A$16325,MassDataLink!$E$4:$E$16325) ->  | H157: =LOOKUP(C157,MassDataLink!$A$4:$A$16325,MassDataLink!$F$4:$F$16325) ->  | J157: 44 | K157: - - - | L157: - - -
B158: 45 | C158: -1 | D158: =LOOKUP(C158,MassDataLink!$A$4:$A$16325,MassDataLink!$B$4:$B$16325) ->  | E158: =LOOKUP(C158,MassDataLink!$A$4:$A$16325,MassDataLink!$C$4:$C$16325) ->  | F158: =LOOKUP(C158,MassDataLink!$A$4:$A$16325,MassDataLink!$D$4:$D$16325) ->  | G158: =LOOKUP(C158,MassDataLink!$A$4:$A$16325,MassDataLink!$E$4:$E$16325) ->  | H158: =LOOKUP(C158,MassDataLink!$A$4:$A$16325,MassDataLink!$F$4:$F$16325) ->  | J158: 45 | K158: - - - | L158: - - -
B159: 46 | C159: -1 | D159: =LOOKUP(C159,MassDataLink!$A$4:$A$16325,MassDataLink!$B$4:$B$16325) ->  | E159: =LOOKUP(C159,MassDataLink!$A$4:$A$16325,MassDataLink!$C$4:$C$16325) ->  | F159: =LOOKUP(C159,MassDataLink!$A$4:$A$16325,MassDataLink!$D$4:$D$16325) ->  | G159: =LOOKUP(C159,MassDataLink!$A$4:$A$16325,MassDataLink!$E$4:$E$16325) ->  | H159: =LOOKUP(C159,MassDataLink!$A$4:$A$16325,MassDataLink!$F$4:$F$16325) ->  | J159: 46 | K159: - - - | L159: - - -
B160: 47 | C160: -1 | D160: =LOOKUP(C160,MassDataLink!$A$4:$A$16325,MassDataLink!$B$4:$B$16325) ->  | E160: =LOOKUP(C160,MassDataLink!$A$4:$A$16325,MassDataLink!$C$4:$C$16325) ->  | F160: =LOOKUP(C160,MassDataLink!$A$4:$A$16325,MassDataLink!$D$4:$D$16325) ->  | G160: =LOOKUP(C160,MassDataLink!$A$4:$A$16325,MassDataLink!$E$4:$E$16325) ->  | H160: =LOOKUP(C160,MassDataLink!$A$4:$A$16325,MassDataLink!$F$4:$F$16325) ->  | J160: 47 | K160: - - - | L160: - - -
B161: 48 | C161: -1 | D161: =LOOKUP(C161,MassDataLink!$A$4:$A$16325,MassDataLink!$B$4:$B$16325) ->  | E161: =LOOKUP(C161,MassDataLink!$A$4:$A$16325,MassDataLink!$C$4:$C$16325) ->  | F161: =LOOKUP(C161,MassDataLink!$A$4:$A$16325,MassDataLink!$D$4:$D$16325) ->  | G161: =LOOKUP(C161,MassDataLink!$A$4:$A$16325,MassDataLink!$E$4:$E$16325) ->  | H161: =LOOKUP(C161,MassDataLink!$A$4:$A$16325,MassDataLink!$F$4:$F$16325) ->  | J161: 48 | K161: - - - | L161: - - -
B162: 49 | C162: -1 | D162: =LOOKUP(C162,MassDataLink!$A$4:$A$16325,MassDataLink!$B$4:$B$16325) ->  | E162: =LOOKUP(C162,MassDataLink!$A$4:$A$16325,MassDataLink!$C$4:$C$16325) ->  | F162: =LOOKUP(C162,MassDataLink!$A$4:$A$16325,MassDataLink!$D$4:$D$16325) ->  | G162: =LOOKUP(C162,MassDataLink!$A$4:$A$16325,MassDataLink!$E$4:$E$16325) ->  | H162: =LOOKUP(C162,MassDataLink!$A$4:$A$16325,MassDataLink!$F$4:$F$16325) ->  | J162: 49 | K162: - - - | L162: - - -
B163: 50 | C163: -1 | D163: =LOOKUP(C163,MassDataLink!$A$4:$A$16325,MassDataLink!$B$4:$B$16325) ->  | E163: =LOOKUP(C163,MassDataLink!$A$4:$A$16325,MassDataLink!$C$4:$C$16325) ->  | F163: =LOOKUP(C163,MassDataLink!$A$4:$A$16325,MassDataLink!$D$4:$D$16325) ->  | G163: =LOOKUP(C163,MassDataLink!$A$4:$A$16325,MassDataLink!$E$4:$E$16325) ->  | H163: =LOOKUP(C163,MassDataLink!$A$4:$A$16325,MassDataLink!$F$4:$F$16325) ->  | J163: 50 | K163: - - - | L163: - - -
B164: =B163+1 -> 51 | C164: =IF(C163=-1,-1,H163) -> -1 | D164: =LOOKUP(C164,MassDataLink!$A$4:$A$16325,MassDataLink!$B$4:$B$16325) ->  | E164: =LOOKUP(C164,MassDataLink!$A$4:$A$16325,MassDataLink!$C$4:$C$16325) ->  | F164: =LOOKUP(C164,MassDataLink!$A$4:$A$16325,MassDataLink!$D$4:$D$16325) ->  | G164: =LOOKUP(C164,MassDataLink!$A$4:$A$16325,MassDataLink!$E$4:$E$16325) ->  | H164: =LOOKUP(C164,MassDataLink!$A$4:$A$16325,MassDataLink!$F$4:$F$16325) ->  | J164: =J163+1 -> 51 | K164: =IF(C164=-1,$L$112,IF($A$11=D164,ROUND((E164*$P$57),$R$57),$L$112)) -> - - - | L164: =IF(K164=$L$112,$L$112,F164) -> - - -
B165: 52 | C165: -1 | D165: =LOOKUP(C165,MassDataLink!$A$4:$A$16325,MassDataLink!$B$4:$B$16325) ->  | E165: =LOOKUP(C165,MassDataLink!$A$4:$A$16325,MassDataLink!$C$4:$C$16325) ->  | F165: =LOOKUP(C165,MassDataLink!$A$4:$A$16325,MassDataLink!$D$4:$D$16325) ->  | G165: =LOOKUP(C165,MassDataLink!$A$4:$A$16325,MassDataLink!$E$4:$E$16325) ->  | H165: =LOOKUP(C165,MassDataLink!$A$4:$A$16325,MassDataLink!$F$4:$F$16325) ->  | J165: 52 | K165: - - - | L165: - - -
B166: 53 | C166: -1 | D166: =LOOKUP(C166,MassDataLink!$A$4:$A$16325,MassDataLink!$B$4:$B$16325) ->  | E166: =LOOKUP(C166,MassDataLink!$A$4:$A$16325,MassDataLink!$C$4:$C$16325) ->  | F166: =LOOKUP(C166,MassDataLink!$A$4:$A$16325,MassDataLink!$D$4:$D$16325) ->  | G166: =LOOKUP(C166,MassDataLink!$A$4:$A$16325,MassDataLink!$E$4:$E$16325) ->  | H166: =LOOKUP(C166,MassDataLink!$A$4:$A$16325,MassDataLink!$F$4:$F$16325) ->  | J166: 53 | K166: - - - | L166: - - -
B167: 54 | C167: -1 | D167: =LOOKUP(C167,MassDataLink!$A$4:$A$16325,MassDataLink!$B$4:$B$16325) ->  | E167: =LOOKUP(C167,MassDataLink!$A$4:$A$16325,MassDataLink!$C$4:$C$16325) ->  | F167: =LOOKUP(C167,MassDataLink!$A$4:$A$16325,MassDataLink!$D$4:$D$16325) ->  | G167: =LOOKUP(C167,MassDataLink!$A$4:$A$16325,MassDataLink!$E$4:$E$16325) ->  | H167: =LOOKUP(C167,MassDataLink!$A$4:$A$16325,MassDataLink!$F$4:$F$16325) ->  | J167: 54 | K167: - - - | L167: - - -
B168: 55 | C168: -1 | D168: =LOOKUP(C168,MassDataLink!$A$4:$A$16325,MassDataLink!$B$4:$B$16325) ->  | E168: =LOOKUP(C168,MassDataLink!$A$4:$A$16325,MassDataLink!$C$4:$C$16325) ->  | F168: =LOOKUP(C168,MassDataLink!$A$4:$A$16325,MassDataLink!$D$4:$D$16325) ->  | G168: =LOOKUP(C168,MassDataLink!$A$4:$A$16325,MassDataLink!$E$4:$E$16325) ->  | H168: =LOOKUP(C168,MassDataLink!$A$4:$A$16325,MassDataLink!$F$4:$F$16325) ->  | J168: 55 | K168: - - - | L168: - - -
B169: 56 | C169: -1 | D169: =LOOKUP(C169,MassDataLink!$A$4:$A$16325,MassDataLink!$B$4:$B$16325) ->  | E169: =LOOKUP(C169,MassDataLink!$A$4:$A$16325,MassDataLink!$C$4:$C$16325) ->  | F169: =LOOKUP(C169,MassDataLink!$A$4:$A$16325,MassDataLink!$D$4:$D$16325) ->  | G169: =LOOKUP(C169,MassDataLink!$A$4:$A$16325,MassDataLink!$E$4:$E$16325) ->  | H169: =LOOKUP(C169,MassDataLink!$A$4:$A$16325,MassDataLink!$F$4:$F$16325) ->  | J169: 56 | K169: - - - | L169: - - -
B170: 57 | C170: -1 | D170: =LOOKUP(C170,MassDataLink!$A$4:$A$16325,MassDataLink!$B$4:$B$16325) ->  | E170: =LOOKUP(C170,MassDataLink!$A$4:$A$16325,MassDataLink!$C$4:$C$16325) ->  | F170: =LOOKUP(C170,MassDataLink!$A$4:$A$16325,MassDataLink!$D$4:$D$16325) ->  | G170: =LOOKUP(C170,MassDataLink!$A$4:$A$16325,MassDataLink!$E$4:$E$16325) ->  | H170: =LOOKUP(C170,MassDataLink!$A$4:$A$16325,MassDataLink!$F$4:$F$16325) ->  | J170: 57 | K170: - - - | L170: - - -
B171: 58 | C171: -1 | D171: =LOOKUP(C171,MassDataLink!$A$4:$A$16325,MassDataLink!$B$4:$B$16325) ->  | E171: =LOOKUP(C171,MassDataLink!$A$4:$A$16325,MassDataLink!$C$4:$C$16325) ->  | F171: =LOOKUP(C171,MassDataLink!$A$4:$A$16325,MassDataLink!$D$4:$D$16325) ->  | G171: =LOOKUP(C171,MassDataLink!$A$4:$A$16325,MassDataLink!$E$4:$E$16325) ->  | H171: =LOOKUP(C171,MassDataLink!$A$4:$A$16325,MassDataLink!$F$4:$F$16325) ->  | J171: 58 | K171: - - - | L171: - - -
B172: 59 | C172: -1 | D172: =LOOKUP(C172,MassDataLink!$A$4:$A$16325,MassDataLink!$B$4:$B$16325) ->  | E172: =LOOKUP(C172,MassDataLink!$A$4:$A$16325,MassDataLink!$C$4:$C$16325) ->  | F172: =LOOKUP(C172,MassDataLink!$A$4:$A$16325,MassDataLink!$D$4:$D$16325) ->  | G172: =LOOKUP(C172,MassDataLink!$A$4:$A$16325,MassDataLink!$E$4:$E$16325) ->  | H172: =LOOKUP(C172,MassDataLink!$A$4:$A$16325,MassDataLink!$F$4:$F$16325) ->  | J172: 59 | K172: - - - | L172: - - -
B173: 60 | C173: -1 | D173: =LOOKUP(C173,MassDataLink!$A$4:$A$16325,MassDataLink!$B$4:$B$16325) ->  | E173: =LOOKUP(C173,MassDataLink!$A$4:$A$16325,MassDataLink!$C$4:$C$16325) ->  | F173: =LOOKUP(C173,MassDataLink!$A$4:$A$16325,MassDataLink!$D$4:$D$16325) ->  | G173: =LOOKUP(C173,MassDataLink!$A$4:$A$16325,MassDataLink!$E$4:$E$16325) ->  | H173: =LOOKUP(C173,MassDataLink!$A$4:$A$16325,MassDataLink!$F$4:$F$16325) ->  | J173: 60 | K173: - - - | L173: - - -
B174: 61 | C174: -1 | D174: =LOOKUP(C174,MassDataLink!$A$4:$A$16325,MassDataLink!$B$4:$B$16325) ->  | E174: =LOOKUP(C174,MassDataLink!$A$4:$A$16325,MassDataLink!$C$4:$C$16325) ->  | F174: =LOOKUP(C174,MassDataLink!$A$4:$A$16325,MassDataLink!$D$4:$D$16325) ->  | G174: =LOOKUP(C174,MassDataLink!$A$4:$A$16325,MassDataLink!$E$4:$E$16325) ->  | H174: =LOOKUP(C174,MassDataLink!$A$4:$A$16325,MassDataLink!$F$4:$F$16325) ->  | J174: 61 | K174: - - - | L174: - - -
B175: 62 | C175: -1 | D175: =LOOKUP(C175,MassDataLink!$A$4:$A$16325,MassDataLink!$B$4:$B$16325) ->  | E175: =LOOKUP(C175,MassDataLink!$A$4:$A$16325,MassDataLink!$C$4:$C$16325) ->  | F175: =LOOKUP(C175,MassDataLink!$A$4:$A$16325,MassDataLink!$D$4:$D$16325) ->  | G175: =LOOKUP(C175,MassDataLink!$A$4:$A$16325,MassDataLink!$E$4:$E$16325) ->  | H175: =LOOKUP(C175,MassDataLink!$A$4:$A$16325,MassDataLink!$F$4:$F$16325) ->  | J175: 62 | K175: - - - | L175: - - -
B176: 63 | C176: -1 | D176: =LOOKUP(C176,MassDataLink!$A$4:$A$16325,MassDataLink!$B$4:$B$16325) ->  | E176: =LOOKUP(C176,MassDataLink!$A$4:$A$16325,MassDataLink!$C$4:$C$16325) ->  | F176: =LOOKUP(C176,MassDataLink!$A$4:$A$16325,MassDataLink!$D$4:$D$16325) ->  | G176: =LOOKUP(C176,MassDataLink!$A$4:$A$16325,MassDataLink!$E$4:$E$16325) ->  | H176: =LOOKUP(C176,MassDataLink!$A$4:$A$16325,MassDataLink!$F$4:$F$16325) ->  | J176: 63 | K176: - - - | L176: - - -
B177: 64 | C177: -1 | D177: =LOOKUP(C177,MassDataLink!$A$4:$A$16325,MassDataLink!$B$4:$B$16325) ->  | E177: =LOOKUP(C177,MassDataLink!$A$4:$A$16325,MassDataLink!$C$4:$C$16325) ->  | F177: =LOOKUP(C177,MassDataLink!$A$4:$A$16325,MassDataLink!$D$4:$D$16325) ->  | G177: =LOOKUP(C177,MassDataLink!$A$4:$A$16325,MassDataLink!$E$4:$E$16325) ->  | H177: =LOOKUP(C177,MassDataLink!$A$4:$A$16325,MassDataLink!$F$4:$F$16325) ->  | J177: 64 | K177: - - - | L177: - - -
B178: 65 | C178: -1 | D178: =LOOKUP(C178,MassDataLink!$A$4:$A$16325,MassDataLink!$B$4:$B$16325) ->  | E178: =LOOKUP(C178,MassDataLink!$A$4:$A$16325,MassDataLink!$C$4:$C$16325) ->  | F178: =LOOKUP(C178,MassDataLink!$A$4:$A$16325,MassDataLink!$D$4:$D$16325) ->  | G178: =LOOKUP(C178,MassDataLink!$A$4:$A$16325,MassDataLink!$E$4:$E$16325) ->  | H178: =LOOKUP(C178,MassDataLink!$A$4:$A$16325,MassDataLink!$F$4:$F$16325) ->  | J178: 65 | K178: - - - | L178: - - -
B179: 66 | C179: -1 | D179: =LOOKUP(C179,MassDataLink!$A$4:$A$16325,MassDataLink!$B$4:$B$16325) ->  | E179: =LOOKUP(C179,MassDataLink!$A$4:$A$16325,MassDataLink!$C$4:$C$16325) ->  | F179: =LOOKUP(C179,MassDataLink!$A$4:$A$16325,MassDataLink!$D$4:$D$16325) ->  | G179: =LOOKUP(C179,MassDataLink!$A$4:$A$16325,MassDataLink!$E$4:$E$16325) ->  | H179: =LOOKUP(C179,MassDataLink!$A$4:$A$16325,MassDataLink!$F$4:$F$16325) ->  | J179: 66 | K179: - - - | L179: - - -
B180: 67 | C180: -1 | D180: =LOOKUP(C180,MassDataLink!$A$4:$A$16325,MassDataLink!$B$4:$B$16325) ->  | E180: =LOOKUP(C180,MassDataLink!$A$4:$A$16325,MassDataLink!$C$4:$C$16325) ->  | F180: =LOOKUP(C180,MassDataLink!$A$4:$A$16325,MassDataLink!$D$4:$D$16325) ->  | G180: =LOOKUP(C180,MassDataLink!$A$4:$A$16325,MassDataLink!$E$4:$E$16325) ->  | H180: =LOOKUP(C180,MassDataLink!$A$4:$A$16325,MassDataLink!$F$4:$F$16325) ->  | J180: 67 | K180: - - - | L180: - - -
B181: 68 | C181: -1 | D181: =LOOKUP(C181,MassDataLink!$A$4:$A$16325,MassDataLink!$B$4:$B$16325) ->  | E181: =LOOKUP(C181,MassDataLink!$A$4:$A$16325,MassDataLink!$C$4:$C$16325) ->  | F181: =LOOKUP(C181,MassDataLink!$A$4:$A$16325,MassDataLink!$D$4:$D$16325) ->  | G181: =LOOKUP(C181,MassDataLink!$A$4:$A$16325,MassDataLink!$E$4:$E$16325) ->  | H181: =LOOKUP(C181,MassDataLink!$A$4:$A$16325,MassDataLink!$F$4:$F$16325) ->  | J181: 68 | K181: - - - | L181: - - -
B182: 69 | C182: -1 | D182: =LOOKUP(C182,MassDataLink!$A$4:$A$16325,MassDataLink!$B$4:$B$16325) ->  | E182: =LOOKUP(C182,MassDataLink!$A$4:$A$16325,MassDataLink!$C$4:$C$16325) ->  | F182: =LOOKUP(C182,MassDataLink!$A$4:$A$16325,MassDataLink!$D$4:$D$16325) ->  | G182: =LOOKUP(C182,MassDataLink!$A$4:$A$16325,MassDataLink!$E$4:$E$16325) ->  | H182: =LOOKUP(C182,MassDataLink!$A$4:$A$16325,MassDataLink!$F$4:$F$16325) ->  | J182: 69 | K182: - - - | L182: - - -
B183: 70 | C183: -1 | D183: =LOOKUP(C183,MassDataLink!$A$4:$A$16325,MassDataLink!$B$4:$B$16325) ->  | E183: =LOOKUP(C183,MassDataLink!$A$4:$A$16325,MassDataLink!$C$4:$C$16325) ->  | F183: =LOOKUP(C183,MassDataLink!$A$4:$A$16325,MassDataLink!$D$4:$D$16325) ->  | G183: =LOOKUP(C183,MassDataLink!$A$4:$A$16325,MassDataLink!$E$4:$E$16325) ->  | H183: =LOOKUP(C183,MassDataLink!$A$4:$A$16325,MassDataLink!$F$4:$F$16325) ->  | J183: 70 | K183: - - - | L183: - - -
B184: 71 | C184: -1 | D184: =LOOKUP(C184,MassDataLink!$A$4:$A$16325,MassDataLink!$B$4:$B$16325) ->  | E184: =LOOKUP(C184,MassDataLink!$A$4:$A$16325,MassDataLink!$C$4:$C$16325) ->  | F184: =LOOKUP(C184,MassDataLink!$A$4:$A$16325,MassDataLink!$D$4:$D$16325) ->  | G184: =LOOKUP(C184,MassDataLink!$A$4:$A$16325,MassDataLink!$E$4:$E$16325) ->  | H184: =LOOKUP(C184,MassDataLink!$A$4:$A$16325,MassDataLink!$F$4:$F$16325) ->  | J184: 71 | K184: - - - | L184: - - -
B185: 72 | C185: -1 | D185: =LOOKUP(C185,MassDataLink!$A$4:$A$16325,MassDataLink!$B$4:$B$16325) ->  | E185: =LOOKUP(C185,MassDataLink!$A$4:$A$16325,MassDataLink!$C$4:$C$16325) ->  | F185: =LOOKUP(C185,MassDataLink!$A$4:$A$16325,MassDataLink!$D$4:$D$16325) ->  | G185: =LOOKUP(C185,MassDataLink!$A$4:$A$16325,MassDataLink!$E$4:$E$16325) ->  | H185: =LOOKUP(C185,MassDataLink!$A$4:$A$16325,MassDataLink!$F$4:$F$16325) ->  | J185: 72 | K185: - - - | L185: - - -
B186: 73 | C186: -1 | D186: =LOOKUP(C186,MassDataLink!$A$4:$A$16325,MassDataLink!$B$4:$B$16325) ->  | E186: =LOOKUP(C186,MassDataLink!$A$4:$A$16325,MassDataLink!$C$4:$C$16325) ->  | F186: =LOOKUP(C186,MassDataLink!$A$4:$A$16325,MassDataLink!$D$4:$D$16325) ->  | G186: =LOOKUP(C186,MassDataLink!$A$4:$A$16325,MassDataLink!$E$4:$E$16325) ->  | H186: =LOOKUP(C186,MassDataLink!$A$4:$A$16325,MassDataLink!$F$4:$F$16325) ->  | J186: 73 | K186: - - - | L186: - - -
B187: 74 | C187: -1 | D187: =LOOKUP(C187,MassDataLink!$A$4:$A$16325,MassDataLink!$B$4:$B$16325) ->  | E187: =LOOKUP(C187,MassDataLink!$A$4:$A$16325,MassDataLink!$C$4:$C$16325) ->  | F187: =LOOKUP(C187,MassDataLink!$A$4:$A$16325,MassDataLink!$D$4:$D$16325) ->  | G187: =LOOKUP(C187,MassDataLink!$A$4:$A$16325,MassDataLink!$E$4:$E$16325) ->  | H187: =LOOKUP(C187,MassDataLink!$A$4:$A$16325,MassDataLink!$F$4:$F$16325) ->  | J187: 74 | K187: - - - | L187: - - -
B188: 75 | C188: -1 | D188: =LOOKUP(C188,MassDataLink!$A$4:$A$16325,MassDataLink!$B$4:$B$16325) ->  | E188: =LOOKUP(C188,MassDataLink!$A$4:$A$16325,MassDataLink!$C$4:$C$16325) ->  | F188: =LOOKUP(C188,MassDataLink!$A$4:$A$16325,MassDataLink!$D$4:$D$16325) ->  | G188: =LOOKUP(C188,MassDataLink!$A$4:$A$16325,MassDataLink!$E$4:$E$16325) ->  | H188: =LOOKUP(C188,MassDataLink!$A$4:$A$16325,MassDataLink!$F$4:$F$16325) ->  | J188: 75 | K188: - - - | L188: - - -
B189: 76 | C189: -1 | D189: =LOOKUP(C189,MassDataLink!$A$4:$A$16325,MassDataLink!$B$4:$B$16325) ->  | E189: =LOOKUP(C189,MassDataLink!$A$4:$A$16325,MassDataLink!$C$4:$C$16325) ->  | F189: =LOOKUP(C189,MassDataLink!$A$4:$A$16325,MassDataLink!$D$4:$D$16325) ->  | G189: =LOOKUP(C189,MassDataLink!$A$4:$A$16325,MassDataLink!$E$4:$E$16325) ->  | H189: =LOOKUP(C189,MassDataLink!$A$4:$A$16325,MassDataLink!$F$4:$F$16325) ->  | J189: 76 | K189: - - - | L189: - - -
B190: 77 | C190: -1 | D190: =LOOKUP(C190,MassDataLink!$A$4:$A$16325,MassDataLink!$B$4:$B$16325) ->  | E190: =LOOKUP(C190,MassDataLink!$A$4:$A$16325,MassDataLink!$C$4:$C$16325) ->  | F190: =LOOKUP(C190,MassDataLink!$A$4:$A$16325,MassDataLink!$D$4:$D$16325) ->  | G190: =LOOKUP(C190,MassDataLink!$A$4:$A$16325,MassDataLink!$E$4:$E$16325) ->  | H190: =LOOKUP(C190,MassDataLink!$A$4:$A$16325,MassDataLink!$F$4:$F$16325) ->  | J190: 77 | K190: - - - | L190: - - -
B191: 78 | C191: -1 | D191: =LOOKUP(C191,MassDataLink!$A$4:$A$16325,MassDataLink!$B$4:$B$16325) ->  | E191: =LOOKUP(C191,MassDataLink!$A$4:$A$16325,MassDataLink!$C$4:$C$16325) ->  | F191: =LOOKUP(C191,MassDataLink!$A$4:$A$16325,MassDataLink!$D$4:$D$16325) ->  | G191: =LOOKUP(C191,MassDataLink!$A$4:$A$16325,MassDataLink!$E$4:$E$16325) ->  | H191: =LOOKUP(C191,MassDataLink!$A$4:$A$16325,MassDataLink!$F$4:$F$16325) ->  | J191: 78 | K191: - - - | L191: - - -
B192: 79 | C192: -1 | D192: =LOOKUP(C192,MassDataLink!$A$4:$A$16325,MassDataLink!$B$4:$B$16325) ->  | E192: =LOOKUP(C192,MassDataLink!$A$4:$A$16325,MassDataLink!$C$4:$C$16325) ->  | F192: =LOOKUP(C192,MassDataLink!$A$4:$A$16325,MassDataLink!$D$4:$D$16325) ->  | G192: =LOOKUP(C192,MassDataLink!$A$4:$A$16325,MassDataLink!$E$4:$E$16325) ->  | H192: =LOOKUP(C192,MassDataLink!$A$4:$A$16325,MassDataLink!$F$4:$F$16325) ->  | J192: 79 | K192: - - - | L192: - - -
B193: 80 | C193: -1 | D193: =LOOKUP(C193,MassDataLink!$A$4:$A$16325,MassDataLink!$B$4:$B$16325) ->  | E193: =LOOKUP(C193,MassDataLink!$A$4:$A$16325,MassDataLink!$C$4:$C$16325) ->  | F193: =LOOKUP(C193,MassDataLink!$A$4:$A$16325,MassDataLink!$D$4:$D$16325) ->  | G193: =LOOKUP(C193,MassDataLink!$A$4:$A$16325,MassDataLink!$E$4:$E$16325) ->  | H193: =LOOKUP(C193,MassDataLink!$A$4:$A$16325,MassDataLink!$F$4:$F$16325) ->  | J193: 80 | K193: - - - | L193: - - -
B194: 81 | C194: -1 | D194: =LOOKUP(C194,MassDataLink!$A$4:$A$16325,MassDataLink!$B$4:$B$16325) ->  | E194: =LOOKUP(C194,MassDataLink!$A$4:$A$16325,MassDataLink!$C$4:$C$16325) ->  | F194: =LOOKUP(C194,MassDataLink!$A$4:$A$16325,MassDataLink!$D$4:$D$16325) ->  | G194: =LOOKUP(C194,MassDataLink!$A$4:$A$16325,MassDataLink!$E$4:$E$16325) ->  | H194: =LOOKUP(C194,MassDataLink!$A$4:$A$16325,MassDataLink!$F$4:$F$16325) ->  | J194: 81 | K194: - - - | L194: - - -
B195: 82 | C195: -1 | D195: =LOOKUP(C195,MassDataLink!$A$4:$A$16325,MassDataLink!$B$4:$B$16325) ->  | E195: =LOOKUP(C195,MassDataLink!$A$4:$A$16325,MassDataLink!$C$4:$C$16325) ->  | F195: =LOOKUP(C195,MassDataLink!$A$4:$A$16325,MassDataLink!$D$4:$D$16325) ->  | G195: =LOOKUP(C195,MassDataLink!$A$4:$A$16325,MassDataLink!$E$4:$E$16325) ->  | H195: =LOOKUP(C195,MassDataLink!$A$4:$A$16325,MassDataLink!$F$4:$F$16325) ->  | J195: 82 | K195: - - - | L195: - - -
B196: 83 | C196: -1 | D196: =LOOKUP(C196,MassDataLink!$A$4:$A$16325,MassDataLink!$B$4:$B$16325) ->  | E196: =LOOKUP(C196,MassDataLink!$A$4:$A$16325,MassDataLink!$C$4:$C$16325) ->  | F196: =LOOKUP(C196,MassDataLink!$A$4:$A$16325,MassDataLink!$D$4:$D$16325) ->  | G196: =LOOKUP(C196,MassDataLink!$A$4:$A$16325,MassDataLink!$E$4:$E$16325) ->  | H196: =LOOKUP(C196,MassDataLink!$A$4:$A$16325,MassDataLink!$F$4:$F$16325) ->  | J196: 83 | K196: - - - | L196: - - -
B197: 84 | C197: -1 | D197: =LOOKUP(C197,MassDataLink!$A$4:$A$16325,MassDataLink!$B$4:$B$16325) ->  | E197: =LOOKUP(C197,MassDataLink!$A$4:$A$16325,MassDataLink!$C$4:$C$16325) ->  | F197: =LOOKUP(C197,MassDataLink!$A$4:$A$16325,MassDataLink!$D$4:$D$16325) ->  | G197: =LOOKUP(C197,MassDataLink!$A$4:$A$16325,MassDataLink!$E$4:$E$16325) ->  | H197: =LOOKUP(C197,MassDataLink!$A$4:$A$16325,MassDataLink!$F$4:$F$16325) ->  | J197: 84 | K197: - - - | L197: - - -
B198: 85 | C198: -1 | D198: =LOOKUP(C198,MassDataLink!$A$4:$A$16325,MassDataLink!$B$4:$B$16325) ->  | E198: =LOOKUP(C198,MassDataLink!$A$4:$A$16325,MassDataLink!$C$4:$C$16325) ->  | F198: =LOOKUP(C198,MassDataLink!$A$4:$A$16325,MassDataLink!$D$4:$D$16325) ->  | G198: =LOOKUP(C198,MassDataLink!$A$4:$A$16325,MassDataLink!$E$4:$E$16325) ->  | H198: =LOOKUP(C198,MassDataLink!$A$4:$A$16325,MassDataLink!$F$4:$F$16325) ->  | J198: 85 | K198: - - - | L198: - - -
B199: 86 | C199: -1 | D199: =LOOKUP(C199,MassDataLink!$A$4:$A$16325,MassDataLink!$B$4:$B$16325) ->  | E199: =LOOKUP(C199,MassDataLink!$A$4:$A$16325,MassDataLink!$C$4:$C$16325) ->  | F199: =LOOKUP(C199,MassDataLink!$A$4:$A$16325,MassDataLink!$D$4:$D$16325) ->  | G199: =LOOKUP(C199,MassDataLink!$A$4:$A$16325,MassDataLink!$E$4:$E$16325) ->  | H199: =LOOKUP(C199,MassDataLink!$A$4:$A$16325,MassDataLink!$F$4:$F$16325) ->  | J199: 86 | K199: - - - | L199: - - -
B200: 87 | C200: -1 | D200: =LOOKUP(C200,MassDataLink!$A$4:$A$16325,MassDataLink!$B$4:$B$16325) ->  | E200: =LOOKUP(C200,MassDataLink!$A$4:$A$16325,MassDataLink!$C$4:$C$16325) ->  | F200: =LOOKUP(C200,MassDataLink!$A$4:$A$16325,MassDataLink!$D$4:$D$16325) ->  | G200: =LOOKUP(C200,MassDataLink!$A$4:$A$16325,MassDataLink!$E$4:$E$16325) ->  | H200: =LOOKUP(C200,MassDataLink!$A$4:$A$16325,MassDataLink!$F$4:$F$16325) ->  | J200: 87 | K200: - - - | L200: - - -
B201: 88 | C201: -1 | D201: =LOOKUP(C201,MassDataLink!$A$4:$A$16325,MassDataLink!$B$4:$B$16325) ->  | E201: =LOOKUP(C201,MassDataLink!$A$4:$A$16325,MassDataLink!$C$4:$C$16325) ->  | F201: =LOOKUP(C201,MassDataLink!$A$4:$A$16325,MassDataLink!$D$4:$D$16325) ->  | G201: =LOOKUP(C201,MassDataLink!$A$4:$A$16325,MassDataLink!$E$4:$E$16325) ->  | H201: =LOOKUP(C201,MassDataLink!$A$4:$A$16325,MassDataLink!$F$4:$F$16325) ->  | J201: 88 | K201: - - - | L201: - - -
B202: 89 | C202: -1 | D202: =LOOKUP(C202,MassDataLink!$A$4:$A$16325,MassDataLink!$B$4:$B$16325) ->  | E202: =LOOKUP(C202,MassDataLink!$A$4:$A$16325,MassDataLink!$C$4:$C$16325) ->  | F202: =LOOKUP(C202,MassDataLink!$A$4:$A$16325,MassDataLink!$D$4:$D$16325) ->  | G202: =LOOKUP(C202,MassDataLink!$A$4:$A$16325,MassDataLink!$E$4:$E$16325) ->  | H202: =LOOKUP(C202,MassDataLink!$A$4:$A$16325,MassDataLink!$F$4:$F$16325) ->  | J202: 89 | K202: - - - | L202: - - -
B203: 90 | C203: -1 | D203: =LOOKUP(C203,MassDataLink!$A$4:$A$16325,MassDataLink!$B$4:$B$16325) ->  | E203: =LOOKUP(C203,MassDataLink!$A$4:$A$16325,MassDataLink!$C$4:$C$16325) ->  | F203: =LOOKUP(C203,MassDataLink!$A$4:$A$16325,MassDataLink!$D$4:$D$16325) ->  | G203: =LOOKUP(C203,MassDataLink!$A$4:$A$16325,MassDataLink!$E$4:$E$16325) ->  | H203: =LOOKUP(C203,MassDataLink!$A$4:$A$16325,MassDataLink!$F$4:$F$16325) ->  | J203: 90 | K203: - - - | L203: - - -
B204: 91 | C204: -1 | D204: =LOOKUP(C204,MassDataLink!$A$4:$A$16325,MassDataLink!$B$4:$B$16325) ->  | E204: =LOOKUP(C204,MassDataLink!$A$4:$A$16325,MassDataLink!$C$4:$C$16325) ->  | F204: =LOOKUP(C204,MassDataLink!$A$4:$A$16325,MassDataLink!$D$4:$D$16325) ->  | G204: =LOOKUP(C204,MassDataLink!$A$4:$A$16325,MassDataLink!$E$4:$E$16325) ->  | H204: =LOOKUP(C204,MassDataLink!$A$4:$A$16325,MassDataLink!$F$4:$F$16325) ->  | J204: 91 | K204: - - - | L204: - - -
B205: 92 | C205: -1 | D205: =LOOKUP(C205,MassDataLink!$A$4:$A$16325,MassDataLink!$B$4:$B$16325) ->  | E205: =LOOKUP(C205,MassDataLink!$A$4:$A$16325,MassDataLink!$C$4:$C$16325) ->  | F205: =LOOKUP(C205,MassDataLink!$A$4:$A$16325,MassDataLink!$D$4:$D$16325) ->  | G205: =LOOKUP(C205,MassDataLink!$A$4:$A$16325,MassDataLink!$E$4:$E$16325) ->  | H205: =LOOKUP(C205,MassDataLink!$A$4:$A$16325,MassDataLink!$F$4:$F$16325) ->  | J205: 92 | K205: - - - | L205: - - -
... 133 more rows

Sheet ModelData (hidden)
B1: 1 | C1: 6 | D1: 7 | E1: 8 | F1: 10 | G1: 11 | H1: 12 | I1: 13 | J1: 14 | K1: 15 | L1: 16 | M1: 17 | N1: 18 | O1: 19 | P1: 20 | Q1: 21 | R1: 22 | S1: 23 | T1: 24 | U1: 25 | V1: 26 | W1: 27 | X1: 28 | Y1: 29 | Z1: 30 | AA1: 31 | AB1: 32 | AC1: 33
A2: データ№ | B2: ｱｸﾁｭｴｰﾀ型式 | C2: 最小ｽﾄﾛｰｸ | D2: 最大ｽﾄﾛｰｸ | E2: 動作種別 | F2: リンク[0] | I2: リンク[1] | L2: リンク[2] | O2: リンク[3] | R2: リンク[4] | U2: リンク[5] | X2: リンク[6] | AA2: リンク[7]
A3: 0 | C3: ㎜ | D3: ㎜ | E3: 1/0:回/直 | F3: ﾘｰﾄﾞ | G3: ｽﾄﾛｰｸ | H3: 搬送負荷 | I3: ﾘｰﾄﾞ | J3: ｽﾄﾛｰｸ | K3: 搬送負荷 | L3: ﾘｰﾄﾞ | M3: ｽﾄﾛｰｸ | N3: 搬送負荷 | O3: ﾘｰﾄﾞ | P3: ｽﾄﾛｰｸ | Q3: 搬送負荷 | R3: ﾘｰﾄﾞ | S3: ｽﾄﾛｰｸ | T3: 搬送負荷 | U3: ﾘｰﾄﾞ | V3: ｽﾄﾛｰｸ | W3: 搬送負荷 | X3: ﾘｰﾄﾞ | Y3: ｽﾄﾛｰｸ | Z3: 搬送負荷 | AA3: ﾘｰﾄﾞ | AB3: ｽﾄﾛｰｸ | AC3: 搬送負荷
A4: 1 | B4: EC-S6L | C4: 50 | D4: 400 | E4: 0 | F4: 1 | G4: 1 | H4: 1 | I4: -1 | J4: -1 | K4: -1 | L4: -1 | M4: -1 | N4: -1 | O4: -1 | P4: -1 | Q4: -1 | R4: -1 | S4: -1 | T4: -1 | U4: -1 | V4: -1 | W4: -1 | X4: -1 | Y4: -1 | Z4: -1 | AA4: -1 | AB4: -1 | AC4: -1
A5: 2 | B5: EC-S6M | C5: 50 | D5: 400 | E5: 0 | F5: 2 | G5: 5 | H5: 27 | I5: -1 | J5: -1 | K5: -1 | L5: -1 | M5: -1 | N5: -1 | O5: -1 | P5: -1 | Q5: -1 | R5: -1 | S5: -1 | T5: -1 | U5: -1 | V5: -1 | W5: -1 | X5: -1 | Y5: -1 | Z5: -1 | AA5: -1 | AB5: -1 | AC5: -1
A6: 3 | B6: EC-S6H | C6: 50 | D6: 400 | E6: 0 | F6: 3 | G6: 9 | H6: 53 | I6: -1 | J6: -1 | K6: -1 | L6: -1 | M6: -1 | N6: -1 | O6: -1 | P6: -1 | Q6: -1 | R6: -1 | S6: -1 | T6: -1 | U6: -1 | V6: -1 | W6: -1 | X6: -1 | Y6: -1 | Z6: -1 | AA6: -1 | AB6: -1 | AC6: -1
A7: 4 | B7: EC-S6S | C7: 50 | D7: 400 | E7: 0 | F7: 4 | G7: 13 | H7: 72 | I7: -1 | J7: -1 | K7: -1 | L7: -1 | M7: -1 | N7: -1 | O7: -1 | P7: -1 | Q7: -1 | R7: -1 | S7: -1 | T7: -1 | U7: -1 | V7: -1 | W7: -1 | X7: -1 | Y7: -1 | Z7: -1 | AA7: -1 | AB7: -1 | AC7: -1
A8: 5 | B8: EC-S7L | C8: 50 | D8: 500 | E8: 0 | F8: 5 | G8: 16 | H8: 81 | I8: -1 | J8: -1 | K8: -1 | L8: -1 | M8: -1 | N8: -1 | O8: -1 | P8: -1 | Q8: -1 | R8: -1 | S8: -1 | T8: -1 | U8: -1 | V8: -1 | W8: -1 | X8: -1 | Y8: -1 | Z8: -1 | AA8: -1 | AB8: -1 | AC8: -1
A9: 6 | B9: EC-S7M | C9: 50 | D9: 500 | E9: 0 | F9: 6 | G9: 20 | H9: 130 | I9: -1 | J9: -1 | K9: -1 | L9: -1 | M9: -1 | N9: -1 | O9: -1 | P9: -1 | Q9: -1 | R9: -1 | S9: -1 | T9: -1 | U9: -1 | V9: -1 | W9: -1 | X9: -1 | Y9: -1 | Z9: -1 | AA9: -1 | AB9: -1 | AC9: -1
A10: 7 | B10: EC-S7H | C10: 50 | D10: 500 | E10: 0 | F10: 7 | G10: 24 | H10: 180 | I10: -1 | J10: -1 | K10: -1 | L10: -1 | M10: -1 | N10: -1 | O10: -1 | P10: -1 | Q10: -1 | R10: -1 | S10: -1 | T10: -1 | U10: -1 | V10: -1 | W10: -1 | X10: -1 | Y10: -1 | Z10: -1 | AA10: -1 | AB10: -1 | AC10: -1
A11: 8 | B11: EC-S7S | C11: 50 | D11: 500 | E11: 0 | F11: 8 | G11: 28 | H11: 223 | I11: -1 | J11: -1 | K11: -1 | L11: -1 | M11: -1 | N11: -1 | O11: -1 | P11: -1 | Q11: -1 | R11: -1 | S11: -1 | T11: -1 | U11: -1 | V11: -1 | W11: -1 | X11: -1 | Y11: -1 | Z11: -1 | AA11: -1 | AB11: -1 | AC11: -1
A12: 9 | B12: EC-R6L | C12: 50 | D12: 300 | E12: 0 | F12: 9 | G12: 32 | H12: 245 | I12: -1 | J12: -1 | K12: -1 | L12: -1 | M12: -1 | N12: -1 | O12: -1 | P12: -1 | Q12: -1 | R12: -1 | S12: -1 | T12: -1 | U12: -1 | V12: -1 | W12: -1 | X12: -1 | Y12: -1 | Z12: -1 | AA12: -1 | AB12: -1 | AC12: -1
A13: 10 | B13: EC-R6M | C13: 50 | D13: 300 | E13: 0 | F13: 10 | G13: 33 | H13: 256 | I13: -1 | J13: -1 | K13: -1 | L13: -1 | M13: -1 | N13: -1 | O13: -1 | P13: -1 | Q13: -1 | R13: -1 | S13: -1 | T13: -1 | U13: -1 | V13: -1 | W13: -1 | X13: -1 | Y13: -1 | Z13: -1 | AA13: -1 | AB13: -1 | AC13: -1
A14: 11 | B14: EC-R6H | C14: 50 | D14: 300 | E14: 0 | F14: 11 | G14: 34 | H14: 299 | I14: -1 | J14: -1 | K14: -1 | L14: -1 | M14: -1 | N14: -1 | O14: -1 | P14: -1 | Q14: -1 | R14: -1 | S14: -1 | T14: -1 | U14: -1 | V14: -1 | W14: -1 | X14: -1 | Y14: -1 | Z14: -1 | AA14: -1 | AB14: -1 | AC14: -1
A15: 12 | B15: EC-R6S | C15: 50 | D15: 300 | E15: 0 | F15: 12 | G15: 35 | H15: 327 | I15: -1 | J15: -1 | K15: -1 | L15: -1 | M15: -1 | N15: -1 | O15: -1 | P15: -1 | Q15: -1 | R15: -1 | S15: -1 | T15: -1 | U15: -1 | V15: -1 | W15: -1 | X15: -1 | Y15: -1 | Z15: -1 | AA15: -1 | AB15: -1 | AC15: -1
A16: 13 | B16: EC-R7L | C16: 50 | D16: 300 | E16: 0 | F16: 13 | G16: 36 | H16: 335 | I16: -1 | J16: -1 | K16: -1 | L16: -1 | M16: -1 | N16: -1 | O16: -1 | P16: -1 | Q16: -1 | R16: -1 | S16: -1 | T16: -1 | U16: -1 | V16: -1 | W16: -1 | X16: -1 | Y16: -1 | Z16: -1 | AA16: -1 | AB16: -1 | AC16: -1
A17: 14 | B17: EC-R7M | C17: 50 | D17: 300 | E17: 0 | F17: 14 | G17: 37 | H17: 394 | I17: -1 | J17: -1 | K17: -1 | L17: -1 | M17: -1 | N17: -1 | O17: -1 | P17: -1 | Q17: -1 | R17: -1 | S17: -1 | T17: -1 | U17: -1 | V17: -1 | W17: -1 | X17: -1 | Y17: -1 | Z17: -1 | AA17: -1 | AB17: -1 | AC17: -1
A18: 15 | B18: EC-R7H | C18: 50 | D18: 300 | E18: 0 | F18: 15 | G18: 38 | H18: 455 | I18: -1 | J18: -1 | K18: -1 | L18: -1 | M18: -1 | N18: -1 | O18: -1 | P18: -1 | Q18: -1 | R18: -1 | S18: -1 | T18: -1 | U18: -1 | V18: -1 | W18: -1 | X18: -1 | Y18: -1 | Z18: -1 | AA18: -1 | AB18: -1 | AC18: -1
A19: 16 | B19: EC-R7S | C19: 50 | D19: 300 | E19: 0 | F19: 16 | G19: 39 | H19: 500 | I19: -1 | J19: -1 | K19: -1 | L19: -1 | M19: -1 | N19: -1 | O19: -1 | P19: -1 | Q19: -1 | R19: -1 | S19: -1 | T19: -1 | U19: -1 | V19: -1 | W19: -1 | X19: -1 | Y19: -1 | Z19: -1 | AA19: -1 | AB19: -1 | AC19: -1
A20: 17 | B20: EC-RP4L(旧) | C20: 30 | D20: 50 | E20: 0 | F20: 17 | G20: 40 | H20: 522 | I20: -1 | J20: -1 | K20: -1 | L20: -1 | M20: -1 | N20: -1 | O20: -1 | P20: -1 | Q20: -1 | R20: -1 | S20: -1 | T20: -1 | U20: -1 | V20: -1 | W20: -1 | X20: -1 | Y20: -1 | Z20: -1 | AA20: -1 | AB20: -1 | AC20: -1 | AD20: Ver.1.2 型式変更
A21: 18 | B21: EC-RP4M(旧) | C21: 30 | D21: 50 | E21: 0 | F21: 18 | G21: 41 | H21: 524 | I21: -1 | J21: -1 | K21: -1 | L21: -1 | M21: -1 | N21: -1 | O21: -1 | P21: -1 | Q21: -1 | R21: -1 | S21: -1 | T21: -1 | U21: -1 | V21: -1 | W21: -1 | X21: -1 | Y21: -1 | Z21: -1 | AA21: -1 | AB21: -1 | AC21: -1 | AD21: Ver.1.2 型式変更
A22: 19 | B22: EC-RP4H(旧) | C22: 30 | D22: 50 | E22: 0 | F22: 19 | G22: 42 | H22: 526 | I22: -1 | J22: -1 | K22: -1 | L22: -1 | M22: -1 | N22: -1 | O22: -1 | P22: -1 | Q22: -1 | R22: -1 | S22: -1 | T22: -1 | U22: -1 | V22: -1 | W22: -1 | X22: -1 | Y22: -1 | Z22: -1 | AA22: -1 | AB22: -1 | AC22: -1 | AD22: Ver.1.2 型式変更
A23: 20 | B23: EC-GS4L(旧) | C23: 30 | D23: 50 | E23: 0 | F23: 20 | G23: 43 | H23: 528 | I23: -1 | J23: -1 | K23: -1 | L23: -1 | M23: -1 | N23: -1 | O23: -1 | P23: -1 | Q23: -1 | R23: -1 | S23: -1 | T23: -1 | U23: -1 | V23: -1 | W23: -1 | X23: -1 | Y23: -1 | Z23: -1 | AA23: -1 | AB23: -1 | AC23: -1 | AD23: Ver.1.2 型式変更
A24: 21 | B24: EC-GS4M(旧) | C24: 30 | D24: 50 | E24: 0 | F24: 21 | G24: 44 | H24: 530 | I24: -1 | J24: -1 | K24: -1 | L24: -1 | M24: -1 | N24: -1 | O24: -1 | P24: -1 | Q24: -1 | R24: -1 | S24: -1 | T24: -1 | U24: -1 | V24: -1 | W24: -1 | X24: -1 | Y24: -1 | Z24: -1 | AA24: -1 | AB24: -1 | AC24: -1 | AD24: Ver.1.2 型式変更
A25: 22 | B25: EC-GS4H(旧) | C25: 30 | D25: 50 | E25: 0 | F25: 22 | G25: 45 | H25: 532 | I25: -1 | J25: -1 | K25: -1 | L25: -1 | M25: -1 | N25: -1 | O25: -1 | P25: -1 | Q25: -1 | R25: -1 | S25: -1 | T25: -1 | U25: -1 | V25: -1 | W25: -1 | X25: -1 | Y25: -1 | Z25: -1 | AA25: -1 | AB25: -1 | AC25: -1 | AD25: Ver.1.2 型式変更
A26: 23 | B26: EC-GD4L(旧) | C26: 30 | D26: 50 | E26: 0 | F26: 23 | G26: 46 | H26: 534 | I26: -1 | J26: -1 | K26: -1 | L26: -1 | M26: -1 | N26: -1 | O26: -1 | P26: -1 | Q26: -1 | R26: -1 | S26: -1 | T26: -1 | U26: -1 | V26: -1 | W26: -1 | X26: -1 | Y26: -1 | Z26: -1 | AA26: -1 | AB26: -1 | AC26: -1 | AD26: Ver.1.2 型式変更
A27: 24 | B27: EC-GD4M(旧) | C27: 30 | D27: 50 | E27: 0 | F27: 24 | G27: 47 | H27: 536 | I27: -1 | J27: -1 | K27: -1 | L27: -1 | M27: -1 | N27: -1 | O27: -1 | P27: -1 | Q27: -1 | R27: -1 | S27: -1 | T27: -1 | U27: -1 | V27: -1 | W27: -1 | X27: -1 | Y27: -1 | Z27: -1 | AA27: -1 | AB27: -1 | AC27: -1 | AD27: Ver.1.2 型式変更
A28: 25 | B28: EC-GD4H(旧) | C28: 30 | D28: 50 | E28: 0 | F28: 25 | G28: 48 | H28: 538 | I28: -1 | J28: -1 | K28: -1 | L28: -1 | M28: -1 | N28: -1 | O28: -1 | P28: -1 | Q28: -1 | R28: -1 | S28: -1 | T28: -1 | U28: -1 | V28: -1 | W28: -1 | X28: -1 | Y28: -1 | Z28: -1 | AA28: -1 | AB28: -1 | AC28: -1 | AD28: Ver.1.2 型式変更
A29: 26 | B29: EC-TC4L(旧) | C29: 30 | D29: 50 | E29: 0 | F29: 26 | G29: 49 | H29: 540 | I29: -1 | J29: -1 | K29: -1 | L29: -1 | M29: -1 | N29: -1 | O29: -1 | P29: -1 | Q29: -1 | R29: -1 | S29: -1 | T29: -1 | U29: -1 | V29: -1 | W29: -1 | X29: -1 | Y29: -1 | Z29: -1 | AA29: -1 | AB29: -1 | AC29: -1 | AD29: Ver.1.2 型式変更
A30: 27 | B30: EC-TC4M(旧) | C30: 30 | D30: 50 | E30: 0 | F30: 27 | G30: 50 | H30: 542 | I30: -1 | J30: -1 | K30: -1 | L30: -1 | M30: -1 | N30: -1 | O30: -1 | P30: -1 | Q30: -1 | R30: -1 | S30: -1 | T30: -1 | U30: -1 | V30: -1 | W30: -1 | X30: -1 | Y30: -1 | Z30: -1 | AA30: -1 | AB30: -1 | AC30: -1 | AD30: Ver.1.2 型式変更
A31: 28 | B31: EC-TC4H(旧) | C31: 30 | D31: 50 | E31: 0 | F31: 28 | G31: 51 | H31: 544 | I31: -1 | J31: -1 | K31: -1 | L31: -1 | M31: -1 | N31: -1 | O31: -1 | P31: -1 | Q31: -1 | R31: -1 | S31: -1 | T31: -1 | U31: -1 | V31: -1 | W31: -1 | X31: -1 | Y31: -1 | Z31: -1 | AA31: -1 | AB31: -1 | AC31: -1 | AD31: Ver.1.2 型式変更
A32: 29 | B32: EC-TW4L(旧) | C32: 30 | D32: 50 | E32: 0 | F32: 29 | G32: 52 | H32: 546 | I32: -1 | J32: -1 | K32: -1 | L32: -1 | M32: -1 | N32: -1 | O32: -1 | P32: -1 | Q32: -1 | R32: -1 | S32: -1 | T32: -1 | U32: -1 | V32: -1 | W32: -1 | X32: -1 | Y32: -1 | Z32: -1 | AA32: -1 | AB32: -1 | AC32: -1 | AD32: Ver.1.2 型式変更
A33: 30 | B33: EC-TW4M(旧) | C33: 30 | D33: 50 | E33: 0 | F33: 30 | G33: 53 | H33: 548 | I33: -1 | J33: -1 | K33: -1 | L33: -1 | M33: -1 | N33: -1 | O33: -1 | P33: -1 | Q33: -1 | R33: -1 | S33: -1 | T33: -1 | U33: -1 | V33: -1 | W33: -1 | X33: -1 | Y33: -1 | Z33: -1 | AA33: -1 | AB33: -1 | AC33: -1 | AD33: Ver.1.2 型式変更
A34: 31 | B34: EC-TW4H(旧) | C34: 30 | D34: 50 | E34: 0 | F34: 31 | G34: 54 | H34: 550 | I34: -1 | J34: -1 | K34: -1 | L34: -1 | M34: -1 | N34: -1 | O34: -1 | P34: -1 | Q34: -1 | R34: -1 | S34: -1 | T34: -1 | U34: -1 | V34: -1 | W34: -1 | X34: -1 | Y34: -1 | Z34: -1 | AA34: -1 | AB34: -1 | AC34: -1 | AD34: Ver.1.2 型式変更
A35: 32 | B35: EC-RR6L | C35: 65 | D35: 315 | E35: 0 | F35: 32 | G35: 55 | H35: 245 | I35: -1 | J35: -1 | K35: -1 | L35: -1 | M35: -1 | N35: -1 | O35: -1 | P35: -1 | Q35: -1 | R35: -1 | S35: -1 | T35: -1 | U35: -1 | V35: -1 | W35: -1 | X35: -1 | Y35: -1 | Z35: -1 | AA35: -1 | AB35: -1 | AC35: -1
A36: 33 | B36: EC-RR6M | C36: 65 | D36: 315 | E36: 0 | F36: 33 | G36: 56 | H36: 256 | I36: -1 | J36: -1 | K36: -1 | L36: -1 | M36: -1 | N36: -1 | O36: -1 | P36: -1 | Q36: -1 | R36: -1 | S36: -1 | T36: -1 | U36: -1 | V36: -1 | W36: -1 | X36: -1 | Y36: -1 | Z36: -1 | AA36: -1 | AB36: -1 | AC36: -1
A37: 34 | B37: EC-RR6H | C37: 65 | D37: 315 | E37: 0 | F37: 34 | G37: 57 | H37: 299 | I37: -1 | J37: -1 | K37: -1 | L37: -1 | M37: -1 | N37: -1 | O37: -1 | P37: -1 | Q37: -1 | R37: -1 | S37: -1 | T37: -1 | U37: -1 | V37: -1 | W37: -1 | X37: -1 | Y37: -1 | Z37: -1 | AA37: -1 | AB37: -1 | AC37: -1
A38: 35 | B38: EC-RR6S | C38: 65 | D38: 315 | E38: 0 | F38: 35 | G38: 58 | H38: 327 | I38: -1 | J38: -1 | K38: -1 | L38: -1 | M38: -1 | N38: -1 | O38: -1 | P38: -1 | Q38: -1 | R38: -1 | S38: -1 | T38: -1 | U38: -1 | V38: -1 | W38: -1 | X38: -1 | Y38: -1 | Z38: -1 | AA38: -1 | AB38: -1 | AC38: -1
A39: 36 | B39: EC-RR7L | C39: 65 | D39: 315 | E39: 0 | F39: 36 | G39: 59 | H39: 552 | I39: -1 | J39: -1 | K39: -1 | L39: -1 | M39: -1 | N39: -1 | O39: -1 | P39: -1 | Q39: -1 | R39: -1 | S39: -1 | T39: -1 | U39: -1 | V39: -1 | W39: -1 | X39: -1 | Y39: -1 | Z39: -1 | AA39: -1 | AB39: -1 | AC39: -1
A40: 37 | B40: EC-RR7M | C40: 65 | D40: 315 | E40: 0 | F40: 37 | G40: 60 | H40: 611 | I40: -1 | J40: -1 | K40: -1 | L40: -1 | M40: -1 | N40: -1 | O40: -1 | P40: -1 | Q40: -1 | R40: -1 | S40: -1 | T40: -1 | U40: -1 | V40: -1 | W40: -1 | X40: -1 | Y40: -1 | Z40: -1 | AA40: -1 | AB40: -1 | AC40: -1
A41: 38 | B41: EC-RR7H | C41: 65 | D41: 315 | E41: 0 | F41: 38 | G41: 61 | H41: 672 | I41: -1 | J41: -1 | K41: -1 | L41: -1 | M41: -1 | N41: -1 | O41: -1 | P41: -1 | Q41: -1 | R41: -1 | S41: -1 | T41: -1 | U41: -1 | V41: -1 | W41: -1 | X41: -1 | Y41: -1 | Z41: -1 | AA41: -1 | AB41: -1 | AC41: -1
A42: 39 | B42: EC-RR7S | C42: 65 | D42: 315 | E42: 0 | F42: 39 | G42: 62 | H42: 717 | I42: -1 | J42: -1 | K42: -1 | L42: -1 | M42: -1 | N42: -1 | O42: -1 | P42: -1 | Q42: -1 | R42: -1 | S42: -1 | T42: -1 | U42: -1 | V42: -1 | W42: -1 | X42: -1 | Y42: -1 | Z42: -1 | AA42: -1 | AB42: -1 | AC42: -1
A43: 40 | B43: EC-R6LW | C43: 50 | D43: 300 | E43: 0 | F43: 40 | G43: 63 | H43: 245 | I43: -1 | J43: -1 | K43: -1 | L43: -1 | M43: -1 | N43: -1 | O43: -1 | P43: -1 | Q43: -1 | R43: -1 | S43: -1 | T43: -1 | U43: -1 | V43: -1 | W43: -1 | X43: -1 | Y43: -1 | Z43: -1 | AA43: -1 | AB43: -1 | AC43: -1
A44: 41 | B44: EC-R6MW | C44: 50 | D44: 300 | E44: 0 | F44: 41 | G44: 64 | H44: 256 | I44: -1 | J44: -1 | K44: -1 | L44: -1 | M44: -1 | N44: -1 | O44: -1 | P44: -1 | Q44: -1 | R44: -1 | S44: -1 | T44: -1 | U44: -1 | V44: -1 | W44: -1 | X44: -1 | Y44: -1 | Z44: -1 | AA44: -1 | AB44: -1 | AC44: -1
A45: 42 | B45: EC-R6HW | C45: 50 | D45: 300 | E45: 0 | F45: 42 | G45: 65 | H45: 299 | I45: -1 | J45: -1 | K45: -1 | L45: -1 | M45: -1 | N45: -1 | O45: -1 | P45: -1 | Q45: -1 | R45: -1 | S45: -1 | T45: -1 | U45: -1 | V45: -1 | W45: -1 | X45: -1 | Y45: -1 | Z45: -1 | AA45: -1 | AB45: -1 | AC45: -1
A46: 43 | B46: EC-R6SW | C46: 50 | D46: 300 | E46: 0 | F46: 43 | G46: 66 | H46: 327 | I46: -1 | J46: -1 | K46: -1 | L46: -1 | M46: -1 | N46: -1 | O46: -1 | P46: -1 | Q46: -1 | R46: -1 | S46: -1 | T46: -1 | U46: -1 | V46: -1 | W46: -1 | X46: -1 | Y46: -1 | Z46: -1 | AA46: -1 | AB46: -1 | AC46: -1
A47: 44 | B47: EC-R7LW | C47: 50 | D47: 300 | E47: 0 | F47: 44 | G47: 67 | H47: 335 | I47: -1 | J47: -1 | K47: -1 | L47: -1 | M47: -1 | N47: -1 | O47: -1 | P47: -1 | Q47: -1 | R47: -1 | S47: -1 | T47: -1 | U47: -1 | V47: -1 | W47: -1 | X47: -1 | Y47: -1 | Z47: -1 | AA47: -1 | AB47: -1 | AC47: -1
A48: 45 | B48: EC-R7MW | C48: 50 | D48: 300 | E48: 0 | F48: 45 | G48: 68 | H48: 394 | I48: -1 | J48: -1 | K48: -1 | L48: -1 | M48: -1 | N48: -1 | O48: -1 | P48: -1 | Q48: -1 | R48: -1 | S48: -1 | T48: -1 | U48: -1 | V48: -1 | W48: -1 | X48: -1 | Y48: -1 | Z48: -1 | AA48: -1 | AB48: -1 | AC48: -1
A49: 46 | B49: EC-R7HW | C49: 50 | D49: 300 | E49: 0 | F49: 46 | G49: 69 | H49: 455 | I49: -1 | J49: -1 | K49: -1 | L49: -1 | M49: -1 | N49: -1 | O49: -1 | P49: -1 | Q49: -1 | R49: -1 | S49: -1 | T49: -1 | U49: -1 | V49: -1 | W49: -1 | X49: -1 | Y49: -1 | Z49: -1 | AA49: -1 | AB49: -1 | AC49: -1
A50: 47 | B50: EC-R7SW | C50: 50 | D50: 300 | E50: 0 | F50: 47 | G50: 70 | H50: 500 | I50: -1 | J50: -1 | K50: -1 | L50: -1 | M50: -1 | N50: -1 | O50: -1 | P50: -1 | Q50: -1 | R50: -1 | S50: -1 | T50: -1 | U50: -1 | V50: -1 | W50: -1 | X50: -1 | Y50: -1 | Z50: -1 | AA50: -1 | AB50: -1 | AC50: -1
A51: 48 | B51: EC-S6LH | C51: 50 | D51: 400 | E51: 0 | F51: 48 | G51: 71 | H51: 1 | I51: -1 | J51: -1 | K51: -1 | L51: -1 | M51: -1 | N51: -1 | O51: -1 | P51: -1 | Q51: -1 | R51: -1 | S51: -1 | T51: -1 | U51: -1 | V51: -1 | W51: -1 | X51: -1 | Y51: -1 | Z51: -1 | AA51: -1 | AB51: -1 | AC51: -1
A52: 49 | B52: EC-S6MH | C52: 50 | D52: 400 | E52: 0 | F52: 49 | G52: 75 | H52: 27 | I52: -1 | J52: -1 | K52: -1 | L52: -1 | M52: -1 | N52: -1 | O52: -1 | P52: -1 | Q52: -1 | R52: -1 | S52: -1 | T52: -1 | U52: -1 | V52: -1 | W52: -1 | X52: -1 | Y52: -1 | Z52: -1 | AA52: -1 | AB52: -1 | AC52: -1
A53: 50 | B53: EC-S6HH | C53: 50 | D53: 400 | E53: 0 | F53: 50 | G53: 79 | H53: 53 | I53: -1 | J53: -1 | K53: -1 | L53: -1 | M53: -1 | N53: -1 | O53: -1 | P53: -1 | Q53: -1 | R53: -1 | S53: -1 | T53: -1 | U53: -1 | V53: -1 | W53: -1 | X53: -1 | Y53: -1 | Z53: -1 | AA53: -1 | AB53: -1 | AC53: -1
A54: 51 | B54: EC-S6SH | C54: 50 | D54: 400 | E54: 0 | F54: 51 | G54: 83 | H54: 72 | I54: -1 | J54: -1 | K54: -1 | L54: -1 | M54: -1 | N54: -1 | O54: -1 | P54: -1 | Q54: -1 | R54: -1 | S54: -1 | T54: -1 | U54: -1 | V54: -1 | W54: -1 | X54: -1 | Y54: -1 | Z54: -1 | AA54: -1 | AB54: -1 | AC54: -1
A55: 52 | B55: EC-S7LH | C55: 50 | D55: 500 | E55: 0 | F55: 52 | G55: 86 | H55: 81 | I55: -1 | J55: -1 | K55: -1 | L55: -1 | M55: -1 | N55: -1 | O55: -1 | P55: -1 | Q55: -1 | R55: -1 | S55: -1 | T55: -1 | U55: -1 | V55: -1 | W55: -1 | X55: -1 | Y55: -1 | Z55: -1 | AA55: -1 | AB55: -1 | AC55: -1
A56: 53 | B56: EC-S7MH | C56: 50 | D56: 500 | E56: 0 | F56: 53 | G56: 90 | H56: 130 | I56: -1 | J56: -1 | K56: -1 | L56: -1 | M56: -1 | N56: -1 | O56: -1 | P56: -1 | Q56: -1 | R56: -1 | S56: -1 | T56: -1 | U56: -1 | V56: -1 | W56: -1 | X56: -1 | Y56: -1 | Z56: -1 | AA56: -1 | AB56: -1 | AC56: -1
A57: 54 | B57: EC-S7HH | C57: 50 | D57: 500 | E57: 0 | F57: 54 | G57: 94 | H57: 180 | I57: -1 | J57: -1 | K57: -1 | L57: -1 | M57: -1 | N57: -1 | O57: -1 | P57: -1 | Q57: -1 | R57: -1 | S57: -1 | T57: -1 | U57: -1 | V57: -1 | W57: -1 | X57: -1 | Y57: -1 | Z57: -1 | AA57: -1 | AB57: -1 | AC57: -1
A58: 55 | B58: EC-S7SH | C58: 50 | D58: 500 | E58: 0 | F58: 55 | G58: 98 | H58: 223 | I58: -1 | J58: -1 | K58: -1 | L58: -1 | M58: -1 | N58: -1 | O58: -1 | P58: -1 | Q58: -1 | R58: -1 | S58: -1 | T58: -1 | U58: -1 | V58: -1 | W58: -1 | X58: -1 | Y58: -1 | Z58: -1 | AA58: -1 | AB58: -1 | AC58: -1
A59: 56 | B59: EC-RR6LH | C59: 50 | D59: 300 | E59: 0 | F59: 56 | G59: 102 | H59: 739 | I59: -1 | J59: -1 | K59: -1 | L59: -1 | M59: -1 | N59: -1 | O59: -1 | P59: -1 | Q59: -1 | R59: -1 | S59: -1 | T59: -1 | U59: -1 | V59: -1 | W59: -1 | X59: -1 | Y59: -1 | Z59: -1 | AA59: -1 | AB59: -1 | AC59: -1
A60: 57 | B60: EC-RR6MH | C60: 50 | D60: 300 | E60: 0 | F60: 57 | G60: 104 | H60: 757 | I60: -1 | J60: -1 | K60: -1 | L60: -1 | M60: -1 | N60: -1 | O60: -1 | P60: -1 | Q60: -1 | R60: -1 | S60: -1 | T60: -1 | U60: -1 | V60: -1 | W60: -1 | X60: -1 | Y60: -1 | Z60: -1 | AA60: -1 | AB60: -1 | AC60: -1
A61: 58 | B61: EC-RR6HH | C61: 50 | D61: 300 | E61: 0 | F61: 58 | G61: 106 | H61: 800 | I61: -1 | J61: -1 | K61: -1 | L61: -1 | M61: -1 | N61: -1 | O61: -1 | P61: -1 | Q61: -1 | R61: -1 | S61: -1 | T61: -1 | U61: -1 | V61: -1 | W61: -1 | X61: -1 | Y61: -1 | Z61: -1 | AA61: -1 | AB61: -1 | AC61: -1
A62: 59 | B62: EC-RR6SH | C62: 50 | D62: 300 | E62: 0 | F62: 59 | G62: 108 | H62: 828 | I62: -1 | J62: -1 | K62: -1 | L62: -1 | M62: -1 | N62: -1 | O62: -1 | P62: -1 | Q62: -1 | R62: -1 | S62: -1 | T62: -1 | U62: -1 | V62: -1 | W62: -1 | X62: -1 | Y62: -1 | Z62: -1 | AA62: -1 | AB62: -1 | AC62: -1
A63: 60 | B63: EC-RR7LH | C63: 50 | D63: 300 | E63: 0 | F63: 60 | G63: 109 | H63: 836 | I63: -1 | J63: -1 | K63: -1 | L63: -1 | M63: -1 | N63: -1 | O63: -1 | P63: -1 | Q63: -1 | R63: -1 | S63: -1 | T63: -1 | U63: -1 | V63: -1 | W63: -1 | X63: -1 | Y63: -1 | Z63: -1 | AA63: -1 | AB63: -1 | AC63: -1
A64: 61 | B64: EC-RR7MH | C64: 50 | D64: 300 | E64: 0 | F64: 61 | G64: 110 | H64: 902 | I64: -1 | J64: -1 | K64: -1 | L64: -1 | M64: -1 | N64: -1 | O64: -1 | P64: -1 | Q64: -1 | R64: -1 | S64: -1 | T64: -1 | U64: -1 | V64: -1 | W64: -1 | X64: -1 | Y64: -1 | Z64: -1 | AA64: -1 | AB64: -1 | AC64: -1
A65: 62 | B65: EC-RR7HH | C65: 50 | D65: 300 | E65: 0 | F65: 62 | G65: 111 | H65: 963 | I65: -1 | J65: -1 | K65: -1 | L65: -1 | M65: -1 | N65: -1 | O65: -1 | P65: -1 | Q65: -1 | R65: -1 | S65: -1 | T65: -1 | U65: -1 | V65: -1 | W65: -1 | X65: -1 | Y65: -1 | Z65: -1 | AA65: -1 | AB65: -1 | AC65: -1
A66: 63 | B66: EC-RR7SH | C66: 50 | D66: 300 | E66: 0 | F66: 63 | G66: 112 | H66: 1008 | I66: -1 | J66: -1 | K66: -1 | L66: -1 | M66: -1 | N66: -1 | O66: -1 | P66: -1 | Q66: -1 | R66: -1 | S66: -1 | T66: -1 | U66: -1 | V66: -1 | W66: -1 | X66: -1 | Y66: -1 | Z66: -1 | AA66: -1 | AB66: -1 | AC66: -1
A67: 64 | B67: EC-S6LAH | C67: 50 | D67: 800 | E67: 0 | F67: 64 | G67: 113 | H67: 1030 | I67: -1 | J67: -1 | K67: -1 | L67: -1 | M67: -1 | N67: -1 | O67: -1 | P67: -1 | Q67: -1 | R67: -1 | S67: -1 | T67: -1 | U67: -1 | V67: -1 | W67: -1 | X67: -1 | Y67: -1 | Z67: -1 | AA67: -1 | AB67: -1 | AC67: -1
A68: 65 | B68: EC-S6MAH | C68: 50 | D68: 800 | E68: 0 | F68: 65 | G68: 120 | H68: 1056 | I68: -1 | J68: -1 | K68: -1 | L68: -1 | M68: -1 | N68: -1 | O68: -1 | P68: -1 | Q68: -1 | R68: -1 | S68: -1 | T68: -1 | U68: -1 | V68: -1 | W68: -1 | X68: -1 | Y68: -1 | Z68: -1 | AA68: -1 | AB68: -1 | AC68: -1
A69: 66 | B69: EC-S6HAH | C69: 50 | D69: 800 | E69: 0 | F69: 66 | G69: 127 | H69: 1082 | I69: -1 | J69: -1 | K69: -1 | L69: -1 | M69: -1 | N69: -1 | O69: -1 | P69: -1 | Q69: -1 | R69: -1 | S69: -1 | T69: -1 | U69: -1 | V69: -1 | W69: -1 | X69: -1 | Y69: -1 | Z69: -1 | AA69: -1 | AB69: -1 | AC69: -1
A70: 67 | B70: EC-S6SAH | C70: 50 | D70: 800 | E70: 0 | F70: 67 | G70: 134 | H70: 1101 | I70: -1 | J70: -1 | K70: -1 | L70: -1 | M70: -1 | N70: -1 | O70: -1 | P70: -1 | Q70: -1 | R70: -1 | S70: -1 | T70: -1 | U70: -1 | V70: -1 | W70: -1 | X70: -1 | Y70: -1 | Z70: -1 | AA70: -1 | AB70: -1 | AC70: -1
A71: 68 | B71: EC-S7LAH | C71: 50 | D71: 800 | E71: 0 | F71: 68 | G71: 138 | H71: 1110 | I71: -1 | J71: -1 | K71: -1 | L71: -1 | M71: -1 | N71: -1 | O71: -1 | P71: -1 | Q71: -1 | R71: -1 | S71: -1 | T71: -1 | U71: -1 | V71: -1 | W71: -1 | X71: -1 | Y71: -1 | Z71: -1 | AA71: -1 | AB71: -1 | AC71: -1
A72: 69 | B72: EC-S7MAH | C72: 50 | D72: 800 | E72: 0 | F72: 69 | G72: 141 | H72: 1159 | I72: -1 | J72: -1 | K72: -1 | L72: -1 | M72: -1 | N72: -1 | O72: -1 | P72: -1 | Q72: -1 | R72: -1 | S72: -1 | T72: -1 | U72: -1 | V72: -1 | W72: -1 | X72: -1 | Y72: -1 | Z72: -1 | AA72: -1 | AB72: -1 | AC72: -1
A73: 70 | B73: EC-S7HAH | C73: 50 | D73: 800 | E73: 0 | F73: 70 | G73: 144 | H73: 1209 | I73: -1 | J73: -1 | K73: -1 | L73: -1 | M73: -1 | N73: -1 | O73: -1 | P73: -1 | Q73: -1 | R73: -1 | S73: -1 | T73: -1 | U73: -1 | V73: -1 | W73: -1 | X73: -1 | Y73: -1 | Z73: -1 | AA73: -1 | AB73: -1 | AC73: -1
A74: 71 | B74: EC-S7SAH | C74: 50 | D74: 800 | E74: 0 | F74: 71 | G74: 148 | H74: 1252 | I74: -1 | J74: -1 | K74: -1 | L74: -1 | M74: -1 | N74: -1 | O74: -1 | P74: -1 | Q74: -1 | R74: -1 | S74: -1 | T74: -1 | U74: -1 | V74: -1 | W74: -1 | X74: -1 | Y74: -1 | Z74: -1 | AA74: -1 | AB74: -1 | AC74: -1
A75: 72 | B75: EC-RR6LAH | C75: 50 | D75: 550 | E75: 0 | F75: 72 | G75: 771 | H75: 5487 | I75: -1 | J75: -1 | K75: -1 | L75: -1 | M75: -1 | N75: -1 | O75: -1 | P75: -1 | Q75: -1 | R75: -1 | S75: -1 | T75: -1 | U75: -1 | V75: -1 | W75: -1 | X75: -1 | Y75: -1 | Z75: -1 | AA75: -1 | AB75: -1 | AC75: -1
A76: 73 | B76: EC-RR6MAH | C76: 50 | D76: 550 | E76: 0 | F76: 73 | G76: 772 | H76: 5505 | I76: -1 | J76: -1 | K76: -1 | L76: -1 | M76: -1 | N76: -1 | O76: -1 | P76: -1 | Q76: -1 | R76: -1 | S76: -1 | T76: -1 | U76: -1 | V76: -1 | W76: -1 | X76: -1 | Y76: -1 | Z76: -1 | AA76: -1 | AB76: -1 | AC76: -1
A77: 74 | B77: EC-RR6HAH | C77: 50 | D77: 550 | E77: 0 | F77: 74 | G77: 773 | H77: 5548 | I77: -1 | J77: -1 | K77: -1 | L77: -1 | M77: -1 | N77: -1 | O77: -1 | P77: -1 | Q77: -1 | R77: -1 | S77: -1 | T77: -1 | U77: -1 | V77: -1 | W77: -1 | X77: -1 | Y77: -1 | Z77: -1 | AA77: -1 | AB77: -1 | AC77: -1
A78: 75 | B78: EC-RR6SAH | C78: 50 | D78: 550 | E78: 0 | F78: 75 | G78: 774 | H78: 5576 | I78: -1 | J78: -1 | K78: -1 | L78: -1 | M78: -1 | N78: -1 | O78: -1 | P78: -1 | Q78: -1 | R78: -1 | S78: -1 | T78: -1 | U78: -1 | V78: -1 | W78: -1 | X78: -1 | Y78: -1 | Z78: -1 | AA78: -1 | AB78: -1 | AC78: -1
A79: 76 | B79: EC-RR7LAH | C79: 50 | D79: 700 | E79: 0 | F79: 76 | G79: 775 | H79: 5584 | I79: -1 | J79: -1 | K79: -1 | L79: -1 | M79: -1 | N79: -1 | O79: -1 | P79: -1 | Q79: -1 | R79: -1 | S79: -1 | T79: -1 | U79: -1 | V79: -1 | W79: -1 | X79: -1 | Y79: -1 | Z79: -1 | AA79: -1 | AB79: -1 | AC79: -1
A80: 77 | B80: EC-RR7MAH | C80: 50 | D80: 700 | E80: 0 | F80: 77 | G80: 776 | H80: 5650 | I80: -1 | J80: -1 | K80: -1 | L80: -1 | M80: -1 | N80: -1 | O80: -1 | P80: -1 | Q80: -1 | R80: -1 | S80: -1 | T80: -1 | U80: -1 | V80: -1 | W80: -1 | X80: -1 | Y80: -1 | Z80: -1 | AA80: -1 | AB80: -1 | AC80: -1
A81: 78 | B81: EC-RR7HAH | C81: 50 | D81: 700 | E81: 0 | F81: 78 | G81: 777 | H81: 5711 | I81: -1 | J81: -1 | K81: -1 | L81: -1 | M81: -1 | N81: -1 | O81: -1 | P81: -1 | Q81: -1 | R81: -1 | S81: -1 | T81: -1 | U81: -1 | V81: -1 | W81: -1 | X81: -1 | Y81: -1 | Z81: -1 | AA81: -1 | AB81: -1 | AC81: -1
A82: 79 | B82: EC-RR7SAH | C82: 50 | D82: 700 | E82: 0 | F82: 79 | G82: 779 | H82: 5756 | I82: -1 | J82: -1 | K82: -1 | L82: -1 | M82: -1 | N82: -1 | O82: -1 | P82: -1 | Q82: -1 | R82: -1 | S82: -1 | T82: -1 | U82: -1 | V82: -1 | W82: -1 | X82: -1 | Y82: -1 | Z82: -1 | AA82: -1 | AB82: -1 | AC82: -1
A83: 80 | B83: EC-S6LR | C83: 50 | D83: 400 | E83: 0 | F83: 80 | G83: 159 | H83: 1565 | I83: -1 | J83: -1 | K83: -1 | L83: -1 | M83: -1 | N83: -1 | O83: -1 | P83: -1 | Q83: -1 | R83: -1 | S83: -1 | T83: -1 | U83: -1 | V83: -1 | W83: -1 | X83: -1 | Y83: -1 | Z83: -1 | AA83: -1 | AB83: -1 | AC83: -1
A84: 81 | B84: EC-S6MR | C84: 50 | D84: 400 | E84: 0 | F84: 81 | G84: 163 | H84: 1595 | I84: -1 | J84: -1 | K84: -1 | L84: -1 | M84: -1 | N84: -1 | O84: -1 | P84: -1 | Q84: -1 | R84: -1 | S84: -1 | T84: -1 | U84: -1 | V84: -1 | W84: -1 | X84: -1 | Y84: -1 | Z84: -1 | AA84: -1 | AB84: -1 | AC84: -1
A85: 82 | B85: EC-S6HR | C85: 50 | D85: 400 | E85: 0 | F85: 82 | G85: 167 | H85: 1621 | I85: -1 | J85: -1 | K85: -1 | L85: -1 | M85: -1 | N85: -1 | O85: -1 | P85: -1 | Q85: -1 | R85: -1 | S85: -1 | T85: -1 | U85: -1 | V85: -1 | W85: -1 | X85: -1 | Y85: -1 | Z85: -1 | AA85: -1 | AB85: -1 | AC85: -1
A86: 83 | B86: EC-S6SR | C86: 50 | D86: 400 | E86: 0 | F86: 83 | G86: 171 | H86: 1638 | I86: -1 | J86: -1 | K86: -1 | L86: -1 | M86: -1 | N86: -1 | O86: -1 | P86: -1 | Q86: -1 | R86: -1 | S86: -1 | T86: -1 | U86: -1 | V86: -1 | W86: -1 | X86: -1 | Y86: -1 | Z86: -1 | AA86: -1 | AB86: -1 | AC86: -1
A87: 84 | B87: EC-S7LR | C87: 50 | D87: 500 | E87: 0 | F87: 84 | G87: 174 | H87: 1648 | I87: -1 | J87: -1 | K87: -1 | L87: -1 | M87: -1 | N87: -1 | O87: -1 | P87: -1 | Q87: -1 | R87: -1 | S87: -1 | T87: -1 | U87: -1 | V87: -1 | W87: -1 | X87: -1 | Y87: -1 | Z87: -1 | AA87: -1 | AB87: -1 | AC87: -1
A88: 85 | B88: EC-S7MR | C88: 50 | D88: 500 | E88: 0 | F88: 85 | G88: 177 | H88: 1697 | I88: -1 | J88: -1 | K88: -1 | L88: -1 | M88: -1 | N88: -1 | O88: -1 | P88: -1 | Q88: -1 | R88: -1 | S88: -1 | T88: -1 | U88: -1 | V88: -1 | W88: -1 | X88: -1 | Y88: -1 | Z88: -1 | AA88: -1 | AB88: -1 | AC88: -1
A89: 86 | B89: EC-S7HR | C89: 50 | D89: 500 | E89: 0 | F89: 86 | G89: 181 | H89: 1744 | I89: -1 | J89: -1 | K89: -1 | L89: -1 | M89: -1 | N89: -1 | O89: -1 | P89: -1 | Q89: -1 | R89: -1 | S89: -1 | T89: -1 | U89: -1 | V89: -1 | W89: -1 | X89: -1 | Y89: -1 | Z89: -1 | AA89: -1 | AB89: -1 | AC89: -1
A90: 87 | B90: EC-S7SR | C90: 50 | D90: 500 | E90: 0 | F90: 87 | G90: 185 | H90: 1787 | I90: -1 | J90: -1 | K90: -1 | L90: -1 | M90: -1 | N90: -1 | O90: -1 | P90: -1 | Q90: -1 | R90: -1 | S90: -1 | T90: -1 | U90: -1 | V90: -1 | W90: -1 | X90: -1 | Y90: -1 | Z90: -1 | AA90: -1 | AB90: -1 | AC90: -1
A91: 88 | B91: EC-S6LAHR | C91: 50 | D91: 800 | E91: 0 | F91: 88 | G91: 189 | H91: 1807 | I91: -1 | J91: -1 | K91: -1 | L91: -1 | M91: -1 | N91: -1 | O91: -1 | P91: -1 | Q91: -1 | R91: -1 | S91: -1 | T91: -1 | U91: -1 | V91: -1 | W91: -1 | X91: -1 | Y91: -1 | Z91: -1 | AA91: -1 | AB91: -1 | AC91: -1
A92: 89 | B92: EC-S6MAHR | C92: 50 | D92: 800 | E92: 0 | F92: 89 | G92: 196 | H92: 1837 | I92: -1 | J92: -1 | K92: -1 | L92: -1 | M92: -1 | N92: -1 | O92: -1 | P92: -1 | Q92: -1 | R92: -1 | S92: -1 | T92: -1 | U92: -1 | V92: -1 | W92: -1 | X92: -1 | Y92: -1 | Z92: -1 | AA92: -1 | AB92: -1 | AC92: -1
A93: 90 | B93: EC-S6HAHR | C93: 50 | D93: 800 | E93: 0 | F93: 90 | G93: 203 | H93: 1863 | I93: -1 | J93: -1 | K93: -1 | L93: -1 | M93: -1 | N93: -1 | O93: -1 | P93: -1 | Q93: -1 | R93: -1 | S93: -1 | T93: -1 | U93: -1 | V93: -1 | W93: -1 | X93: -1 | Y93: -1 | Z93: -1 | AA93: -1 | AB93: -1 | AC93: -1
A94: 91 | B94: EC-S6SAHR | C94: 50 | D94: 800 | E94: 0 | F94: 91 | G94: 210 | H94: 1880 | I94: -1 | J94: -1 | K94: -1 | L94: -1 | M94: -1 | N94: -1 | O94: -1 | P94: -1 | Q94: -1 | R94: -1 | S94: -1 | T94: -1 | U94: -1 | V94: -1 | W94: -1 | X94: -1 | Y94: -1 | Z94: -1 | AA94: -1 | AB94: -1 | AC94: -1
A95: 92 | B95: EC-S7LAHR | C95: 50 | D95: 800 | E95: 0 | F95: 92 | G95: 214 | H95: 1890 | I95: -1 | J95: -1 | K95: -1 | L95: -1 | M95: -1 | N95: -1 | O95: -1 | P95: -1 | Q95: -1 | R95: -1 | S95: -1 | T95: -1 | U95: -1 | V95: -1 | W95: -1 | X95: -1 | Y95: -1 | Z95: -1 | AA95: -1 | AB95: -1 | AC95: -1
A96: 93 | B96: EC-S7MAHR | C96: 50 | D96: 800 | E96: 0 | F96: 93 | G96: 215 | H96: 1939 | I96: -1 | J96: -1 | K96: -1 | L96: -1 | M96: -1 | N96: -1 | O96: -1 | P96: -1 | Q96: -1 | R96: -1 | S96: -1 | T96: -1 | U96: -1 | V96: -1 | W96: -1 | X96: -1 | Y96: -1 | Z96: -1 | AA96: -1 | AB96: -1 | AC96: -1
A97: 94 | B97: EC-S7HAHR | C97: 50 | D97: 800 | E97: 0 | F97: 94 | G97: 218 | H97: 1986 | I97: -1 | J97: -1 | K97: -1 | L97: -1 | M97: -1 | N97: -1 | O97: -1 | P97: -1 | Q97: -1 | R97: -1 | S97: -1 | T97: -1 | U97: -1 | V97: -1 | W97: -1 | X97: -1 | Y97: -1 | Z97: -1 | AA97: -1 | AB97: -1 | AC97: -1
A98: 95 | B98: EC-S7SAHR | C98: 50 | D98: 800 | E98: 0 | F98: 95 | G98: 221 | H98: 2029 | I98: -1 | J98: -1 | K98: -1 | L98: -1 | M98: -1 | N98: -1 | O98: -1 | P98: -1 | Q98: -1 | R98: -1 | S98: -1 | T98: -1 | U98: -1 | V98: -1 | W98: -1 | X98: -1 | Y98: -1 | Z98: -1 | AA98: -1 | AB98: -1 | AC98: -1
A99: 96 | B99: EC-RR6LR | C99: 65 | D99: 315 | E99: 0 | F99: 96 | G99: 224 | H99: 2049 | I99: -1 | J99: -1 | K99: -1 | L99: -1 | M99: -1 | N99: -1 | O99: -1 | P99: -1 | Q99: -1 | R99: -1 | S99: -1 | T99: -1 | U99: -1 | V99: -1 | W99: -1 | X99: -1 | Y99: -1 | Z99: -1 | AA99: -1 | AB99: -1 | AC99: -1
A100: 97 | B100: EC-RR6MR | C100: 65 | D100: 315 | E100: 0 | F100: 97 | G100: 226 | H100: 2060 | I100: -1 | J100: -1 | K100: -1 | L100: -1 | M100: -1 | N100: -1 | O100: -1 | P100: -1 | Q100: -1 | R100: -1 | S100: -1 | T100: -1 | U100: -1 | V100: -1 | W100: -1 | X100: -1 | Y100: -1 | Z100: -1 | AA100: -1 | AB100: -1 | AC100: -1
A101: 98 | B101: EC-RR6HR | C101: 65 | D101: 315 | E101: 0 | F101: 98 | G101: 228 | H101: 2103 | I101: -1 | J101: -1 | K101: -1 | L101: -1 | M101: -1 | N101: -1 | O101: -1 | P101: -1 | Q101: -1 | R101: -1 | S101: -1 | T101: -1 | U101: -1 | V101: -1 | W101: -1 | X101: -1 | Y101: -1 | Z101: -1 | AA101: -1 | AB101: -1 | AC101: -1
A102: 99 | B102: EC-RR6SR | C102: 65 | D102: 315 | E102: 0 | F102: 99 | G102: 230 | H102: 2131 | I102: -1 | J102: -1 | K102: -1 | L102: -1 | M102: -1 | N102: -1 | O102: -1 | P102: -1 | Q102: -1 | R102: -1 | S102: -1 | T102: -1 | U102: -1 | V102: -1 | W102: -1 | X102: -1 | Y102: -1 | Z102: -1 | AA102: -1 | AB102: -1 | AC102: -1
A103: 100 | B103: EC-RR7LR | C103: 65 | D103: 315 | E103: 0 | F103: 100 | G103: 231 | H103: 2139 | I103: -1 | J103: -1 | K103: -1 | L103: -1 | M103: -1 | N103: -1 | O103: -1 | P103: -1 | Q103: -1 | R103: -1 | S103: -1 | T103: -1 | U103: -1 | V103: -1 | W103: -1 | X103: -1 | Y103: -1 | Z103: -1 | AA103: -1 | AB103: -1 | AC103: -1
A104: 101 | B104: EC-RR7MR | C104: 65 | D104: 315 | E104: 0 | F104: 101 | G104: 232 | H104: 2198 | I104: -1 | J104: -1 | K104: -1 | L104: -1 | M104: -1 | N104: -1 | O104: -1 | P104: -1 | Q104: -1 | R104: -1 | S104: -1 | T104: -1 | U104: -1 | V104: -1 | W104: -1 | X104: -1 | Y104: -1 | Z104: -1 | AA104: -1 | AB104: -1 | AC104: -1
A105: 102 | B105: EC-RR7HR | C105: 65 | D105: 315 | E105: 0 | F105: 102 | G105: 233 | H105: 2259 | I105: -1 | J105: -1 | K105: -1 | L105: -1 | M105: -1 | N105: -1 | O105: -1 | P105: -1 | Q105: -1 | R105: -1 | S105: -1 | T105: -1 | U105: -1 | V105: -1 | W105: -1 | X105: -1 | Y105: -1 | Z105: -1 | AA105: -1 | AB105: -1 | AC105: -1
A106: 103 | B106: EC-RR7SR | C106: 65 | D106: 315 | E106: 0 | F106: 103 | G106: 234 | H106: 2304 | I106: -1 | J106: -1 | K106: -1 | L106: -1 | M106: -1 | N106: -1 | O106: -1 | P106: -1 | Q106: -1 | R106: -1 | S106: -1 | T106: -1 | U106: -1 | V106: -1 | W106: -1 | X106: -1 | Y106: -1 | Z106: -1 | AA106: -1 | AB106: -1 | AC106: -1
A107: 104 | B107: EC-RR6LAHR | C107: 50 | D107: 400 | E107: 0 | F107: 104 | G107: 235 | H107: 2326 | I107: -1 | J107: -1 | K107: -1 | L107: -1 | M107: -1 | N107: -1 | O107: -1 | P107: -1 | Q107: -1 | R107: -1 | S107: -1 | T107: -1 | U107: -1 | V107: -1 | W107: -1 | X107: -1 | Y107: -1 | Z107: -1 | AA107: -1 | AB107: -1 | AC107: -1
A108: 105 | B108: EC-RR6MAHR | C108: 50 | D108: 400 | E108: 0 | F108: 105 | G108: 236 | H108: 2344 | I108: -1 | J108: -1 | K108: -1 | L108: -1 | M108: -1 | N108: -1 | O108: -1 | P108: -1 | Q108: -1 | R108: -1 | S108: -1 | T108: -1 | U108: -1 | V108: -1 | W108: -1 | X108: -1 | Y108: -1 | Z108: -1 | AA108: -1 | AB108: -1 | AC108: -1
A109: 106 | B109: EC-RR6HAHR | C109: 50 | D109: 400 | E109: 0 | F109: 106 | G109: 237 | H109: 2387 | I109: -1 | J109: -1 | K109: -1 | L109: -1 | M109: -1 | N109: -1 | O109: -1 | P109: -1 | Q109: -1 | R109: -1 | S109: -1 | T109: -1 | U109: -1 | V109: -1 | W109: -1 | X109: -1 | Y109: -1 | Z109: -1 | AA109: -1 | AB109: -1 | AC109: -1
A110: 107 | B110: EC-RR6SAHR | C110: 50 | D110: 400 | E110: 0 | F110: 107 | G110: 238 | H110: 2415 | I110: -1 | J110: -1 | K110: -1 | L110: -1 | M110: -1 | N110: -1 | O110: -1 | P110: -1 | Q110: -1 | R110: -1 | S110: -1 | T110: -1 | U110: -1 | V110: -1 | W110: -1 | X110: -1 | Y110: -1 | Z110: -1 | AA110: -1 | AB110: -1 | AC110: -1
A111: 108 | B111: EC-RR7LAHR | C111: 50 | D111: 500 | E111: 0 | F111: 108 | G111: 239 | H111: 2423 | I111: -1 | J111: -1 | K111: -1 | L111: -1 | M111: -1 | N111: -1 | O111: -1 | P111: -1 | Q111: -1 | R111: -1 | S111: -1 | T111: -1 | U111: -1 | V111: -1 | W111: -1 | X111: -1 | Y111: -1 | Z111: -1 | AA111: -1 | AB111: -1 | AC111: -1
A112: 109 | B112: EC-RR7MAHR | C112: 50 | D112: 500 | E112: 0 | F112: 109 | G112: 240 | H112: 2489 | I112: -1 | J112: -1 | K112: -1 | L112: -1 | M112: -1 | N112: -1 | O112: -1 | P112: -1 | Q112: -1 | R112: -1 | S112: -1 | T112: -1 | U112: -1 | V112: -1 | W112: -1 | X112: -1 | Y112: -1 | Z112: -1 | AA112: -1 | AB112: -1 | AC112: -1
A113: 110 | B113: EC-RR7HAHR | C113: 50 | D113: 500 | E113: 0 | F113: 110 | G113: 241 | H113: 2551 | I113: -1 | J113: -1 | K113: -1 | L113: -1 | M113: -1 | N113: -1 | O113: -1 | P113: -1 | Q113: -1 | R113: -1 | S113: -1 | T113: -1 | U113: -1 | V113: -1 | W113: -1 | X113: -1 | Y113: -1 | Z113: -1 | AA113: -1 | AB113: -1 | AC113: -1
A114: 111 | B114: EC-RR7SAHR | C114: 50 | D114: 500 | E114: 0 | F114: 111 | G114: 242 | H114: 2596 | I114: -1 | J114: -1 | K114: -1 | L114: -1 | M114: -1 | N114: -1 | O114: -1 | P114: -1 | Q114: -1 | R114: -1 | S114: -1 | T114: -1 | U114: -1 | V114: -1 | W114: -1 | X114: -1 | Y114: -1 | Z114: -1 | AA114: -1 | AB114: -1 | AC114: -1
A115: 112 | B115: EC-S3L | C115: 50 | D115: 300 | E115: 0 | F115: 112 | G115: 243 | H115: 2618 | I115: -1 | J115: -1 | K115: -1 | L115: -1 | M115: -1 | N115: -1 | O115: -1 | P115: -1 | Q115: -1 | R115: -1 | S115: -1 | T115: -1 | U115: -1 | V115: -1 | W115: -1 | X115: -1 | Y115: -1 | Z115: -1 | AA115: -1 | AB115: -1 | AC115: -1
A116: 113 | B116: EC-S3M | C116: 50 | D116: 300 | E116: 0 | F116: 113 | G116: 247 | H116: 2623 | I116: -1 | J116: -1 | K116: -1 | L116: -1 | M116: -1 | N116: -1 | O116: -1 | P116: -1 | Q116: -1 | R116: -1 | S116: -1 | T116: -1 | U116: -1 | V116: -1 | W116: -1 | X116: -1 | Y116: -1 | Z116: -1 | AA116: -1 | AB116: -1 | AC116: -1
A117: 114 | B117: EC-S3H | C117: 50 | D117: 300 | E117: 0 | F117: 114 | G117: 251 | H117: 2629 | I117: -1 | J117: -1 | K117: -1 | L117: -1 | M117: -1 | N117: -1 | O117: -1 | P117: -1 | Q117: -1 | R117: -1 | S117: -1 | T117: -1 | U117: -1 | V117: -1 | W117: -1 | X117: -1 | Y117: -1 | Z117: -1 | AA117: -1 | AB117: -1 | AC117: -1
A118: 115 | B118: EC-S4L | C118: 50 | D118: 300 | E118: 0 | F118: 115 | G118: 255 | H118: 2634 | I118: -1 | J118: -1 | K118: -1 | L118: -1 | M118: -1 | N118: -1 | O118: -1 | P118: -1 | Q118: -1 | R118: -1 | S118: -1 | T118: -1 | U118: -1 | V118: -1 | W118: -1 | X118: -1 | Y118: -1 | Z118: -1 | AA118: -1 | AB118: -1 | AC118: -1
A119: 116 | B119: EC-S4M | C119: 50 | D119: 300 | E119: 0 | F119: 116 | G119: 258 | H119: 2638 | I119: -1 | J119: -1 | K119: -1 | L119: -1 | M119: -1 | N119: -1 | O119: -1 | P119: -1 | Q119: -1 | R119: -1 | S119: -1 | T119: -1 | U119: -1 | V119: -1 | W119: -1 | X119: -1 | Y119: -1 | Z119: -1 | AA119: -1 | AB119: -1 | AC119: -1
A120: 117 | B120: EC-S4H | C120: 50 | D120: 300 | E120: 0 | F120: 117 | G120: 261 | H120: 2646 | I120: -1 | J120: -1 | K120: -1 | L120: -1 | M120: -1 | N120: -1 | O120: -1 | P120: -1 | Q120: -1 | R120: -1 | S120: -1 | T120: -1 | U120: -1 | V120: -1 | W120: -1 | X120: -1 | Y120: -1 | Z120: -1 | AA120: -1 | AB120: -1 | AC120: -1
A121: 118 | B121: EC-S4S | C121: 50 | D121: 300 | E121: 0 | F121: 118 | G121: 264 | H121: 2658 | I121: -1 | J121: -1 | K121: -1 | L121: -1 | M121: -1 | N121: -1 | O121: -1 | P121: -1 | Q121: -1 | R121: -1 | S121: -1 | T121: -1 | U121: -1 | V121: -1 | W121: -1 | X121: -1 | Y121: -1 | Z121: -1 | AA121: -1 | AB121: -1 | AC121: -1
A122: 119 | B122: EC-RR3L | C122: 50 | D122: 300 | E122: 0 | F122: 119 | G122: 267 | H122: 2664 | I122: -1 | J122: -1 | K122: -1 | L122: -1 | M122: -1 | N122: -1 | O122: -1 | P122: -1 | Q122: -1 | R122: -1 | S122: -1 | T122: -1 | U122: -1 | V122: -1 | W122: -1 | X122: -1 | Y122: -1 | Z122: -1 | AA122: -1 | AB122: -1 | AC122: -1
A123: 120 | B123: EC-RR3M | C123: 50 | D123: 300 | E123: 0 | F123: 120 | G123: 271 | H123: 2669 | I123: -1 | J123: -1 | K123: -1 | L123: -1 | M123: -1 | N123: -1 | O123: -1 | P123: -1 | Q123: -1 | R123: -1 | S123: -1 | T123: -1 | U123: -1 | V123: -1 | W123: -1 | X123: -1 | Y123: -1 | Z123: -1 | AA123: -1 | AB123: -1 | AC123: -1
A124: 121 | B124: EC-RR3H | C124: 50 | D124: 300 | E124: 0 | F124: 121 | G124: 275 | H124: 2674 | I124: -1 | J124: -1 | K124: -1 | L124: -1 | M124: -1 | N124: -1 | O124: -1 | P124: -1 | Q124: -1 | R124: -1 | S124: -1 | T124: -1 | U124: -1 | V124: -1 | W124: -1 | X124: -1 | Y124: -1 | Z124: -1 | AA124: -1 | AB124: -1 | AC124: -1
A125: 122 | B125: EC-RR4L | C125: 50 | D125: 300 | E125: 0 | F125: 122 | G125: 279 | H125: 2681 | I125: -1 | J125: -1 | K125: -1 | L125: -1 | M125: -1 | N125: -1 | O125: -1 | P125: -1 | Q125: -1 | R125: -1 | S125: -1 | T125: -1 | U125: -1 | V125: -1 | W125: -1 | X125: -1 | Y125: -1 | Z125: -1 | AA125: -1 | AB125: -1 | AC125: -1
A126: 123 | B126: EC-RR4M | C126: 50 | D126: 300 | E126: 0 | F126: 123 | G126: 282 | H126: 2697 | I126: -1 | J126: -1 | K126: -1 | L126: -1 | M126: -1 | N126: -1 | O126: -1 | P126: -1 | Q126: -1 | R126: -1 | S126: -1 | T126: -1 | U126: -1 | V126: -1 | W126: -1 | X126: -1 | Y126: -1 | Z126: -1 | AA126: -1 | AB126: -1 | AC126: -1
A127: 124 | B127: EC-RR4H | C127: 50 | D127: 300 | E127: 0 | F127: 124 | G127: 285 | H127: 2712 | I127: -1 | J127: -1 | K127: -1 | L127: -1 | M127: -1 | N127: -1 | O127: -1 | P127: -1 | Q127: -1 | R127: -1 | S127: -1 | T127: -1 | U127: -1 | V127: -1 | W127: -1 | X127: -1 | Y127: -1 | Z127: -1 | AA127: -1 | AB127: -1 | AC127: -1
A128: 125 | B128: EC-RR4S | C128: 50 | D128: 300 | E128: 0 | F128: 125 | G128: 288 | H128: 2727 | I128: -1 | J128: -1 | K128: -1 | L128: -1 | M128: -1 | N128: -1 | O128: -1 | P128: -1 | Q128: -1 | R128: -1 | S128: -1 | T128: -1 | U128: -1 | V128: -1 | W128: -1 | X128: -1 | Y128: -1 | Z128: -1 | AA128: -1 | AB128: -1 | AC128: -1
A129: 126 | B129: EC-RR6LW | C129: 65 | D129: 315 | E129: 0 | F129: 126 | G129: 290 | H129: 2733 | I129: -1 | J129: -1 | K129: -1 | L129: -1 | M129: -1 | N129: -1 | O129: -1 | P129: -1 | Q129: -1 | R129: -1 | S129: -1 | T129: -1 | U129: -1 | V129: -1 | W129: -1 | X129: -1 | Y129: -1 | Z129: -1 | AA129: -1 | AB129: -1 | AC129: -1
A130: 127 | B130: EC-RR6MW | C130: 65 | D130: 315 | E130: 0 | F130: 127 | G130: 294 | H130: 2744 | I130: -1 | J130: -1 | K130: -1 | L130: -1 | M130: -1 | N130: -1 | O130: -1 | P130: -1 | Q130: -1 | R130: -1 | S130: -1 | T130: -1 | U130: -1 | V130: -1 | W130: -1 | X130: -1 | Y130: -1 | Z130: -1 | AA130: -1 | AB130: -1 | AC130: -1
A131: 128 | B131: EC-RR6HW | C131: 65 | D131: 315 | E131: 0 | F131: 128 | G131: 297 | H131: 2787 | I131: -1 | J131: -1 | K131: -1 | L131: -1 | M131: -1 | N131: -1 | O131: -1 | P131: -1 | Q131: -1 | R131: -1 | S131: -1 | T131: -1 | U131: -1 | V131: -1 | W131: -1 | X131: -1 | Y131: -1 | Z131: -1 | AA131: -1 | AB131: -1 | AC131: -1
A132: 129 | B132: EC-RR6SW | C132: 65 | D132: 315 | E132: 0 | F132: 129 | G132: 300 | H132: 2815 | I132: -1 | J132: -1 | K132: -1 | L132: -1 | M132: -1 | N132: -1 | O132: -1 | P132: -1 | Q132: -1 | R132: -1 | S132: -1 | T132: -1 | U132: -1 | V132: -1 | W132: -1 | X132: -1 | Y132: -1 | Z132: -1 | AA132: -1 | AB132: -1 | AC132: -1
A133: 130 | B133: EC-RR7LW | C133: 65 | D133: 315 | E133: 0 | F133: 130 | G133: 301 | H133: 2823 | I133: -1 | J133: -1 | K133: -1 | L133: -1 | M133: -1 | N133: -1 | O133: -1 | P133: -1 | Q133: -1 | R133: -1 | S133: -1 | T133: -1 | U133: -1 | V133: -1 | W133: -1 | X133: -1 | Y133: -1 | Z133: -1 | AA133: -1 | AB133: -1 | AC133: -1
A134: 131 | B134: EC-RR7MW | C134: 65 | D134: 315 | E134: 0 | F134: 131 | G134: 304 | H134: 2882 | I134: -1 | J134: -1 | K134: -1 | L134: -1 | M134: -1 | N134: -1 | O134: -1 | P134: -1 | Q134: -1 | R134: -1 | S134: -1 | T134: -1 | U134: -1 | V134: -1 | W134: -1 | X134: -1 | Y134: -1 | Z134: -1 | AA134: -1 | AB134: -1 | AC134: -1
A135: 132 | B135: EC-RR7HW | C135: 65 | D135: 315 | E135: 0 | F135: 132 | G135: 305 | H135: 2943 | I135: -1 | J135: -1 | K135: -1 | L135: -1 | M135: -1 | N135: -1 | O135: -1 | P135: -1 | Q135: -1 | R135: -1 | S135: -1 | T135: -1 | U135: -1 | V135: -1 | W135: -1 | X135: -1 | Y135: -1 | Z135: -1 | AA135: -1 | AB135: -1 | AC135: -1
A136: 133 | B136: EC-RR7SW | C136: 65 | D136: 315 | E136: 0 | F136: 133 | G136: 307 | H136: 2988 | I136: -1 | J136: -1 | K136: -1 | L136: -1 | M136: -1 | N136: -1 | O136: -1 | P136: -1 | Q136: -1 | R136: -1 | S136: -1 | T136: -1 | U136: -1 | V136: -1 | W136: -1 | X136: -1 | Y136: -1 | Z136: -1 | AA136: -1 | AB136: -1 | AC136: -1
A137: 134 | B137: EC-B6S | C137: 300 | D137: 2600 | E137: 0 | F137: 134 | G137: 308 | H137: 3014 | I137: -1 | J137: -1 | K137: -1 | L137: -1 | M137: -1 | N137: -1 | O137: -1 | P137: -1 | Q137: -1 | R137: -1 | S137: -1 | T137: -1 | U137: -1 | V137: -1 | W137: -1 | X137: -1 | Y137: -1 | Z137: -1 | AA137: -1 | AB137: -1 | AC137: -1 | AD137: ↓Ver.1.1 追加
A138: 135 | B138: EC-B6SU | C138: 300 | D138: 2600 | E138: 0 | F138: 135 | G138: 309 | H138: 3014 | I138: -1 | J138: -1 | K138: -1 | L138: -1 | M138: -1 | N138: -1 | O138: -1 | P138: -1 | Q138: -1 | R138: -1 | S138: -1 | T138: -1 | U138: -1 | V138: -1 | W138: -1 | X138: -1 | Y138: -1 | Z138: -1 | AA138: -1 | AB138: -1 | AC138: -1
A139: 136 | B139: EC-B7S | C139: 300 | D139: 2600 | E139: 0 | F139: 136 | G139: 310 | H139: 3033 | I139: -1 | J139: -1 | K139: -1 | L139: -1 | M139: -1 | N139: -1 | O139: -1 | P139: -1 | Q139: -1 | R139: -1 | S139: -1 | T139: -1 | U139: -1 | V139: -1 | W139: -1 | X139: -1 | Y139: -1 | Z139: -1 | AA139: -1 | AB139: -1 | AC139: -1
A140: 137 | B140: EC-B7SU | C140: 300 | D140: 2600 | E140: 0 | F140: 137 | G140: 311 | H140: 3033 | I140: -1 | J140: -1 | K140: -1 | L140: -1 | M140: -1 | N140: -1 | O140: -1 | P140: -1 | Q140: -1 | R140: -1 | S140: -1 | T140: -1 | U140: -1 | V140: -1 | W140: -1 | X140: -1 | Y140: -1 | Z140: -1 | AA140: -1 | AB140: -1 | AC140: -1
A141: 138 | B141: EC-S3LR | C141: 50 | D141: 300 | E141: 0 | F141: 138 | G141: 312 | H141: 3048 | I141: -1 | J141: -1 | K141: -1 | L141: -1 | M141: -1 | N141: -1 | O141: -1 | P141: -1 | Q141: -1 | R141: -1 | S141: -1 | T141: -1 | U141: -1 | V141: -1 | W141: -1 | X141: -1 | Y141: -1 | Z141: -1 | AA141: -1 | AB141: -1 | AC141: -1
A142: 139 | B142: EC-S3MR | C142: 50 | D142: 300 | E142: 0 | F142: 139 | G142: 316 | H142: 3051 | I142: -1 | J142: -1 | K142: -1 | L142: -1 | M142: -1 | N142: -1 | O142: -1 | P142: -1 | Q142: -1 | R142: -1 | S142: -1 | T142: -1 | U142: -1 | V142: -1 | W142: -1 | X142: -1 | Y142: -1 | Z142: -1 | AA142: -1 | AB142: -1 | AC142: -1
A143: 140 | B143: EC-S3HR | C143: 50 | D143: 300 | E143: 0 | F143: 140 | G143: 320 | H143: 3054 | I143: -1 | J143: -1 | K143: -1 | L143: -1 | M143: -1 | N143: -1 | O143: -1 | P143: -1 | Q143: -1 | R143: -1 | S143: -1 | T143: -1 | U143: -1 | V143: -1 | W143: -1 | X143: -1 | Y143: -1 | Z143: -1 | AA143: -1 | AB143: -1 | AC143: -1
A144: 141 | B144: EC-S4LR | C144: 50 | D144: 300 | E144: 0 | F144: 141 | G144: 324 | H144: 3057 | I144: -1 | J144: -1 | K144: -1 | L144: -1 | M144: -1 | N144: -1 | O144: -1 | P144: -1 | Q144: -1 | R144: -1 | S144: -1 | T144: -1 | U144: -1 | V144: -1 | W144: -1 | X144: -1 | Y144: -1 | Z144: -1 | AA144: -1 | AB144: -1 | AC144: -1
A145: 142 | B145: EC-S4MR | C145: 50 | D145: 300 | E145: 0 | F145: 142 | G145: 327 | H145: 3064 | I145: -1 | J145: -1 | K145: -1 | L145: -1 | M145: -1 | N145: -1 | O145: -1 | P145: -1 | Q145: -1 | R145: -1 | S145: -1 | T145: -1 | U145: -1 | V145: -1 | W145: -1 | X145: -1 | Y145: -1 | Z145: -1 | AA145: -1 | AB145: -1 | AC145: -1
A146: 143 | B146: EC-S4HR | C146: 50 | D146: 300 | E146: 0 | F146: 143 | G146: 330 | H146: 3072 | I146: -1 | J146: -1 | K146: -1 | L146: -1 | M146: -1 | N146: -1 | O146: -1 | P146: -1 | Q146: -1 | R146: -1 | S146: -1 | T146: -1 | U146: -1 | V146: -1 | W146: -1 | X146: -1 | Y146: -1 | Z146: -1 | AA146: -1 | AB146: -1 | AC146: -1
A147: 144 | B147: EC-S4SR | C147: 50 | D147: 300 | E147: 0 | F147: 144 | G147: 333 | H147: 3084 | I147: -1 | J147: -1 | K147: -1 | L147: -1 | M147: -1 | N147: -1 | O147: -1 | P147: -1 | Q147: -1 | R147: -1 | S147: -1 | T147: -1 | U147: -1 | V147: -1 | W147: -1 | X147: -1 | Y147: -1 | Z147: -1 | AA147: -1 | AB147: -1 | AC147: -1
A148: 145 | B148: EC-RR3LR | C148: 50 | D148: 300 | E148: 0 | F148: 145 | G148: 336 | H148: 3090 | I148: -1 | J148: -1 | K148: -1 | L148: -1 | M148: -1 | N148: -1 | O148: -1 | P148: -1 | Q148: -1 | R148: -1 | S148: -1 | T148: -1 | U148: -1 | V148: -1 | W148: -1 | X148: -1 | Y148: -1 | Z148: -1 | AA148: -1 | AB148: -1 | AC148: -1
A149: 146 | B149: EC-RR3MR | C149: 50 | D149: 300 | E149: 0 | F149: 146 | G149: 340 | H149: 3093 | I149: -1 | J149: -1 | K149: -1 | L149: -1 | M149: -1 | N149: -1 | O149: -1 | P149: -1 | Q149: -1 | R149: -1 | S149: -1 | T149: -1 | U149: -1 | V149: -1 | W149: -1 | X149: -1 | Y149: -1 | Z149: -1 | AA149: -1 | AB149: -1 | AC149: -1
A150: 147 | B150: EC-RR3HR | C150: 50 | D150: 300 | E150: 0 | F150: 147 | G150: 344 | H150: 3096 | I150: -1 | J150: -1 | K150: -1 | L150: -1 | M150: -1 | N150: -1 | O150: -1 | P150: -1 | Q150: -1 | R150: -1 | S150: -1 | T150: -1 | U150: -1 | V150: -1 | W150: -1 | X150: -1 | Y150: -1 | Z150: -1 | AA150: -1 | AB150: -1 | AC150: -1
A151: 148 | B151: EC-RR4LR | C151: 50 | D151: 300 | E151: 0 | F151: 148 | G151: 348 | H151: 3106 | I151: -1 | J151: -1 | K151: -1 | L151: -1 | M151: -1 | N151: -1 | O151: -1 | P151: -1 | Q151: -1 | R151: -1 | S151: -1 | T151: -1 | U151: -1 | V151: -1 | W151: -1 | X151: -1 | Y151: -1 | Z151: -1 | AA151: -1 | AB151: -1 | AC151: -1
A152: 149 | B152: EC-RR4MR | C152: 50 | D152: 300 | E152: 0 | F152: 149 | G152: 352 | H152: 3122 | I152: -1 | J152: -1 | K152: -1 | L152: -1 | M152: -1 | N152: -1 | O152: -1 | P152: -1 | Q152: -1 | R152: -1 | S152: -1 | T152: -1 | U152: -1 | V152: -1 | W152: -1 | X152: -1 | Y152: -1 | Z152: -1 | AA152: -1 | AB152: -1 | AC152: -1
A153: 150 | B153: EC-RR4HR | C153: 50 | D153: 300 | E153: 0 | F153: 150 | G153: 356 | H153: 3142 | I153: -1 | J153: -1 | K153: -1 | L153: -1 | M153: -1 | N153: -1 | O153: -1 | P153: -1 | Q153: -1 | R153: -1 | S153: -1 | T153: -1 | U153: -1 | V153: -1 | W153: -1 | X153: -1 | Y153: -1 | Z153: -1 | AA153: -1 | AB153: -1 | AC153: -1
A154: 151 | B154: EC-RR4SR | C154: 50 | D154: 300 | E154: 0 | F154: 151 | G154: 360 | H154: 3155 | I154: -1 | J154: -1 | K154: -1 | L154: -1 | M154: -1 | N154: -1 | O154: -1 | P154: -1 | Q154: -1 | R154: -1 | S154: -1 | T154: -1 | U154: -1 | V154: -1 | W154: -1 | X154: -1 | Y154: -1 | Z154: -1 | AA154: -1 | AB154: -1 | AC154: -1
A155: 152 | B155: EC-ST15L | C155: 50 | D155: 50 | E155: 0 | F155: 152 | G155: 364 | H155: 3161 | I155: -1 | J155: -1 | K155: -1 | L155: -1 | M155: -1 | N155: -1 | O155: -1 | P155: -1 | Q155: -1 | R155: -1 | S155: -1 | T155: -1 | U155: -1 | V155: -1 | W155: -1 | X155: -1 | Y155: -1 | Z155: -1 | AA155: -1 | AB155: -1 | AC155: -1
A156: 153 | B156: EC-RTC9 | C156: 330 | D156: 330 | E156: 1 | F156: 153 | G156: 365 | H156: 3169 | I156: -1 | J156: -1 | K156: -1 | L156: -1 | M156: -1 | N156: -1 | O156: -1 | P156: -1 | Q156: -1 | R156: -1 | S156: -1 | T156: -1 | U156: -1 | V156: -1 | W156: -1 | X156: -1 | Y156: -1 | Z156: -1 | AA156: -1 | AB156: -1 | AC156: -1
A157: 154 | B157: EC-RTC12 | C157: 330 | D157: 330 | E157: 1 | F157: 154 | G157: 366 | H157: 3188 | I157: -1 | J157: -1 | K157: -1 | L157: -1 | M157: -1 | N157: -1 | O157: -1 | P157: -1 | Q157: -1 | R157: -1 | S157: -1 | T157: -1 | U157: -1 | V157: -1 | W157: -1 | X157: -1 | Y157: -1 | Z157: -1 | AA157: -1 | AB157: -1 | AC157: -1 | AD157: ↑Ver.1.1 追加
A158: 155 | B158: EC-RP4L | C158: 30 | D158: 50 | E158: 0 | F158: 155 | G158: 367 | H158: 3380 | I158: -1 | J158: -1 | K158: -1 | L158: -1 | M158: -1 | N158: -1 | O158: -1 | P158: -1 | Q158: -1 | R158: -1 | S158: -1 | T158: -1 | U158: -1 | V158: -1 | W158: -1 | X158: -1 | Y158: -1 | Z158: -1 | AA158: -1 | AB158: -1 | AC158: -1 | AD158: ↓Ver.1.2 追加
A159: 156 | B159: EC-RP4M | C159: 30 | D159: 50 | E159: 0 | F159: 156 | G159: 368 | H159: 3382 | I159: -1 | J159: -1 | K159: -1 | L159: -1 | M159: -1 | N159: -1 | O159: -1 | P159: -1 | Q159: -1 | R159: -1 | S159: -1 | T159: -1 | U159: -1 | V159: -1 | W159: -1 | X159: -1 | Y159: -1 | Z159: -1 | AA159: -1 | AB159: -1 | AC159: -1
A160: 157 | B160: EC-RP4H | C160: 30 | D160: 50 | E160: 0 | F160: 157 | G160: 369 | H160: 3385 | I160: -1 | J160: -1 | K160: -1 | L160: -1 | M160: -1 | N160: -1 | O160: -1 | P160: -1 | Q160: -1 | R160: -1 | S160: -1 | T160: -1 | U160: -1 | V160: -1 | W160: -1 | X160: -1 | Y160: -1 | Z160: -1 | AA160: -1 | AB160: -1 | AC160: -1
A161: 158 | B161: EC-GS4L | C161: 30 | D161: 50 | E161: 0 | F161: 158 | G161: 370 | H161: 3388 | I161: -1 | J161: -1 | K161: -1 | L161: -1 | M161: -1 | N161: -1 | O161: -1 | P161: -1 | Q161: -1 | R161: -1 | S161: -1 | T161: -1 | U161: -1 | V161: -1 | W161: -1 | X161: -1 | Y161: -1 | Z161: -1 | AA161: -1 | AB161: -1 | AC161: -1
A162: 159 | B162: EC-GS4M | C162: 30 | D162: 50 | E162: 0 | F162: 159 | G162: 371 | H162: 3390 | I162: -1 | J162: -1 | K162: -1 | L162: -1 | M162: -1 | N162: -1 | O162: -1 | P162: -1 | Q162: -1 | R162: -1 | S162: -1 | T162: -1 | U162: -1 | V162: -1 | W162: -1 | X162: -1 | Y162: -1 | Z162: -1 | AA162: -1 | AB162: -1 | AC162: -1
A163: 160 | B163: EC-GS4H | C163: 30 | D163: 50 | E163: 0 | F163: 160 | G163: 372 | H163: 3393 | I163: -1 | J163: -1 | K163: -1 | L163: -1 | M163: -1 | N163: -1 | O163: -1 | P163: -1 | Q163: -1 | R163: -1 | S163: -1 | T163: -1 | U163: -1 | V163: -1 | W163: -1 | X163: -1 | Y163: -1 | Z163: -1 | AA163: -1 | AB163: -1 | AC163: -1
A164: 161 | B164: EC-GD4L | C164: 30 | D164: 50 | E164: 0 | F164: 161 | G164: 373 | H164: 3396 | I164: -1 | J164: -1 | K164: -1 | L164: -1 | M164: -1 | N164: -1 | O164: -1 | P164: -1 | Q164: -1 | R164: -1 | S164: -1 | T164: -1 | U164: -1 | V164: -1 | W164: -1 | X164: -1 | Y164: -1 | Z164: -1 | AA164: -1 | AB164: -1 | AC164: -1
A165: 162 | B165: EC-GD4M | C165: 30 | D165: 50 | E165: 0 | F165: 162 | G165: 374 | H165: 3398 | I165: -1 | J165: -1 | K165: -1 | L165: -1 | M165: -1 | N165: -1 | O165: -1 | P165: -1 | Q165: -1 | R165: -1 | S165: -1 | T165: -1 | U165: -1 | V165: -1 | W165: -1 | X165: -1 | Y165: -1 | Z165: -1 | AA165: -1 | AB165: -1 | AC165: -1
A166: 163 | B166: EC-GD4H | C166: 30 | D166: 50 | E166: 0 | F166: 163 | G166: 375 | H166: 3401 | I166: -1 | J166: -1 | K166: -1 | L166: -1 | M166: -1 | N166: -1 | O166: -1 | P166: -1 | Q166: -1 | R166: -1 | S166: -1 | T166: -1 | U166: -1 | V166: -1 | W166: -1 | X166: -1 | Y166: -1 | Z166: -1 | AA166: -1 | AB166: -1 | AC166: -1
A167: 164 | B167: EC-TC4L | C167: 30 | D167: 50 | E167: 0 | F167: 164 | G167: 376 | H167: 3404 | I167: -1 | J167: -1 | K167: -1 | L167: -1 | M167: -1 | N167: -1 | O167: -1 | P167: -1 | Q167: -1 | R167: -1 | S167: -1 | T167: -1 | U167: -1 | V167: -1 | W167: -1 | X167: -1 | Y167: -1 | Z167: -1 | AA167: -1 | AB167: -1 | AC167: -1
A168: 165 | B168: EC-TC4M | C168: 30 | D168: 50 | E168: 0 | F168: 165 | G168: 377 | H168: 3406 | I168: -1 | J168: -1 | K168: -1 | L168: -1 | M168: -1 | N168: -1 | O168: -1 | P168: -1 | Q168: -1 | R168: -1 | S168: -1 | T168: -1 | U168: -1 | V168: -1 | W168: -1 | X168: -1 | Y168: -1 | Z168: -1 | AA168: -1 | AB168: -1 | AC168: -1
A169: 166 | B169: EC-TC4H | C169: 30 | D169: 50 | E169: 0 | F169: 166 | G169: 378 | H169: 3409 | I169: -1 | J169: -1 | K169: -1 | L169: -1 | M169: -1 | N169: -1 | O169: -1 | P169: -1 | Q169: -1 | R169: -1 | S169: -1 | T169: -1 | U169: -1 | V169: -1 | W169: -1 | X169: -1 | Y169: -1 | Z169: -1 | AA169: -1 | AB169: -1 | AC169: -1
A170: 167 | B170: EC-TW4L | C170: 30 | D170: 50 | E170: 0 | F170: 167 | G170: 379 | H170: 3412 | I170: -1 | J170: -1 | K170: -1 | L170: -1 | M170: -1 | N170: -1 | O170: -1 | P170: -1 | Q170: -1 | R170: -1 | S170: -1 | T170: -1 | U170: -1 | V170: -1 | W170: -1 | X170: -1 | Y170: -1 | Z170: -1 | AA170: -1 | AB170: -1 | AC170: -1
A171: 168 | B171: EC-TW4M | C171: 30 | D171: 50 | E171: 0 | F171: 168 | G171: 380 | H171: 3414 | I171: -1 | J171: -1 | K171: -1 | L171: -1 | M171: -1 | N171: -1 | O171: -1 | P171: -1 | Q171: -1 | R171: -1 | S171: -1 | T171: -1 | U171: -1 | V171: -1 | W171: -1 | X171: -1 | Y171: -1 | Z171: -1 | AA171: -1 | AB171: -1 | AC171: -1
A172: 169 | B172: EC-TW4H | C172: 30 | D172: 50 | E172: 0 | F172: 169 | G172: 381 | H172: 3417 | I172: -1 | J172: -1 | K172: -1 | L172: -1 | M172: -1 | N172: -1 | O172: -1 | P172: -1 | Q172: -1 | R172: -1 | S172: -1 | T172: -1 | U172: -1 | V172: -1 | W172: -1 | X172: -1 | Y172: -1 | Z172: -1 | AA172: -1 | AB172: -1 | AC172: -1 | AD172: ↑Ver.1.2 追加
A173: 170 | B173: EC-WS10L | C173: 50 | D173: 500 | E173: 0 | F173: 170 | G173: 382 | H173: 3420 | I173: -1 | J173: -1 | K173: -1 | L173: -1 | M173: -1 | N173: -1 | O173: -1 | P173: -1 | Q173: -1 | R173: -1 | S173: -1 | T173: -1 | U173: -1 | V173: -1 | W173: -1 | X173: -1 | Y173: -1 | Z173: -1 | AA173: -1 | AB173: -1 | AC173: -1 | AD173: ↓Ver.1.3 追加
A174: 171 | B174: EC-WS10M | C174: 50 | D174: 500 | E174: 0 | F174: 171 | G174: 389 | H174: 3444 | I174: -1 | J174: -1 | K174: -1 | L174: -1 | M174: -1 | N174: -1 | O174: -1 | P174: -1 | Q174: -1 | R174: -1 | S174: -1 | T174: -1 | U174: -1 | V174: -1 | W174: -1 | X174: -1 | Y174: -1 | Z174: -1 | AA174: -1 | AB174: -1 | AC174: -1
A175: 172 | B175: EC-WS10H | C175: 50 | D175: 500 | E175: 0 | F175: 172 | G175: 396 | H175: 3470 | I175: -1 | J175: -1 | K175: -1 | L175: -1 | M175: -1 | N175: -1 | O175: -1 | P175: -1 | Q175: -1 | R175: -1 | S175: -1 | T175: -1 | U175: -1 | V175: -1 | W175: -1 | X175: -1 | Y175: -1 | Z175: -1 | AA175: -1 | AB175: -1 | AC175: -1
A176: 173 | B176: EC-WS10S | C176: 50 | D176: 500 | E176: 0 | F176: 173 | G176: 403 | H176: 3485 | I176: -1 | J176: -1 | K176: -1 | L176: -1 | M176: -1 | N176: -1 | O176: -1 | P176: -1 | Q176: -1 | R176: -1 | S176: -1 | T176: -1 | U176: -1 | V176: -1 | W176: -1 | X176: -1 | Y176: -1 | Z176: -1 | AA176: -1 | AB176: -1 | AC176: -1
A177: 174 | B177: EC-WS12L | C177: 50 | D177: 800 | E177: 0 | F177: 174 | G177: 410 | H177: 3490 | I177: -1 | J177: -1 | K177: -1 | L177: -1 | M177: -1 | N177: -1 | O177: -1 | P177: -1 | Q177: -1 | R177: -1 | S177: -1 | T177: -1 | U177: -1 | V177: -1 | W177: -1 | X177: -1 | Y177: -1 | Z177: -1 | AA177: -1 | AB177: -1 | AC177: -1
A178: 175 | B178: EC-WS12M | C178: 50 | D178: 800 | E178: 0 | F178: 175 | G178: 422 | H178: 3539 | I178: -1 | J178: -1 | K178: -1 | L178: -1 | M178: -1 | N178: -1 | O178: -1 | P178: -1 | Q178: -1 | R178: -1 | S178: -1 | T178: -1 | U178: -1 | V178: -1 | W178: -1 | X178: -1 | Y178: -1 | Z178: -1 | AA178: -1 | AB178: -1 | AC178: -1
A179: 176 | B179: EC-WS12H | C179: 50 | D179: 800 | E179: 0 | F179: 176 | G179: 434 | H179: 3571 | I179: -1 | J179: -1 | K179: -1 | L179: -1 | M179: -1 | N179: -1 | O179: -1 | P179: -1 | Q179: -1 | R179: -1 | S179: -1 | T179: -1 | U179: -1 | V179: -1 | W179: -1 | X179: -1 | Y179: -1 | Z179: -1 | AA179: -1 | AB179: -1 | AC179: -1
A180: 177 | B180: EC-WS12S | C180: 50 | D180: 800 | E180: 0 | F180: 177 | G180: 446 | H180: 3587 | I180: -1 | J180: -1 | K180: -1 | L180: -1 | M180: -1 | N180: -1 | O180: -1 | P180: -1 | Q180: -1 | R180: -1 | S180: -1 | T180: -1 | U180: -1 | V180: -1 | W180: -1 | X180: -1 | Y180: -1 | Z180: -1 | AA180: -1 | AB180: -1 | AC180: -1
A181: 178 | B181: EC-RP5L | C181: 50 | D181: 150 | E181: 0 | F181: 178 | G181: 458 | H181: 3599 | I181: -1 | J181: -1 | K181: -1 | L181: -1 | M181: -1 | N181: -1 | O181: -1 | P181: -1 | Q181: -1 | R181: -1 | S181: -1 | T181: -1 | U181: -1 | V181: -1 | W181: -1 | X181: -1 | Y181: -1 | Z181: -1 | AA181: -1 | AB181: -1 | AC181: -1
A182: 179 | B182: EC-RP5M | C182: 50 | D182: 150 | E182: 0 | F182: 179 | G182: 459 | H182: 3617 | I182: -1 | J182: -1 | K182: -1 | L182: -1 | M182: -1 | N182: -1 | O182: -1 | P182: -1 | Q182: -1 | R182: -1 | S182: -1 | T182: -1 | U182: -1 | V182: -1 | W182: -1 | X182: -1 | Y182: -1 | Z182: -1 | AA182: -1 | AB182: -1 | AC182: -1
A183: 180 | B183: EC-RP5H | C183: 50 | D183: 150 | E183: 0 | F183: 180 | G183: 460 | H183: 3639 | I183: -1 | J183: -1 | K183: -1 | L183: -1 | M183: -1 | N183: -1 | O183: -1 | P183: -1 | Q183: -1 | R183: -1 | S183: -1 | T183: -1 | U183: -1 | V183: -1 | W183: -1 | X183: -1 | Y183: -1 | Z183: -1 | AA183: -1 | AB183: -1 | AC183: -1
A184: 181 | B184: EC-RP5S | C184: 50 | D184: 150 | E184: 0 | F184: 181 | G184: 461 | H184: 3663 | I184: -1 | J184: -1 | K184: -1 | L184: -1 | M184: -1 | N184: -1 | O184: -1 | P184: -1 | Q184: -1 | R184: -1 | S184: -1 | T184: -1 | U184: -1 | V184: -1 | W184: -1 | X184: -1 | Y184: -1 | Z184: -1 | AA184: -1 | AB184: -1 | AC184: -1
A185: 182 | B185: EC-GD5L | C185: 50 | D185: 150 | E185: 0 | F185: 182 | G185: 462 | H185: 3674 | I185: -1 | J185: -1 | K185: -1 | L185: -1 | M185: -1 | N185: -1 | O185: -1 | P185: -1 | Q185: -1 | R185: -1 | S185: -1 | T185: -1 | U185: -1 | V185: -1 | W185: -1 | X185: -1 | Y185: -1 | Z185: -1 | AA185: -1 | AB185: -1 | AC185: -1
A186: 183 | B186: EC-GD5M | C186: 50 | D186: 150 | E186: 0 | F186: 183 | G186: 463 | H186: 3692 | I186: -1 | J186: -1 | K186: -1 | L186: -1 | M186: -1 | N186: -1 | O186: -1 | P186: -1 | Q186: -1 | R186: -1 | S186: -1 | T186: -1 | U186: -1 | V186: -1 | W186: -1 | X186: -1 | Y186: -1 | Z186: -1 | AA186: -1 | AB186: -1 | AC186: -1
A187: 184 | B187: EC-GD5H | C187: 50 | D187: 150 | E187: 0 | F187: 184 | G187: 464 | H187: 3714 | I187: -1 | J187: -1 | K187: -1 | L187: -1 | M187: -1 | N187: -1 | O187: -1 | P187: -1 | Q187: -1 | R187: -1 | S187: -1 | T187: -1 | U187: -1 | V187: -1 | W187: -1 | X187: -1 | Y187: -1 | Z187: -1 | AA187: -1 | AB187: -1 | AC187: -1
A188: 185 | B188: EC-GD5S | C188: 50 | D188: 150 | E188: 0 | F188: 185 | G188: 465 | H188: 3738 | I188: -1 | J188: -1 | K188: -1 | L188: -1 | M188: -1 | N188: -1 | O188: -1 | P188: -1 | Q188: -1 | R188: -1 | S188: -1 | T188: -1 | U188: -1 | V188: -1 | W188: -1 | X188: -1 | Y188: -1 | Z188: -1 | AA188: -1 | AB188: -1 | AC188: -1
A189: 186 | B189: EC-TC5L(50st) | C189: 50 | D189: 50 | E189: 0 | F189: 186 | G189: 466 | H189: 3749 | I189: -1 | J189: -1 | K189: -1 | L189: -1 | M189: -1 | N189: -1 | O189: -1 | P189: -1 | Q189: -1 | R189: -1 | S189: -1 | T189: -1 | U189: -1 | V189: -1 | W189: -1 | X189: -1 | Y189: -1 | Z189: -1 | AA189: -1 | AB189: -1 | AC189: -1
A190: 187 | B190: EC-TC5L(100st) | C190: 100 | D190: 100 | E190: 0 | F190: 187 | G190: 467 | H190: 3757 | I190: -1 | J190: -1 | K190: -1 | L190: -1 | M190: -1 | N190: -1 | O190: -1 | P190: -1 | Q190: -1 | R190: -1 | S190: -1 | T190: -1 | U190: -1 | V190: -1 | W190: -1 | X190: -1 | Y190: -1 | Z190: -1 | AA190: -1 | AB190: -1 | AC190: -1
A191: 188 | B191: EC-TC5L(150st) | C191: 150 | D191: 150 | E191: 0 | F191: 188 | G191: 468 | H191: 3765 | I191: -1 | J191: -1 | K191: -1 | L191: -1 | M191: -1 | N191: -1 | O191: -1 | P191: -1 | Q191: -1 | R191: -1 | S191: -1 | T191: -1 | U191: -1 | V191: -1 | W191: -1 | X191: -1 | Y191: -1 | Z191: -1 | AA191: -1 | AB191: -1 | AC191: -1
A192: 189 | B192: EC-TC5M(50st) | C192: 50 | D192: 50 | E192: 0 | F192: 189 | G192: 469 | H192: 3773 | I192: -1 | J192: -1 | K192: -1 | L192: -1 | M192: -1 | N192: -1 | O192: -1 | P192: -1 | Q192: -1 | R192: -1 | S192: -1 | T192: -1 | U192: -1 | V192: -1 | W192: -1 | X192: -1 | Y192: -1 | Z192: -1 | AA192: -1 | AB192: -1 | AC192: -1
A193: 190 | B193: EC-TC5M(100st) | C193: 100 | D193: 100 | E193: 0 | F193: 190 | G193: 470 | H193: 3787 | I193: -1 | J193: -1 | K193: -1 | L193: -1 | M193: -1 | N193: -1 | O193: -1 | P193: -1 | Q193: -1 | R193: -1 | S193: -1 | T193: -1 | U193: -1 | V193: -1 | W193: -1 | X193: -1 | Y193: -1 | Z193: -1 | AA193: -1 | AB193: -1 | AC193: -1
A194: 191 | B194: EC-TC5M(150st) | C194: 150 | D194: 150 | E194: 0 | F194: 191 | G194: 471 | H194: 3795 | I194: -1 | J194: -1 | K194: -1 | L194: -1 | M194: -1 | N194: -1 | O194: -1 | P194: -1 | Q194: -1 | R194: -1 | S194: -1 | T194: -1 | U194: -1 | V194: -1 | W194: -1 | X194: -1 | Y194: -1 | Z194: -1 | AA194: -1 | AB194: -1 | AC194: -1
A195: 192 | B195: EC-TC5H(50st) | C195: 50 | D195: 50 | E195: 0 | F195: 192 | G195: 472 | H195: 3802 | I195: -1 | J195: -1 | K195: -1 | L195: -1 | M195: -1 | N195: -1 | O195: -1 | P195: -1 | Q195: -1 | R195: -1 | S195: -1 | T195: -1 | U195: -1 | V195: -1 | W195: -1 | X195: -1 | Y195: -1 | Z195: -1 | AA195: -1 | AB195: -1 | AC195: -1
A196: 193 | B196: EC-TC5H(100st) | C196: 100 | D196: 100 | E196: 0 | F196: 193 | G196: 473 | H196: 3819 | I196: -1 | J196: -1 | K196: -1 | L196: -1 | M196: -1 | N196: -1 | O196: -1 | P196: -1 | Q196: -1 | R196: -1 | S196: -1 | T196: -1 | U196: -1 | V196: -1 | W196: -1 | X196: -1 | Y196: -1 | Z196: -1 | AA196: -1 | AB196: -1 | AC196: -1
A197: 194 | B197: EC-TC5H(150st) | C197: 150 | D197: 150 | E197: 0 | F197: 194 | G197: 474 | H197: 3832 | I197: -1 | J197: -1 | K197: -1 | L197: -1 | M197: -1 | N197: -1 | O197: -1 | P197: -1 | Q197: -1 | R197: -1 | S197: -1 | T197: -1 | U197: -1 | V197: -1 | W197: -1 | X197: -1 | Y197: -1 | Z197: -1 | AA197: -1 | AB197: -1 | AC197: -1
A198: 195 | B198: EC-TC5S(50st) | C198: 50 | D198: 50 | E198: 0 | F198: 195 | G198: 475 | H198: 3841 | I198: -1 | J198: -1 | K198: -1 | L198: -1 | M198: -1 | N198: -1 | O198: -1 | P198: -1 | Q198: -1 | R198: -1 | S198: -1 | T198: -1 | U198: -1 | V198: -1 | W198: -1 | X198: -1 | Y198: -1 | Z198: -1 | AA198: -1 | AB198: -1 | AC198: -1
A199: 196 | B199: EC-TC5S(100st) | C199: 100 | D199: 100 | E199: 0 | F199: 196 | G199: 476 | H199: 3847 | I199: -1 | J199: -1 | K199: -1 | L199: -1 | M199: -1 | N199: -1 | O199: -1 | P199: -1 | Q199: -1 | R199: -1 | S199: -1 | T199: -1 | U199: -1 | V199: -1 | W199: -1 | X199: -1 | Y199: -1 | Z199: -1 | AA199: -1 | AB199: -1 | AC199: -1
A200: 197 | B200: EC-TC5S(150st) | C200: 150 | D200: 150 | E200: 0 | F200: 197 | G200: 477 | H200: 3857 | I200: -1 | J200: -1 | K200: -1 | L200: -1 | M200: -1 | N200: -1 | O200: -1 | P200: -1 | Q200: -1 | R200: -1 | S200: -1 | T200: -1 | U200: -1 | V200: -1 | W200: -1 | X200: -1 | Y200: -1 | Z200: -1 | AA200: -1 | AB200: -1 | AC200: -1
... 362 more rows

Sheet LeadData (hidden)
A1: 9.80665 | B1: 1 | C1: 3 | D1: 4 | E1: 5 | F1: 6 | G1: 10 | H1: 11 | I1: 14 | J1: 15
A2: データ№ | B2: ﾘｰﾄﾞ長 | C2: 水平定格加速度 | D2: 垂直定格加速度 | E2: 水平最大加速度 | F2: 垂直最大加速度 | G2: ｷﾞｱ比分子 | H2: ｷﾞｱ比分母 | I2: ｽﾄﾛｰｸ刻み | J2: 位置決め幅初期値 | K2: 備考
A3: =ModelData!A3 -> 0 | B3: 0.001㎜ | C3: 0.001mm/s^2 | D3: 0.001mm/s^2 | E3: 0.001mm/s^2 | F3: 0.001mm/s^2 | I3: mm | J3: mm
A4: 1 | B4: 3000 | C4: 2941995 | D4: 2941995 | E4: 6864655 | F4: 2941995 | G4: 1 | H4: 1 | I4: 50 | J4: 0.1 | K4: EC-S6L (リード=3mm)
A5: 2 | B5: 6000 | C5: 2941995 | D5: 2941995 | E5: 6864655 | F5: 2941995 | G5: 1 | H5: 1 | I5: 50 | J5: 0.1 | K5: EC-S6M (リード=6mm)
A6: 3 | B6: 12000 | C6: 2941995 | D6: 2941995 | E6: 6864655 | F6: 2941995 | G6: 1 | H6: 1 | I6: 50 | J6: 0.1 | K6: EC-S6H (リード=12mm)
A7: 4 | B7: 20000 | C7: 2941995 | D7: 2941995 | E7: 6864655 | F7: 2941995 | G7: 1 | H7: 1 | I7: 50 | J7: 0.1 | K7: EC-S6S (リード=20mm)
A8: 5 | B8: 4000 | C8: 2941995 | D8: 2941995 | E8: 6864655 | F8: 2941995 | G8: 1 | H8: 1 | I8: 50 | J8: 0.1 | K8: EC-S7L (リード=4mm)
A9: 6 | B9: 8000 | C9: 2941995 | D9: 2941995 | E9: 6864655 | F9: 2941995 | G9: 1 | H9: 1 | I9: 50 | J9: 0.1 | K9: EC-S7M (リード=8mm)
A10: 7 | B10: 16000 | C10: 2941995 | D10: 2941995 | E10: 6864655 | F10: 2941995 | G10: 1 | H10: 1 | I10: 50 | J10: 0.1 | K10: EC-S7H (リード=16mm)
A11: 8 | B11: 24000 | C11: 2941995 | D11: 2941995 | E11: 6864655 | F11: 2941995 | G11: 1 | H11: 1 | I11: 50 | J11: 0.1 | K11: EC-S7S (リード=24mm)
A12: 9 | B12: 3000 | C12: 2941995 | D12: 2941995 | E12: 6864655 | F12: 2941995 | G12: 1 | H12: 1 | I12: 50 | J12: 0.1 | K12: EC-R6L (リード=3mm)
A13: 10 | B13: 6000 | C13: 2941995 | D13: 2941995 | E13: 6864655 | F13: 2941995 | G13: 1 | H13: 1 | I13: 50 | J13: 0.1 | K13: EC-R6M (リード=6mm)
A14: 11 | B14: 12000 | C14: 2941995 | D14: 2941995 | E14: 6864655 | F14: 2941995 | G14: 1 | H14: 1 | I14: 50 | J14: 0.1 | K14: EC-R6H (リード=12mm)
A15: 12 | B15: 20000 | C15: 2941995 | D15: 2941995 | E15: 6864655 | F15: 2941995 | G15: 1 | H15: 1 | I15: 50 | J15: 0.1 | K15: EC-R6S (リード=20mm)
A16: 13 | B16: 4000 | C16: 2941995 | D16: 2941995 | E16: 6864655 | F16: 2941995 | G16: 1 | H16: 1 | I16: 50 | J16: 0.1 | K16: EC-R7L (リード=4mm)
A17: 14 | B17: 8000 | C17: 2941995 | D17: 2941995 | E17: 6864655 | F17: 2941995 | G17: 1 | H17: 1 | I17: 50 | J17: 0.1 | K17: EC-R7M (リード=8mm)
A18: 15 | B18: 16000 | C18: 2941995 | D18: 2941995 | E18: 6864655 | F18: 2941995 | G18: 1 | H18: 1 | I18: 50 | J18: 0.1 | K18: EC-R7H (リード=16mm)
A19: 16 | B19: 24000 | C19: 2941995 | D19: 2941995 | E19: 6864655 | F19: 2941995 | G19: 1 | H19: 1 | I19: 50 | J19: 0.1 | K19: EC-R7S (リード=24mm)
A20: 17 | B20: 2000 | C20: 2941995 | D20: 2941995 | E20: 2941995 | F20: 2941995 | G20: 1 | H20: 1 | I20: 20 | J20: 0.1 | K20: EC-RP4L (リード=2mm)
A21: 18 | B21: 4000 | C21: 2941995 | D21: 2941995 | E21: 4903325 | F21: 4903325 | G21: 1 | H21: 1 | I21: 20 | J21: 0.1 | K21: EC-RP4M (リード=4mm)
A22: 19 | B22: 6000 | C22: 2941995 | D22: 2941995 | E22: 4903325 | F22: 4903325 | G22: 1 | H22: 1 | I22: 20 | J22: 0.1 | K22: EC-RP4H (リード=6mm)
A23: 20 | B23: 2000 | C23: 2941995 | D23: 2941995 | E23: 2941995 | F23: 2941995 | G23: 1 | H23: 1 | I23: 20 | J23: 0.1 | K23: EC-GS4L (リード=2mm)
A24: 21 | B24: 4000 | C24: 2941995 | D24: 2941995 | E24: 4903325 | F24: 4903325 | G24: 1 | H24: 1 | I24: 20 | J24: 0.1 | K24: EC-GS4M (リード=4mm)
A25: 22 | B25: 6000 | C25: 2941995 | D25: 2941995 | E25: 4903325 | F25: 4903325 | G25: 1 | H25: 1 | I25: 20 | J25: 0.1 | K25: EC-GS4H (リード=6mm)
A26: 23 | B26: 2000 | C26: 2941995 | D26: 2941995 | E26: 2941995 | F26: 2941995 | G26: 1 | H26: 1 | I26: 20 | J26: 0.1 | K26: EC-GD4L (リード=2mm)
A27: 24 | B27: 4000 | C27: 2941995 | D27: 2941995 | E27: 4903325 | F27: 4903325 | G27: 1 | H27: 1 | I27: 20 | J27: 0.1 | K27: EC-GD4M (リード=4mm)
A28: 25 | B28: 6000 | C28: 2941995 | D28: 2941995 | E28: 4903325 | F28: 4903325 | G28: 1 | H28: 1 | I28: 20 | J28: 0.1 | K28: EC-GD4H (リード=6mm)
A29: 26 | B29: 2000 | C29: 2941995 | D29: 2941995 | E29: 2941995 | F29: 2941995 | G29: 1 | H29: 1 | I29: 20 | J29: 0.1 | K29: EC-TC4L (リード=2mm)
A30: 27 | B30: 4000 | C30: 2941995 | D30: 2941995 | E30: 4903325 | F30: 4903325 | G30: 1 | H30: 1 | I30: 20 | J30: 0.1 | K30: EC-TC4M (リード=4mm)
A31: 28 | B31: 6000 | C31: 2941995 | D31: 2941995 | E31: 4903325 | F31: 4903325 | G31: 1 | H31: 1 | I31: 20 | J31: 0.1 | K31: EC-TC4H (リード=6mm)
A32: 29 | B32: 2000 | C32: 2941995 | D32: 2941995 | E32: 2941995 | F32: 2941995 | G32: 1 | H32: 1 | I32: 20 | J32: 0.1 | K32: EC-TW4L (リード=2mm)
A33: 30 | B33: 4000 | C33: 2941995 | D33: 2941995 | E33: 4903325 | F33: 4903325 | G33: 1 | H33: 1 | I33: 20 | J33: 0.1 | K33: EC-TW4M (リード=4mm)
A34: 31 | B34: 6000 | C34: 2941995 | D34: 2941995 | E34: 4903325 | F34: 4903325 | G34: 1 | H34: 1 | I34: 20 | J34: 0.1 | K34: EC-TW4H (リード=6mm)
A35: 32 | B35: 3000 | C35: 2941995 | D35: 2941995 | E35: 6864655 | F35: 2941995 | G35: 1 | H35: 1 | I35: 50 | J35: 0.1 | K35: EC-RR6L (リード=3mm)
A36: 33 | B36: 6000 | C36: 2941995 | D36: 2941995 | E36: 6864655 | F36: 2941995 | G36: 1 | H36: 1 | I36: 50 | J36: 0.1 | K36: EC-RR6M (リード=6mm)
A37: 34 | B37: 12000 | C37: 2941995 | D37: 2941995 | E37: 6864655 | F37: 2941995 | G37: 1 | H37: 1 | I37: 50 | J37: 0.1 | K37: EC-RR6H (リード=12mm)
A38: 35 | B38: 20000 | C38: 2941995 | D38: 2941995 | E38: 6864655 | F38: 2941995 | G38: 1 | H38: 1 | I38: 50 | J38: 0.1 | K38: EC-RR6S (リード=20mm)
A39: 36 | B39: 4000 | C39: 2941995 | D39: 2941995 | E39: 6864655 | F39: 2941995 | G39: 1 | H39: 1 | I39: 50 | J39: 0.1 | K39: EC-RR7L (リード=4mm)
A40: 37 | B40: 8000 | C40: 2941995 | D40: 2941995 | E40: 6864655 | F40: 2941995 | G40: 1 | H40: 1 | I40: 50 | J40: 0.1 | K40: EC-RR7M (リード=8mm)
A41: 38 | B41: 16000 | C41: 2941995 | D41: 2941995 | E41: 6864655 | F41: 2941995 | G41: 1 | H41: 1 | I41: 50 | J41: 0.1 | K41: EC-RR7H (リード=16mm)
A42: 39 | B42: 24000 | C42: 2941995 | D42: 2941995 | E42: 6864655 | F42: 2941995 | G42: 1 | H42: 1 | I42: 50 | J42: 0.1 | K42: EC-RR7S (リード=24mm)
A43: 40 | B43: 3000 | C43: 2941995 | D43: 2941995 | E43: 6864655 | F43: 2941995 | G43: 1 | H43: 1 | I43: 50 | J43: 0.1 | K43: EC-R6LW (リード=3mm)
A44: 41 | B44: 6000 | C44: 2941995 | D44: 2941995 | E44: 6864655 | F44: 2941995 | G44: 1 | H44: 1 | I44: 50 | J44: 0.1 | K44: EC-R6MW (リード=6mm)
A45: 42 | B45: 12000 | C45: 2941995 | D45: 2941995 | E45: 6864655 | F45: 2941995 | G45: 1 | H45: 1 | I45: 50 | J45: 0.1 | K45: EC-R6HW (リード=12mm)
A46: 43 | B46: 20000 | C46: 2941995 | D46: 2941995 | E46: 6864655 | F46: 2941995 | G46: 1 | H46: 1 | I46: 50 | J46: 0.1 | K46: EC-R6SW (リード=20mm)
A47: 44 | B47: 4000 | C47: 2941995 | D47: 2941995 | E47: 6864655 | F47: 2941995 | G47: 1 | H47: 1 | I47: 50 | J47: 0.1 | K47: EC-R7LW (リード=4mm)
A48: 45 | B48: 8000 | C48: 2941995 | D48: 2941995 | E48: 6864655 | F48: 2941995 | G48: 1 | H48: 1 | I48: 50 | J48: 0.1 | K48: EC-R7MW (リード=8mm)
A49: 46 | B49: 16000 | C49: 2941995 | D49: 2941995 | E49: 6864655 | F49: 2941995 | G49: 1 | H49: 1 | I49: 50 | J49: 0.1 | K49: EC-R7HW (リード=16mm)
A50: 47 | B50: 24000 | C50: 2941995 | D50: 2941995 | E50: 6864655 | F50: 2941995 | G50: 1 | H50: 1 | I50: 50 | J50: 0.1 | K50: EC-R7SW (リード=24mm)
A51: 48 | B51: 3000 | C51: 2941995 | D51: 2941995 | E51: 6864655 | F51: 2941995 | G51: 1 | H51: 1 | I51: 50 | J51: 0.1 | K51: EC-S6LH (リード=3mm)
A52: 49 | B52: 6000 | C52: 2941995 | D52: 2941995 | E52: 6864655 | F52: 2941995 | G52: 1 | H52: 1 | I52: 50 | J52: 0.1 | K52: EC-S6MH (リード=6mm)
A53: 50 | B53: 12000 | C53: 2941995 | D53: 2941995 | E53: 6864655 | F53: 2941995 | G53: 1 | H53: 1 | I53: 50 | J53: 0.1 | K53: EC-S6HH (リード=12mm)
A54: 51 | B54: 20000 | C54: 2941995 | D54: 2941995 | E54: 6864655 | F54: 2941995 | G54: 1 | H54: 1 | I54: 50 | J54: 0.1 | K54: EC-S6SH (リード=20mm)
A55: 52 | B55: 4000 | C55: 2941995 | D55: 2941995 | E55: 6864655 | F55: 2941995 | G55: 1 | H55: 1 | I55: 50 | J55: 0.1 | K55: EC-S7LH (リード=4mm)
A56: 53 | B56: 8000 | C56: 2941995 | D56: 2941995 | E56: 6864655 | F56: 2941995 | G56: 1 | H56: 1 | I56: 50 | J56: 0.1 | K56: EC-S7MH (リード=8mm)
A57: 54 | B57: 16000 | C57: 2941995 | D57: 2941995 | E57: 6864655 | F57: 2941995 | G57: 1 | H57: 1 | I57: 50 | J57: 0.1 | K57: EC-S7HH (リード=16mm)
A58: 55 | B58: 24000 | C58: 2941995 | D58: 2941995 | E58: 6864655 | F58: 2941995 | G58: 1 | H58: 1 | I58: 50 | J58: 0.1 | K58: EC-S7SH (リード=24mm)
A59: 56 | B59: 3000 | C59: 2941995 | D59: 2941995 | E59: 6864655 | F59: 2941995 | G59: 1 | H59: 1 | I59: 50 | J59: 0.1 | K59: EC-RR6LH (リード=3mm)
A60: 57 | B60: 6000 | C60: 2941995 | D60: 2941995 | E60: 6864655 | F60: 2941995 | G60: 1 | H60: 1 | I60: 50 | J60: 0.1 | K60: EC-RR6MH (リード=6mm)
A61: 58 | B61: 12000 | C61: 2941995 | D61: 2941995 | E61: 6864655 | F61: 2941995 | G61: 1 | H61: 1 | I61: 50 | J61: 0.1 | K61: EC-RR6HH (リード=12mm)
A62: 59 | B62: 20000 | C62: 2941995 | D62: 2941995 | E62: 6864655 | F62: 2941995 | G62: 1 | H62: 1 | I62: 50 | J62: 0.1 | K62: EC-RR6SH (リード=20mm)
A63: 60 | B63: 4000 | C63: 2941995 | D63: 2941995 | E63: 6864655 | F63: 2941995 | G63: 1 | H63: 1 | I63: 50 | J63: 0.1 | K63: EC-RR7LH (リード=4mm)
A64: 61 | B64: 8000 | C64: 2941995 | D64: 2941995 | E64: 6864655 | F64: 2941995 | G64: 1 | H64: 1 | I64: 50 | J64: 0.1 | K64: EC-RR7MH (リード=8mm)
A65: 62 | B65: 16000 | C65: 2941995 | D65: 2941995 | E65: 6864655 | F65: 2941995 | G65: 1 | H65: 1 | I65: 50 | J65: 0.1 | K65: EC-RR7HH (リード=16mm)
A66: 63 | B66: 24000 | C66: 2941995 | D66: 2941995 | E66: 6864655 | F66: 2941995 | G66: 1 | H66: 1 | I66: 50 | J66: 0.1 | K66: EC-RR7SH (リード=24mm)
A67: 64 | B67: 3000 | C67: 2941995 | D67: 2941995 | E67: 6864655 | F67: 2941995 | G67: 1 | H67: 1 | I67: 50 | J67: 0.1 | K67: EC-S6LAH (リード=3mm)
A68: 65 | B68: 6000 | C68: 2941995 | D68: 2941995 | E68: 6864655 | F68: 2941995 | G68: 1 | H68: 1 | I68: 50 | J68: 0.1 | K68: EC-S6MAH (リード=6mm)
A69: 66 | B69: 12000 | C69: 2941995 | D69: 2941995 | E69: 6864655 | F69: 2941995 | G69: 1 | H69: 1 | I69: 50 | J69: 0.1 | K69: EC-S6HAH (リード=12mm)
A70: 67 | B70: 20000 | C70: 2941995 | D70: 2941995 | E70: 6864655 | F70: 2941995 | G70: 1 | H70: 1 | I70: 50 | J70: 0.1 | K70: EC-S6SAH (リード=20mm)
A71: 68 | B71: 4000 | C71: 2941995 | D71: 2941995 | E71: 6864655 | F71: 2941995 | G71: 1 | H71: 1 | I71: 50 | J71: 0.1 | K71: EC-S7LAH (リード=4mm)
A72: 69 | B72: 8000 | C72: 2941995 | D72: 2941995 | E72: 6864655 | F72: 2941995 | G72: 1 | H72: 1 | I72: 50 | J72: 0.1 | K72: EC-S7MAH (リード=8mm)
A73: 70 | B73: 16000 | C73: 2941995 | D73: 2941995 | E73: 6864655 | F73: 2941995 | G73: 1 | H73: 1 | I73: 50 | J73: 0.1 | K73: EC-S7HAH (リード=16mm)
A74: 71 | B74: 24000 | C74: 2941995 | D74: 2941995 | E74: 6864655 | F74: 2941995 | G74: 1 | H74: 1 | I74: 50 | J74: 0.1 | K74: EC-S7SAH (リード=24mm)
A75: 72 | B75: 3000 | C75: 2941995 | D75: 2941995 | E75: 6864655 | F75: 2941995 | G75: 1 | H75: 1 | I75: 50 | J75: 0.1 | K75: EC-RR6LAH (リード=3mm)
A76: 73 | B76: 6000 | C76: 2941995 | D76: 2941995 | E76: 6864655 | F76: 2941995 | G76: 1 | H76: 1 | I76: 50 | J76: 0.1 | K76: EC-RR6MAH (リード=6mm)
A77: 74 | B77: 12000 | C77: 2941995 | D77: 2941995 | E77: 6864655 | F77: 2941995 | G77: 1 | H77: 1 | I77: 50 | J77: 0.1 | K77: EC-RR6HAH (リード=12mm)
A78: 75 | B78: 20000 | C78: 2941995 | D78: 2941995 | E78: 6864655 | F78: 2941995 | G78: 1 | H78: 1 | I78: 50 | J78: 0.1 | K78: EC-RR6SAH (リード=20mm)
A79: 76 | B79: 4000 | C79: 2941995 | D79: 2941995 | E79: 6864655 | F79: 2941995 | G79: 1 | H79: 1 | I79: 50 | J79: 0.1 | K79: EC-RR7LAH (リード=4mm)
A80: 77 | B80: 8000 | C80: 2941995 | D80: 2941995 | E80: 6864655 | F80: 2941995 | G80: 1 | H80: 1 | I80: 50 | J80: 0.1 | K80: EC-RR7MAH (リード=8mm)
A81: 78 | B81: 16000 | C81: 2941995 | D81: 2941995 | E81: 6864655 | F81: 2941995 | G81: 1 | H81: 1 | I81: 50 | J81: 0.1 | K81: EC-RR7HAH (リード=16mm)
A82: 79 | B82: 24000 | C82: 2941995 | D82: 2941995 | E82: 6864655 | F82: 2941995 | G82: 1 | H82: 1 | I82: 50 | J82: 0.1 | K82: EC-RR7SAH (リード=24mm)
A83: 80 | B83: 3000 | C83: 2941995 | D83: 2941995 | E83: 6864655 | F83: 2941995 | G83: 1 | H83: 1 | I83: 50 | J83: 0.1 | K83: EC-S6LR (リード=3mm)
A84: 81 | B84: 6000 | C84: 2941995 | D84: 2941995 | E84: 6864655 | F84: 2941995 | G84: 1 | H84: 1 | I84: 50 | J84: 0.1 | K84: EC-S6MR (リード=6mm)
A85: 82 | B85: 12000 | C85: 2941995 | D85: 2941995 | E85: 6864655 | F85: 2941995 | G85: 1 | H85: 1 | I85: 50 | J85: 0.1 | K85: EC-S6HR (リード=12mm)
A86: 83 | B86: 20000 | C86: 2941995 | D86: 2941995 | E86: 6864655 | F86: 2941995 | G86: 1 | H86: 1 | I86: 50 | J86: 0.1 | K86: EC-S6SR (リード=20mm)
A87: 84 | B87: 4000 | C87: 2941995 | D87: 2941995 | E87: 6864655 | F87: 2941995 | G87: 1 | H87: 1 | I87: 50 | J87: 0.1 | K87: EC-S7LR (リード=4mm)
A88: 85 | B88: 8000 | C88: 2941995 | D88: 2941995 | E88: 6864655 | F88: 2941995 | G88: 1 | H88: 1 | I88: 50 | J88: 0.1 | K88: EC-S7MR (リード=8mm)
A89: 86 | B89: 16000 | C89: 2941995 | D89: 2941995 | E89: 6864655 | F89: 2941995 | G89: 1 | H89: 1 | I89: 50 | J89: 0.1 | K89: EC-S7HR (リード=16mm)
A90: 87 | B90: 24000 | C90: 2941995 | D90: 2941995 | E90: 6864655 | F90: 2941995 | G90: 1 | H90: 1 | I90: 50 | J90: 0.1 | K90: EC-S7SR (リード=24mm)
A91: 88 | B91: 3000 | C91: 2941995 | D91: 2941995 | E91: 6864655 | F91: 2941995 | G91: 1 | H91: 1 | I91: 50 | J91: 0.1 | K91: EC-S6LAHR (リード=3mm)
A92: 89 | B92: 6000 | C92: 2941995 | D92: 2941995 | E92: 6864655 | F92: 2941995 | G92: 1 | H92: 1 | I92: 50 | J92: 0.1 | K92: EC-S6MAHR (リード=6mm)
A93: 90 | B93: 12000 | C93: 2941995 | D93: 2941995 | E93: 6864655 | F93: 2941995 | G93: 1 | H93: 1 | I93: 50 | J93: 0.1 | K93: EC-S6HAHR (リード=12mm)
A94: 91 | B94: 20000 | C94: 2941995 | D94: 2941995 | E94: 6864655 | F94: 2941995 | G94: 1 | H94: 1 | I94: 50 | J94: 0.1 | K94: EC-S6SAHR (リード=20mm)
A95: 92 | B95: 4000 | C95: 2941995 | D95: 2941995 | E95: 6864655 | F95: 2941995 | G95: 1 | H95: 1 | I95: 50 | J95: 0.1 | K95: EC-S7LAHR (リード=4mm)
A96: 93 | B96: 8000 | C96: 2941995 | D96: 2941995 | E96: 6864655 | F96: 2941995 | G96: 1 | H96: 1 | I96: 50 | J96: 0.1 | K96: EC-S7MAHR (リード=8mm)
A97: 94 | B97: 16000 | C97: 2941995 | D97: 2941995 | E97: 6864655 | F97: 2941995 | G97: 1 | H97: 1 | I97: 50 | J97: 0.1 | K97: EC-S7HAHR (リード=16mm)
A98: 95 | B98: 24000 | C98: 2941995 | D98: 2941995 | E98: 6864655 | F98: 2941995 | G98: 1 | H98: 1 | I98: 50 | J98: 0.1 | K98: EC-S7SAHR (リード=24mm)
A99: 96 | B99: 3000 | C99: 2941995 | D99: 2941995 | E99: 6864655 | F99: 2941995 | G99: 1 | H99: 1 | I99: 50 | J99: 0.1 | K99: EC-RR6LR (リード=3mm)
A100: 97 | B100: 6000 | C100: 2941995 | D100: 2941995 | E100: 6864655 | F100: 2941995 | G100: 1 | H100: 1 | I100: 50 | J100: 0.1 | K100: EC-RR6MR (リード=6mm)
A101: 98 | B101: 12000 | C101: 2941995 | D101: 2941995 | E101: 6864655 | F101: 2941995 | G101: 1 | H101: 1 | I101: 50 | J101: 0.1 | K101: EC-RR6HR (リード=12mm)
A102: 99 | B102: 20000 | C102: 2941995 | D102: 2941995 | E102: 6864655 | F102: 2941995 | G102: 1 | H102: 1 | I102: 50 | J102: 0.1 | K102: EC-RR6SR (リード=20mm)
A103: 100 | B103: 4000 | C103: 2941995 | D103: 2941995 | E103: 6864655 | F103: 2941995 | G103: 1 | H103: 1 | I103: 50 | J103: 0.1 | K103: EC-RR7LR (リード=4mm)
A104: 101 | B104: 8000 | C104: 2941995 | D104: 2941995 | E104: 6864655 | F104: 2941995 | G104: 1 | H104: 1 | I104: 50 | J104: 0.1 | K104: EC-RR7MR (リード=8mm)
A105: 102 | B105: 16000 | C105: 2941995 | D105: 2941995 | E105: 6864655 | F105: 2941995 | G105: 1 | H105: 1 | I105: 50 | J105: 0.1 | K105: EC-RR7HR (リード=16mm)
A106: 103 | B106: 24000 | C106: 2941995 | D106: 2941995 | E106: 6864655 | F106: 2941995 | G106: 1 | H106: 1 | I106: 50 | J106: 0.1 | K106: EC-RR7SR (リード=24mm)
A107: 104 | B107: 3000 | C107: 2941995 | D107: 2941995 | E107: 6864655 | F107: 2941995 | G107: 1 | H107: 1 | I107: 50 | J107: 0.1 | K107: EC-RR6LAHR (リード=3mm)
A108: 105 | B108: 6000 | C108: 2941995 | D108: 2941995 | E108: 6864655 | F108: 2941995 | G108: 1 | H108: 1 | I108: 50 | J108: 0.1 | K108: EC-RR6MAHR (リード=6mm)
A109: 106 | B109: 12000 | C109: 2941995 | D109: 2941995 | E109: 6864655 | F109: 2941995 | G109: 1 | H109: 1 | I109: 50 | J109: 0.1 | K109: EC-RR6HAHR (リード=12mm)
A110: 107 | B110: 20000 | C110: 2941995 | D110: 2941995 | E110: 6864655 | F110: 2941995 | G110: 1 | H110: 1 | I110: 50 | J110: 0.1 | K110: EC-RR6SAHR (リード=20mm)
A111: 108 | B111: 4000 | C111: 2941995 | D111: 2941995 | E111: 6864655 | F111: 2941995 | G111: 1 | H111: 1 | I111: 50 | J111: 0.1 | K111: EC-RR7LAHR (リード=4mm)
A112: 109 | B112: 8000 | C112: 2941995 | D112: 2941995 | E112: 6864655 | F112: 2941995 | G112: 1 | H112: 1 | I112: 50 | J112: 0.1 | K112: EC-RR7MAHR (リード=8mm)
A113: 110 | B113: 16000 | C113: 2941995 | D113: 2941995 | E113: 6864655 | F113: 2941995 | G113: 1 | H113: 1 | I113: 50 | J113: 0.1 | K113: EC-RR7HAHR (リード=16mm)
A114: 111 | B114: 24000 | C114: 2941995 | D114: 2941995 | E114: 6864655 | F114: 2941995 | G114: 1 | H114: 1 | I114: 50 | J114: 0.1 | K114: EC-RR7SAHR (リード=24mm)
A115: 112 | B115: 2000 | C115: 2941995 | D115: 2941995 | E115: 2941995 | F115: 2941995 | G115: 1 | H115: 1 | I115: 50 | J115: 0.1 | K115: EC-S3L (リード=2mm)
A116: 113 | B116: 4000 | C116: 2941995 | D116: 2941995 | E116: 2941995 | F116: 2941995 | G116: 1 | H116: 1 | I116: 50 | J116: 0.1 | K116: EC-S3M (リード=4mm)
A117: 114 | B117: 6000 | C117: 2941995 | D117: 2941995 | E117: 4903325 | F117: 2941995 | G117: 1 | H117: 1 | I117: 50 | J117: 0.1 | K117: EC-S3H (リード=6mm)
A118: 115 | B118: 2500 | C118: 2941995 | D118: 2941995 | E118: 2941995 | F118: 2941995 | G118: 1 | H118: 1 | I118: 50 | J118: 0.1 | K118: EC-S4L (リード=2.5mm)
A119: 116 | B119: 5000 | C119: 2941995 | D119: 2941995 | E119: 2941995 | F119: 2941995 | G119: 1 | H119: 1 | I119: 50 | J119: 0.1 | K119: EC-S4M (リード=5mm)
A120: 117 | B120: 10000 | C120: 2941995 | D120: 2941995 | E120: 6864655 | F120: 2941995 | G120: 1 | H120: 1 | I120: 50 | J120: 0.1 | K120: EC-S4H (リード=10mm)
A121: 118 | B121: 16000 | C121: 2941995 | D121: 2941995 | E121: 6864655 | F121: 2941995 | G121: 1 | H121: 1 | I121: 50 | J121: 0.1 | K121: EC-S4S (リード=16mm)
A122: 119 | B122: 2000 | C122: 2941995 | D122: 2941995 | E122: 2941995 | F122: 2941995 | G122: 1 | H122: 1 | I122: 50 | J122: 0.1 | K122: EC-RR3L (リード=2mm)
A123: 120 | B123: 4000 | C123: 2941995 | D123: 2941995 | E123: 2941995 | F123: 2941995 | G123: 1 | H123: 1 | I123: 50 | J123: 0.1 | K123: EC-RR3M (リード=4mm)
A124: 121 | B124: 6000 | C124: 2941995 | D124: 2941995 | E124: 4903325 | F124: 2941995 | G124: 1 | H124: 1 | I124: 50 | J124: 0.1 | K124: EC-RR3H (リード=6mm)
A125: 122 | B125: 2500 | C125: 2941995 | D125: 2941995 | E125: 2941995 | F125: 2941995 | G125: 1 | H125: 1 | I125: 50 | J125: 0.1 | K125: EC-RR4L (リード=2.5mm)
A126: 123 | B126: 5000 | C126: 2941995 | D126: 2941995 | E126: 2941995 | F126: 2941995 | G126: 1 | H126: 1 | I126: 50 | J126: 0.1 | K126: EC-RR4M (リード=5mm)
A127: 124 | B127: 10000 | C127: 2941995 | D127: 2941995 | E127: 6864655 | F127: 2941995 | G127: 1 | H127: 1 | I127: 50 | J127: 0.1 | K127: EC-RR4H (リード=10mm)
A128: 125 | B128: 16000 | C128: 2941995 | D128: 2941995 | E128: 6864655 | F128: 2941995 | G128: 1 | H128: 1 | I128: 50 | J128: 0.1 | K128: EC-RR4S (リード=16mm)
A129: 126 | B129: 3000 | C129: 2941995 | D129: 2941995 | E129: 6864655 | F129: 2941995 | G129: 1 | H129: 1 | I129: 50 | J129: 0.1 | K129: EC-RR6LW (リード=3mm)
A130: 127 | B130: 6000 | C130: 2941995 | D130: 2941995 | E130: 6864655 | F130: 2941995 | G130: 1 | H130: 1 | I130: 50 | J130: 0.1 | K130: EC-RR6MW (リード=6mm)
A131: 128 | B131: 12000 | C131: 2941995 | D131: 2941995 | E131: 6864655 | F131: 2941995 | G131: 1 | H131: 1 | I131: 50 | J131: 0.1 | K131: EC-RR6HW (リード=12mm)
A132: 129 | B132: 20000 | C132: 2941995 | D132: 2941995 | E132: 6864655 | F132: 2941995 | G132: 1 | H132: 1 | I132: 50 | J132: 0.1 | K132: EC-RR6SW (リード=20mm)
A133: 130 | B133: 4000 | C133: 2941995 | D133: 2941995 | E133: 6864655 | F133: 2941995 | G133: 1 | H133: 1 | I133: 50 | J133: 0.1 | K133: EC-RR7LW (リード=4mm)
A134: 131 | B134: 8000 | C134: 2941995 | D134: 2941995 | E134: 6864655 | F134: 2941995 | G134: 1 | H134: 1 | I134: 50 | J134: 0.1 | K134: EC-RR7MW (リード=8mm)
A135: 132 | B135: 16000 | C135: 2941995 | D135: 2941995 | E135: 6864655 | F135: 2941995 | G135: 1 | H135: 1 | I135: 50 | J135: 0.1 | K135: EC-RR7HW (リード=16mm)
A136: 133 | B136: 24000 | C136: 2941995 | D136: 2941995 | E136: 6864655 | F136: 2941995 | G136: 1 | H136: 1 | I136: 50 | J136: 0.1 | K136: EC-RR7SW (リード=24mm)
A137: 134 | B137: 48000 | C137: 2941995 | D137: -1 | E137: 6864655 | F137: -1 | G137: 1 | H137: 1 | I137: 100 | J137: 0.1 | K137: EC-B6S | L137: ↓Ver.1.1 追加
A138: 135 | B138: 48000 | C138: 2941995 | D138: -1 | E138: 6864655 | F138: -1 | G138: 1 | H138: 1 | I138: 100 | J138: 0.1 | K138: EC-B6SU
A139: 136 | B139: 48000 | C139: 2941995 | D139: -1 | E139: 6864655 | F139: -1 | G139: 1 | H139: 1 | I139: 100 | J139: 0.1 | K139: EC-B7S
A140: 137 | B140: 48000 | C140: 2941995 | D140: -1 | E140: 6864655 | F140: -1 | G140: 1 | H140: 1 | I140: 100 | J140: 0.1 | K140: EC-B7SU
A141: 138 | B141: 2000 | C141: 2941995 | D141: 2941995 | E141: 2941995 | F141: 2941995 | G141: 1 | H141: 1 | I141: 50 | J141: 0.1 | K141: EC-S3LR
A142: 139 | B142: 4000 | C142: 2941995 | D142: 2941995 | E142: 2941995 | F142: 2941995 | G142: 1 | H142: 1 | I142: 50 | J142: 0.1 | K142: EC-S3MR
A143: 140 | B143: 6000 | C143: 2941995 | D143: 2941995 | E143: 4903325 | F143: 2941995 | G143: 1 | H143: 1 | I143: 50 | J143: 0.1 | K143: EC-S3HR
A144: 141 | B144: 2500 | C144: 2941995 | D144: 2941995 | E144: 2941995 | F144: 2941995 | G144: 1 | H144: 1 | I144: 50 | J144: 0.1 | K144: EC-S4LR
A145: 142 | B145: 5000 | C145: 2941995 | D145: 2941995 | E145: 2941995 | F145: 2941995 | G145: 1 | H145: 1 | I145: 50 | J145: 0.1 | K145: EC-S4MR
A146: 143 | B146: 10000 | C146: 2941995 | D146: 2941995 | E146: 6864655 | F146: 2941995 | G146: 1 | H146: 1 | I146: 50 | J146: 0.1 | K146: EC-S4HR
A147: 144 | B147: 16000 | C147: 2941995 | D147: 2941995 | E147: 6864655 | F147: 2941995 | G147: 1 | H147: 1 | I147: 50 | J147: 0.1 | K147: EC-S4SR
A148: 145 | B148: 2000 | C148: 2941995 | D148: 2941995 | E148: 2941995 | F148: 2941995 | G148: 1 | H148: 1 | I148: 50 | J148: 0.1 | K148: EC-RR3LR
A149: 146 | B149: 4000 | C149: 2941995 | D149: 2941995 | E149: 2941995 | F149: 2941995 | G149: 1 | H149: 1 | I149: 50 | J149: 0.1 | K149: EC-RR3MR
A150: 147 | B150: 6000 | C150: 2941995 | D150: 2941995 | E150: 4903325 | F150: 2941995 | G150: 1 | H150: 1 | I150: 50 | J150: 0.1 | K150: EC-RR3HR
A151: 148 | B151: 2500 | C151: 2941995 | D151: 2941995 | E151: 2941995 | F151: 2941995 | G151: 1 | H151: 1 | I151: 50 | J151: 0.1 | K151: EC-RR4LR
A152: 149 | B152: 5000 | C152: 2941995 | D152: 2941995 | E152: 2941995 | F152: 2941995 | G152: 1 | H152: 1 | I152: 50 | J152: 0.1 | K152: EC-RR4MR
A153: 150 | B153: 10000 | C153: 2941995 | D153: 2941995 | E153: 6864655 | F153: 2941995 | G153: 1 | H153: 1 | I153: 50 | J153: 0.1 | K153: EC-RR4HR
A154: 151 | B154: 16000 | C154: 2941995 | D154: 2941995 | E154: 6864655 | F154: 2941995 | G154: 1 | H154: 1 | I154: 50 | J154: 0.1 | K154: EC-RR4SR
A155: 152 | B155: 3000 | C155: 2941995 | D155: 2941995 | E155: 4903325 | F155: 2941995 | G155: 1 | H155: 1 | I155: 50 | J155: 0.1 | K155: EC-ST15L
A156: 153 | B156: 45000 | C156: 2941995 | D156: 2941995 | E156: 4903325 | F156: 2941995 | G156: 1 | H156: 45 | I156: 330 | J156: 0.1 | K156: EC-RTC9
A157: 154 | B157: 45000 | C157: 2941995 | D157: 2941995 | E157: 4903325 | F157: 2941995 | G157: 1 | H157: 45 | I157: 330 | J157: 0.1 | K157: EC-RTC12 | L157: ↑Ver.1.1 追加
A158: 155 | B158: 2000 | C158: 2941995 | D158: 2941995 | E158: 2941995 | F158: 2941995 | G158: 1 | H158: 1 | I158: 20 | J158: 0.1 | K158: EC-RP4L | L158: ↓Ver.1.2 追加
A159: 156 | B159: 4000 | C159: 2941995 | D159: 2941995 | E159: 9806650 | F159: 4903325 | G159: 1 | H159: 1 | I159: 20 | J159: 0.1 | K159: EC-RP4M
A160: 157 | B160: 6000 | C160: 2941995 | D160: 2941995 | E160: 9806650 | F160: 4903325 | G160: 1 | H160: 1 | I160: 20 | J160: 0.1 | K160: EC-RP4H
A161: 158 | B161: 2000 | C161: 2941995 | D161: 2941995 | E161: 2941995 | F161: 2941995 | G161: 1 | H161: 1 | I161: 20 | J161: 0.1 | K161: EC-GS4L
A162: 159 | B162: 4000 | C162: 2941995 | D162: 2941995 | E162: 9806650 | F162: 4903325 | G162: 1 | H162: 1 | I162: 20 | J162: 0.1 | K162: EC-GS4M
A163: 160 | B163: 6000 | C163: 2941995 | D163: 2941995 | E163: 9806650 | F163: 4903325 | G163: 1 | H163: 1 | I163: 20 | J163: 0.1 | K163: EC-GS4H
A164: 161 | B164: 2000 | C164: 2941995 | D164: 2941995 | E164: 2941995 | F164: 2941995 | G164: 1 | H164: 1 | I164: 20 | J164: 0.1 | K164: EC-GD4L
A165: 162 | B165: 4000 | C165: 2941995 | D165: 2941995 | E165: 9806650 | F165: 4903325 | G165: 1 | H165: 1 | I165: 20 | J165: 0.1 | K165: EC-GD4M
A166: 163 | B166: 6000 | C166: 2941995 | D166: 2941995 | E166: 9806650 | F166: 4903325 | G166: 1 | H166: 1 | I166: 20 | J166: 0.1 | K166: EC-GD4H
A167: 164 | B167: 2000 | C167: 2941995 | D167: 2941995 | E167: 2941995 | F167: 2941995 | G167: 1 | H167: 1 | I167: 20 | J167: 0.1 | K167: EC-TC4L
A168: 165 | B168: 4000 | C168: 2941995 | D168: 2941995 | E168: 9806650 | F168: 4903325 | G168: 1 | H168: 1 | I168: 20 | J168: 0.1 | K168: EC-TC4M
A169: 166 | B169: 6000 | C169: 2941995 | D169: 2941995 | E169: 9806650 | F169: 4903325 | G169: 1 | H169: 1 | I169: 20 | J169: 0.1 | K169: EC-TC4H
A170: 167 | B170: 2000 | C170: 2941995 | D170: 2941995 | E170: 2941995 | F170: 2941995 | G170: 1 | H170: 1 | I170: 20 | J170: 0.1 | K170: EC-TW4L
A171: 168 | B171: 4000 | C171: 2941995 | D171: 2941995 | E171: 9806650 | F171: 4903325 | G171: 1 | H171: 1 | I171: 20 | J171: 0.1 | K171: EC-TW4M
A172: 169 | B172: 6000 | C172: 2941995 | D172: 2941995 | E172: 9806650 | F172: 4903325 | G172: 1 | H172: 1 | I172: 20 | J172: 0.1 | K172: EC-TW4H | L172: ↑Ver.1.2 追加
A173: 170 | B173: 3000 | C173: 2941995 | D173: 2941995 | E173: 2941995 | F173: 2941995 | G173: 1 | H173: 1 | I173: 50 | J173: 0.1 | K173: EC-WS10L | L173: ↓Ver.1.3 追加
A174: 171 | B174: 6000 | C174: 2941995 | D174: 2941995 | E174: 2941995 | F174: 2941995 | G174: 1 | H174: 1 | I174: 50 | J174: 0.1 | K174: EC-WS10M
A175: 172 | B175: 12000 | C175: 2941995 | D175: -1 | E175: 6864655 | F175: -1 | G175: 1 | H175: 1 | I175: 50 | J175: 0.1 | K175: EC-WS10H
A176: 173 | B176: 20000 | C176: 2941995 | D176: -1 | E176: 6864655 | F176: -1 | G176: 1 | H176: 1 | I176: 50 | J176: 0.1 | K176: EC-WS10S
A177: 174 | B177: 4000 | C177: 2941995 | D177: 2941995 | E177: 2941995 | F177: 2941995 | G177: 1 | H177: 1 | I177: 50 | J177: 0.1 | K177: EC-WS12L
A178: 175 | B178: 8000 | C178: 2941995 | D178: 2941995 | E178: 2941995 | F178: 2941995 | G178: 1 | H178: 1 | I178: 50 | J178: 0.1 | K178: EC-WS12M
A179: 176 | B179: 16000 | C179: 2941995 | D179: -1 | E179: 6864655 | F179: -1 | G179: 1 | H179: 1 | I179: 50 | J179: 0.1 | K179: EC-WS12H
A180: 177 | B180: 24000 | C180: 2941995 | D180: -1 | E180: 6864655 | F180: -1 | G180: 1 | H180: 1 | I180: 50 | J180: 0.1 | K180: EC-WS12S
A181: 178 | B181: 2500 | C181: 2941995 | D181: 2941995 | E181: 2941995 | F181: 2941995 | G181: 1 | H181: 1 | I181: 50 | J181: 0.1 | K181: EC-RP5L
A182: 179 | B182: 5000 | C182: 2941995 | D182: 2941995 | E182: 2941995 | F182: 2941995 | G182: 1 | H182: 1 | I182: 50 | J182: 0.1 | K182: EC-RP5M
A183: 180 | B183: 10000 | C183: 2941995 | D183: 2941995 | E183: 6864655 | F183: 2941995 | G183: 1 | H183: 1 | I183: 50 | J183: 0.1 | K183: EC-RP5H
A184: 181 | B184: 16000 | C184: 2941995 | D184: 2941995 | E184: 6864655 | F184: 2941995 | G184: 1 | H184: 1 | I184: 50 | J184: 0.1 | K184: EC-RP5S
A185: 182 | B185: 2500 | C185: 2941995 | D185: 2941995 | E185: 2941995 | F185: 2941995 | G185: 1 | H185: 1 | I185: 50 | J185: 0.1 | K185: EC-GD5L
A186: 183 | B186: 5000 | C186: 2941995 | D186: 2941995 | E186: 2941995 | F186: 2941995 | G186: 1 | H186: 1 | I186: 50 | J186: 0.1 | K186: EC-GD5M
A187: 184 | B187: 10000 | C187: 2941995 | D187: 2941995 | E187: 6864655 | F187: 2941995 | G187: 1 | H187: 1 | I187: 50 | J187: 0.1 | K187: EC-GD5H
A188: 185 | B188: 16000 | C188: 2941995 | D188: 2941995 | E188: 6864655 | F188: 2941995 | G188: 1 | H188: 1 | I188: 50 | J188: 0.1 | K188: EC-GD5S
A189: 186 | B189: 2500 | C189: 2941995 | D189: 2941995 | E189: 2941995 | F189: 2941995 | G189: 1 | H189: 1 | I189: 50 | J189: 0.1 | K189: EC-TC5L(50st)
A190: 187 | B190: 2500 | C190: 2941995 | D190: 2941995 | E190: 2941995 | F190: 2941995 | G190: 1 | H190: 1 | I190: 50 | J190: 0.1 | K190: EC-TC5L(100st)
A191: 188 | B191: 2500 | C191: 2941995 | D191: 2941995 | E191: 2941995 | F191: 2941995 | G191: 1 | H191: 1 | I191: 50 | J191: 0.1 | K191: EC-TC5L(150st)
A192: 189 | B192: 5000 | C192: 2941995 | D192: 2941995 | E192: 2941995 | F192: 2941995 | G192: 1 | H192: 1 | I192: 50 | J192: 0.1 | K192: EC-TC5M(50st)
A193: 190 | B193: 5000 | C193: 2941995 | D193: 2941995 | E193: 2941995 | F193: 2941995 | G193: 1 | H193: 1 | I193: 50 | J193: 0.1 | K193: EC-TC5M(100st)
A194: 191 | B194: 5000 | C194: 2941995 | D194: 2941995 | E194: 2941995 | F194: 2941995 | G194: 1 | H194: 1 | I194: 50 | J194: 0.1 | K194: EC-TC5M(150st)
A195: 192 | B195: 10000 | C195: 2941995 | D195: 2941995 | E195: 6864655 | F195: 2941995 | G195: 1 | H195: 1 | I195: 50 | J195: 0.1 | K195: EC-TC5H(50st)
A196: 193 | B196: 10000 | C196: 2941995 | D196: 2941995 | E196: 6864655 | F196: 2941995 | G196: 1 | H196: 1 | I196: 50 | J196: 0.1 | K196: EC-TC5H(100st)
A197: 194 | B197: 10000 | C197: 2941995 | D197: 2941995 | E197: 6864655 | F197: 2941995 | G197: 1 | H197: 1 | I197: 50 | J197: 0.1 | K197: EC-TC5H(150st)
A198: 195 | B198: 16000 | C198: 2941995 | D198: 2941995 | E198: 6864655 | F198: 2941995 | G198: 1 | H198: 1 | I198: 50 | J198: 0.1 | K198: EC-TC5S(50st)
A199: 196 | B199: 16000 | C199: 2941995 | D199: 2941995 | E199: 6864655 | F199: 2941995 | G199: 1 | H199: 1 | I199: 50 | J199: 0.1 | K199: EC-TC5S(100st)
A200: 197 | B200: 16000 | C200: 2941995 | D200: 2941995 | E200: 6864655 | F200: 2941995 | G200: 1 | H200: 1 | I200: 50 | J200: 0.1 | K200: EC-TC5S(150st)
... 362 more rows

Sheet StrokeData (hidden)
B1: 1 | C1: 2 | D1: 4 | E1: 5 | F1: 6 | G1: 7 | H1: 8 | I1: 9 | J1: 10 | K1: 17 | L1: 18
A2: ﾃﾞｰﾀ№ | B2: ｽﾄﾛｰｸ長 | C2: 有効ｽﾄﾛｰｸ補正 | D2: 基準ｹﾞｲﾝ用搬送質量 | E2: 水平可搬質量 | F2: 垂直可搬質量 | G2: 最大速度 | H2: 位置ｹﾞｲﾝ | I2: FFｹﾞｲﾝ | J2: 速度制御帯域 | K2: 前ﾃﾞｰﾀ№ | L2: 次ﾃﾞｰﾀ№ | M2: 備考
A3: =ModelData!A3 -> 0 | B3: ㎜ | C3: ㎜ | D3: 1g | E3: 1g | F3: 1g | G3: ㎜/s | H3: 1/s | I3: % | J3: rad/s
A4: 1 | B4: 250 | C4: 0 | D4: 40000 | E4: 25000 | F4: 10000 | G4: 170 | H4: 40 | I4: 0 | J4: 240 | K4: -1 | L4: 2 | M4: EC-S6L
A5: 2 | B5: 300 | C5: 0 | D5: 40000 | E5: 25000 | F5: 10000 | G5: 134 | H5: 40 | I5: 0 | J5: 240 | K5: 1 | L5: 3
A6: 3 | B6: 350 | C6: 0 | D6: 40000 | E6: 25000 | F6: 10000 | G6: 100 | H6: 40 | I6: 0 | J6: 240 | K6: 2 | L6: 4
A7: 4 | B7: 400 | C7: 0 | D7: 40000 | E7: 25000 | F7: 10000 | G7: 78 | H7: 40 | I7: 0 | J7: 240 | K7: 3 | L7: -1
A8: 5 | B8: 250 | C8: 0 | D8: 32000 | E8: 20000 | F8: 5000 | G8: 340 | H8: 40 | I8: 0 | J8: 240 | K8: -1 | L8: 6 | M8: EC-S6M
A9: 6 | B9: 300 | C9: 0 | D9: 32000 | E9: 20000 | F9: 5000 | G9: 265 | H9: 40 | I9: 0 | J9: 240 | K9: 5 | L9: 7
A10: 7 | B10: 350 | C10: 0 | D10: 32000 | E10: 20000 | F10: 5000 | G10: 199 | H10: 40 | I10: 0 | J10: 240 | K10: 6 | L10: 8
A11: 8 | B11: 400 | C11: 0 | D11: 32000 | E11: 20000 | F11: 5000 | G11: 155 | H11: 40 | I11: 0 | J11: 240 | K11: 7 | L11: -1
A12: 9 | B12: 250 | C12: 0 | D12: 26000 | E12: 14000 | F12: 2000 | G12: 680 | H12: 40 | I12: 0 | J12: 255 | K12: -1 | L12: 10 | M12: EC-S6H
A13: 10 | B13: 300 | C13: 0 | D13: 26000 | E13: 14000 | F13: 2000 | G13: 521 | H13: 40 | I13: 0 | J13: 255 | K13: 9 | L13: 11
A14: 11 | B14: 350 | C14: 0 | D14: 26000 | E14: 14000 | F14: 2000 | G14: 392 | H14: 40 | I14: 0 | J14: 255 | K14: 10 | L14: 12
A15: 12 | B15: 400 | C15: 0 | D15: 26000 | E15: 14000 | F15: 2000 | G15: 305 | H15: 40 | I15: 0 | J15: 255 | K15: 11 | L15: -1
A16: 13 | B16: 300 | C16: 0 | D16: 15000 | E16: 8000 | F16: 750 | G16: 800 | H16: 40 | I16: 0 | J16: 160 | K16: -1 | L16: 14 | M16: EC-S6S
A17: 14 | B17: 350 | C17: 0 | D17: 15000 | E17: 8000 | F17: 750 | G17: 727 | H17: 40 | I17: 0 | J17: 160 | K17: 13 | L17: 15
A18: 15 | B18: 400 | C18: 0 | D18: 15000 | E18: 8000 | F18: 750 | G18: 566 | H18: 40 | I18: 0 | J18: 160 | K18: 14 | L18: -1
A19: 16 | B19: 350 | C19: 0 | D19: 51000 | E19: 40000 | F19: 15000 | G19: 140 | H19: 40 | I19: 0 | J19: 240 | K19: -1 | L19: 17 | M19: EC-S7L
A20: 17 | B20: 400 | C20: 0 | D20: 51000 | E20: 40000 | F20: 15000 | G20: 126 | H20: 40 | I20: 0 | J20: 240 | K20: 16 | L20: 18
A21: 18 | B21: 450 | C21: 0 | D21: 51000 | E21: 40000 | F21: 15000 | G21: 101 | H21: 40 | I21: 0 | J21: 240 | K21: 17 | L21: 19
A22: 19 | B22: 500 | C22: 0 | D22: 51000 | E22: 40000 | F22: 15000 | G22: 83 | H22: 40 | I22: 0 | J22: 240 | K22: 18 | L22: -1
A23: 20 | B23: 350 | C23: 0 | D23: 51000 | E23: 40000 | F23: 10000 | G23: 280 | H23: 40 | I23: 0 | J23: 240 | K23: -1 | L23: 21 | M23: EC-S7M
A24: 21 | B24: 400 | C24: 0 | D24: 51000 | E24: 40000 | F24: 10000 | G24: 251 | H24: 40 | I24: 0 | J24: 240 | K24: 20 | L24: 22
A25: 22 | B25: 450 | C25: 0 | D25: 51000 | E25: 40000 | F25: 10000 | G25: 200 | H25: 40 | I25: 0 | J25: 240 | K25: 21 | L25: 23
A26: 23 | B26: 500 | C26: 0 | D26: 51000 | E26: 40000 | F26: 10000 | G26: 164 | H26: 40 | I26: 0 | J26: 240 | K26: 22 | L26: -1
A27: 24 | B27: 350 | C27: 0 | D27: 46000 | E27: 35000 | F27: 5000 | G27: 560 | H27: 40 | I27: 0 | J27: 240 | K27: -1 | L27: 25 | M27: EC-S7H
A28: 25 | B28: 400 | C28: 0 | D28: 46000 | E28: 35000 | F28: 5000 | G28: 492 | H28: 40 | I28: 0 | J28: 240 | K28: 24 | L28: 26
A29: 26 | B29: 450 | C29: 0 | D29: 46000 | E29: 35000 | F29: 5000 | G29: 395 | H29: 40 | I29: 0 | J29: 240 | K29: 25 | L29: 27
A30: 27 | B30: 500 | C30: 0 | D30: 46000 | E30: 35000 | F30: 5000 | G30: 323 | H30: 40 | I30: 0 | J30: 240 | K30: 26 | L30: -1
A31: 28 | B31: 350 | C31: 0 | D31: 37000 | E31: 18000 | F31: 2000 | G31: 800 | H31: 40 | I31: 0 | J31: 100 | K31: -1 | L31: 29 | M31: EC-S7S
A32: 29 | B32: 400 | C32: 0 | D32: 37000 | E32: 18000 | F32: 2000 | G32: 774 | H32: 40 | I32: 0 | J32: 100 | K32: 28 | L32: 30
A33: 30 | B33: 450 | C33: 0 | D33: 37000 | E33: 18000 | F33: 2000 | G33: 619 | H33: 40 | I33: 0 | J33: 100 | K33: 29 | L33: 31
A34: 31 | B34: 500 | C34: 0 | D34: 37000 | E34: 18000 | F34: 2000 | G34: 506 | H34: 40 | I34: 0 | J34: 100 | K34: 30 | L34: -1
A35: 32 | B35: 300 | C35: 0 | D35: 60000 | E35: 40000 | F35: 12500 | G35: 125 | H35: 40 | I35: 0 | J35: 225 | K35: -1 | L35: -1 | M35: EC-R6L
A36: 33 | B36: 300 | C36: 0 | D36: 40000 | E36: 40000 | F36: 10000 | G36: 250 | H36: 40 | I36: 0 | J36: 193 | K36: -1 | L36: -1 | M36: EC-R6M
A37: 34 | B37: 300 | C37: 0 | D37: 25000 | E37: 25000 | F37: 4000 | G37: 500 | H37: 40 | I37: 0 | J37: 236 | K37: -1 | L37: -1 | M37: EC-R6H
A38: 35 | B38: 300 | C38: 0 | D38: 6000 | E38: 6000 | F38: 1000 | G38: 640 | H38: 40 | I38: 0 | J38: 236 | K38: -1 | L38: -1 | M38: EC-R6S
A39: 36 | B39: 300 | C39: 0 | D39: 80000 | E39: 55000 | F39: 19000 | G39: 105 | H39: 40 | I39: 0 | J39: 240 | K39: -1 | L39: -1 | M39: EC-R7L
A40: 37 | B40: 300 | C40: 0 | D40: 60000 | E40: 50000 | F40: 17500 | G40: 210 | H40: 40 | I40: 0 | J40: 240 | K40: -1 | L40: -1 | M40: EC-R7M
A41: 38 | B41: 300 | C41: 0 | D41: 50000 | E41: 40000 | F41: 5000 | G41: 420 | H41: 40 | I41: 0 | J41: 240 | K41: -1 | L41: -1 | M41: EC-R7H
A42: 39 | B42: 300 | C42: 0 | D42: 20000 | E42: 18000 | F42: 3000 | G42: 600 | H42: 40 | I42: 0 | J42: 100 | K42: -1 | L42: -1 | M42: EC-R7S
A43: 40 | B43: 50 | C43: 0 | D43: 8000 | E43: 8000 | F43: 2500 | G43: 100 | H43: 40 | I43: 0 | J43: 310 | K43: -1 | L43: -1 | M43: EC-RP4L
A44: 41 | B44: 50 | C44: 0 | D44: 4000 | E44: 4000 | F44: 1500 | G44: 200 | H44: 40 | I44: 0 | J44: 300 | K44: -1 | L44: -1 | M44: EC-RP4M
A45: 42 | B45: 50 | C45: 0 | D45: 2500 | E45: 2500 | F45: 1000 | G45: 300 | H45: 40 | I45: 0 | J45: 310 | K45: -1 | L45: -1 | M45: EC-RP4H
A46: 43 | B46: 50 | C46: 0 | D46: 8000 | E46: 8000 | F46: 2500 | G46: 100 | H46: 40 | I46: 0 | J46: 305 | K46: -1 | L46: -1 | M46: EC-GS4L
A47: 44 | B47: 50 | C47: 0 | D47: 4000 | E47: 4000 | F47: 1500 | G47: 200 | H47: 40 | I47: 0 | J47: 300 | K47: -1 | L47: -1 | M47: EC-GS4M
A48: 45 | B48: 50 | C48: 0 | D48: 2500 | E48: 2500 | F48: 1000 | G48: 300 | H48: 40 | I48: 0 | J48: 305 | K48: -1 | L48: -1 | M48: EC-GS4H
A49: 46 | B49: 50 | C49: 0 | D49: 8000 | E49: 8000 | F49: 2500 | G49: 100 | H49: 40 | I49: 0 | J49: 305 | K49: -1 | L49: -1 | M49: EC-GD4L
A50: 47 | B50: 50 | C50: 0 | D50: 4000 | E50: 4000 | F50: 1500 | G50: 200 | H50: 40 | I50: 0 | J50: 300 | K50: -1 | L50: -1 | M50: EC-GD4M
A51: 48 | B51: 50 | C51: 0 | D51: 2500 | E51: 2500 | F51: 1000 | G51: 300 | H51: 40 | I51: 0 | J51: 305 | K51: -1 | L51: -1 | M51: EC-GD4H
A52: 49 | B52: 50 | C52: 0 | D52: 8000 | E52: 8000 | F52: 2500 | G52: 100 | H52: 40 | I52: 0 | J52: 305 | K52: -1 | L52: -1 | M52: EC-TC4L
A53: 50 | B53: 50 | C53: 0 | D53: 4000 | E53: 4000 | F53: 1500 | G53: 200 | H53: 40 | I53: 0 | J53: 300 | K53: -1 | L53: -1 | M53: EC-TC4M
A54: 51 | B54: 50 | C54: 0 | D54: 2500 | E54: 2500 | F54: 1000 | G54: 300 | H54: 40 | I54: 0 | J54: 305 | K54: -1 | L54: -1 | M54: EC-TC4H
A55: 52 | B55: 50 | C55: 0 | D55: 8000 | E55: 8000 | F55: 2500 | G55: 100 | H55: 40 | I55: 0 | J55: 305 | K55: -1 | L55: -1 | M55: EC-TW4L
A56: 53 | B56: 50 | C56: 0 | D56: 4000 | E56: 4000 | F56: 1500 | G56: 200 | H56: 40 | I56: 0 | J56: 300 | K56: -1 | L56: -1 | M56: EC-TW4M
A57: 54 | B57: 50 | C57: 0 | D57: 2500 | E57: 2500 | F57: 1000 | G57: 300 | H57: 40 | I57: 0 | J57: 305 | K57: -1 | L57: -1 | M57: EC-TW4H
A58: 55 | B58: 315 | C58: 0 | D58: 60000 | E58: 40000 | F58: 12500 | G58: 125 | H58: 40 | I58: 0 | J58: 240 | K58: -1 | L58: -1 | M58: EC-RR6L
A59: 56 | B59: 315 | C59: 0 | D59: 40000 | E59: 40000 | F59: 10000 | G59: 250 | H59: 40 | I59: 0 | J59: 240 | K59: -1 | L59: -1 | M59: EC-RR6M
A60: 57 | B60: 315 | C60: 0 | D60: 25000 | E60: 25000 | F60: 4000 | G60: 500 | H60: 40 | I60: 0 | J60: 240 | K60: -1 | L60: -1 | M60: EC-RR6H
A61: 58 | B61: 315 | C61: 0 | D61: 6000 | E61: 6000 | F61: 1000 | G61: 640 | H61: 40 | I61: 0 | J61: 237 | K61: -1 | L61: -1 | M61: EC-RR6S
A62: 59 | B62: 315 | C62: 0 | D62: 80000 | E62: 55000 | F62: 19000 | G62: 105 | H62: 40 | I62: 0 | J62: 240 | K62: -1 | L62: -1 | M62: EC-RR7L
A63: 60 | B63: 315 | C63: 0 | D63: 60000 | E63: 50000 | F63: 17500 | G63: 210 | H63: 40 | I63: 0 | J63: 240 | K63: -1 | L63: -1 | M63: EC-RR7M
A64: 61 | B64: 315 | C64: 0 | D64: 50000 | E64: 40000 | F64: 5000 | G64: 420 | H64: 40 | I64: 0 | J64: 240 | K64: -1 | L64: -1 | M64: EC-RR7H
A65: 62 | B65: 315 | C65: 0 | D65: 20000 | E65: 18000 | F65: 3000 | G65: 600 | H65: 40 | I65: 0 | J65: 120 | K65: -1 | L65: -1 | M65: EC-RR7S
A66: 63 | B66: 300 | C66: 0 | D66: 60000 | E66: 40000 | F66: 12500 | G66: 125 | H66: 40 | I66: 0 | J66: 225 | K66: -1 | L66: -1 | M66: EC-R6LW
A67: 64 | B67: 300 | C67: 0 | D67: 40000 | E67: 40000 | F67: 10000 | G67: 250 | H67: 40 | I67: 0 | J67: 193 | K67: -1 | L67: -1 | M67: EC-R6MW
A68: 65 | B68: 300 | C68: 0 | D68: 25000 | E68: 25000 | F68: 4000 | G68: 500 | H68: 40 | I68: 0 | J68: 236 | K68: -1 | L68: -1 | M68: EC-R6HW
A69: 66 | B69: 300 | C69: 0 | D69: 6000 | E69: 6000 | F69: 1000 | G69: 640 | H69: 40 | I69: 0 | J69: 236 | K69: -1 | L69: -1 | M69: EC-R6SW
A70: 67 | B70: 300 | C70: 0 | D70: 80000 | E70: 55000 | F70: 19000 | G70: 105 | H70: 40 | I70: 0 | J70: 240 | K70: -1 | L70: -1 | M70: EC-R7LW
A71: 68 | B71: 300 | C71: 0 | D71: 60000 | E71: 50000 | F71: 17500 | G71: 210 | H71: 40 | I71: 0 | J71: 240 | K71: -1 | L71: -1 | M71: EC-R7MW
A72: 69 | B72: 300 | C72: 0 | D72: 50000 | E72: 40000 | F72: 5000 | G72: 420 | H72: 40 | I72: 0 | J72: 240 | K72: -1 | L72: -1 | M72: EC-R7HW
A73: 70 | B73: 300 | C73: 0 | D73: 20000 | E73: 18000 | F73: 3000 | G73: 600 | H73: 40 | I73: 0 | J73: 100 | K73: -1 | L73: -1 | M73: EC-R7SW
A74: 71 | B74: 250 | C74: 0 | D74: 40000 | E74: 25000 | F74: 10000 | G74: 170 | H74: 40 | I74: 0 | J74: 240 | K74: -1 | L74: 72 | M74: EC-S6LH
A75: 72 | B75: 300 | C75: 0 | D75: 40000 | E75: 25000 | F75: 10000 | G75: 131 | H75: 40 | I75: 0 | J75: 240 | K75: 71 | L75: 73 | M75: EC-S6LH
A76: 73 | B76: 350 | C76: 0 | D76: 40000 | E76: 25000 | F76: 10000 | G76: 98 | H76: 40 | I76: 0 | J76: 240 | K76: 72 | L76: 74 | M76: EC-S6LH
A77: 74 | B77: 400 | C77: 0 | D77: 40000 | E77: 25000 | F77: 10000 | G77: 76 | H77: 40 | I77: 0 | J77: 240 | K77: 73 | L77: -1 | M77: EC-S6LH
A78: 75 | B78: 250 | C78: 0 | D78: 32000 | E78: 20000 | F78: 5000 | G78: 340 | H78: 40 | I78: 0 | J78: 240 | K78: -1 | L78: 76 | M78: EC-S6MH
A79: 76 | B79: 300 | C79: 0 | D79: 32000 | E79: 20000 | F79: 5000 | G79: 261 | H79: 40 | I79: 0 | J79: 240 | K79: 75 | L79: 77 | M79: EC-S6MH
A80: 77 | B80: 350 | C80: 0 | D80: 32000 | E80: 20000 | F80: 5000 | G80: 196 | H80: 40 | I80: 0 | J80: 240 | K80: 76 | L80: 78 | M80: EC-S6MH
A81: 78 | B81: 400 | C81: 0 | D81: 32000 | E81: 20000 | F81: 5000 | G81: 152 | H81: 40 | I81: 0 | J81: 240 | K81: 77 | L81: -1 | M81: EC-S6MH
A82: 79 | B82: 250 | C82: 0 | D82: 26000 | E82: 14000 | F82: 2000 | G82: 680 | H82: 40 | I82: 0 | J82: 255 | K82: -1 | L82: 80 | M82: EC-S6HH
A83: 80 | B83: 300 | C83: 0 | D83: 26000 | E83: 14000 | F83: 2000 | G83: 513 | H83: 40 | I83: 0 | J83: 255 | K83: 79 | L83: 81 | M83: EC-S6HH
A84: 81 | B84: 350 | C84: 0 | D84: 26000 | E84: 14000 | F84: 2000 | G84: 386 | H84: 40 | I84: 0 | J84: 255 | K84: 80 | L84: 82 | M84: EC-S6HH
A85: 82 | B85: 400 | C85: 0 | D85: 26000 | E85: 14000 | F85: 2000 | G85: 301 | H85: 40 | I85: 0 | J85: 255 | K85: 81 | L85: -1 | M85: EC-S6HH
A86: 83 | B86: 300 | C86: 0 | D86: 15000 | E86: 8000 | F86: 750 | G86: 800 | H86: 40 | I86: 0 | J86: 160 | K86: -1 | L86: 84 | M86: EC-S6SH
A87: 84 | B87: 350 | C87: 0 | D87: 15000 | E87: 8000 | F87: 750 | G87: 717 | H87: 40 | I87: 0 | J87: 160 | K87: 83 | L87: 85 | M87: EC-S6SH
A88: 85 | B88: 400 | C88: 0 | D88: 15000 | E88: 8000 | F88: 750 | G88: 559 | H88: 40 | I88: 0 | J88: 160 | K88: 84 | L88: -1 | M88: EC-S6SH
A89: 86 | B89: 350 | C89: 0 | D89: 51000 | E89: 40000 | F89: 15000 | G89: 140 | H89: 40 | I89: 0 | J89: 240 | K89: -1 | L89: 87 | M89: EC-S7LH
A90: 87 | B90: 400 | C90: 0 | D90: 51000 | E90: 40000 | F90: 15000 | G90: 125 | H90: 40 | I90: 0 | J90: 240 | K90: 86 | L90: 88 | M90: EC-S7LH
A91: 88 | B91: 450 | C91: 0 | D91: 51000 | E91: 40000 | F91: 15000 | G91: 100 | H91: 40 | I91: 0 | J91: 240 | K91: 87 | L91: 89 | M91: EC-S7LH
A92: 89 | B92: 500 | C92: 0 | D92: 51000 | E92: 40000 | F92: 15000 | G92: 82 | H92: 40 | I92: 0 | J92: 240 | K92: 88 | L92: -1 | M92: EC-S7LH
A93: 90 | B93: 350 | C93: 0 | D93: 51000 | E93: 40000 | F93: 10000 | G93: 280 | H93: 40 | I93: 0 | J93: 240 | K93: -1 | L93: 91 | M93: EC-S7MH
A94: 91 | B94: 400 | C94: 0 | D94: 51000 | E94: 40000 | F94: 10000 | G94: 248 | H94: 40 | I94: 0 | J94: 240 | K94: 90 | L94: 92 | M94: EC-S7MH
A95: 92 | B95: 450 | C95: 0 | D95: 51000 | E95: 40000 | F95: 10000 | G95: 199 | H95: 40 | I95: 0 | J95: 240 | K95: 91 | L95: 93 | M95: EC-S7MH
A96: 93 | B96: 500 | C96: 0 | D96: 51000 | E96: 40000 | F96: 10000 | G96: 163 | H96: 40 | I96: 0 | J96: 240 | K96: 92 | L96: -1 | M96: EC-S7MH
A97: 94 | B97: 350 | C97: 0 | D97: 46000 | E97: 35000 | F97: 5000 | G97: 560 | H97: 40 | I97: 0 | J97: 240 | K97: -1 | L97: 95 | M97: EC-S7HH
A98: 95 | B98: 400 | C98: 0 | D98: 46000 | E98: 35000 | F98: 5000 | G98: 488 | H98: 40 | I98: 0 | J98: 240 | K98: 94 | L98: 96 | M98: EC-S7HH
A99: 96 | B99: 450 | C99: 0 | D99: 46000 | E99: 35000 | F99: 5000 | G99: 392 | H99: 40 | I99: 0 | J99: 240 | K99: 95 | L99: 97 | M99: EC-S7HH
A100: 97 | B100: 500 | C100: 0 | D100: 46000 | E100: 35000 | F100: 5000 | G100: 321 | H100: 40 | I100: 0 | J100: 240 | K100: 96 | L100: -1 | M100: EC-S7HH
A101: 98 | B101: 350 | C101: 0 | D101: 37000 | E101: 18000 | F101: 2000 | G101: 800 | H101: 40 | I101: 0 | J101: 100 | K101: -1 | L101: 99 | M101: EC-S7SH
A102: 99 | B102: 400 | C102: 0 | D102: 37000 | E102: 18000 | F102: 2000 | G102: 768 | H102: 40 | I102: 0 | J102: 100 | K102: 98 | L102: 100 | M102: EC-S7SH
A103: 100 | B103: 450 | C103: 0 | D103: 37000 | E103: 18000 | F103: 2000 | G103: 615 | H103: 40 | I103: 0 | J103: 100 | K103: 99 | L103: 101 | M103: EC-S7SH
A104: 101 | B104: 500 | C104: 0 | D104: 37000 | E104: 18000 | F104: 2000 | G104: 503 | H104: 40 | I104: 0 | J104: 100 | K104: 100 | L104: -1 | M104: EC-S7SH
A105: 102 | B105: 250 | C105: 0 | D105: 40000 | E105: 40000 | F105: 20000 | G105: 125 | H105: 40 | I105: 0 | J105: 240 | K105: -1 | L105: 103 | M105: EC-RR6LH
A106: 103 | B106: 300 | C106: 0 | D106: 40000 | E106: 40000 | F106: 20000 | G106: 115 | H106: 40 | I106: 0 | J106: 240 | K106: 102 | L106: -1 | M106: EC-RR6LH
A107: 104 | B107: 250 | C107: 0 | D107: 40000 | E107: 40000 | F107: 10000 | G107: 250 | H107: 40 | I107: 0 | J107: 240 | K107: -1 | L107: 105 | M107: EC-RR6MH
A108: 105 | B108: 300 | C108: 0 | D108: 40000 | E108: 40000 | F108: 10000 | G108: 235 | H108: 40 | I108: 0 | J108: 240 | K108: 104 | L108: -1 | M108: EC-RR6MH
A109: 106 | B109: 250 | C109: 0 | D109: 25000 | E109: 25000 | F109: 4000 | G109: 500 | H109: 40 | I109: 0 | J109: 240 | K109: -1 | L109: 107 | M109: EC-RR6HH
A110: 107 | B110: 300 | C110: 0 | D110: 25000 | E110: 25000 | F110: 4000 | G110: 480 | H110: 40 | I110: 0 | J110: 240 | K110: 106 | L110: -1 | M110: EC-RR6HH
A111: 108 | B111: 300 | C111: 0 | D111: 6000 | E111: 6000 | F111: 1000 | G111: 640 | H111: 40 | I111: 0 | J111: 237 | K111: -1 | L111: -1 | M111: EC-RR6SH
A112: 109 | B112: 300 | C112: 0 | D112: 55000 | E112: 55000 | F112: 26000 | G112: 105 | H112: 40 | I112: 0 | J112: 240 | K112: -1 | L112: -1 | M112: EC-RR7LH
A113: 110 | B113: 300 | C113: 0 | D113: 50000 | E113: 50000 | F113: 17500 | G113: 210 | H113: 40 | I113: 0 | J113: 240 | K113: -1 | L113: -1 | M113: EC-RR7MH
A114: 111 | B114: 300 | C114: 0 | D114: 40000 | E114: 40000 | F114: 5000 | G114: 420 | H114: 40 | I114: 0 | J114: 240 | K114: -1 | L114: -1 | M114: EC-RR7HH
A115: 112 | B115: 300 | C115: 0 | D115: 18000 | E115: 18000 | F115: 3000 | G115: 600 | H115: 40 | I115: 0 | J115: 120 | K115: -1 | L115: -1 | M115: EC-RR7SH
A116: 113 | B116: 500 | C116: 0 | D116: 25000 | E116: 25000 | F116: 10000 | G116: 170 | H116: 40 | I116: 0 | J116: 240 | K116: -1 | L116: 114 | M116: EC-S6LAH
A117: 114 | B117: 550 | C117: 0 | D117: 25000 | E117: 25000 | F117: 10000 | G117: 145 | H117: 40 | I117: 0 | J117: 240 | K117: 113 | L117: 115 | M117: EC-S6LAH
A118: 115 | B118: 600 | C118: 0 | D118: 25000 | E118: 25000 | F118: 10000 | G118: 125 | H118: 40 | I118: 0 | J118: 240 | K118: 114 | L118: 116 | M118: EC-S6LAH
A119: 116 | B119: 650 | C119: 0 | D119: 25000 | E119: 25000 | F119: 10000 | G119: 110 | H119: 40 | I119: 0 | J119: 240 | K119: 115 | L119: 117 | M119: EC-S6LAH
A120: 117 | B120: 700 | C120: 0 | D120: 25000 | E120: 25000 | F120: 10000 | G120: 95 | H120: 40 | I120: 0 | J120: 240 | K120: 116 | L120: 118 | M120: EC-S6LAH
A121: 118 | B121: 750 | C121: 0 | D121: 25000 | E121: 25000 | F121: 10000 | G121: 85 | H121: 40 | I121: 0 | J121: 240 | K121: 117 | L121: 119 | M121: EC-S6LAH
A122: 119 | B122: 800 | C122: 0 | D122: 25000 | E122: 25000 | F122: 10000 | G122: 70 | H122: 40 | I122: 0 | J122: 240 | K122: 118 | L122: -1 | M122: EC-S6LAH
A123: 120 | B123: 500 | C123: 0 | D123: 20000 | E123: 20000 | F123: 5000 | G123: 340 | H123: 40 | I123: 0 | J123: 240 | K123: -1 | L123: 121 | M123: EC-S6MAH
A124: 121 | B124: 550 | C124: 0 | D124: 20000 | E124: 20000 | F124: 5000 | G124: 295 | H124: 40 | I124: 0 | J124: 240 | K124: 120 | L124: 122 | M124: EC-S6MAH
A125: 122 | B125: 600 | C125: 0 | D125: 20000 | E125: 20000 | F125: 5000 | G125: 255 | H125: 40 | I125: 0 | J125: 240 | K125: 121 | L125: 123 | M125: EC-S6MAH
A126: 123 | B126: 650 | C126: 0 | D126: 20000 | E126: 20000 | F126: 5000 | G126: 220 | H126: 40 | I126: 0 | J126: 240 | K126: 122 | L126: 124 | M126: EC-S6MAH
A127: 124 | B127: 700 | C127: 0 | D127: 20000 | E127: 20000 | F127: 5000 | G127: 190 | H127: 40 | I127: 0 | J127: 240 | K127: 123 | L127: 125 | M127: EC-S6MAH
A128: 125 | B128: 750 | C128: 0 | D128: 20000 | E128: 20000 | F128: 5000 | G128: 170 | H128: 40 | I128: 0 | J128: 240 | K128: 124 | L128: 126 | M128: EC-S6MAH
A129: 126 | B129: 800 | C129: 0 | D129: 20000 | E129: 20000 | F129: 5000 | G129: 140 | H129: 40 | I129: 0 | J129: 240 | K129: 125 | L129: -1 | M129: EC-S6MAH
A130: 127 | B130: 500 | C130: 0 | D130: 14000 | E130: 14000 | F130: 2000 | G130: 680 | H130: 40 | I130: 0 | J130: 200 | K130: -1 | L130: 128 | M130: EC-S6HAH
A131: 128 | B131: 550 | C131: 0 | D131: 14000 | E131: 14000 | F131: 2000 | G131: 585 | H131: 40 | I131: 0 | J131: 200 | K131: 127 | L131: 129 | M131: EC-S6HAH
A132: 129 | B132: 600 | C132: 0 | D132: 14000 | E132: 14000 | F132: 2000 | G132: 515 | H132: 40 | I132: 0 | J132: 200 | K132: 128 | L132: 130 | M132: EC-S6HAH
A133: 130 | B133: 650 | C133: 0 | D133: 14000 | E133: 14000 | F133: 2000 | G133: 445 | H133: 40 | I133: 0 | J133: 200 | K133: 129 | L133: 131 | M133: EC-S6HAH
A134: 131 | B134: 700 | C134: 0 | D134: 14000 | E134: 14000 | F134: 2000 | G134: 390 | H134: 40 | I134: 0 | J134: 200 | K134: 130 | L134: 132 | M134: EC-S6HAH
A135: 132 | B135: 750 | C135: 0 | D135: 14000 | E135: 14000 | F135: 2000 | G135: 345 | H135: 40 | I135: 0 | J135: 200 | K135: 131 | L135: 133 | M135: EC-S6HAH
A136: 133 | B136: 800 | C136: 0 | D136: 14000 | E136: 14000 | F136: 2000 | G136: 315 | H136: 40 | I136: 0 | J136: 200 | K136: 132 | L136: -1 | M136: EC-S6HAH
A137: 134 | B137: 650 | C137: 0 | D137: 8000 | E137: 8000 | F137: 750 | G137: 800 | H137: 40 | I137: 0 | J137: 100 | K137: -1 | L137: 135 | M137: EC-S6SAH
A138: 135 | B138: 700 | C138: 0 | D138: 8000 | E138: 8000 | F138: 750 | G138: 715 | H138: 40 | I138: 0 | J138: 100 | K138: 134 | L138: 136 | M138: EC-S6SAH
A139: 136 | B139: 750 | C139: 0 | D139: 8000 | E139: 8000 | F139: 750 | G139: 630 | H139: 40 | I139: 0 | J139: 100 | K139: 135 | L139: 137 | M139: EC-S6SAH
A140: 137 | B140: 800 | C140: 0 | D140: 8000 | E140: 8000 | F140: 750 | G140: 560 | H140: 40 | I140: 0 | J140: 100 | K140: 136 | L140: -1 | M140: EC-S6SAH
A141: 138 | B141: 700 | C141: 0 | D141: 40000 | E141: 40000 | F141: 15000 | G141: 140 | H141: 40 | I141: 0 | J141: 240 | K141: -1 | L141: 139 | M141: EC-S7LAH
A142: 139 | B142: 750 | C142: 0 | D142: 40000 | E142: 40000 | F142: 15000 | G142: 135 | H142: 40 | I142: 0 | J142: 240 | K142: 138 | L142: 140 | M142: EC-S7LAH
A143: 140 | B143: 800 | C143: 0 | D143: 40000 | E143: 40000 | F143: 15000 | G143: 120 | H143: 40 | I143: 0 | J143: 240 | K143: 139 | L143: -1 | M143: EC-S7LAH
A144: 141 | B144: 700 | C144: 0 | D144: 40000 | E144: 40000 | F144: 10000 | G144: 280 | H144: 40 | I144: 0 | J144: 240 | K144: -1 | L144: 142 | M144: EC-S7MAH
A145: 142 | B145: 750 | C145: 0 | D145: 40000 | E145: 40000 | F145: 10000 | G145: 275 | H145: 40 | I145: 0 | J145: 240 | K145: 141 | L145: 143 | M145: EC-S7MAH
A146: 143 | B146: 800 | C146: 0 | D146: 40000 | E146: 40000 | F146: 10000 | G146: 245 | H146: 40 | I146: 0 | J146: 240 | K146: 142 | L146: -1 | M146: EC-S7MAH
A147: 144 | B147: 500 | C147: 0 | D147: 35000 | E147: 35000 | F147: 5000 | G147: 560 | H147: 40 | I147: 0 | J147: 240 | K147: -1 | L147: 145 | M147: EC-S7HAH
A148: 145 | B148: 700 | C148: 0 | D148: 35000 | E148: 35000 | F148: 5000 | G148: 560 | H148: 40 | I148: 0 | J148: 240 | K148: 144 | L148: 146 | M148: EC-S7HAH
A149: 146 | B149: 750 | C149: 0 | D149: 35000 | E149: 35000 | F149: 5000 | G149: 555 | H149: 40 | I149: 0 | J149: 240 | K149: 145 | L149: 147 | M149: EC-S7HAH
A150: 147 | B150: 800 | C150: 0 | D150: 35000 | E150: 35000 | F150: 5000 | G150: 495 | H150: 40 | I150: 0 | J150: 240 | K150: 146 | L150: -1 | M150: EC-S7HAH
A151: 148 | B151: 600 | C151: 0 | D151: 18000 | E151: 18000 | F151: 2000 | G151: 800 | H151: 40 | I151: 0 | J151: 100 | K151: -1 | L151: 149 | M151: EC-S7SAH
A152: 149 | B152: 750 | C152: 0 | D152: 18000 | E152: 18000 | F152: 2000 | G152: 800 | H152: 40 | I152: 0 | J152: 100 | K152: 148 | L152: 150 | M152: EC-S7SAH
A153: 150 | B153: 800 | C153: 0 | D153: 18000 | E153: 18000 | F153: 2000 | G153: 750 | H153: 40 | I153: 0 | J153: 100 | K153: 149 | L153: -1 | M153: EC-S7SAH
A154: 151 | B154: 400 | C154: 0 | D154: 40000 | E154: 40000 | F154: 20000 | G154: 125 | H154: 40 | I154: 0 | J154: 240 | K154: -1 | L154: -1 | M154: EC-RR6LAH
A155: 152 | B155: 400 | C155: 0 | D155: 40000 | E155: 40000 | F155: 10000 | G155: 250 | H155: 40 | I155: 0 | J155: 240 | K155: -1 | L155: -1 | M155: EC-RR6MAH
A156: 153 | B156: 400 | C156: 0 | D156: 25000 | E156: 25000 | F156: 4000 | G156: 500 | H156: 40 | I156: 0 | J156: 240 | K156: -1 | L156: -1 | M156: EC-RR6HAH
A157: 154 | B157: 400 | C157: 0 | D157: 6000 | E157: 6000 | F157: 1000 | G157: 640 | H157: 40 | I157: 0 | J157: 120 | K157: -1 | L157: -1 | M157: EC-RR6SAH
A158: 155 | B158: 500 | C158: 0 | D158: 55000 | E158: 55000 | F158: 26000 | G158: 105 | H158: 40 | I158: 0 | J158: 240 | K158: -1 | L158: -1 | M158: EC-RR7LAH
A159: 156 | B159: 500 | C159: 0 | D159: 50000 | E159: 50000 | F159: 17500 | G159: 210 | H159: 40 | I159: 0 | J159: 240 | K159: -1 | L159: -1 | M159: EC-RR7MAH
A160: 157 | B160: 500 | C160: 0 | D160: 40000 | E160: 40000 | F160: 5000 | G160: 420 | H160: 40 | I160: 0 | J160: 120 | K160: -1 | L160: -1 | M160: EC-RR7HAH
A161: 158 | B161: 500 | C161: 0 | D161: 18000 | E161: 18000 | F161: 3000 | G161: 630 | H161: 40 | I161: 0 | J161: 120 | K161: -1 | L161: -1 | M161: EC-RR7SAH
A162: 159 | B162: 250 | C162: 0 | D162: 25000 | E162: 25000 | F162: 10000 | G162: 170 | H162: 40 | I162: 0 | J162: 240 | K162: -1 | L162: 160 | M162: EC-S6LR
A163: 160 | B163: 300 | C163: 0 | D163: 25000 | E163: 25000 | F163: 10000 | G163: 134 | H163: 40 | I163: 0 | J163: 240 | K163: 159 | L163: 161 | M163: EC-S6LR
A164: 161 | B164: 350 | C164: 0 | D164: 25000 | E164: 25000 | F164: 10000 | G164: 100 | H164: 40 | I164: 0 | J164: 240 | K164: 160 | L164: 162 | M164: EC-S6LR
A165: 162 | B165: 400 | C165: 0 | D165: 25000 | E165: 25000 | F165: 10000 | G165: 78 | H165: 40 | I165: 0 | J165: 240 | K165: 161 | L165: -1 | M165: EC-S6LR
A166: 163 | B166: 250 | C166: 0 | D166: 20000 | E166: 20000 | F166: 5000 | G166: 340 | H166: 40 | I166: 0 | J166: 240 | K166: -1 | L166: 164 | M166: EC-S6MR
A167: 164 | B167: 300 | C167: 0 | D167: 20000 | E167: 20000 | F167: 5000 | G167: 265 | H167: 40 | I167: 0 | J167: 240 | K167: 163 | L167: 165 | M167: EC-S6MR
A168: 165 | B168: 350 | C168: 0 | D168: 20000 | E168: 20000 | F168: 5000 | G168: 199 | H168: 40 | I168: 0 | J168: 240 | K168: 164 | L168: 166 | M168: EC-S6MR
A169: 166 | B169: 400 | C169: 0 | D169: 20000 | E169: 20000 | F169: 5000 | G169: 155 | H169: 40 | I169: 0 | J169: 240 | K169: 165 | L169: -1 | M169: EC-S6MR
A170: 167 | B170: 250 | C170: 0 | D170: 14000 | E170: 14000 | F170: 2000 | G170: 680 | H170: 40 | I170: 0 | J170: 240 | K170: -1 | L170: 168 | M170: EC-S6HR
A171: 168 | B171: 300 | C171: 0 | D171: 14000 | E171: 14000 | F171: 2000 | G171: 521 | H171: 40 | I171: 0 | J171: 240 | K171: 167 | L171: 169 | M171: EC-S6HR
A172: 169 | B172: 350 | C172: 0 | D172: 14000 | E172: 14000 | F172: 2000 | G172: 392 | H172: 40 | I172: 0 | J172: 240 | K172: 168 | L172: 170 | M172: EC-S6HR
A173: 170 | B173: 400 | C173: 0 | D173: 14000 | E173: 14000 | F173: 2000 | G173: 305 | H173: 40 | I173: 0 | J173: 240 | K173: 169 | L173: -1 | M173: EC-S6HR
A174: 171 | B174: 300 | C174: 0 | D174: 8000 | E174: 8000 | F174: 750 | G174: 800 | H174: 40 | I174: 0 | J174: 160 | K174: -1 | L174: 172 | M174: EC-S6SR
A175: 172 | B175: 350 | C175: 0 | D175: 8000 | E175: 8000 | F175: 750 | G175: 727 | H175: 40 | I175: 0 | J175: 160 | K175: 171 | L175: 173 | M175: EC-S6SR
A176: 173 | B176: 400 | C176: 0 | D176: 8000 | E176: 8000 | F176: 750 | G176: 566 | H176: 40 | I176: 0 | J176: 160 | K176: 172 | L176: -1 | M176: EC-S6SR
A177: 174 | B177: 400 | C177: 0 | D177: 40000 | E177: 40000 | F177: 15000 | G177: 120 | H177: 40 | I177: 0 | J177: 240 | K177: -1 | L177: 175 | M177: EC-S7LR
A178: 175 | B178: 450 | C178: 0 | D178: 40000 | E178: 40000 | F178: 15000 | G178: 101 | H178: 40 | I178: 0 | J178: 240 | K178: 174 | L178: 176 | M178: EC-S7LR
A179: 176 | B179: 500 | C179: 0 | D179: 40000 | E179: 40000 | F179: 15000 | G179: 83 | H179: 40 | I179: 0 | J179: 240 | K179: 175 | L179: -1 | M179: EC-S7LR
A180: 177 | B180: 350 | C180: 0 | D180: 40000 | E180: 40000 | F180: 10000 | G180: 280 | H180: 40 | I180: 0 | J180: 240 | K180: -1 | L180: 178 | M180: EC-S7MR
A181: 178 | B181: 400 | C181: 0 | D181: 40000 | E181: 40000 | F181: 10000 | G181: 251 | H181: 40 | I181: 0 | J181: 240 | K181: 177 | L181: 179 | M181: EC-S7MR
A182: 179 | B182: 450 | C182: 0 | D182: 40000 | E182: 40000 | F182: 10000 | G182: 200 | H182: 40 | I182: 0 | J182: 240 | K182: 178 | L182: 180 | M182: EC-S7MR
A183: 180 | B183: 500 | C183: 0 | D183: 40000 | E183: 40000 | F183: 10000 | G183: 164 | H183: 40 | I183: 0 | J183: 240 | K183: 179 | L183: -1 | M183: EC-S7MR
A184: 181 | B184: 350 | C184: 0 | D184: 35000 | E184: 35000 | F184: 5000 | G184: 560 | H184: 40 | I184: 0 | J184: 240 | K184: -1 | L184: 182 | M184: EC-S7HR
A185: 182 | B185: 400 | C185: 0 | D185: 35000 | E185: 35000 | F185: 5000 | G185: 492 | H185: 40 | I185: 0 | J185: 240 | K185: 181 | L185: 183 | M185: EC-S7HR
A186: 183 | B186: 450 | C186: 0 | D186: 35000 | E186: 35000 | F186: 5000 | G186: 395 | H186: 40 | I186: 0 | J186: 240 | K186: 182 | L186: 184 | M186: EC-S7HR
A187: 184 | B187: 500 | C187: 0 | D187: 35000 | E187: 35000 | F187: 5000 | G187: 323 | H187: 40 | I187: 0 | J187: 240 | K187: 183 | L187: -1 | M187: EC-S7HR
A188: 185 | B188: 350 | C188: 0 | D188: 18000 | E188: 18000 | F188: 2000 | G188: 800 | H188: 40 | I188: 0 | J188: 100 | K188: -1 | L188: 186 | M188: EC-S7SR
A189: 186 | B189: 400 | C189: 0 | D189: 18000 | E189: 18000 | F189: 2000 | G189: 774 | H189: 40 | I189: 0 | J189: 100 | K189: 185 | L189: 187 | M189: EC-S7SR
A190: 187 | B190: 450 | C190: 0 | D190: 18000 | E190: 18000 | F190: 2000 | G190: 619 | H190: 40 | I190: 0 | J190: 100 | K190: 186 | L190: 188 | M190: EC-S7SR
A191: 188 | B191: 500 | C191: 0 | D191: 18000 | E191: 18000 | F191: 2000 | G191: 506 | H191: 40 | I191: 0 | J191: 100 | K191: 187 | L191: -1 | M191: EC-S7SR
A192: 189 | B192: 500 | C192: 0 | D192: 25000 | E192: 25000 | F192: 10000 | G192: 170 | H192: 40 | I192: 0 | J192: 240 | K192: -1 | L192: 190 | M192: EC-S6LAHR
A193: 190 | B193: 550 | C193: 0 | D193: 25000 | E193: 25000 | F193: 10000 | G193: 145 | H193: 40 | I193: 0 | J193: 240 | K193: 189 | L193: 191 | M193: EC-S6LAHR
A194: 191 | B194: 600 | C194: 0 | D194: 25000 | E194: 25000 | F194: 10000 | G194: 125 | H194: 40 | I194: 0 | J194: 240 | K194: 190 | L194: 192 | M194: EC-S6LAHR
A195: 192 | B195: 650 | C195: 0 | D195: 25000 | E195: 25000 | F195: 10000 | G195: 110 | H195: 40 | I195: 0 | J195: 240 | K195: 191 | L195: 193 | M195: EC-S6LAHR
A196: 193 | B196: 700 | C196: 0 | D196: 25000 | E196: 25000 | F196: 10000 | G196: 95 | H196: 40 | I196: 0 | J196: 240 | K196: 192 | L196: 194 | M196: EC-S6LAHR
A197: 194 | B197: 750 | C197: 0 | D197: 25000 | E197: 25000 | F197: 10000 | G197: 85 | H197: 40 | I197: 0 | J197: 240 | K197: 193 | L197: 195 | M197: EC-S6LAHR
A198: 195 | B198: 800 | C198: 0 | D198: 25000 | E198: 25000 | F198: 10000 | G198: 70 | H198: 40 | I198: 0 | J198: 240 | K198: 194 | L198: -1 | M198: EC-S6LAHR
A199: 196 | B199: 500 | C199: 0 | D199: 20000 | E199: 20000 | F199: 5000 | G199: 340 | H199: 40 | I199: 0 | J199: 240 | K199: -1 | L199: 197 | M199: EC-S6MAHR
A200: 197 | B200: 550 | C200: 0 | D200: 20000 | E200: 20000 | F200: 5000 | G200: 295 | H200: 40 | I200: 0 | J200: 240 | K200: 196 | L200: 198 | M200: EC-S6MAHR
... 2057 more rows

Sheet MassDataLink (hidden)
B1: 1 | C1: 2 | D1: 3 | E1: 4 | F1: 5 | H1: 1000
A2: ﾃﾞｰﾀ№ | B2: ｱｸﾁｭｴｰﾀ姿勢 | C2: 搬送負荷質量 | D2: 加減速・速度ﾃﾞｰﾀ | E2: 前ﾃﾞｰﾀ№ | F2: 次ﾃﾞｰﾀ№ | G2: 備考
A3: =ModelData!A3 -> 0 | B3: 0/1 | C3: 1g | D3: ﾚｺｰﾄﾞ№ | E3: ﾚｺｰﾄﾞ№ | F3: ﾚｺｰﾄﾞ№ | G3: 型式-姿勢 | H3: 質量
A4: 1 | B4: 0 | C4: 9000 | D4: 1 | E4: -1 | F4: 2 | G4: EC-S6L-水平 | H4: 9
A5: 2 | B5: 0 | C5: 10000 | D5: 2 | E5: 1 | F5: 3 | G5: EC-S6L-水平 | H5: 10
A6: 3 | B6: 0 | C6: 11000 | D6: 3 | E6: 2 | F6: 4 | G6: EC-S6L-水平 | H6: 11
A7: 4 | B7: 0 | C7: 12000 | D7: 5 | E7: 3 | F7: 5 | G7: EC-S6L-水平 | H7: 12
A8: 5 | B8: 0 | C8: 13000 | D8: 7 | E8: 4 | F8: 6 | G8: EC-S6L-水平 | H8: 13
A9: 6 | B9: 0 | C9: 14000 | D9: 9 | E9: 5 | F9: 7 | G9: EC-S6L-水平 | H9: 14
A10: 7 | B10: 0 | C10: 15000 | D10: 11 | E10: 6 | F10: 8 | G10: EC-S6L-水平 | H10: 15
A11: 8 | B11: 0 | C11: 16000 | D11: 13 | E11: 7 | F11: 9 | G11: EC-S6L-水平 | H11: 16
A12: 9 | B12: 0 | C12: 17000 | D12: 15 | E12: 8 | F12: 10 | G12: EC-S6L-水平 | H12: 17
A13: 10 | B13: 0 | C13: 18000 | D13: 17 | E13: 9 | F13: 11 | G13: EC-S6L-水平 | H13: 18
A14: 11 | B14: 0 | C14: 19000 | D14: 19 | E14: 10 | F14: 12 | G14: EC-S6L-水平 | H14: 19
A15: 12 | B15: 0 | C15: 20000 | D15: 21 | E15: 11 | F15: 13 | G15: EC-S6L-水平 | H15: 20
A16: 13 | B16: 0 | C16: 21000 | D16: 23 | E16: 12 | F16: 14 | G16: EC-S6L-水平 | H16: 21
A17: 14 | B17: 0 | C17: 22000 | D17: 25 | E17: 13 | F17: 15 | G17: EC-S6L-水平 | H17: 22
A18: 15 | B18: 0 | C18: 23000 | D18: 27 | E18: 14 | F18: 16 | G18: EC-S6L-水平 | H18: 23
A19: 16 | B19: 0 | C19: 24000 | D19: 28 | E19: 15 | F19: 17 | G19: EC-S6L-水平 | H19: 24
A20: 17 | B20: 0 | C20: 25000 | D20: 29 | E20: 16 | F20: 18 | G20: EC-S6L-水平 | H20: 25
A21: 18 | B21: 1 | C21: 2000 | D21: 30 | E21: 17 | F21: 19 | G21: EC-S6L-垂直 | H21: 2
A22: 19 | B22: 1 | C22: 3000 | D22: 31 | E22: 18 | F22: 20 | G22: EC-S6L-垂直 | H22: 3
A23: 20 | B23: 1 | C23: 4000 | D23: 32 | E23: 19 | F23: 21 | G23: EC-S6L-垂直 | H23: 4
A24: 21 | B24: 1 | C24: 5000 | D24: 33 | E24: 20 | F24: 22 | G24: EC-S6L-垂直 | H24: 5
A25: 22 | B25: 1 | C25: 6000 | D25: 34 | E25: 21 | F25: 23 | G25: EC-S6L-垂直 | H25: 6
A26: 23 | B26: 1 | C26: 7000 | D26: 35 | E26: 22 | F26: 24 | G26: EC-S6L-垂直 | H26: 7
A27: 24 | B27: 1 | C27: 8000 | D27: 36 | E27: 23 | F27: 25 | G27: EC-S6L-垂直 | H27: 8
A28: 25 | B28: 1 | C28: 9000 | D28: 37 | E28: 24 | F28: 26 | G28: EC-S6L-垂直 | H28: 9
A29: 26 | B29: 1 | C29: 10000 | D29: 38 | E29: 25 | F29: -1 | G29: EC-S6L-垂直 | H29: 10
A30: 27 | B30: 0 | C30: 1000 | D30: 39 | E30: -1 | F30: 28 | G30: EC-S6M-水平 | H30: 1
A31: 28 | B31: 0 | C31: 2000 | D31: 40 | E31: 27 | F31: 29 | G31: EC-S6M-水平 | H31: 2
A32: 29 | B32: 0 | C32: 3000 | D32: 41 | E32: 28 | F32: 30 | G32: EC-S6M-水平 | H32: 3
A33: 30 | B33: 0 | C33: 4000 | D33: 42 | E33: 29 | F33: 31 | G33: EC-S6M-水平 | H33: 4
A34: 31 | B34: 0 | C34: 5000 | D34: 43 | E34: 30 | F34: 32 | G34: EC-S6M-水平 | H34: 5
A35: 32 | B35: 0 | C35: 6000 | D35: 44 | E35: 31 | F35: 33 | G35: EC-S6M-水平 | H35: 6
A36: 33 | B36: 0 | C36: 7000 | D36: 45 | E36: 32 | F36: 34 | G36: EC-S6M-水平 | H36: 7
A37: 34 | B37: 0 | C37: 8000 | D37: 46 | E37: 33 | F37: 35 | G37: EC-S6M-水平 | H37: 8
A38: 35 | B38: 0 | C38: 9000 | D38: 47 | E38: 34 | F38: 36 | G38: EC-S6M-水平 | H38: 9
A39: 36 | B39: 0 | C39: 10000 | D39: 48 | E39: 35 | F39: 37 | G39: EC-S6M-水平 | H39: 10
A40: 37 | B40: 0 | C40: 11000 | D40: 50 | E40: 36 | F40: 38 | G40: EC-S6M-水平 | H40: 11
A41: 38 | B41: 0 | C41: 12000 | D41: 52 | E41: 37 | F41: 39 | G41: EC-S6M-水平 | H41: 12
A42: 39 | B42: 0 | C42: 13000 | D42: 54 | E42: 38 | F42: 40 | G42: EC-S6M-水平 | H42: 13
A43: 40 | B43: 0 | C43: 14000 | D43: 56 | E43: 39 | F43: 41 | G43: EC-S6M-水平 | H43: 14
A44: 41 | B44: 0 | C44: 15000 | D44: 58 | E44: 40 | F44: 42 | G44: EC-S6M-水平 | H44: 15
A45: 42 | B45: 0 | C45: 16000 | D45: 59 | E45: 41 | F45: 43 | G45: EC-S6M-水平 | H45: 16
A46: 43 | B46: 0 | C46: 17000 | D46: 60 | E46: 42 | F46: 44 | G46: EC-S6M-水平 | H46: 17
A47: 44 | B47: 0 | C47: 18000 | D47: 61 | E47: 43 | F47: 45 | G47: EC-S6M-水平 | H47: 18
A48: 45 | B48: 0 | C48: 19000 | D48: 62 | E48: 44 | F48: 46 | G48: EC-S6M-水平 | H48: 19
A49: 46 | B49: 0 | C49: 20000 | D49: 63 | E49: 45 | F49: 47 | G49: EC-S6M-水平 | H49: 20
A50: 47 | B50: 1 | C50: 1000 | D50: 64 | E50: 46 | F50: 48 | G50: EC-S6M-垂直 | H50: 1
A51: 48 | B51: 1 | C51: 2000 | D51: 65 | E51: 47 | F51: 49 | G51: EC-S6M-垂直 | H51: 2
A52: 49 | B52: 1 | C52: 2500 | D52: 66 | E52: 48 | F52: 50 | G52: EC-S6M-垂直 | H52: 2.5
A53: 50 | B53: 1 | C53: 3000 | D53: 67 | E53: 49 | F53: 51 | G53: EC-S6M-垂直 | H53: 3
A54: 51 | B54: 1 | C54: 4000 | D54: 68 | E54: 50 | F54: 52 | G54: EC-S6M-垂直 | H54: 4
A55: 52 | B55: 1 | C55: 5000 | D55: 69 | E55: 51 | F55: -1 | G55: EC-S6M-垂直 | H55: 5
A56: 53 | B56: 0 | C56: 1000 | D56: 70 | E56: -1 | F56: 54 | G56: EC-S6H-水平 | H56: 1
A57: 54 | B57: 0 | C57: 2000 | D57: 71 | E57: 53 | F57: 55 | G57: EC-S6H-水平 | H57: 2
A58: 55 | B58: 0 | C58: 2500 | D58: 72 | E58: 54 | F58: 56 | G58: EC-S6H-水平 | H58: 2.5
A59: 56 | B59: 0 | C59: 3000 | D59: 73 | E59: 55 | F59: 57 | G59: EC-S6H-水平 | H59: 3
A60: 57 | B60: 0 | C60: 4000 | D60: 74 | E60: 56 | F60: 58 | G60: EC-S6H-水平 | H60: 4
A61: 58 | B61: 0 | C61: 5000 | D61: 76 | E61: 57 | F61: 59 | G61: EC-S6H-水平 | H61: 5
A62: 59 | B62: 0 | C62: 6000 | D62: 78 | E62: 58 | F62: 60 | G62: EC-S6H-水平 | H62: 6
A63: 60 | B63: 0 | C63: 7000 | D63: 80 | E63: 59 | F63: 61 | G63: EC-S6H-水平 | H63: 7
A64: 61 | B64: 0 | C64: 8000 | D64: 82 | E64: 60 | F64: 62 | G64: EC-S6H-水平 | H64: 8
A65: 62 | B65: 0 | C65: 9000 | D65: 84 | E65: 61 | F65: 63 | G65: EC-S6H-水平 | H65: 9
A66: 63 | B66: 0 | C66: 10000 | D66: 86 | E66: 62 | F66: 64 | G66: EC-S6H-水平 | H66: 10
A67: 64 | B67: 0 | C67: 11000 | D67: 88 | E67: 63 | F67: 65 | G67: EC-S6H-水平 | H67: 11
A68: 65 | B68: 0 | C68: 12000 | D68: 89 | E68: 64 | F68: 66 | G68: EC-S6H-水平 | H68: 12
A69: 66 | B69: 0 | C69: 13000 | D69: 90 | E69: 65 | F69: 67 | G69: EC-S6H-水平 | H69: 13
A70: 67 | B70: 0 | C70: 14000 | D70: 91 | E70: 66 | F70: 68 | G70: EC-S6H-水平 | H70: 14
A71: 68 | B71: 1 | C71: 500 | D71: 92 | E71: 67 | F71: 69 | G71: EC-S6H-垂直 | H71: 0.5
A72: 69 | B72: 1 | C72: 1000 | D72: 93 | E72: 68 | F72: 70 | G72: EC-S6H-垂直 | H72: 1
A73: 70 | B73: 1 | C73: 1500 | D73: 94 | E73: 69 | F73: 71 | G73: EC-S6H-垂直 | H73: 1.5
A74: 71 | B74: 1 | C74: 2000 | D74: 95 | E74: 70 | F74: -1 | G74: EC-S6H-垂直 | H74: 2
A75: 72 | B75: 0 | C75: 1500 | D75: 96 | E75: -1 | F75: 73 | G75: EC-S6S-水平 | H75: 1.5
A76: 73 | B76: 0 | C76: 2000 | D76: 97 | E76: 72 | F76: 74 | G76: EC-S6S-水平 | H76: 2
A77: 74 | B77: 0 | C77: 3000 | D77: 98 | E77: 73 | F77: 75 | G77: EC-S6S-水平 | H77: 3
A78: 75 | B78: 0 | C78: 4000 | D78: 99 | E78: 74 | F78: 76 | G78: EC-S6S-水平 | H78: 4
A79: 76 | B79: 0 | C79: 5000 | D79: 101 | E79: 75 | F79: 77 | G79: EC-S6S-水平 | H79: 5
A80: 77 | B80: 0 | C80: 6000 | D80: 103 | E80: 76 | F80: 78 | G80: EC-S6S-水平 | H80: 6
A81: 78 | B81: 0 | C81: 7000 | D81: 104 | E81: 77 | F81: 79 | G81: EC-S6S-水平 | H81: 7
A82: 79 | B82: 0 | C82: 8000 | D82: 105 | E82: 78 | F82: 80 | G82: EC-S6S-水平 | H82: 8
A83: 80 | B83: 1 | C83: 750 | D83: 106 | E83: 79 | F83: -1 | G83: EC-S6S-垂直 | H83: 0.75
A84: 81 | B84: 0 | C84: 6000 | D84: 107 | E84: -1 | F84: 82 | G84: EC-S7L-水平 | H84: 6
A85: 82 | B85: 0 | C85: 7000 | D85: 108 | E85: 81 | F85: 83 | G85: EC-S7L-水平 | H85: 7
A86: 83 | B86: 0 | C86: 8000 | D86: 109 | E86: 82 | F86: 84 | G86: EC-S7L-水平 | H86: 8
A87: 84 | B87: 0 | C87: 9000 | D87: 110 | E87: 83 | F87: 85 | G87: EC-S7L-水平 | H87: 9
A88: 85 | B88: 0 | C88: 10000 | D88: 111 | E88: 84 | F88: 86 | G88: EC-S7L-水平 | H88: 10
A89: 86 | B89: 0 | C89: 11000 | D89: 112 | E89: 85 | F89: 87 | G89: EC-S7L-水平 | H89: 11
A90: 87 | B90: 0 | C90: 12000 | D90: 113 | E90: 86 | F90: 88 | G90: EC-S7L-水平 | H90: 12
A91: 88 | B91: 0 | C91: 13000 | D91: 114 | E91: 87 | F91: 89 | G91: EC-S7L-水平 | H91: 13
A92: 89 | B92: 0 | C92: 14000 | D92: 115 | E92: 88 | F92: 90 | G92: EC-S7L-水平 | H92: 14
A93: 90 | B93: 0 | C93: 15000 | D93: 116 | E93: 89 | F93: 91 | G93: EC-S7L-水平 | H93: 15
A94: 91 | B94: 0 | C94: 16000 | D94: 118 | E94: 90 | F94: 92 | G94: EC-S7L-水平 | H94: 16
A95: 92 | B95: 0 | C95: 17000 | D95: 120 | E95: 91 | F95: 93 | G95: EC-S7L-水平 | H95: 17
A96: 93 | B96: 0 | C96: 18000 | D96: 122 | E96: 92 | F96: 94 | G96: EC-S7L-水平 | H96: 18
A97: 94 | B97: 0 | C97: 19000 | D97: 124 | E97: 93 | F97: 95 | G97: EC-S7L-水平 | H97: 19
A98: 95 | B98: 0 | C98: 20000 | D98: 126 | E98: 94 | F98: 96 | G98: EC-S7L-水平 | H98: 20
A99: 96 | B99: 0 | C99: 21000 | D99: 128 | E99: 95 | F99: 97 | G99: EC-S7L-水平 | H99: 21
A100: 97 | B100: 0 | C100: 22000 | D100: 130 | E100: 96 | F100: 98 | G100: EC-S7L-水平 | H100: 22
A101: 98 | B101: 0 | C101: 23000 | D101: 132 | E101: 97 | F101: 99 | G101: EC-S7L-水平 | H101: 23
A102: 99 | B102: 0 | C102: 24000 | D102: 134 | E102: 98 | F102: 100 | G102: EC-S7L-水平 | H102: 24
A103: 100 | B103: 0 | C103: 25000 | D103: 136 | E103: 99 | F103: 101 | G103: EC-S7L-水平 | H103: 25
A104: 101 | B104: 0 | C104: 26000 | D104: 138 | E104: 100 | F104: 102 | G104: EC-S7L-水平 | H104: 26
A105: 102 | B105: 0 | C105: 27000 | D105: 140 | E105: 101 | F105: 103 | G105: EC-S7L-水平 | H105: 27
A106: 103 | B106: 0 | C106: 28000 | D106: 142 | E106: 102 | F106: 104 | G106: EC-S7L-水平 | H106: 28
A107: 104 | B107: 0 | C107: 29000 | D107: 144 | E107: 103 | F107: 105 | G107: EC-S7L-水平 | H107: 29
A108: 105 | B108: 0 | C108: 30000 | D108: 146 | E108: 104 | F108: 106 | G108: EC-S7L-水平 | H108: 30
A109: 106 | B109: 0 | C109: 31000 | D109: 148 | E109: 105 | F109: 107 | G109: EC-S7L-水平 | H109: 31
A110: 107 | B110: 0 | C110: 32000 | D110: 149 | E110: 106 | F110: 108 | G110: EC-S7L-水平 | H110: 32
A111: 108 | B111: 0 | C111: 33000 | D111: 150 | E111: 107 | F111: 109 | G111: EC-S7L-水平 | H111: 33
A112: 109 | B112: 0 | C112: 34000 | D112: 151 | E112: 108 | F112: 110 | G112: EC-S7L-水平 | H112: 34
A113: 110 | B113: 0 | C113: 35000 | D113: 152 | E113: 109 | F113: 111 | G113: EC-S7L-水平 | H113: 35
A114: 111 | B114: 0 | C114: 36000 | D114: 153 | E114: 110 | F114: 112 | G114: EC-S7L-水平 | H114: 36
A115: 112 | B115: 0 | C115: 37000 | D115: 154 | E115: 111 | F115: 113 | G115: EC-S7L-水平 | H115: 37
A116: 113 | B116: 0 | C116: 38000 | D116: 155 | E116: 112 | F116: 114 | G116: EC-S7L-水平 | H116: 38
A117: 114 | B117: 0 | C117: 39000 | D117: 156 | E117: 113 | F117: 115 | G117: EC-S7L-水平 | H117: 39
A118: 115 | B118: 0 | C118: 40000 | D118: 157 | E118: 114 | F118: 116 | G118: EC-S7L-水平 | H118: 40
A119: 116 | B119: 1 | C119: 2000 | D119: 158 | E119: 115 | F119: 117 | G119: EC-S7L-垂直 | H119: 2
A120: 117 | B120: 1 | C120: 3000 | D120: 159 | E120: 116 | F120: 118 | G120: EC-S7L-垂直 | H120: 3
A121: 118 | B121: 1 | C121: 4000 | D121: 160 | E121: 117 | F121: 119 | G121: EC-S7L-垂直 | H121: 4
A122: 119 | B122: 1 | C122: 5000 | D122: 161 | E122: 118 | F122: 120 | G122: EC-S7L-垂直 | H122: 5
A123: 120 | B123: 1 | C123: 6000 | D123: 162 | E123: 119 | F123: 121 | G123: EC-S7L-垂直 | H123: 6
A124: 121 | B124: 1 | C124: 7000 | D124: 163 | E124: 120 | F124: 122 | G124: EC-S7L-垂直 | H124: 7
A125: 122 | B125: 1 | C125: 8000 | D125: 164 | E125: 121 | F125: 123 | G125: EC-S7L-垂直 | H125: 8
A126: 123 | B126: 1 | C126: 9000 | D126: 165 | E126: 122 | F126: 124 | G126: EC-S7L-垂直 | H126: 9
A127: 124 | B127: 1 | C127: 10000 | D127: 166 | E127: 123 | F127: 125 | G127: EC-S7L-垂直 | H127: 10
A128: 125 | B128: 1 | C128: 11000 | D128: 167 | E128: 124 | F128: 126 | G128: EC-S7L-垂直 | H128: 11
A129: 126 | B129: 1 | C129: 12000 | D129: 168 | E129: 125 | F129: 127 | G129: EC-S7L-垂直 | H129: 12
A130: 127 | B130: 1 | C130: 13000 | D130: 169 | E130: 126 | F130: 128 | G130: EC-S7L-垂直 | H130: 13
A131: 128 | B131: 1 | C131: 14000 | D131: 170 | E131: 127 | F131: 129 | G131: EC-S7L-垂直 | H131: 14
A132: 129 | B132: 1 | C132: 15000 | D132: 171 | E132: 128 | F132: -1 | G132: EC-S7L-垂直 | H132: 15
A133: 130 | B133: 0 | C133: 1000 | D133: 172 | E133: -1 | F133: 131 | G133: EC-S7M-水平 | H133: 1
A134: 131 | B134: 0 | C134: 2000 | D134: 173 | E134: 130 | F134: 132 | G134: EC-S7M-水平 | H134: 2
A135: 132 | B135: 0 | C135: 3000 | D135: 174 | E135: 131 | F135: 133 | G135: EC-S7M-水平 | H135: 3
A136: 133 | B136: 0 | C136: 4000 | D136: 175 | E136: 132 | F136: 134 | G136: EC-S7M-水平 | H136: 4
A137: 134 | B137: 0 | C137: 5000 | D137: 176 | E137: 133 | F137: 135 | G137: EC-S7M-水平 | H137: 5
A138: 135 | B138: 0 | C138: 6000 | D138: 177 | E138: 134 | F138: 136 | G138: EC-S7M-水平 | H138: 6
A139: 136 | B139: 0 | C139: 7000 | D139: 178 | E139: 135 | F139: 137 | G139: EC-S7M-水平 | H139: 7
A140: 137 | B140: 0 | C140: 8000 | D140: 179 | E140: 136 | F140: 138 | G140: EC-S7M-水平 | H140: 8
A141: 138 | B141: 0 | C141: 9000 | D141: 180 | E141: 137 | F141: 139 | G141: EC-S7M-水平 | H141: 9
A142: 139 | B142: 0 | C142: 10000 | D142: 181 | E142: 138 | F142: 140 | G142: EC-S7M-水平 | H142: 10
A143: 140 | B143: 0 | C143: 11000 | D143: 183 | E143: 139 | F143: 141 | G143: EC-S7M-水平 | H143: 11
A144: 141 | B144: 0 | C144: 12000 | D144: 185 | E144: 140 | F144: 142 | G144: EC-S7M-水平 | H144: 12
A145: 142 | B145: 0 | C145: 13000 | D145: 187 | E145: 141 | F145: 143 | G145: EC-S7M-水平 | H145: 13
A146: 143 | B146: 0 | C146: 14000 | D146: 189 | E146: 142 | F146: 144 | G146: EC-S7M-水平 | H146: 14
A147: 144 | B147: 0 | C147: 15000 | D147: 191 | E147: 143 | F147: 145 | G147: EC-S7M-水平 | H147: 15
A148: 145 | B148: 0 | C148: 16000 | D148: 193 | E148: 144 | F148: 146 | G148: EC-S7M-水平 | H148: 16
A149: 146 | B149: 0 | C149: 17000 | D149: 195 | E149: 145 | F149: 147 | G149: EC-S7M-水平 | H149: 17
A150: 147 | B150: 0 | C150: 18000 | D150: 197 | E150: 146 | F150: 148 | G150: EC-S7M-水平 | H150: 18
A151: 148 | B151: 0 | C151: 19000 | D151: 199 | E151: 147 | F151: 149 | G151: EC-S7M-水平 | H151: 19
A152: 149 | B152: 0 | C152: 20000 | D152: 201 | E152: 148 | F152: 150 | G152: EC-S7M-水平 | H152: 20
A153: 150 | B153: 0 | C153: 21000 | D153: 203 | E153: 149 | F153: 151 | G153: EC-S7M-水平 | H153: 21
A154: 151 | B154: 0 | C154: 22000 | D154: 205 | E154: 150 | F154: 152 | G154: EC-S7M-水平 | H154: 22
A155: 152 | B155: 0 | C155: 23000 | D155: 207 | E155: 151 | F155: 153 | G155: EC-S7M-水平 | H155: 23
A156: 153 | B156: 0 | C156: 24000 | D156: 209 | E156: 152 | F156: 154 | G156: EC-S7M-水平 | H156: 24
A157: 154 | B157: 0 | C157: 25000 | D157: 211 | E157: 153 | F157: 155 | G157: EC-S7M-水平 | H157: 25
A158: 155 | B158: 0 | C158: 26000 | D158: 213 | E158: 154 | F158: 156 | G158: EC-S7M-水平 | H158: 26
A159: 156 | B159: 0 | C159: 27000 | D159: 214 | E159: 155 | F159: 157 | G159: EC-S7M-水平 | H159: 27
A160: 157 | B160: 0 | C160: 28000 | D160: 215 | E160: 156 | F160: 158 | G160: EC-S7M-水平 | H160: 28
A161: 158 | B161: 0 | C161: 29000 | D161: 216 | E161: 157 | F161: 159 | G161: EC-S7M-水平 | H161: 29
A162: 159 | B162: 0 | C162: 30000 | D162: 217 | E162: 158 | F162: 160 | G162: EC-S7M-水平 | H162: 30
A163: 160 | B163: 0 | C163: 31000 | D163: 218 | E163: 159 | F163: 161 | G163: EC-S7M-水平 | H163: 31
A164: 161 | B164: 0 | C164: 32000 | D164: 219 | E164: 160 | F164: 162 | G164: EC-S7M-水平 | H164: 32
A165: 162 | B165: 0 | C165: 33000 | D165: 220 | E165: 161 | F165: 163 | G165: EC-S7M-水平 | H165: 33
A166: 163 | B166: 0 | C166: 34000 | D166: 221 | E166: 162 | F166: 164 | G166: EC-S7M-水平 | H166: 34
A167: 164 | B167: 0 | C167: 35000 | D167: 222 | E167: 163 | F167: 165 | G167: EC-S7M-水平 | H167: 35
A168: 165 | B168: 0 | C168: 36000 | D168: 223 | E168: 164 | F168: 166 | G168: EC-S7M-水平 | H168: 36
A169: 166 | B169: 0 | C169: 37000 | D169: 224 | E169: 165 | F169: 167 | G169: EC-S7M-水平 | H169: 37
A170: 167 | B170: 0 | C170: 38000 | D170: 225 | E170: 166 | F170: 168 | G170: EC-S7M-水平 | H170: 38
A171: 168 | B171: 0 | C171: 39000 | D171: 226 | E171: 167 | F171: 169 | G171: EC-S7M-水平 | H171: 39
A172: 169 | B172: 0 | C172: 40000 | D172: 227 | E172: 168 | F172: 170 | G172: EC-S7M-水平 | H172: 40
A173: 170 | B173: 1 | C173: 1500 | D173: 228 | E173: 169 | F173: 171 | G173: EC-S7M-垂直 | H173: 1.5
A174: 171 | B174: 1 | C174: 2000 | D174: 229 | E174: 170 | F174: 172 | G174: EC-S7M-垂直 | H174: 2
A175: 172 | B175: 1 | C175: 3000 | D175: 230 | E175: 171 | F175: 173 | G175: EC-S7M-垂直 | H175: 3
A176: 173 | B176: 1 | C176: 4000 | D176: 231 | E176: 172 | F176: 174 | G176: EC-S7M-垂直 | H176: 4
A177: 174 | B177: 1 | C177: 5000 | D177: 232 | E177: 173 | F177: 175 | G177: EC-S7M-垂直 | H177: 5
A178: 175 | B178: 1 | C178: 6000 | D178: 233 | E178: 174 | F178: 176 | G178: EC-S7M-垂直 | H178: 6
A179: 176 | B179: 1 | C179: 7000 | D179: 234 | E179: 175 | F179: 177 | G179: EC-S7M-垂直 | H179: 7
A180: 177 | B180: 1 | C180: 8000 | D180: 235 | E180: 176 | F180: 178 | G180: EC-S7M-垂直 | H180: 8
A181: 178 | B181: 1 | C181: 9000 | D181: 236 | E181: 177 | F181: 179 | G181: EC-S7M-垂直 | H181: 9
A182: 179 | B182: 1 | C182: 10000 | D182: 237 | E182: 178 | F182: -1 | G182: EC-S7M-垂直 | H182: 10
A183: 180 | B183: 0 | C183: 500 | D183: 238 | E183: -1 | F183: 181 | G183: EC-S7H-水平 | H183: 0.5
A184: 181 | B184: 0 | C184: 1000 | D184: 239 | E184: 180 | F184: 182 | G184: EC-S7H-水平 | H184: 1
A185: 182 | B185: 0 | C185: 2000 | D185: 240 | E185: 181 | F185: 183 | G185: EC-S7H-水平 | H185: 2
A186: 183 | B186: 0 | C186: 3000 | D186: 241 | E186: 182 | F186: 184 | G186: EC-S7H-水平 | H186: 3
A187: 184 | B187: 0 | C187: 4000 | D187: 242 | E187: 183 | F187: 185 | G187: EC-S7H-水平 | H187: 4
A188: 185 | B188: 0 | C188: 5000 | D188: 243 | E188: 184 | F188: 186 | G188: EC-S7H-水平 | H188: 5
A189: 186 | B189: 0 | C189: 6000 | D189: 244 | E189: 185 | F189: 187 | G189: EC-S7H-水平 | H189: 6
A190: 187 | B190: 0 | C190: 7000 | D190: 245 | E190: 186 | F190: 188 | G190: EC-S7H-水平 | H190: 7
A191: 188 | B191: 0 | C191: 8000 | D191: 247 | E191: 187 | F191: 189 | G191: EC-S7H-水平 | H191: 8
A192: 189 | B192: 0 | C192: 9000 | D192: 249 | E192: 188 | F192: 190 | G192: EC-S7H-水平 | H192: 9
A193: 190 | B193: 0 | C193: 10000 | D193: 251 | E193: 189 | F193: 191 | G193: EC-S7H-水平 | H193: 10
A194: 191 | B194: 0 | C194: 11000 | D194: 253 | E194: 190 | F194: 192 | G194: EC-S7H-水平 | H194: 11
A195: 192 | B195: 0 | C195: 12000 | D195: 255 | E195: 191 | F195: 193 | G195: EC-S7H-水平 | H195: 12
A196: 193 | B196: 0 | C196: 13000 | D196: 257 | E196: 192 | F196: 194 | G196: EC-S7H-水平 | H196: 13
A197: 194 | B197: 0 | C197: 14000 | D197: 259 | E197: 193 | F197: 195 | G197: EC-S7H-水平 | H197: 14
A198: 195 | B198: 0 | C198: 15000 | D198: 261 | E198: 194 | F198: 196 | G198: EC-S7H-水平 | H198: 15
A199: 196 | B199: 0 | C199: 16000 | D199: 263 | E199: 195 | F199: 197 | G199: EC-S7H-水平 | H199: 16
A200: 197 | B200: 0 | C200: 17000 | D200: 265 | E200: 196 | F200: 198 | G200: EC-S7H-水平 | H200: 17
... 4300 more rows

Sheet AccVelDataLink (hidden)
A1: =LeadData!A1 -> 9.80665 | B1: 1 | C1: 2 | D1: 3 | E1: 4
A2: ﾃﾞｰﾀ№ | B2: 水平定格加速度 | C2: 最高速度 | D2: 前ﾃﾞｰﾀ№ | E2: 次ﾃﾞｰﾀ№ | F2: 備考
A3: =ModelData!A3 -> 0 | B3: 0.001mm/s^2 | C3: ㎜/s | D3: ﾚｺｰﾄﾞ№ | E3: ﾚｺｰﾄﾞ№ | F3: 型式-姿勢 | G3: kg | H3: G | I3: mm/s
A4: 1 | B4: 6864655 | C4: 170 | D4: -1 | E4: -1 | F4: EC-S6L-水平 | G4: 9 | H4: 0.7 | I4: 170
A5: 2 | B5: 6864655 | C5: 155 | D5: -1 | E5: -1 | F5: EC-S6L-水平 | G5: 10 | H5: 0.7 | I5: 155
A6: 3 | B6: 2941995 | C6: 170 | D6: -1 | E6: 4 | F6: EC-S6L-水平 | G6: 11 | H6: 0.3 | I6: 170
A7: 4 | B7: 6864655 | C7: 140 | D7: 3 | E7: -1 | F7: EC-S6L-水平 | G7: 11 | H7: 0.7 | I7: 140
A8: 5 | B8: 2941995 | C8: 162 | D8: -1 | E8: 6 | F8: EC-S6L-水平 | G8: 12 | H8: 0.3 | I8: 162
A9: 6 | B9: 6864655 | C9: 130 | D9: 5 | E9: -1 | F9: EC-S6L-水平 | G9: 12 | H9: 0.7 | I9: 130
A10: 7 | B10: 2941995 | C10: 155 | D10: -1 | E10: 8 | F10: EC-S6L-水平 | G10: 13 | H10: 0.3 | I10: 155
A11: 8 | B11: 6864655 | C11: 120 | D11: 7 | E11: -1 | F11: EC-S6L-水平 | G11: 13 | H11: 0.7 | I11: 120
A12: 9 | B12: 2941995 | C12: 147 | D12: -1 | E12: 10 | F12: EC-S6L-水平 | G12: 14 | H12: 0.3 | I12: 147
A13: 10 | B13: 6864655 | C13: 110 | D13: 9 | E13: -1 | F13: EC-S6L-水平 | G13: 14 | H13: 0.7 | I13: 110
A14: 11 | B14: 2941995 | C14: 140 | D14: -1 | E14: 12 | F14: EC-S6L-水平 | G14: 15 | H14: 0.3 | I14: 140
A15: 12 | B15: 6864655 | C15: 106 | D15: 11 | E15: -1 | F15: EC-S6L-水平 | G15: 15 | H15: 0.7 | I15: 106
A16: 13 | B16: 2941995 | C16: 134 | D16: -1 | E16: 14 | F16: EC-S6L-水平 | G16: 16 | H16: 0.3 | I16: 134
A17: 14 | B17: 6864655 | C17: 102 | D17: 13 | E17: -1 | F17: EC-S6L-水平 | G17: 16 | H17: 0.7 | I17: 102
A18: 15 | B18: 2941995 | C18: 128 | D18: -1 | E18: 16 | F18: EC-S6L-水平 | G18: 17 | H18: 0.3 | I18: 128
A19: 16 | B19: 6864655 | C19: 98 | D19: 15 | E19: -1 | F19: EC-S6L-水平 | G19: 17 | H19: 0.7 | I19: 98
A20: 17 | B20: 2941995 | C20: 122 | D20: -1 | E20: 18 | F20: EC-S6L-水平 | G20: 18 | H20: 0.3 | I20: 122
A21: 18 | B21: 6864655 | C21: 95 | D21: 17 | E21: -1 | F21: EC-S6L-水平 | G21: 18 | H21: 0.7 | I21: 95
A22: 19 | B22: 2941995 | C22: 116 | D22: -1 | E22: 20 | F22: EC-S6L-水平 | G22: 19 | H22: 0.3 | I22: 116
A23: 20 | B23: 6864655 | C23: 91 | D23: 19 | E23: -1 | F23: EC-S6L-水平 | G23: 19 | H23: 0.7 | I23: 91
A24: 21 | B24: 2941995 | C24: 110 | D24: -1 | E24: 22 | F24: EC-S6L-水平 | G24: 20 | H24: 0.3 | I24: 110
A25: 22 | B25: 6864655 | C25: 87 | D25: 21 | E25: -1 | F25: EC-S6L-水平 | G25: 20 | H25: 0.7 | I25: 87
A26: 23 | B26: 2941995 | C26: 104 | D26: -1 | E26: 24 | F26: EC-S6L-水平 | G26: 21 | H26: 0.3 | I26: 104
A27: 24 | B27: 6864655 | C27: 83 | D27: 23 | E27: -1 | F27: EC-S6L-水平 | G27: 21 | H27: 0.7 | I27: 83
A28: 25 | B28: 2941995 | C28: 98 | D28: -1 | E28: 26 | F28: EC-S6L-水平 | G28: 22 | H28: 0.3 | I28: 98
A29: 26 | B29: 6864655 | C29: 80 | D29: 25 | E29: -1 | F29: EC-S6L-水平 | G29: 22 | H29: 0.7 | I29: 80
A30: 27 | B30: 2941995 | C30: 92 | D30: -1 | E30: -1 | F30: EC-S6L-水平 | G30: 23 | H30: 0.3 | I30: 92
A31: 28 | B31: 2941995 | C31: 86 | D31: -1 | E31: -1 | F31: EC-S6L-水平 | G31: 24 | H31: 0.3 | I31: 86
A32: 29 | B32: 2941995 | C32: 80 | D32: -1 | E32: -1 | F32: EC-S6L-水平 | G32: 25 | H32: 0.3 | I32: 80
A33: 30 | B33: 2941995 | C33: 170 | D33: -1 | E33: -1 | F33: EC-S6L-垂直 | G33: 2 | H33: 0.3 | I33: 170
A34: 31 | B34: 2941995 | C34: 160 | D34: -1 | E34: -1 | F34: EC-S6L-垂直 | G34: 3 | H34: 0.3 | I34: 160
A35: 32 | B35: 2941995 | C35: 150 | D35: -1 | E35: -1 | F35: EC-S6L-垂直 | G35: 4 | H35: 0.3 | I35: 150
A36: 33 | B36: 2941995 | C36: 140 | D36: -1 | E36: -1 | F36: EC-S6L-垂直 | G36: 5 | H36: 0.3 | I36: 140
A37: 34 | B37: 2941995 | C37: 130 | D37: -1 | E37: -1 | F37: EC-S6L-垂直 | G37: 6 | H37: 0.3 | I37: 130
A38: 35 | B38: 2941995 | C38: 120 | D38: -1 | E38: -1 | F38: EC-S6L-垂直 | G38: 7 | H38: 0.3 | I38: 120
A39: 36 | B39: 2941995 | C39: 110 | D39: -1 | E39: -1 | F39: EC-S6L-垂直 | G39: 8 | H39: 0.3 | I39: 110
A40: 37 | B40: 2941995 | C40: 95 | D40: -1 | E40: -1 | F40: EC-S6L-垂直 | G40: 9 | H40: 0.3 | I40: 95
A41: 38 | B41: 2941995 | C41: 80 | D41: -1 | E41: -1 | F41: EC-S6L-垂直 | G41: 10 | H41: 0.3 | I41: 80
A42: 39 | B42: 6864655 | C42: 340 | D42: -1 | E42: -1 | F42: EC-S6M-水平 | G42: 1 | H42: 0.7 | I42: 340
A43: 40 | B43: 6864655 | C43: 330 | D43: -1 | E43: -1 | F43: EC-S6M-水平 | G43: 2 | H43: 0.7 | I43: 330
A44: 41 | B44: 6864655 | C44: 320 | D44: -1 | E44: -1 | F44: EC-S6M-水平 | G44: 3 | H44: 0.7 | I44: 320
A45: 42 | B45: 6864655 | C45: 310 | D45: -1 | E45: -1 | F45: EC-S6M-水平 | G45: 4 | H45: 0.7 | I45: 310
A46: 43 | B46: 6864655 | C46: 300 | D46: -1 | E46: -1 | F46: EC-S6M-水平 | G46: 5 | H46: 0.7 | I46: 300
A47: 44 | B47: 6864655 | C47: 290 | D47: -1 | E47: -1 | F47: EC-S6M-水平 | G47: 6 | H47: 0.7 | I47: 290
A48: 45 | B48: 6864655 | C48: 280 | D48: -1 | E48: -1 | F48: EC-S6M-水平 | G48: 7 | H48: 0.7 | I48: 280
A49: 46 | B49: 6864655 | C49: 271 | D49: -1 | E49: -1 | F49: EC-S6M-水平 | G49: 8 | H49: 0.7 | I49: 271
A50: 47 | B50: 6864655 | C50: 262 | D50: -1 | E50: -1 | F50: EC-S6M-水平 | G50: 9 | H50: 0.7 | I50: 262
A51: 48 | B51: 2941995 | C51: 340 | D51: -1 | E51: 49 | F51: EC-S6M-水平 | G51: 10 | H51: 0.3 | I51: 340
A52: 49 | B52: 6864655 | C52: 254 | D52: 48 | E52: -1 | F52: EC-S6M-水平 | G52: 10 | H52: 0.7 | I52: 254
A53: 50 | B53: 2941995 | C53: 320 | D53: -1 | E53: 51 | F53: EC-S6M-水平 | G53: 11 | H53: 0.3 | I53: 320
A54: 51 | B54: 6864655 | C54: 245 | D54: 50 | E54: -1 | F54: EC-S6M-水平 | G54: 11 | H54: 0.7 | I54: 245
A55: 52 | B55: 2941995 | C55: 300 | D55: -1 | E55: 53 | F55: EC-S6M-水平 | G55: 12 | H55: 0.3 | I55: 300
A56: 53 | B56: 6864655 | C56: 237 | D56: 52 | E56: -1 | F56: EC-S6M-水平 | G56: 12 | H56: 0.7 | I56: 237
A57: 54 | B57: 2941995 | C57: 280 | D57: -1 | E57: 55 | F57: EC-S6M-水平 | G57: 13 | H57: 0.3 | I57: 280
A58: 55 | B58: 6864655 | C58: 228 | D58: 54 | E58: -1 | F58: EC-S6M-水平 | G58: 13 | H58: 0.7 | I58: 228
A59: 56 | B59: 2941995 | C59: 260 | D59: -1 | E59: 57 | F59: EC-S6M-水平 | G59: 14 | H59: 0.3 | I59: 260
A60: 57 | B60: 6864655 | C60: 220 | D60: 56 | E60: -1 | F60: EC-S6M-水平 | G60: 14 | H60: 0.7 | I60: 220
A61: 58 | B61: 2941995 | C61: 240 | D61: -1 | E61: -1 | F61: EC-S6M-水平 | G61: 15 | H61: 0.3 | I61: 240
A62: 59 | B62: 2941995 | C62: 220 | D62: -1 | E62: -1 | F62: EC-S6M-水平 | G62: 16 | H62: 0.3 | I62: 220
A63: 60 | B63: 2941995 | C63: 205 | D63: -1 | E63: -1 | F63: EC-S6M-水平 | G63: 17 | H63: 0.3 | I63: 205
A64: 61 | B64: 2941995 | C64: 190 | D64: -1 | E64: -1 | F64: EC-S6M-水平 | G64: 18 | H64: 0.3 | I64: 190
A65: 62 | B65: 2941995 | C65: 175 | D65: -1 | E65: -1 | F65: EC-S6M-水平 | G65: 19 | H65: 0.3 | I65: 175
A66: 63 | B66: 2941995 | C66: 160 | D66: -1 | E66: -1 | F66: EC-S6M-水平 | G66: 20 | H66: 0.3 | I66: 160
A67: 64 | B67: 2941995 | C67: 340 | D67: -1 | E67: -1 | F67: EC-S6M-垂直 | G67: 1 | H67: 0.3 | I67: 340
A68: 65 | B68: 2941995 | C68: 300 | D68: -1 | E68: -1 | F68: EC-S6M-垂直 | G68: 2 | H68: 0.3 | I68: 300
A69: 66 | B69: 2941995 | C69: 280 | D69: -1 | E69: -1 | F69: EC-S6M-垂直 | G69: 2.5 | H69: 0.3 | I69: 280
A70: 67 | B70: 2941995 | C70: 260 | D70: -1 | E70: -1 | F70: EC-S6M-垂直 | G70: 3 | H70: 0.3 | I70: 260
A71: 68 | B71: 2941995 | C71: 220 | D71: -1 | E71: -1 | F71: EC-S6M-垂直 | G71: 4 | H71: 0.3 | I71: 220
A72: 69 | B72: 2941995 | C72: 160 | D72: -1 | E72: -1 | F72: EC-S6M-垂直 | G72: 5 | H72: 0.3 | I72: 160
A73: 70 | B73: 6864655 | C73: 680 | D73: -1 | E73: -1 | F73: EC-S6H-水平 | G73: 1 | H73: 0.7 | I73: 680
A74: 71 | B74: 6864655 | C74: 600 | D74: -1 | E74: -1 | F74: EC-S6H-水平 | G74: 2 | H74: 0.7 | I74: 600
A75: 72 | B75: 6864655 | C75: 560 | D75: -1 | E75: -1 | F75: EC-S6H-水平 | G75: 2.5 | H75: 0.7 | I75: 560
A76: 73 | B76: 6864655 | C76: 546 | D76: -1 | E76: -1 | F76: EC-S6H-水平 | G76: 3 | H76: 0.7 | I76: 546
A77: 74 | B77: 2941995 | C77: 680 | D77: -1 | E77: 75 | F77: EC-S6H-水平 | G77: 4 | H77: 0.3 | I77: 680
A78: 75 | B78: 6864655 | C78: 520 | D78: 74 | E78: -1 | F78: EC-S6H-水平 | G78: 4 | H78: 0.7 | I78: 520
A79: 76 | B79: 2941995 | C79: 640 | D79: -1 | E79: 77 | F79: EC-S6H-水平 | G79: 5 | H79: 0.3 | I79: 640
A80: 77 | B80: 6864655 | C80: 493 | D80: 76 | E80: -1 | F80: EC-S6H-水平 | G80: 5 | H80: 0.7 | I80: 493
A81: 78 | B81: 2941995 | C81: 600 | D81: -1 | E81: 79 | F81: EC-S6H-水平 | G81: 6 | H81: 0.3 | I81: 600
A82: 79 | B82: 6864655 | C82: 466 | D82: 78 | E82: -1 | F82: EC-S6H-水平 | G82: 6 | H82: 0.7 | I82: 466
A83: 80 | B83: 2941995 | C83: 560 | D83: -1 | E83: 81 | F83: EC-S6H-水平 | G83: 7 | H83: 0.3 | I83: 560
A84: 81 | B84: 6864655 | C84: 440 | D84: 80 | E84: -1 | F84: EC-S6H-水平 | G84: 7 | H84: 0.7 | I84: 440
A85: 82 | B85: 2941995 | C85: 530 | D85: -1 | E85: 83 | F85: EC-S6H-水平 | G85: 8 | H85: 0.3 | I85: 530
A86: 83 | B86: 6864655 | C86: 400 | D86: 82 | E86: -1 | F86: EC-S6H-水平 | G86: 8 | H86: 0.7 | I86: 400
A87: 84 | B87: 2941995 | C87: 500 | D87: -1 | E87: 85 | F87: EC-S6H-水平 | G87: 9 | H87: 0.3 | I87: 500
A88: 85 | B88: 6864655 | C88: 360 | D88: 84 | E88: -1 | F88: EC-S6H-水平 | G88: 9 | H88: 0.7 | I88: 360
A89: 86 | B89: 2941995 | C89: 470 | D89: -1 | E89: 87 | F89: EC-S6H-水平 | G89: 10 | H89: 0.3 | I89: 470
A90: 87 | B90: 6864655 | C90: 320 | D90: 86 | E90: -1 | F90: EC-S6H-水平 | G90: 10 | H90: 0.7 | I90: 320
A91: 88 | B91: 2941995 | C91: 440 | D91: -1 | E91: -1 | F91: EC-S6H-水平 | G91: 11 | H91: 0.3 | I91: 440
A92: 89 | B92: 2941995 | C92: 400 | D92: -1 | E92: -1 | F92: EC-S6H-水平 | G92: 12 | H92: 0.3 | I92: 400
A93: 90 | B93: 2941995 | C93: 360 | D93: -1 | E93: -1 | F93: EC-S6H-水平 | G93: 13 | H93: 0.3 | I93: 360
A94: 91 | B94: 2941995 | C94: 320 | D94: -1 | E94: -1 | F94: EC-S6H-水平 | G94: 14 | H94: 0.3 | I94: 320
A95: 92 | B95: 2941995 | C95: 680 | D95: -1 | E95: -1 | F95: EC-S6H-垂直 | G95: 0.5 | H95: 0.3 | I95: 680
A96: 93 | B96: 2941995 | C96: 560 | D96: -1 | E96: -1 | F96: EC-S6H-垂直 | G96: 1 | H96: 0.3 | I96: 560
A97: 94 | B97: 2941995 | C97: 440 | D97: -1 | E97: -1 | F97: EC-S6H-垂直 | G97: 1.5 | H97: 0.3 | I97: 440
A98: 95 | B98: 2941995 | C98: 320 | D98: -1 | E98: -1 | F98: EC-S6H-垂直 | G98: 2 | H98: 0.3 | I98: 320
A99: 96 | B99: 6864655 | C99: 800 | D99: -1 | E99: -1 | F99: EC-S6S-水平 | G99: 1.5 | H99: 0.7 | I99: 800
A100: 97 | B100: 6864655 | C100: 746 | D100: -1 | E100: -1 | F100: EC-S6S-水平 | G100: 2 | H100: 0.7 | I100: 746
